{"text_format":"3","workbook":"xlsx","n_sheets":13,"sheets":["Supplementary Data 1","Supplementary Data 2","Supplementary Data 3","Supplementary Data 4","Supplementary Data 5","Supplementary Data 6","Supplementary Data 7","Supplementary Data 8","Supplementary Data 9","Supplementary Data 10","Supplementary Data 11","Supplementary Data 12","Supplementary Data 13"],"cells_cut":1,"read":"whole","date_system":"1900"}

{"sheet":"Supplementary Data 1","index":0,"n_rows":13,"n_cols":15,"rows_kept":13,"merged":[[1,0,2,0],[1,1,2,1],[1,2,1,3],[1,4,1,5],[1,6,2,6],[1,7,2,7],[1,8,2,8],[1,9,2,9],[1,10,2,10],[1,11,2,11],[1,12,2,12],[1,13,2,13],[1,14,2,14]]}
["Supplementary Data 1. Comparisons of genome assemblies and annotations among sequenced Asteraceae species."]
["Species","Assembled \ngenome size (Gb)","Contig",null,"Scaffold",null,"BUSCO of \nassembly (%)","Chromosome\n-scale","Annotated\ngene number","BUSCO of annotation (%)","Repeat(%)","Average gene length (bp)","Average CDS length (bp)","Exons number per gene","References"]
[null,null,"Number","N50 (Kb)","Number","N50 (Kb)"]
["C. morifolium",8.15,{"v":19524,"d":"19,524"},{"v":1867.062,"d":"1867.06"},5953,{"v":303688.045,"d":"303,688.05"},98,"Yes",{"v":138749,"d":"138,749"},98,83.92,{"v":3912.07,"d":"3,912.07"},{"v":1089.63,"d":"1,089.63"},{"v":4.5,"d":"4.50"},"This study"]
["C. nankingense",2.87,{"v":3989,"d":"3,989"},5979.66,9,{"v":353782.47,"d":"353,782.47"},{"v":90.6,"d":"91"},"Yes",{"v":37995,"d":"37,995"},{"v":82.9,"d":"83"},"-",{"v":3449.8,"d":"3,449.80"},{"v":1230.6,"d":"1,230.60"},5.36,"This study"]
["C. nankingense",2.53,{"v":24058,"d":"24,058"},{"v":130.667,"d":"130.67"},24051,{"v":130.678,"d":"130.68"},86,"No",{"v":56870,"d":"56,870"},75,{"v":69.6,"d":"69.60"},{"v":2773.27,"d":"2,773.27"},{"v":1008.19,"d":"1,008.19"},4.61,"Song et al. (2018) The Chrysanthemum nankingense genome provides insights into the evolution and diversification of chrysanthemum flowers and medicinal traits"]
["C. seticuspe",2.72,{"v":1215730,"d":"1,215,730"},{"v":5.313,"d":"5.31"},354212,{"v":44.741,"d":"44.74"},89,"No",{"v":71057,"d":"71,057"},85,{"v":72.5,"d":"72.50"},{"v":3089,"d":"3,089.00"},{"v":1253.13,"d":"1,253.13"},4.77,"Hirakawa et al. (2019) De novo whole-genome assembly in Chrysanthemum seticuspe, a model species of Chrysanthemums, and its application to genetic and gene discovery analysis"]
["Artemisia annua",1.79,{"v":315110,"d":"315,110"},{"v":9.093,"d":"9.09"},39400,{"v":104.891,"d":"104.89"},89,"No",{"v":62285,"d":"62,285"},85,{"v":61.6,"d":"61.60"},{"v":3774.29,"d":"3,774.29"},{"v":1114.84,"d":"1,114.84"},5.04,"Shen et al. (2018) The Genome of Artemisia annua provides insight into the evolution of Asteraceae family and artemisinin biosynthesis"]
["Helianthus annuus",3.03,{"v":13954,"d":"13,954"},{"v":414.085,"d":"414.09"},1528,{"v":178899,"d":"178,899"},89,"Yes",{"v":58163,"d":"58,163"},93,">75",{"v":3253.64,"d":"3,253.64"},{"v":1237.34,"d":"1,237.34"},4.27,"Badouin et al. (2017) The sunflower genome provides insights into oil metabolism, flowering and Asterid evolution"]
["Cynara cardunculus",0.73,{"v":79681,"d":"79,681"},{"v":17.496,"d":"17.50"},8283,{"v":25.947084,"d":"25.95"},90,"Yes",{"v":26155,"d":"26,155"},95,60.8,{"v":4457.07,"d":"4,457.07"},{"v":1321.22,"d":"1,321.22"},5.47,"Scaglione et al. (2016) The genome sequence of the outbreeding globe artichoke constructed de novo incorporating a phase-aware low-pass sequencing strategy of F1 progeny"]
["C. makinoi",{"v":3.1,"d":"3.10"},{"v":15226,"d":"15,226"},{"v":258.2,"d":"258.20"},4254,{"v":330000,"d":"330,000"},"-","Yes",{"v":95064,"d":"95,064"},92,80,"-",876,"-","van Lieshout et al. (2022) De novo whole-genome assembly of Chrysanthemum makinoi, a key wild chrysanthemum"]
["C. lavandulifolium",{"v":2.6,"d":"2.60"},{"v":10136,"d":"10,136"},{"v":497,"d":"497.00"},178,{"v":300402,"d":"300,402"},89,"Yes",{"v":64257,"d":"64,257"},92,67.69,"-","-","-","Wen et al. (2022) The chrysanthemum lavandulifolium genome and the molecular mechanism underlying diverse capitulum types"]
["C. seticuspev",3.05,"-","-",8493,{"v":347131,"d":"347,131"},97,"Yes",{"v":74259,"d":"74,259"},"-",81.2,"-","-","-","Nakano et al. (2021) A chromosome-level genome sequence of Chrysanthemum seticuspe, a model species for hexaploid cultivated chrysanthemum"]

{"sheet":"Supplementary Data 2","index":1,"n_rows":18,"n_cols":8,"rows_kept":18,"merged":[[1,0,1,1],[2,0,6,0],[7,0,12,0],[13,0,14,0],[15,0,15,1],[16,0,16,1],[17,0,17,1]]}
["Supplementary Data 2. General statistics of predicted protein-coding genes."]
["Gene set",null,"Number","Average\nCDS+intron length (bp)","Average CDS length (bp)","Average exons per gene","Average exon length (bp)","Average intron length (bp)"]
["De novo","Augustus",{"v":382277,"d":"382,277"},{"v":2454.71,"d":"2,454.71"},891.64,3.15,283.43,728.39]
[null,"GlimmerHMM",{"v":692128,"d":"692,128"},{"v":9665.49,"d":"9,665.49"},540.67,2.52,214.69,{"v":6009.66,"d":"6,009.66"}]
[null,"SNAP",{"v":806840,"d":"806,840"},{"v":4593.63,"d":"4,593.63"},{"v":575.3,"d":"575.30"},3.57,161.17,{"v":1563.87,"d":"1,563.87"}]
[null,"Geneid",{"v":537449,"d":"537,449"},{"v":4035.19,"d":"4,035.19"},687.72,3.53,194.89,{"v":1323.73,"d":"1,323.73"}]
[null,"Genscan",{"v":410371,"d":"410,371"},{"v":11161.41,"d":"11,161.41"},988.94,4.72,{"v":209.5,"d":"209.50"},{"v":2734.19,"d":"2,734.19"}]
["Homolog","Arabidopsis thaliana",{"v":87555,"d":"87,555"},{"v":2544.45,"d":"2,544.45"},945.87,3.09,306.59,766.65]
[null,"Daucus carota",{"v":297124,"d":"297,124"},{"v":2728.84,"d":"2,728.84"},{"v":1182.43,"d":"1,182.43"},1.96,{"v":602.9,"d":"602.90"},{"v":1608.76,"d":"1,608.76"}]
[null,"Helianthus annuus",{"v":363605,"d":"363,605"},{"v":2283.51,"d":"2,283.51"},{"v":1168.47,"d":"1,168.47"},{"v":2.1,"d":"2.10"},{"v":556,"d":"556.00"},{"v":1012.23,"d":"1,012.23"}]
[null,"Lactuca sativa",{"v":411740,"d":"411,740"},{"v":1759.69,"d":"1,759.69"},907.88,1.96,462.79,885.68]
[null,"Solanum lycopersicum",{"v":230525,"d":"230,525"},{"v":1767.59,"d":"1,767.59"},881.42,1.96,449.24,921.14]
[null,"Solanum tuberosum",{"v":309495,"d":"309,495"},{"v":1139.3,"d":"1,139.30"},666.28,1.57,425.21,834.35]
["RNA-seq","Cufflinks",{"v":196099,"d":"196,099"},{"v":3904.68,"d":"3,904.68"},846.25,3.39,249.28,{"v":1277.11,"d":"1,277.11"}]
[null,"PASA",{"v":83953,"d":"83,953"},{"v":7845.3,"d":"7,845.30"},{"v":1513.07,"d":"1,513.07"},5.98,253.17,{"v":1272.4,"d":"1,272.40"}]
["EVM",null,{"v":402517,"d":"402,517"},{"v":2635.21,"d":"2,635.21"},860.59,3.13,274.67,{"v":831.9,"d":"831.90"}]
["PASA-update",null,{"v":401680,"d":"401,680"},{"v":2667.64,"d":"2,667.64"},861.03,3.12,275.75,{"v":851.2,"d":"851.20"}]
["Combine",null,{"v":138749,"d":"138,749"},{"v":3912.07,"d":"3,912.07"},{"v":1089.63,"d":"1,089.63"},{"v":4.5,"d":"4.50"},{"v":242,"d":"242.00"},805.81]

{"sheet":"Supplementary Data 3","index":2,"n_rows":17,"n_cols":12,"rows_kept":17}
["Supplementary Data 3. The detailed genome information of 15 species used for comparative genomic analysis in this study.   "]
["No","Species","Scientific name","Abbr.","Gene \nnumber","Genes in\nfamily","Unclustered \ngenes","Family\n number","Genes in unique \nfamily","Genes in Single copy \nfamily","Average genes\n per family","References"]
[1,"Qinghao","Artemisia annua","Aan",{"v":62285,"d":"62,285"},{"v":46815,"d":"46,815"},{"v":15470,"d":"15,470"},{"v":20749,"d":"20,749"},{"v":6537,"d":"6,537"},{"v":2618,"d":"2,618"},{"v":2.25625331341269,"d":"2.26"},"Shen et al. (2018) The Genome of Artemisia annua provides insight into the evolution of Asteraceae family and artemisinin biosynthesis"]
[2,"Columbine","Aquilegia coerulea","Aco",{"v":29198,"d":"29,198"},{"v":23490,"d":"23,490"},{"v":5708,"d":"5,708"},{"v":13445,"d":"13,445"},{"v":3682,"d":"3,682"},{"v":4386,"d":"4,386"},{"v":1.74711788769059,"d":"1.75"},"Shi et al. (2020) A reappraisal of the phylogenetic placement of the Aquilegia whole-genome duplication"]
[3,"Amborella","Amborella trichopoda","Atr",{"v":26785,"d":"26,785"},{"v":18960,"d":"18,960"},{"v":7825,"d":"7,825"},{"v":12281,"d":"12,281"},{"v":4382,"d":"4,382"},{"v":5095,"d":"5,095"},{"v":1.54384822082892,"d":"1.54"},"Amborella Genome Project et al. (2013) The Amborella genome and the evolution of flowering plants"]
[4,"Coffee","Coffea canephora","Cca",{"v":25519,"d":"25,519"},{"v":20944,"d":"20,944"},{"v":4575,"d":"4,575"},{"v":13758,"d":"13,758"},{"v":1760,"d":"1,760"},{"v":4677,"d":"4,677"},{"v":1.52231428986771,"d":"1.52"},"Denoeud wt al. (2014) The coffee genome provides insight into the convergent evolution of  caffeine biosynthesis"]
[5,"Globe artichoke","Cynara cardunculus","Ccar",{"v":26155,"d":"26,155"},{"v":24635,"d":"24,635"},{"v":1520,"d":"1,520"},{"v":15209,"d":"15,209"},970,{"v":3603,"d":"3,603"},{"v":1.61976461305806,"d":"1.62"},"Scaglione et al. (2016) The genome sequence of the outbreeding globe artichoke constructed de novo incorporating a phase-aware low-pass sequencing strategy of F1 progeny"]
[6,"Juhuanao","Chrysanthemum nankingense","Cna",{"v":37995,"d":"37,995"},{"v":33388,"d":"33,388"},{"v":4607,"d":"4,607"},{"v":18731,"d":"18,731"},837,{"v":3571,"d":"3,571"},{"v":1.78249959959426,"d":"1.78"},"The present study"]
[7,"Ganyeju","Chrysanthemum seticuspe","Cse",{"v":71057,"d":"71,057"},{"v":55481,"d":"55,481"},{"v":15576,"d":"15,576"},{"v":21653,"d":"21,653"},{"v":5011,"d":"5,011"},{"v":3495,"d":"3,495"},{"v":2.56227774442341,"d":"2.56"},"Hirakawa et al. (2019) De novo whole-genome assembly in Chrysanthemum seticuspe, a model species of Chrysanthemums, and its application to genetic and gene discovery analysis"]
[8,"Carrot","Daucus carota","Dca",{"v":32112,"d":"32,112"},{"v":26415,"d":"26,415"},{"v":5697,"d":"5,697"},{"v":13731,"d":"13,731"},{"v":4610,"d":"4,610"},{"v":3674,"d":"3,674"},{"v":1.92374918068604,"d":"1.92"},"Iorizzo et al. (2016) A high-quality carrot genome assembly provides new insights into carotenoid accumulation and asterid genome evolution"]
[9,"Chrysanthemum","Chrysanthemum morifolium","Cmo",{"v":94552,"d":"94,552"},{"v":69055,"d":"69,055"},{"v":25497,"d":"25,497"},{"v":26377,"d":"26,377"},{"v":9316,"d":"9,316"},{"v":2634,"d":"2,634"},{"v":2.61800053076544,"d":"2.62"},"The present study"]
[10,"Sunflower","Helianthus annuus","Han",{"v":58163,"d":"58,163"},{"v":51790,"d":"51,790"},{"v":6373,"d":"6,373"},{"v":17063,"d":"17,063"},{"v":11834,"d":"11,834"},{"v":2846,"d":"2,846"},{"v":3.03522241106488,"d":"3.04"},"Badouin et al. (2017) The sunflower genome provides insights into oil metabolism, flowering and Asterid evolution"]
[11,"Lettuce","Lactuca sativa","Lsa",{"v":34736,"d":"34,736"},{"v":31341,"d":"31,341"},{"v":3395,"d":"3,395"},{"v":15954,"d":"15,954"},{"v":3485,"d":"3,485"},{"v":3617,"d":"3,617"},{"v":1.96446032342986,"d":"1.96"},"Reyes-Chin-Wo et al. (2017) Genome assembly with in vitro proximity ligation data and whole-genome triplication in lettuce"]
[12,"Rice","Oryza sativa","Osa",{"v":35737,"d":"35,737"},{"v":24638,"d":"24,638"},{"v":11099,"d":"11,099"},{"v":15591,"d":"15,591"},{"v":3825,"d":"3,825"},{"v":4277,"d":"4,277"},{"v":1.58027066897569,"d":"1.58"},"Goff et al. (2002) A Draft Sequence of the Rice Genome (Oryza sativa L. ssp. )"]
[13,"Tomato","Solanum lycopersicum","Sly",{"v":33663,"d":"33,663"},{"v":25884,"d":"25,884"},{"v":7779,"d":"7,779"},{"v":14413,"d":"14,413"},{"v":3562,"d":"3,562"},{"v":3928,"d":"3,928"},{"v":1.79587872059946,"d":"1.80"},"Sato et al. (2012) The tomato genome sequence provides insights into fleshy fruit evolution"]
[14,"Grape","Vitis vinifera","Vvi",{"v":28071,"d":"28,071"},{"v":22152,"d":"22,152"},{"v":5919,"d":"5,919"},{"v":13769,"d":"13,769"},{"v":1975,"d":"1,975"},{"v":4286,"d":"4,286"},{"v":1.60883143292904,"d":"1.61"},"Jaillon et al. (2007) The grapevine genome sequence suggests ancestral hexaploidization in major angiosperm phyla"]
[15,"Maize","Zea mays","Zma",{"v":39364,"d":"39,364"},{"v":32461,"d":"32,461"},{"v":6903,"d":"6,903"},{"v":16064,"d":"16,064"},{"v":6146,"d":"6,146"},{"v":3174,"d":"3,174"},{"v":2.02072958167331,"d":"2.02"},"Schnable et al. (2009) The B73 maize genome: complexity, diversity, and dynamics"]

{"sheet":"Supplementary Data 4","index":3,"n_rows":83,"n_cols":6,"rows_kept":83,"merged":[[72,0,72,5]]}
["Supplementary Data 4. Enriched GO terms and KEGG pathways for gene families expanded in C. morifolium.   "]
["Enriched GO terms (P < 0.001)"]
["ID","Description","Term","Pvalue","P.adjust","Rich Factor"]
["GO:0051762","sesquiterpene biosynthetic process","biological_process",{"v":7.3693e-63,"d":"7.37E-63"},{"v":7.4083e-59,"d":"7.41E-59"},{"v":0.76530612244898,"d":"0.77"}]
["GO:0046246","terpene biosynthetic process","biological_process",{"v":1.3448e-57,"d":"1.34E-57"},{"v":4.5063e-54,"d":"4.51E-54"},{"v":0.574193548387097,"d":"0.57"}]
["GO:0071281","cellular response to iron ion","biological_process",{"v":6.1481e-48,"d":"6.15E-48"},{"v":1.0301e-44,"d":"1.03E-44"},{"v":0.92156862745098,"d":"0.92"}]
["GO:0006714","sesquiterpenoid metabolic process","biological_process",{"v":2.5789e-41,"d":"2.58E-41"},{"v":2.8806e-38,"d":"2.88E-38"},{"v":0.414634146341463,"d":"0.41"}]
["GO:0016320","endoplasmic reticulum membrane fusion","biological_process",{"v":8.0339e-32,"d":"8.03E-32"},{"v":5.3843e-29,"d":"5.38E-29"},{"v":1,"d":"1.00"}]
["GO:0006720","isoprenoid metabolic process","biological_process",{"v":1.3428e-28,"d":"1.34E-28"},{"v":6.4281e-26,"d":"6.43E-26"},{"v":0.207715133531157,"d":"0.21"}]
["GO:0090174","organelle membrane fusion","biological_process",{"v":2.7945e-28,"d":"2.79E-28"},{"v":1.2769e-25,"d":"1.28E-25"},{"v":0.903225806451613,"d":"0.90"}]
["GO:0016114","terpenoid biosynthetic process","biological_process",{"v":4.977e-24,"d":"4.98E-24"},{"v":2.1754e-21,"d":"2.18E-21"},{"v":0.220164609053498,"d":"0.22"}]
["GO:0009850","auxin metabolic process","biological_process",{"v":1.7221e-17,"d":"1.72E-17"},{"v":6.3398e-15,"d":"6.34E-15"},{"v":0.29585798816568,"d":"0.30"}]
["GO:0009714","chalcone metabolic process","biological_process",{"v":1.8919e-17,"d":"1.89E-17"},{"v":6.3398e-15,"d":"6.34E-15"},{"v":0.941176470588235,"d":"0.94"}]
["GO:0010014","meristem initiation","biological_process",{"v":5.5142e-17,"d":"5.51E-17"},{"v":1.7882e-14,"d":"1.79E-14"},{"v":0.5,"d":"0.50"}]
["GO:0009851","auxin biosynthetic process","biological_process",{"v":5.5252e-16,"d":"5.53E-16"},{"v":1.6337e-13,"d":"1.63E-13"},{"v":0.446153846153846,"d":"0.45"}]
["GO:0030639","polyketide biosynthetic process","biological_process",{"v":9.1875e-16,"d":"9.19E-16"},{"v":2.5389e-13,"d":"2.54E-13"},{"v":0.842105263157895,"d":"0.84"}]
["GO:0045490","pectin catabolic process","biological_process",{"v":3.5224e-15,"d":"3.52E-15"},{"v":9.3185e-13,"d":"9.32E-13"},{"v":0.283018867924528,"d":"0.28"}]
["GO:0042445","hormone metabolic process","biological_process",{"v":5.5993e-15,"d":"5.60E-15"},{"v":1.4073e-12,"d":"1.41E-12"},{"v":0.192682926829268,"d":"0.19"}]
["GO:0090421","embryonic meristem initiation","biological_process",{"v":1.5585e-14,"d":"1.56E-14"},{"v":3.8215e-12,"d":"3.82E-12"},{"v":0.633333333333333,"d":"0.63"}]
["GO:0051923","sulfation","biological_process",{"v":1.6713e-14,"d":"1.67E-14"},{"v":4.0003e-12,"d":"4.00E-12"},{"v":0.48936170212766,"d":"0.49"}]
["GO:0010817","regulation of hormone levels","biological_process",{"v":3.0993e-13,"d":"3.10E-13"},{"v":6.6292e-11,"d":"6.63E-11"},{"v":0.151677852348993,"d":"0.15"}]
["GO:0042446","hormone biosynthetic process","biological_process",{"v":3.3553e-12,"d":"3.36E-12"},{"v":6.8839e-10,"d":"6.88E-10"},{"v":0.211155378486056,"d":"0.21"}]
["GO:0006572","tyrosine catabolic process","biological_process",{"v":3.9112e-12,"d":"3.91E-12"},{"v":7.5614e-10,"d":"7.56E-10"},{"v":0.652173913043478,"d":"0.65"}]
["GO:0006629","lipid metabolic process","biological_process",{"v":6.7648e-12,"d":"6.76E-12"},{"v":1.2594e-9,"d":"1.26E-09"},{"v":0.102865329512894,"d":"0.10"}]
["GO:0009741","response to brassinosteroid stimulus","biological_process",{"v":8.3679e-12,"d":"8.37E-12"},{"v":1.5022e-9,"d":"1.50E-09"},{"v":0.219626168224299,"d":"0.22"}]
["GO:0006565","L-serine catabolic process","biological_process",{"v":1.0142e-10,"d":"1.01E-10"},{"v":1.6445e-8,"d":"1.64E-08"},{"v":1,"d":"1.00"}]
["GO:0043290","apocarotenoid catabolic process","biological_process",{"v":1.5067e-10,"d":"1.51E-10"},{"v":2.3303e-8,"d":"2.33E-08"},{"v":0.785714285714286,"d":"0.79"}]
["GO:0001666","response to hypoxia","biological_process",{"v":3.1017e-10,"d":"3.10E-10"},{"v":4.5855e-8,"d":"4.59E-08"},{"v":0.132731958762887,"d":"0.13"}]
["GO:0035336","long-chain fatty-acyl-CoA metabolic process","biological_process",{"v":3.9338e-10,"d":"3.93E-10"},{"v":5.7313e-8,"d":"5.73E-08"},{"v":0.833333333333333,"d":"0.83"}]
["GO:0032968","positive regulation of transcription elongation from RNA polymerase II promoter","biological_process",{"v":5.6187e-10,"d":"5.62E-10"},{"v":7.7376e-8,"d":"7.74E-08"},{"v":0.428571428571429,"d":"0.43"}]
["GO:0046655","folic acid metabolic process","biological_process",{"v":9.4459e-10,"d":"9.45E-10"},{"v":1.2332e-7,"d":"1.23E-07"},{"v":0.9,"d":"0.90"}]
["GO:0031540","regulation of anthocyanin biosynthetic process","biological_process",{"v":2.8163e-9,"d":"2.82E-09"},{"v":3.2921e-7,"d":"3.29E-07"},{"v":0.327868852459016,"d":"0.33"}]
["GO:0006101","citrate metabolic process","biological_process",{"v":3.5046e-9,"d":"3.50E-09"},{"v":4.0036e-7,"d":"4.00E-07"},{"v":0.647058823529412,"d":"0.65"}]
["GO:0008610","lipid biosynthetic process","biological_process",{"v":4.1481e-9,"d":"4.15E-09"},{"v":4.6335e-7,"d":"4.63E-07"},{"v":0.109090909090909,"d":"0.11"}]
["GO:0010087","phloem or xylem histogenesis","biological_process",{"v":6.3715e-9,"d":"6.37E-09"},{"v":6.7424e-7,"d":"6.74E-07"},{"v":0.186440677966102,"d":"0.19"}]
["GO:0032786","positive regulation of DNA-dependent transcription, elongation","biological_process",{"v":6.7205e-9,"d":"6.72E-09"},{"v":6.9651e-7,"d":"6.97E-07"},{"v":0.375,"d":"0.38"}]
["GO:0080142","regulation of salicylic acid biosynthetic process","biological_process",{"v":9.1576e-9,"d":"9.16E-09"},{"v":8.685e-7,"d":"8.69E-07"},{"v":0.36734693877551,"d":"0.37"}]
["GO:0010569","regulation of double-strand break repair via homologous recombination","biological_process",{"v":1.0794e-8,"d":"1.08E-08"},{"v":1.0048e-6,"d":"1.00E-06"},{"v":0.545454545454545,"d":"0.55"}]
["GO:0005615","extracellular space","cellular_component",{"v":1.7031e-10,"d":"1.70E-10"},{"v":2.5941e-8,"d":"2.59E-08"},{"v":0.13589364844904,"d":"0.14"}]
["GO:0044421","extracellular region part","cellular_component",{"v":6.7946e-8,"d":"6.79E-08"},{"v":5.0975e-6,"d":"5.10E-06"},{"v":0.114194236926361,"d":"0.11"}]
["GO:0016605","PML body","cellular_component",{"v":1.1021e-7,"d":"1.10E-07"},{"v":8.0871e-6,"d":"8.09E-06"},{"v":0.875,"d":"0.88"}]
["GO:0080016","(-)-E-beta-caryophyllene synthase activity","molecular_function",{"v":3.4372e-55,"d":"3.44E-55"},{"v":6.9108e-52,"d":"6.91E-52"},{"v":0.773809523809524,"d":"0.77"}]
["GO:0010334","sesquiterpene synthase activity","molecular_function",{"v":2.8021e-42,"d":"2.80E-42"},{"v":3.5212e-39,"d":"3.52E-39"},{"v":0.553719008264463,"d":"0.55"}]
["GO:0010333","terpene synthase activity","molecular_function",{"v":9.2517e-37,"d":"9.25E-37"},{"v":8.4552e-34,"d":"8.46E-34"},{"v":0.347490347490348,"d":"0.35"}]
["GO:0016838","carbon-oxygen lyase activity, acting on phosphates","molecular_function",{"v":8.9893e-34,"d":"8.99E-34"},{"v":6.9515e-31,"d":"6.95E-31"},{"v":0.321428571428571,"d":"0.32"}]
["GO:0009975","cyclase activity","molecular_function",{"v":3.0099e-31,"d":"3.01E-31"},{"v":1.8912e-28,"d":"1.89E-28"},{"v":0.358490566037736,"d":"0.36"}]
["GO:0000287","magnesium ion binding","molecular_function",{"v":4.1364e-30,"d":"4.14E-30"},{"v":2.3102e-27,"d":"2.31E-27"},{"v":0.201379310344828,"d":"0.20"}]
["GO:0016835","carbon-oxygen lyase activity","molecular_function",{"v":9.8786e-30,"d":"9.88E-30"},{"v":5.2268e-27,"d":"5.23E-27"},{"v":0.200270635994587,"d":"0.20"}]
["GO:0047259","glucomannan 4-beta-mannosyltransferase activity","molecular_function",{"v":1.6797e-18,"d":"1.68E-18"},{"v":6.4946e-16,"d":"6.49E-16"},{"v":1,"d":"1.00"}]
["GO:0016210","naringenin-chalcone synthase activity","molecular_function",{"v":1.8919e-17,"d":"1.89E-17"},{"v":6.3398e-15,"d":"6.34E-15"},{"v":0.941176470588235,"d":"0.94"}]
["GO:0047681","aryl-alcohol dehydrogenase (NADP+) activity","molecular_function",{"v":2.8763e-16,"d":"2.88E-16"},{"v":8.7624e-14,"d":"8.76E-14"},{"v":0.80952380952381,"d":"0.81"}]
["GO:0016847","1-aminocyclopropane-1-carboxylate synthase activity","molecular_function",{"v":4.4834e-14,"d":"4.48E-14"},{"v":1.0482e-11,"d":"1.05E-11"},{"v":0.928571428571429,"d":"0.93"}]
["GO:0070547","L-tyrosine aminotransferase activity","molecular_function",{"v":1.4245e-13,"d":"1.42E-13"},{"v":3.1824e-11,"d":"3.18E-11"},0.75]
["GO:0010295","(+)-abscisic acid 8'-hydroxylase activity","molecular_function",{"v":5.3072e-13,"d":"5.31E-13"},{"v":1.1115e-10,"d":"1.11E-10"},{"v":1,"d":"1.00"}]
["GO:0080019","fatty-acyl-CoA reductase (alcohol-forming) activity","molecular_function",{"v":3.5356e-12,"d":"3.54E-12"},{"v":7.1088e-10,"d":"7.11E-10"},{"v":0.625,"d":"0.63"}]
["GO:0008271","secondary active sulfate transmembrane transporter activity","molecular_function",{"v":3.71e-12,"d":"3.71E-12"},{"v":7.3131e-10,"d":"7.31E-10"},{"v":0.857142857142857,"d":"0.86"}]
["GO:0003994","aconitate hydratase activity","molecular_function",{"v":4.9875e-12,"d":"4.99E-12"},{"v":9.4603e-10,"d":"9.46E-10"},{"v":0.916666666666667,"d":"0.92"}]
["GO:0005506","iron ion binding","molecular_function",{"v":8.3267e-12,"d":"8.33E-12"},{"v":1.5022e-9,"d":"1.50E-09"},{"v":0.101382488479263,"d":"0.10"}]
["GO:0008146","sulfotransferase activity","molecular_function",{"v":2.3055e-11,"d":"2.31E-11"},{"v":3.9961e-9,"d":"4.00E-09"},{"v":0.359375,"d":"0.36"}]
["GO:0016705","oxidoreductase activity, acting on paired donors, with incorporation or reduction of molecular oxygen","molecular_function",{"v":4.3071e-11,"d":"4.31E-11"},{"v":7.3388e-9,"d":"7.34E-09"},{"v":0.101711333548595,"d":"0.10"}]
["GO:0070905","serine binding","molecular_function",{"v":1.0142e-10,"d":"1.01E-10"},{"v":1.6445e-8,"d":"1.64E-08"},{"v":1,"d":"1.00"}]
["GO:0004372","glycine hydroxymethyltransferase activity","molecular_function",{"v":4.8462e-10,"d":"4.85E-10"},{"v":6.8619e-8,"d":"6.86E-08"},{"v":0.518518518518518,"d":"0.52"}]
["GO:0016747","transferase activity, transferring acyl groups other than amino-acyl groups","molecular_function",{"v":1.1723e-9,"d":"1.17E-09"},{"v":1.5109e-7,"d":"1.51E-07"},{"v":0.114508783344177,"d":"0.11"}]
["GO:0003852","2-isopropylmalate synthase activity","molecular_function",{"v":1.2616e-9,"d":"1.26E-09"},{"v":1.6055e-7,"d":"1.61E-07"},{"v":1,"d":"1.00"}]
["GO:0047780","citrate dehydratase activity","molecular_function",{"v":1.3224e-9,"d":"1.32E-09"},{"v":1.6413e-7,"d":"1.64E-07"},{"v":1,"d":"1.00"}]
["GO:0030570","pectate lyase activity","molecular_function",{"v":1.9978e-9,"d":"2.00E-09"},{"v":2.3628e-7,"d":"2.36E-07"},{"v":0.391304347826087,"d":"0.39"}]
["GO:0004869","cysteine-type endopeptidase inhibitor activity","molecular_function",{"v":4.3154e-9,"d":"4.32E-09"},{"v":4.7673e-7,"d":"4.77E-07"},{"v":0.242424242424242,"d":"0.24"}]
["GO:0009055","electron carrier activity","molecular_function",{"v":6.0291e-9,"d":"6.03E-09"},{"v":6.5172e-7,"d":"6.52E-07"},{"v":0.0975219824140687,"d":"0.10"}]
["GO:0016985","mannan endo-1,4-beta-mannosidase activity","molecular_function",{"v":6.5075e-9,"d":"6.51E-09"},{"v":6.8146e-7,"d":"6.81E-07"},{"v":0.571428571428571,"d":"0.57"}]
["GO:0008381","mechanically-gated ion channel activity","molecular_function",{"v":6.9357e-9,"d":"6.94E-09"},{"v":7.0429e-7,"d":"7.04E-07"},{"v":0.482758620689655,"d":"0.48"}]
["GO:0097007","4,8,12-trimethyltrideca-1,3,7,11-tetraene synthase activity","molecular_function",{"v":8.1571e-9,"d":"8.16E-09"},{"v":7.8171e-7,"d":"7.82E-07"},{"v":0.888888888888889,"d":"0.89"}]
["GO:0052747","sinapyl alcohol dehydrogenase activity","molecular_function",{"v":1.0366e-8,"d":"1.04E-08"},{"v":9.7388e-7,"d":"9.74E-07"},0.36]
["Enriched KEGG pathways (P < 0.001)"]
["No.","Description","Database","Pvalue","P.adjust","Gene ID"]
[1,"Sesquiterpenoid and triterpenoid biosynthesis","KEGG PATHWAY",{"v":5.45911076693e-50,"d":"5.46E-50"},{"v":5.73206630528e-48,"d":"5.73E-48"},"evm.model.scaffold_1353.160_Cmo|evm.model.scaffold_1735.1_Cmo|evm.model.scaffold_841.79_Cmo|evm.model.scaffold_10264.411_Cmo|evm.model.scaffold_699.4_Cmo|evm.model.scaffold_6275.150_Cmo|evm.model.scaffold_6275.144_Cmo|evm.model.scaffold_1513.169_Cmo|evm.model.scaffold_9806.1_Cmo|evm.model.scaffold_10124.322_Cmo|evm.model.scaffold_54.95_Cmo|evm.model.scaffold_720.116_Cmo|evm.model.scaffold_1763.81_Cmo|evm.model.scaffold_1874.20_Cmo|evm.model.scaffold_233.15_Cmo|evm.model.scaffold_362.179_Cmo|evm.model.scaffold_1874.30_Cmo|evm.model.scaffold_11771.385_Cmo|evm.model.scaffold_11836.4_Cmo|evm.model.scaffold_405.73_Cmo|evm.model.scaffold_9220.3_Cmo|evm.model.scaffold_10124.324_Cmo|evm.model.scaffold_6275.117_Cmo|evm.model.scaffold_54.107_Cmo|evm.model.scaffold_2021.1_Cmo|evm.model.scaffold_11836.33_Cmo|evm.model.scaffold_9220.1_Cmo|evm.model.scaffold_8461.1_Cmo|evm.model.scaffold_1440.116_Cmo|evm.model.scaffold_860.65_evm.model.scaffold_860.66_Cmo|evm.model.scaffold_1513.298_Cmo|evm.model.scaffold_1601.49_Cmo|evm.model.scaffold_9671.81_Cmo|evm.model.scaffold_155.299_Cmo|evm.model.scaffold_4163.62_Cmo|evm.model.scaffold_11836.21_Cmo|evm.model.scaffold_3224.2_Cmo|evm.model.scaffold_899.62_Cmo|evm.model.scaffold_2451.1_Cmo|evm.model.scaffold_10264.401_Cmo|evm.model.scaffold_6275.135_Cmo|evm.model.scaffold_1634.310_Cmo|evm.model.scaffold_6275.160_Cmo|evm.model.scaffold_11836.23_Cmo|evm.model.scaffold_10264.428_Cmo|evm.model.scaffold_1763.80_Cmo|evm.model.scaffold_1353.153_Cmo|evm.model.scaffold_1353.138_Cmo|evm.model.scaffold_9220.2_Cmo|evm.model.scaffold_11110.1_Cmo|evm.model.scaffold_2451.3_Cmo|evm.model.scaffold_311.36_Cmo|evm.model.scaffold_237.76_Cmo|evm.model.scaffold_1634.286_Cmo|evm.model.scaffold_54.106_Cmo|evm.model.scaffold_1353.135_Cmo|evm.model.scaffold_841.192_Cmo|evm.model.scaffold_4163.60_Cmo|evm.model.scaffold_774.341_Cmo|evm.model.scaffold_9671.79_Cmo|evm.model.scaffold_560.299_Cmo|evm.model.scaffold_1569.50_Cmo|evm.model.scaffold_774.343_Cmo|evm.model.scaffold_1173.21_Cmo|evm.model.scaffold_311.57_Cmo|evm.model.scaffold_3224.1_Cmo|evm.model.scaffold_11795.1_Cmo|evm.model.scaffold_1763.87_Cmo|evm.model.scaffold_1353.134_Cmo|evm.model.scaffold_54.9_Cmo|evm.model.scaffold_996.191_Cmo|evm.model.scaffold_10124.310_Cmo|evm.model.scaffold_6275.130_Cmo|evm.model.scaffold_5290.104_Cmo|evm.model.scaffold_10264.440_Cmo|evm.model.scaffold_10264.435_Cmo"]
[2,"Stilbenoid, diarylheptanoid and gingerol biosynthesis","KEGG PATHWAY",{"v":4.35907161001e-29,"d":"4.36E-29"},{"v":2.28851259525e-27,"d":"2.29E-27"},"evm.model.scaffold_4753.6_Cmo|evm.model.scaffold_1099.138_Cmo|evm.model.scaffold_10907.9_Cmo|evm.model.scaffold_1339.121_Cmo|evm.model.scaffold_1454.267_Cmo|evm.model.scaffold_5966.12_Cmo|evm.model.scaffold_289.166_Cmo|evm.model.scaffold_4598.89_Cmo|evm.model.scaffold_7854.87_Cmo|evm.model.scaffold_909.325_Cmo|evm.model.scaffold_6668.25_Cmo|evm.model.scaffold_2260.103_Cmo|evm.model.scaffold_1454.274_Cmo|evm.model.scaffold_4598.62_Cmo|evm.model.scaffold_8721.183_Cmo|evm.model.scaffold_1303.48_Cmo|evm.model.scaffold_591.120_Cmo|evm.model.scaffold_3347.16_Cmo|evm.model.scaffold_154.181_Cmo|evm.model.scaffold_63.66_Cmo|evm.model.scaffold_1303.430_Cmo|evm.model.scaffold_285.762_evm.model.scaffold_285.759_Cmo|evm.model.scaffold_11269.90_Cmo|evm.model.scaffold_4678.229_Cmo|evm.model.scaffold_1303.195_Cmo|evm.model.scaffold_560.451_Cmo|evm.model.scaffold_9043.33_Cmo|evm.model.scaffold_1483.229_Cmo|evm.model.scaffold_1073.4_Cmo|evm.model.scaffold_249.90_Cmo|evm.model.scaffold_6668.50_Cmo|evm.model.scaffold_6668.27_Cmo|evm.model.scaffold_536.42_Cmo|evm.model.scaffold_985.75_Cmo|evm.model.scaffold_1445.190_Cmo|evm.model.scaffold_1445.215_Cmo|evm.model.scaffold_103.177_Cmo|evm.model.scaffold_8931.1_Cmo|evm.model.scaffold_1371.355_Cmo|evm.model.scaffold_1099.136_Cmo|evm.model.scaffold_4598.77_Cmo|evm.model.scaffold_1303.416_Cmo|evm.model.scaffold_6668.31_Cmo|evm.model.scaffold_10542.7_Cmo|evm.model.scaffold_8721.192_Cmo|evm.model.scaffold_289.159_Cmo|evm.model.scaffold_9494.211_Cmo|evm.model.scaffold_1422.20_Cmo|evm.model.scaffold_7538.101_Cmo|evm.model.scaffold_4678.117_Cmo|evm.model.scaffold_339.113_Cmo|evm.model.scaffold_560.484_Cmo|evm.model.scaffold_7854.88_Cmo|evm.model.scaffold_3326.158_Cmo|evm.model.scaffold_1303.182_Cmo|evm.model.scaffold_1454.331_Cmo|evm.model.scaffold_10907.8_Cmo|evm.model.scaffold_4598.99_Cmo|evm.model.scaffold_733.379_Cmo|evm.model.scaffold_460.463_Cmo|evm.model.scaffold_154.185_Cmo|evm.model.scaffold_1445.216_Cmo|evm.model.scaffold_4598.66_Cmo|evm.model.scaffold_1451.8_Cmo|evm.model.scaffold_525.60_Cmo|evm.model.scaffold_1303.79_Cmo|evm.model.scaffold_339.107_Cmo|evm.model.scaffold_289.185_Cmo|evm.model.scaffold_2440.111_Cmo|evm.model.scaffold_560.489_Cmo|evm.model.scaffold_921.85_Cmo|evm.model.scaffold_8912.163_Cmo|evm.model.scaffold_560.441_Cmo|evm.model.scaffold_536.63_Cmo|evm.model.scaffold_5746.2_Cmo|evm.model.scaffold_536.8_Cmo|evm.model.scaffold_998.17_Cmo|evm.model.scaffold_7854.84_Cmo|evm.model.scaffold_1303.432_Cmo|evm.model.scaffold_838.145_Cmo|evm.model.scaffold_216.458_Cmo|evm.model.scaffold_4598.83_Cmo|evm.model.scaffold_285.742_Cmo|evm.model.scaffold_7854.85_Cmo|evm.model.scaffold_560.465_Cmo|evm.model.scaffold_2186.1_Cmo|evm.model.scaffold_1445.194_Cmo|evm.model.scaffold_1303.200_Cmo"]
[3,"Limonene and pinene degradation","KEGG PATHWAY",{"v":6.64933711188e-29,"d":"6.65E-29"},{"v":2.32726798916e-27,"d":"2.33E-27"},"evm.model.scaffold_4753.6_Cmo|evm.model.scaffold_10907.9_Cmo|evm.model.scaffold_1339.121_Cmo|evm.model.scaffold_1454.267_Cmo|evm.model.scaffold_5966.12_Cmo|evm.model.scaffold_289.166_Cmo|evm.model.scaffold_4598.89_Cmo|evm.model.scaffold_7854.87_Cmo|evm.model.scaffold_909.325_Cmo|evm.model.scaffold_6668.25_Cmo|evm.model.scaffold_2260.103_Cmo|evm.model.scaffold_1454.274_Cmo|evm.model.scaffold_4598.62_Cmo|evm.model.scaffold_8721.183_Cmo|evm.model.scaffold_1303.48_Cmo|evm.model.scaffold_591.120_Cmo|evm.model.scaffold_3347.16_Cmo|evm.model.scaffold_154.181_Cmo|evm.model.scaffold_63.66_Cmo|evm.model.scaffold_1303.430_Cmo|evm.model.scaffold_285.762_evm.model.scaffold_285.759_Cmo|evm.model.scaffold_11269.90_Cmo|evm.model.scaffold_4678.229_Cmo|evm.model.scaffold_1303.195_Cmo|evm.model.scaffold_560.451_Cmo|evm.model.scaffold_9043.33_Cmo|evm.model.scaffold_1483.229_Cmo|evm.model.scaffold_1073.4_Cmo|evm.model.scaffold_249.90_Cmo|evm.model.scaffold_1020.89_Cmo|evm.model.scaffold_6668.50_Cmo|evm.model.scaffold_6668.27_Cmo|evm.model.scaffold_536.42_Cmo|evm.model.scaffold_985.75_Cmo|evm.model.scaffold_1445.190_Cmo|evm.model.scaffold_1445.215_Cmo|evm.model.scaffold_103.177_Cmo|evm.model.scaffold_1371.355_Cmo|evm.model.scaffold_4598.77_Cmo|evm.model.scaffold_1303.416_Cmo|evm.model.scaffold_6668.31_Cmo|evm.model.scaffold_10542.7_Cmo|evm.model.scaffold_8721.192_Cmo|evm.model.scaffold_289.159_Cmo|evm.model.scaffold_9494.211_Cmo|evm.model.scaffold_1422.20_Cmo|evm.model.scaffold_7538.101_Cmo|evm.model.scaffold_4678.117_Cmo|evm.model.scaffold_339.113_Cmo|evm.model.scaffold_560.484_Cmo|evm.model.scaffold_7854.88_Cmo|evm.model.scaffold_3326.158_Cmo|evm.model.scaffold_1303.182_Cmo|evm.model.scaffold_1454.331_Cmo|evm.model.scaffold_10907.8_Cmo|evm.model.scaffold_4598.99_Cmo|evm.model.scaffold_733.379_Cmo|evm.model.scaffold_460.463_Cmo|evm.model.scaffold_154.185_Cmo|evm.model.scaffold_1445.216_Cmo|evm.model.scaffold_4598.66_Cmo|evm.model.scaffold_1451.8_Cmo|evm.model.scaffold_525.60_Cmo|evm.model.scaffold_1303.79_Cmo|evm.model.scaffold_339.107_Cmo|evm.model.scaffold_289.185_Cmo|evm.model.scaffold_2440.111_Cmo|evm.model.scaffold_560.489_Cmo|evm.model.scaffold_921.85_Cmo|evm.model.scaffold_8912.163_Cmo|evm.model.scaffold_560.441_Cmo|evm.model.scaffold_536.63_Cmo|evm.model.scaffold_5746.2_Cmo|evm.model.scaffold_536.8_Cmo|evm.model.scaffold_998.17_Cmo|evm.model.scaffold_7854.84_Cmo|evm.model.scaffold_1303.432_Cmo|evm.model.scaffold_838.145_Cmo|evm.model.scaffold_4282.13_Cmo|evm.model.scaffold_216.458_Cmo|evm.model.scaffold_4598.83_Cmo|evm.model.scaffold_285.742_Cmo|evm.model.scaffold_7854.85_Cmo|evm.model.scaffold_560.465_Cmo|evm.model.scaffold_2186.1_Cmo|evm.model.scaffold_1445.194_Cmo|evm.model.scaffold_1303.200_Cmo"]
[4,"Biosynthesis of secondary metabolites","KEGG PATHWAY",{"v":8.37601321629e-17,"d":"8.38E-17"},{"v":2.19870346928e-15,"d":"2.20E-15"},"evm.model.scaffold_719.92_Cmo|evm.model.scaffold_5746.2_Cmo|evm.model.scaffold_1208.76_Cmo|evm.model.scaffold_12254.35_Cmo|evm.model.scaffold_1099.138_Cmo|evm.model.scaffold_798.124_Cmo|evm.model.scaffold_1189.145_Cmo|evm.model.scaffold_11836.21_Cmo|evm.model.scaffold_1546.11_Cmo|evm.model.scaffold_10284.64.2_Cmo|evm.model.scaffold_317.18_Cmo|evm.model.scaffold_540.57_Cmo|evm.model.scaffold_1400.126_Cmo|evm.model.scaffold_6668.25_Cmo|evm.model.scaffold_2555.18_Cmo|evm.model.scaffold_899.62_Cmo|evm.model.scaffold_9494.211_Cmo|evm.model.scaffold_4598.62_Cmo|evm.model.scaffold_851.8_Cmo|evm.model.scaffold_11110.1_Cmo|evm.model.scaffold_1445.215_Cmo|evm.model.scaffold_843.211_Cmo|evm.model.scaffold_952.99_Cmo|evm.model.scaffold_212.135_Cmo|evm.model.scaffold_4909.52_Cmo|evm.model.scaffold_1371.132_Cmo|evm.model.scaffold_851.89_Cmo|evm.model.scaffold_1763.87_Cmo|evm.model.scaffold_1618.415_Cmo|evm.model.scaffold_4678.229_Cmo|evm.model.scaffold_1303.195_Cmo|evm.model.scaffold_674.16_Cmo|evm.model.scaffold_1513.169_Cmo|evm.model.scaffold_6667.302_Cmo|evm.model.scaffold_1874.20_Cmo|evm.model.scaffold_1457.232_Cmo|evm.model.scaffold_4819.1_Cmo|evm.model.scaffold_11836.4_Cmo|evm.model.scaffold_536.42_Cmo|evm.model.scaffold_10264.428_Cmo|evm.model.scaffold_1556.225_Cmo|evm.model.scaffold_985.75_Cmo|evm.model.scaffold_906.30_Cmo|evm.model.scaffold_636.87_Cmo|evm.model.scaffold_103.177_Cmo|evm.model.scaffold_11836.23_Cmo|evm.model.scaffold_1763.80_Cmo|evm.model.scaffold_339.107_Cmo|evm.model.scaffold_4228.5_Cmo|evm.model.scaffold_5234.3_Cmo|evm.model.scaffold_1534.305_Cmo|evm.model.scaffold_10498.306_Cmo|evm.model.scaffold_54.106_Cmo|evm.model.scaffold_4163.60_Cmo|evm.model.scaffold_6275.130_Cmo|evm.model.scaffold_888.97_Cmo|evm.model.scaffold_699.984_Cmo|evm.model.scaffold_6668.31_Cmo|evm.model.scaffold_5181.48_Cmo|evm.model.scaffold_212.200_Cmo|evm.model.scaffold_5290.104_Cmo|evm.model.scaffold_11836.33_Cmo|evm.model.scaffold_289.159_Cmo|evm.model.scaffold_963.48_Cmo|evm.model.scaffold_1784.64_Cmo|evm.model.scaffold_7538.101_Cmo|evm.model.scaffold_11771.385_Cmo|evm.model.scaffold_405.73_Cmo|evm.model.scaffold_1189.143_Cmo|evm.model.scaffold_560.484_Cmo|evm.model.scaffold_1474.226_evm.model.scaffold_1474.227_Cmo|evm.model.scaffold_5778.2_Cmo|evm.model.scaffold_851.95_Cmo|evm.model.scaffold_1142.206_Cmo|evm.model.scaffold_11319.50_Cmo|evm.model.scaffold_2451.1_Cmo|evm.model.scaffold_2475.131_Cmo|evm.model.scaffold_10907.8_Cmo|evm.model.scaffold_3224.2_Cmo|evm.model.scaffold_74.55_Cmo|evm.model.scaffold_1759.226_Cmo|evm.model.scaffold_1790.34_Cmo|evm.model.scaffold_560.299_Cmo|evm.model.scaffold_550.74_Cmo|evm.model.scaffold_asm7_new.1233_Cmo|evm.model.scaffold_1303.79_Cmo|evm.model.scaffold_11661.109_Cmo|evm.model.scaffold_3644.1_Cmo|evm.model.scaffold_1763.81_Cmo|evm.model.scaffold_4598.36_Cmo|evm.model.scaffold_921.85_Cmo|evm.model.scaffold_699.520_Cmo|evm.model.scaffold_757.107_Cmo|evm.model.scaffold_560.441_Cmo|evm.model.scaffold_7511.12_Cmo|evm.model.scaffold_536.63_Cmo|evm.model.scaffold_10124.133_Cmo|evm.model.scaffold_927.50_Cmo|evm.model.scaffold_2548.260_Cmo|evm.model.scaffold_6275.117_Cmo|evm.model.scaffold_1303.432_Cmo|evm.model.scaffold_11661.112_Cmo|evm.model.scaffold_509.18_Cmo|evm.model.scaffold_6797.104_Cmo|evm.model.scaffold_550.87_Cmo|evm.model.scaffold_9340.278_Cmo|evm.model.scaffold_2186.1_Cmo|evm.model.scaffold_3209.20_Cmo|evm.model.scaffold_212.125_Cmo|evm.model.scaffold_1188.34_Cmo|evm.model.scaffold_4568.119_Cmo|evm.model.scaffold_8978.69_Cmo|evm.model.scaffold_10013.19_Cmo|evm.model.scaffold_1453.38_Cmo|evm.model.scaffold_748.58_Cmo|evm.model.scaffold_1630.2_Cmo|evm.model.scaffold_851.90_Cmo|evm.model.scaffold_841.79_Cmo|evm.model.scaffold_8987.17_Cmo|evm.model.scaffold_5646.27_Cmo|evm.model.scaffold_11321.9_Cmo|evm.model.scaffold_9340.138_Cmo|evm.model.scaffold_532.21_Cmo|evm.model.scaffold_4598.89_Cmo|evm.model.scaffold_1333.540_Cmo|evm.model.scaffold_4874.5_Cmo|evm.model.scaffold_1208.68_Cmo|evm.model.scaffold_745.6_Cmo|evm.model.scaffold_1085.42_Cmo|evm.model.scaffold_1441.197.2_Cmo|evm.model.scaffold_632.479_Cmo|evm.model.scaffold_8721.183_Cmo|evm.model.scaffold_asm7_new.1031_Cmo|evm.model.scaffold_2248.413_Cmo|evm.model.scaffold_591.120_Cmo|evm.model.scaffold_9436.2_Cmo|evm.model.scaffold_1353.135_Cmo|evm.model.scaffold_154.181_Cmo|evm.model.scaffold_1400.331_Cmo|evm.model.scaffold_1208.81_Cmo|evm.model.scaffold_1303.430_Cmo|evm.model.scaffold_8644.60_Cmo|evm.model.scaffold_680.241_Cmo|evm.model.scaffold_699.533_Cmo|evm.model.scaffold_1617.59_Cmo|evm.model.scaffold_1617.118_Cmo|evm.model.scaffold_560.451_Cmo|evm.model.scaffold_3123.57_Cmo|evm.model.scaffold_9289.15_Cmo|evm.model.scaffold_1759.232_Cmo|evm.model.scaffold_233.15_Cmo|evm.model.scaffold_1874.72_Cmo|evm.model.scaffold_212.134_Cmo|evm.model.scaffold_996.191_Cmo|evm.model.scaffold_9220.1_Cmo|evm.model.scaffold_1645.436_Cmo|evm.model.scaffold_572.13_Cmo|evm.model.scaffold_201.50_Cmo|evm.model.scaffold_1735.1_Cmo|evm.model.scaffold_11305.40_Cmo|evm.model.scaffold_798.126_Cmo|evm.model.scaffold_393.108_Cmo|evm.model.scaffold_1099.136_Cmo|evm.model.scaffold_1371.138_Cmo|evm.model.scaffold_212.127_Cmo|evm.model.scaffold_1693.493_Cmo|evm.model.scaffold_10779.76_Cmo|evm.model.scaffold_1189.141_Cmo|evm.model.scaffold_591.141_Cmo|evm.model.scaffold_701.19_Cmo|evm.model.scaffold_1792.159_Cmo|evm.model.scaffold_1422.20_Cmo|evm.model.scaffold_6275.144_Cmo|evm.model.scaffold_1042.123_Cmo|evm.model.scaffold_1615.101_Cmo|evm.model.scaffold_720.116_Cmo|evm.model.scaffold_643.53_Cmo|evm.model.scaffold_8461.1_Cmo|evm.model.scaffold_210.14_Cmo|evm.model.scaffold_10867.32_Cmo|evm.model.scaffold_1365.117_Cmo|evm.model.scaffold_8662.5_Cmo|evm.model.scaffold_10513.134_Cmo|evm.model.scaffold_10124.310_Cmo|evm.model.scaffold_1281.38_Cmo|evm.model.scaffold_54.78_Cmo|evm.model.scaffold_6275.135_Cmo|evm.model.scaffold_1634.310_Cmo|evm.model.scaffold_1353.153_Cmo|evm.model.scaffold_1630.15_Cmo|evm.model.scaffold_1138.162_Cmo|evm.model.scaffold_1445.216_Cmo|evm.model.scaffold_460.463_Cmo|evm.model.scaffold_61.210_Cmo|evm.model.scaffold_10498.289_Cmo|evm.model.scaffold_774.341_Cmo|evm.model.scaffold_2037.12_Cmo|evm.model.scaffold_1554.285_Cmo|evm.model.scaffold_1208.67_Cmo|evm.model.scaffold_800.163_Cmo|evm.model.scaffold_7854.85_Cmo|evm.model.scaffold_851.9_Cmo|evm.model.scaffold_605.10_Cmo|evm.model.scaffold_8384.1_Cmo|evm.model.scaffold_212.22_Cmo|evm.model.scaffold_972.183_Cmo|evm.model.scaffold_1333.537_Cmo|evm.model.scaffold_1303.182_Cmo|evm.model.scaffold_5215.68_Cmo|evm.model.scaffold_998.17_Cmo|evm.model.scaffold_4262.26_Cmo|evm.model.scaffold_550.84_Cmo|evm.model.scaffold_1440.116_Cmo|evm.model.scaffold_1146.33_Cmo|evm.model.scaffold_4163.62_Cmo|evm.model.scaffold_6275.160_Cmo|evm.model.scaffold_568.107_Cmo|evm.model.scaffold_657.386_Cmo|evm.model.scaffold_4598.83_Cmo|evm.model.scaffold_7511.39_Cmo|evm.model.scaffold_10264.435_Cmo|evm.model.scaffold_560.465_Cmo|evm.model.scaffold_494.1_Cmo|evm.model.scaffold_1445.194_Cmo|evm.model.scaffold_409.171_Cmo|evm.model.scaffold_2310.128_Cmo|evm.model.scaffold_3209.63_evm.model.scaffold_3209.67_Cmo|evm.model.scaffold_asm16_new.286_Cmo|evm.model.scaffold_1706.72_Cmo|evm.model.scaffold_11319.52_Cmo|evm.model.scaffold_1890.4_Cmo|evm.model.scaffold_798.159_Cmo|evm.model.scaffold_10592.20_Cmo|evm.model.scaffold_1478.392_Cmo|evm.model.scaffold_1387.182_Cmo|evm.model.scaffold_1454.267_Cmo|evm.model.scaffold_1600.24_Cmo|evm.model.scaffold_1236.14_Cmo|evm.model.scaffold_289.166_Cmo|evm.model.scaffold_909.325_Cmo|evm.model.scaffold_6172.2_Cmo|evm.model.scaffold_727.24_evm.model.scaffold_727.23_Cmo|evm.model.scaffold_1601.49_Cmo|evm.model.scaffold_1040.87_Cmo|evm.model.scaffold_2260.103_Cmo|evm.model.scaffold_455.190_Cmo|evm.model.scaffold_1454.274_Cmo|evm.model.scaffold_2451.3_Cmo|evm.model.scaffold_4598.41_Cmo|evm.model.scaffold_9491.1_Cmo|evm.model.scaffold_1573.697_Cmo|evm.model.scaffold_1317.228_Cmo|evm.model.scaffold_311.57_Cmo|evm.model.scaffold_11269.90_Cmo|evm.model.scaffold_860.65_evm.model.scaffold_860.66_Cmo|evm.model.scaffold_6667.6_Cmo|evm.model.scaffold_468.420_Cmo|evm.model.scaffold_9806.1_Cmo|evm.model.scaffold_1829.172_Cmo|evm.model.scaffold_1483.229_Cmo|evm.model.scaffold_1540.116_Cmo|evm.model.scaffold_135.116_Cmo|evm.model.scaffold_1020.89_Cmo|evm.model.scaffold_1040.88_Cmo|evm.model.scaffold_11757.1_Cmo|evm.model.scaffold_212.206_Cmo|evm.model.scaffold_1445.190_Cmo|evm.model.scaffold_492.43_Cmo|evm.model.scaffold_550.61_Cmo|evm.model.scaffold_1371.355_Cmo|evm.model.scaffold_9220.2_Cmo|evm.model.scaffold_1186.28_Cmo|evm.model.scaffold_745.16_Cmo|evm.model.scaffold_10592.52_Cmo|evm.model.scaffold_841.192_Cmo|evm.model.scaffold_1569.50_Cmo|evm.model.scaffold_4598.77_Cmo|evm.model.scaffold_10124.322_Cmo|evm.model.scaffold_8912.163_Cmo|evm.model.scaffold_1756.125_Cmo|evm.model.scaffold_84.34.1_Cmo|evm.model.scaffold_388.10_Cmo|evm.model.scaffold_10264.411_Cmo|evm.model.scaffold_8783.142_Cmo|evm.model.scaffold_9671.79_Cmo|evm.model.scaffold_6841.157_Cmo|evm.model.scaffold_938.26_Cmo|evm.model.scaffold_4678.117_Cmo|evm.model.scaffold_10124.324_Cmo|evm.model.scaffold_asm7_new.842_Cmo|evm.model.scaffold_1792.153_Cmo|evm.model.scaffold_2021.1_Cmo|evm.model.scaffold_8987.18_Cmo|evm.model.scaffold_12245.78_Cmo|evm.model.scaffold_928.12_Cmo|evm.model.scaffold_1519.81_Cmo|evm.model.scaffold_798.157_Cmo|evm.model.scaffold_1454.331_Cmo|evm.model.scaffold_1040.89_Cmo|evm.model.scaffold_10264.440_Cmo|evm.model.scaffold_4598.99_Cmo|evm.model.scaffold_1792.147_Cmo|evm.model.scaffold_10498.311_Cmo|evm.model.scaffold_201.53_Cmo|evm.model.scaffold_644.205_Cmo|evm.model.scaffold_4598.66_Cmo|evm.model.scaffold_1451.8_Cmo|evm.model.scaffold_54.9_Cmo|evm.model.scaffold_622.39_Cmo|evm.model.scaffold_289.185_Cmo|evm.model.scaffold_5404.112_Cmo|evm.model.scaffold_10029.4_Cmo|evm.model.scaffold_6275.150_Cmo|evm.model.scaffold_10665.39_Cmo|evm.model.scaffold_24.244_Cmo|evm.model.scaffold_888.96_Cmo|evm.model.scaffold_1321.131_Cmo|evm.model.scaffold_536.8_Cmo|evm.model.scaffold_9627.166_Cmo|evm.model.scaffold_277.168.6_Cmo|evm.model.scaffold_356.139_Cmo|evm.model.scaffold_1513.298_Cmo|evm.model.scaffold_1353.138_Cmo|evm.model.scaffold_4282.13_Cmo|evm.model.scaffold_1333.547_Cmo|evm.model.scaffold_6765.2_Cmo|evm.model.scaffold_8920.164_Cmo|evm.model.scaffold_272.59_Cmo|evm.model.scaffold_40.36_Cmo|evm.model.scaffold_11661.108_Cmo|evm.model.scaffold_1189.144_Cmo|evm.model.scaffold_4503.107_Cmo|evm.model.scaffold_1144.2_Cmo|evm.model.scaffold_9627.218_Cmo|evm.model.scaffold_208.227_Cmo|evm.model.scaffold_752.172_Cmo|evm.model.scaffold_996.232_Cmo|evm.model.scaffold_9340.476_Cmo|evm.model.scaffold_54.95_Cmo|evm.model.scaffold_4753.6_Cmo|evm.model.scaffold_2351.3_Cmo|evm.model.scaffold_10907.9_Cmo|evm.model.scaffold_1339.121_Cmo|evm.model.scaffold_534.107_Cmo|evm.model.scaffold_5966.12_Cmo|evm.model.scaffold_7854.87_Cmo|evm.model.scaffold_54.107_Cmo|evm.model.scaffold_4568.117_Cmo|evm.model.scaffold_428.148.6_Cmo|evm.model.scaffold_985.191_Cmo|evm.model.scaffold_860.51_Cmo|evm.model.scaffold_944.122_Cmo|evm.model.scaffold_9671.81_Cmo|evm.model.scaffold_362.179_Cmo|evm.model.scaffold_1303.48_Cmo|evm.model.scaffold_4909.56_Cmo|evm.model.scaffold_11280.32_Cmo|evm.model.scaffold_311.36_Cmo|evm.model.scaffold_3347.16_Cmo|evm.model.scaffold_285.742_Cmo|evm.model.scaffold_181.69_Cmo|evm.model.scaffold_1005.204_Cmo|evm.model.scaffold_396.96_Cmo|evm.model.scaffold_1615.100_Cmo|evm.model.scaffold_63.66_Cmo|evm.model.scaffold_774.343_Cmo|evm.model.scaffold_3224.1_Cmo|evm.model.scaffold_357.72_Cmo|evm.model.scaffold_1353.160_Cmo|evm.model.scaffold_146.47_Cmo|evm.model.scaffold_699.4_Cmo|evm.model.scaffold_9043.33_Cmo|evm.model.scaffold_4568.118_Cmo|evm.model.scaffold_1759.235_Cmo|evm.model.scaffold_1073.4_Cmo|evm.model.scaffold_7511.37_Cmo|evm.model.scaffold_249.90_Cmo|evm.model.scaffold_6668.50_Cmo|evm.model.scaffold_6668.27_Cmo|evm.model.scaffold_285.762_evm.model.scaffold_285.759_Cmo|evm.model.scaffold_5181.38_Cmo|evm.model.scaffold_155.299_Cmo|evm.model.scaffold_699.985_Cmo|evm.model.scaffold_5018.100_Cmo|evm.model.scaffold_8931.1_Cmo|evm.model.scaffold_952.171_Cmo|evm.model.scaffold_361.24_Cmo|evm.model.scaffold_2958.15_Cmo|evm.model.scaffold_6045.189_Cmo|evm.model.scaffold_6149.136_Cmo|evm.model.scaffold_10013.105_Cmo|evm.model.scaffold_1753.4_Cmo|evm.model.scaffold_1303.416_Cmo|evm.model.scaffold_509.21_Cmo|evm.model.scaffold_5181.61_Cmo|evm.model.scaffold_1409.295_Cmo|evm.model.scaffold_8257.2_Cmo|evm.model.scaffold_9826.1_Cmo|evm.model.scaffold_647.142_Cmo|evm.model.scaffold_8721.192_Cmo|evm.model.scaffold_2731.39_Cmo|evm.model.scaffold_1552.55_Cmo|evm.model.scaffold_9356.3_Cmo|evm.model.scaffold_2879.35_Cmo|evm.model.scaffold_1031.5_Cmo|evm.model.scaffold_48.87_Cmo|evm.model.scaffold_1225.64_Cmo|evm.model.scaffold_11795.1_Cmo|evm.model.scaffold_339.113_Cmo|evm.model.scaffold_388.2_Cmo|evm.model.scaffold_8783.141_Cmo|evm.model.scaffold_6436.22_Cmo|evm.model.scaffold_7854.88_Cmo|evm.model.scaffold_3326.158_Cmo|evm.model.scaffold_7511.22_Cmo|evm.model.scaffold_699.528_Cmo|evm.model.scaffold_1615.102_Cmo|evm.model.scaffold_5367.3_Cmo|evm.model.scaffold_733.379_Cmo|evm.model.scaffold_1634.286_Cmo|evm.model.scaffold_154.185_Cmo|evm.model.scaffold_10264.401_Cmo|evm.model.scaffold_1113.78_Cmo|evm.model.scaffold_1645.470_Cmo|evm.model.scaffold_581.106_Cmo|evm.model.scaffold_135.269_Cmo|evm.model.scaffold_525.60_Cmo|evm.model.scaffold_11319.49_Cmo|evm.model.scaffold_587.43_Cmo|evm.model.scaffold_549.12_Cmo|evm.model.scaffold_2440.111_Cmo|evm.model.scaffold_560.489_Cmo|evm.model.scaffold_10542.7_Cmo|evm.model.scaffold_1560.55_Cmo|evm.model.scaffold_8286.11_Cmo|evm.model.scaffold_6668.92_Cmo|evm.model.scaffold_938.36_Cmo|evm.model.scaffold_7045.14_Cmo|evm.model.scaffold_asm16_new.5238_Cmo|evm.model.scaffold_550.64_Cmo|evm.model.scaffold_7854.84_Cmo|evm.model.scaffold_9220.3_Cmo|evm.model.scaffold_888.99_Cmo|evm.model.scaffold_622.38_Cmo|evm.model.scaffold_838.145_Cmo|evm.model.scaffold_1638.357_Cmo|evm.model.scaffold_509.22_Cmo|evm.model.scaffold_237.76_Cmo|evm.model.scaffold_216.458_Cmo|evm.model.scaffold_1409.297_Cmo|evm.model.scaffold_8317.2_Cmo|evm.model.scaffold_731.277_Cmo|evm.model.scaffold_1874.30_Cmo|evm.model.scaffold_357.36_Cmo|evm.model.scaffold_1173.21_Cmo|evm.model.scaffold_5037.1_Cmo|evm.model.scaffold_1303.200_Cmo|evm.model.scaffold_2403.4_Cmo|evm.model.scaffold_1353.134_Cmo|evm.model.scaffold_550.76_Cmo|evm.model.scaffold_10013.106_Cmo|evm.model.scaffold_110.46_Cmo"]
[5,"Pentose and glucuronate interconversions","KEGG PATHWAY",{"v":2.56805858981e-10,"d":"2.57E-10"},{"v":5.39292303859e-9,"d":"5.39E-09"},"evm.model.scaffold_821.140_Cmo|evm.model.scaffold_451.203_Cmo|evm.model.scaffold_10165.80_Cmo|evm.model.scaffold_2940.32_Cmo|evm.model.scaffold_9917.58_Cmo|evm.model.scaffold_1570.129_Cmo|evm.model.scaffold_223.298_Cmo|evm.model.scaffold_451.199_Cmo|evm.model.scaffold_451.202_Cmo|evm.model.scaffold_10243.51_evm.model.scaffold_10243.52_Cmo|evm.model.scaffold_1394.10_Cmo|evm.model.scaffold_1481.30_Cmo|evm.model.scaffold_339.26_Cmo|evm.model.scaffold_577.45_Cmo|evm.model.scaffold_51.17_Cmo|evm.model.scaffold_10779.66_Cmo|evm.model.scaffold_1020.89_Cmo|evm.model.scaffold_1819.79_Cmo|evm.model.scaffold_549.116_Cmo|evm.model.scaffold_1310.52_Cmo|evm.model.scaffold_1825.100_Cmo|evm.model.scaffold_610.7_Cmo|evm.model.scaffold_3326.43_Cmo|evm.model.scaffold_451.204_Cmo|evm.model.scaffold_3285.21_Cmo|evm.model.scaffold_1394.6_Cmo|evm.model.scaffold_117.382_Cmo|evm.model.scaffold_628.134_Cmo|evm.model.scaffold_asm16_new.3495_Cmo|evm.model.scaffold_4841.25_Cmo|evm.model.scaffold_339.27_Cmo|evm.model.scaffold_3285.19_Cmo|evm.model.scaffold_648.72_Cmo|evm.model.scaffold_3541.181_Cmo|evm.model.scaffold_1627.271_Cmo|evm.model.scaffold_782.66_Cmo|evm.model.scaffold_121.137_Cmo|evm.model.scaffold_995.16_Cmo|evm.model.scaffold_499.86_Cmo|evm.model.scaffold_1055.99_Cmo|evm.model.scaffold_648.67_Cmo|evm.model.scaffold_858.51_Cmo|evm.model.scaffold_499.85_Cmo|evm.model.scaffold_117.383_Cmo|evm.model.scaffold_5966.92_Cmo|evm.model.scaffold_132.63_Cmo|evm.model.scaffold_9289.64_Cmo|evm.model.scaffold_8229.11_Cmo|evm.model.scaffold_1307.28_Cmo|evm.model.scaffold_51.16_Cmo|evm.model.scaffold_6486.4_Cmo|evm.model.scaffold_1248.37_Cmo|evm.model.scaffold_648.68_Cmo|evm.model.scaffold_1394.17_Cmo|evm.model.scaffold_493.460_Cmo|evm.model.scaffold_648.77_Cmo|evm.model.scaffold_708.9_Cmo|evm.model.scaffold_551.3_Cmo|evm.model.scaffold_154.15_Cmo|evm.model.scaffold_9340.108_Cmo|evm.model.scaffold_267.383_Cmo|evm.model.scaffold_1108.94_Cmo|evm.model.scaffold_4282.13_Cmo"]
[6,"Flavonoid biosynthesis","KEGG PATHWAY",{"v":9.30437009229e-9,"d":"9.30E-09"},{"v":1.62826476615e-7,"d":"1.63E-07"},"evm.model.scaffold_1560.55_Cmo|evm.model.scaffold_1756.125_Cmo|evm.model.scaffold_2879.35_Cmo|evm.model.scaffold_7511.12_Cmo|evm.model.scaffold_24.244_Cmo|evm.model.scaffold_1099.138_Cmo|evm.model.scaffold_7511.37_Cmo|evm.model.scaffold_212.134_Cmo|evm.model.scaffold_9340.138_Cmo|evm.model.scaffold_11757.1_Cmo|evm.model.scaffold_428.148.6_Cmo|evm.model.scaffold_212.206_Cmo|evm.model.scaffold_277.168.6_Cmo|evm.model.scaffold_1146.33_Cmo|evm.model.scaffold_1142.206_Cmo|evm.model.scaffold_8931.1_Cmo|evm.model.scaffold_731.277_Cmo|evm.model.scaffold_5234.3_Cmo|evm.model.scaffold_1099.136_Cmo|evm.model.scaffold_409.171_Cmo|evm.model.scaffold_1573.697_Cmo|evm.model.scaffold_asm7_new.842_Cmo|evm.model.scaffold_212.135_Cmo|evm.model.scaffold_927.50_Cmo|evm.model.scaffold_212.200_Cmo|evm.model.scaffold_1706.72_Cmo"]
[7,"Diterpenoid biosynthesis","KEGG PATHWAY",{"v":8.17370922526e-6,"d":"8.17E-06"},{"v":0.000122605638379,"d":"1.23E-04"},"evm.model.scaffold_460.451_Cmo|evm.model.scaffold_699.533_Cmo|evm.model.scaffold_7093.94_Cmo|evm.model.scaffold_699.520_Cmo|evm.model.scaffold_1409.295_Cmo|evm.model.scaffold_906.30_Cmo|evm.model.scaffold_2310.128_Cmo|evm.model.scaffold_1409.297_Cmo|evm.model.scaffold_699.528_Cmo|evm.model.scaffold_860.51_Cmo|evm.model.scaffold_11826.50_Cmo|evm.model.scaffold_568.107_Cmo|evm.model.scaffold_1340.31_Cmo|evm.model.scaffold_1387.182_Cmo|evm.model.scaffold_11826.43_Cmo|evm.model.scaffold_289.183_Cmo|evm.model.scaffold_460.444_Cmo|evm.model.scaffold_460.442_Cmo|evm.model.scaffold_11826.54_Cmo"]
[8,"Tryptophan metabolism","KEGG PATHWAY",{"v":3.20052991686e-5,"d":"3.20E-05"},{"v":0.000420069551588,"d":"4.20E-04"},"evm.model.scaffold_699.501_Cmo|evm.model.scaffold_868.124_Cmo|evm.model.scaffold_1187.270_Cmo|evm.model.scaffold_6667.302_Cmo|evm.model.scaffold_10165.230_Cmo|evm.model.scaffold_525.121_Cmo|evm.model.scaffold_8286.67_Cmo|evm.model.scaffold_1735.158_Cmo|evm.model.scaffold_1815.69_Cmo|evm.model.scaffold_1400.691_Cmo|evm.model.scaffold_525.111_Cmo|evm.model.scaffold_1020.89_Cmo|evm.model.scaffold_1819.185_Cmo|evm.model.scaffold_1261.145_Cmo|evm.model.scaffold_509.22_Cmo|evm.model.scaffold_1473.122_Cmo|evm.model.scaffold_1815.70_Cmo|evm.model.scaffold_4282.13_Cmo|evm.model.scaffold_1187.276_Cmo|evm.model.scaffold_858.112_Cmo|evm.model.scaffold_1583.220_Cmo|evm.model.scaffold_1583.219_Cmo|evm.model.scaffold_6251.47_Cmo|evm.model.scaffold_1735.154_Cmo|evm.model.scaffold_9627.167_Cmo|evm.model.scaffold_1400.706_Cmo|evm.model.scaffold_509.21_Cmo|evm.model.scaffold_699.730_Cmo|evm.model.scaffold_1570.235_Cmo|evm.model.scaffold_1409.258_Cmo|evm.model.scaffold_1453.38_Cmo|evm.model.scaffold_1583.221_Cmo"]
["Enrichment was determined by a two-sided hypergeometric test followed by false discovery rate (FDR) correction for multiple testing."]

{"sheet":"Supplementary Data 5","index":4,"n_rows":32,"n_cols":13,"rows_kept":32,"merged":[[1,0,2,0],[1,1,2,1],[1,2,2,2],[1,3,2,3],[1,4,2,4],[1,5,2,5],[1,6,1,12]]}
["Supplementary Data 5. Summary of the mapping ratio of 12 Chrysanthemum wild species. "]
["Species","C. lavandulifolium","C. nankingense","C. rhombifolium","C. potentilloides","C. dichrum","C. indicum"]
[{"$nulls":6},"Hubei","Shennongjia","Wuyishan","Yuntaishan","Nanjing","Henan","Tianzhushan"]
["Chr1",9.79,10.49,9.62,8.05,8.13,8.92,9.34,9.12,8.88,6.67,9.84,6.83]
["Chr2",9.09,9.78,10.31,7.94,7.61,8.01,8.09,8.05,7.63,6.97,8.54,7.07]
["Chr3",9.03,9.85,10.16,7.79,8.08,8.14,8.22,{"v":8.1,"d":"8.10"},7.81,6.93,8.62,6.76]
["Chr4",7.99,8.88,8.67,6.98,7.17,7.44,7.19,7.36,6.93,5.87,7.76,5.97]
["Chr5",10.39,11.16,9.77,8.93,8.52,9.49,9.07,9.38,8.67,7.93,9.92,7.71]
["Chr6",7.61,8.49,8.47,6.71,6.72,7.25,6.83,6.98,6.63,5.74,7.38,5.84]
["Chr7",8.33,9.27,8.35,7.12,{"v":7.4,"d":"7.40"},8.17,7.61,7.89,7.34,6.56,{"v":8.2,"d":"8.20"},{"v":6.2,"d":"6.20"}]
["Chr8",8.01,9.04,8.42,6.96,7.37,7.83,7.29,7.62,7.02,6.36,7.85,6.01]
["Chr9",10.13,11.16,9.61,8.61,8.24,8.78,8.87,8.94,8.48,6.72,9.56,7.25]
["Chr10",8.89,9.66,8.93,7.65,8.13,8.44,8.05,8.03,7.63,{"v":6.8,"d":"6.80"},8.47,6.51]
["Chr11",10.14,10.39,9.09,7.79,10.82,8.47,8.54,{"v":8.2,"d":"8.20"},8.39,6.45,9.36,6.91]
["Chr12",8.96,10.05,9.61,7.98,7.77,8.67,8.04,8.05,7.76,6.61,8.62,11.42]
["Chr13",11.58,12.52,{"v":10.8,"d":"10.80"},10.97,8.88,{"v":9.5,"d":"9.50"},9.66,9.15,{"v":9.2,"d":"9.20"},7.23,10.56,7.89]
["Chr14",{"v":9.6,"d":"9.60"},10.33,9.82,8.57,8.14,8.89,8.55,8.48,8.25,7.09,9.23,7.31]
["Chr15",8.22,9.12,{"v":8.6,"d":"8.60"},7.18,7.36,7.69,7.39,7.27,7.06,{"v":6.2,"d":"6.20"},7.89,6.24]
["Chr16",10.31,10.96,9.64,{"v":8.6,"d":"8.60"},8.31,8.83,{"v":8.8,"d":"8.80"},9.13,{"v":8.7,"d":"8.70"},6.99,9.56,7.54]
["Chr17",7.88,{"v":8.7,"d":"8.70"},7.86,6.84,6.72,6.99,6.83,7.12,6.66,{"v":5.8,"d":"5.80"},7.37,5.83]
["Chr18",8.02,8.85,{"v":7.7,"d":"7.70"},7.04,6.66,7.08,{"v":7,"d":"7.00"},7.17,{"v":6.8,"d":"6.80"},5.86,7.58,5.92]
["Chr19",9.65,10.59,9.11,8.26,8.37,9.09,8.65,8.95,8.33,6.67,9.29,7.02]
["Chr20",8.38,9.33,8.81,7.36,7.36,7.63,7.46,7.64,7.16,6.33,8.03,6.27]
["Chr21",8.36,9.06,8.42,6.96,7.46,7.25,7.18,7.43,6.97,6.18,7.73,5.99]
["Chr22",9.11,10.06,8.96,7.85,8.78,8.44,8.12,7.99,7.87,{"v":7.1,"d":"7.10"},8.79,6.82]
["Chr23",{"v":10.1,"d":"10.10"},11.24,10.23,9.12,8.29,9.27,{"v":8.9,"d":"8.90"},8.96,8.63,7.04,9.65,7.53]
["Chr24",8.91,9.67,9.09,7.63,8.51,8.15,7.83,7.86,7.58,6.63,8.46,6.64]
["Chr25",9.21,9.99,10.04,7.96,7.78,8.24,8.15,8.36,7.88,6.75,8.84,7.02]
["Chr26",{"v":10.3,"d":"10.30"},11.01,9.64,8.69,8.52,9.12,{"v":8.8,"d":"8.80"},9.04,8.53,6.71,9.59,7.19]
["Chr27",8.16,9.03,9.42,7.18,7.11,7.56,7.24,7.51,7.02,6.46,7.76,6.38]
["Genome",9.34,{"v":10.3,"d":"10.30"},9.64,8.14,8.19,8.41,8.25,8.35,7.97,6.78,8.86,7.07]
["Mapping rate (%)",98.59,{"v":98.6,"d":"98.60"},98.11,98.61,98.13,96.96,98.07,98.47,{"v":98,"d":"98.00"},98.26,97.62,98.38]

{"sheet":"Supplementary Data 6","index":5,"n_rows":15,"n_cols":14,"rows_kept":15}
["Supplementary Data 6. Genomic similarity of cultivated chrysanthemum and 12 Chrysanthemum wild species by identify score analysis. "]
["Species","C. indicum\n(Tianzhushan)","C. lavandulifolium","C. nankingense","C. indicum\n(Henan)","C. indicum (Hubei)","C. rhombifolium","C. indicum\n(Nanjing)","C. indicum\n(Shennongjia)","C. potentilloides","C. indicum\n(Wuyishan)","C. dichrum","C. indicum\n(Yuntaishan)","C. morifolium"]
["C. indicum(Tianzhushan)",{"v":1,"d":"1.0000"},{"v":0.783475189918,"d":"0.7835"},{"v":0.795371811781,"d":"0.7954"},{"v":0.740410690386,"d":"0.7404"},{"v":0.798940455339,"d":"0.7989"},{"v":0.786949684204,"d":"0.7869"},{"v":0.830790123238,"d":"0.8308"},{"v":0.745302020804,"d":"0.7453"},{"v":0.833940805426,"d":"0.8339"},{"v":0.76868385062,"d":"0.7687"},{"v":0.79652601476,"d":"0.7965"},{"v":0.753352173465,"d":"0.7534"},{"v":0.83992462821,"d":"0.8399"}]
["C. lavandulifolium",{"v":0.783475189918,"d":"0.7835"},{"v":1,"d":"1.0000"},{"v":0.796305092724,"d":"0.7963"},{"v":0.750323337746,"d":"0.7503"},{"v":0.770021078235,"d":"0.7700"},{"v":0.740878731242,"d":"0.7409"},{"v":0.787556030618,"d":"0.7876"},{"v":0.755763846337,"d":"0.7558"},{"v":0.784452092678,"d":"0.7845"},{"v":0.769668057734,"d":"0.7697"},{"v":0.778830278266,"d":"0.7788"},{"v":0.764916274939,"d":"0.7649"},{"v":0.804363245082,"d":"0.8044"}]
["C. nankingense",{"v":0.795371811781,"d":"0.7954"},{"v":0.796305092724,"d":"0.7963"},{"v":1,"d":"1.0000"},{"v":0.75345256698,"d":"0.7535"},{"v":0.779405927819,"d":"0.7794"},{"v":0.747224634307,"d":"0.7472"},{"v":0.795472299735,"d":"0.7955"},{"v":0.756624081462,"d":"0.7566"},{"v":0.795757693332,"d":"0.7958"},{"v":0.77440153484,"d":"0.7744"},{"v":0.779072930919,"d":"0.7791"},{"v":0.767018828158,"d":"0.7670"},{"v":0.812234683922,"d":"0.8122"}]
["C. indicum(Henan)",{"v":0.740410690386,"d":"0.7404"},{"v":0.750323337746,"d":"0.7503"},{"v":0.75345256698,"d":"0.7535"},{"v":1,"d":"1.0000"},{"v":0.738496515092,"d":"0.7385"},{"v":0.699141816622,"d":"0.6991"},{"v":0.757461171455,"d":"0.7575"},{"v":0.844424923866,"d":"0.8444"},{"v":0.737713732088,"d":"0.7377"},{"v":0.811695385742,"d":"0.8117"},{"v":0.735222553953,"d":"0.7352"},{"v":0.828523731176,"d":"0.8285"},{"v":0.764398475235,"d":"0.7644"}]
["C. indicum (Hubei)",{"v":0.798940455339,"d":"0.7989"},{"v":0.770021078235,"d":"0.7700"},{"v":0.779405927819,"d":"0.7794"},{"v":0.738496515092,"d":"0.7385"},{"v":1,"d":"1.0000"},{"v":0.774568197568,"d":"0.7746"},{"v":0.823624846391,"d":"0.8236"},{"v":0.743059507389,"d":"0.7431"},{"v":0.784299295735,"d":"0.7843"},{"v":0.766134398062,"d":"0.7661"},{"v":0.802955013923,"d":"0.8030"},{"v":0.750932282788,"d":"0.7509"},{"v":0.836465463037,"d":"0.8365"}]
["C. rhombifolium",{"v":0.786949684204,"d":"0.7869"},{"v":0.740878731242,"d":"0.7409"},{"v":0.747224634307,"d":"0.7472"},{"v":0.699141816622,"d":"0.6991"},{"v":0.774568197568,"d":"0.7746"},{"v":1,"d":"1.0000"},{"v":0.794209078821,"d":"0.7942"},{"v":0.706847095918,"d":"0.7068"},{"v":0.769122311372,"d":"0.7691"},{"v":0.731238028494,"d":"0.7312"},{"v":0.767033842546,"d":"0.7670"},{"v":0.712000150203,"d":"0.7120"},{"v":0.831466041467,"d":"0.8315"}]
["C. indicum(Nanjing)",{"v":0.830790123238,"d":"0.8308"},{"v":0.787556030618,"d":"0.7876"},{"v":0.795472299735,"d":"0.7955"},{"v":0.757461171455,"d":"0.7575"},{"v":0.823624846391,"d":"0.8236"},{"v":0.794209078821,"d":"0.7942"},{"v":1,"d":"1.0000"},{"v":0.76367088882,"d":"0.7637"},{"v":0.804000154798,"d":"0.8040"},{"v":0.786986955964,"d":"0.7870"},{"v":0.810679761404,"d":"0.8107"},{"v":0.769025874309,"d":"0.7690"},{"v":0.859153596005,"d":"0.8592"}]
["C. indicum(Shennongjia)",{"v":0.745302020804,"d":"0.7453"},{"v":0.755763846337,"d":"0.7558"},{"v":0.756624081462,"d":"0.7566"},{"v":0.844424923866,"d":"0.8444"},{"v":0.743059507389,"d":"0.7431"},{"v":0.706847095918,"d":"0.7068"},{"v":0.76367088882,"d":"0.7637"},{"v":1,"d":"1.0000"},{"v":0.743227674625,"d":"0.7432"},{"v":0.799098940703,"d":"0.7991"},{"v":0.741057817172,"d":"0.7411"},{"v":0.807466973234,"d":"0.8075"},{"v":0.77206238444,"d":"0.7721"}]
["C. potentilloides",{"v":0.833940805426,"d":"0.8339"},{"v":0.784452092678,"d":"0.7845"},{"v":0.795757693332,"d":"0.7958"},{"v":0.737713732088,"d":"0.7377"},{"v":0.784299295735,"d":"0.7843"},{"v":0.769122311372,"d":"0.7691"},{"v":0.804000154798,"d":"0.8040"},{"v":0.743227674625,"d":"0.7432"},{"v":1,"d":"1.0000"},{"v":0.762170572964,"d":"0.7622"},{"v":0.786494807533,"d":"0.7865"},{"v":0.750436727722,"d":"0.7504"},{"v":0.829094997218,"d":"0.8291"}]
["C. indicum(Wuyishan)",{"v":0.76868385062,"d":"0.7687"},{"v":0.769668057734,"d":"0.7697"},{"v":0.77440153484,"d":"0.7744"},{"v":0.811695385742,"d":"0.8117"},{"v":0.766134398062,"d":"0.7661"},{"v":0.731238028494,"d":"0.7312"},{"v":0.786986955964,"d":"0.7870"},{"v":0.799098940703,"d":"0.7991"},{"v":0.762170572964,"d":"0.7622"},{"v":1,"d":"1.0000"},{"v":0.761582838043,"d":"0.7616"},{"v":0.818380399758,"d":"0.8184"},{"v":0.795077793462,"d":"0.7951"}]
["C. dichrum",{"v":0.79652601476,"d":"0.7965"},{"v":0.778830278266,"d":"0.7788"},{"v":0.779072930919,"d":"0.7791"},{"v":0.735222553953,"d":"0.7352"},{"v":0.802955013923,"d":"0.8030"},{"v":0.767033842546,"d":"0.7670"},{"v":0.810679761404,"d":"0.8107"},{"v":0.741057817172,"d":"0.7411"},{"v":0.786494807533,"d":"0.7865"},{"v":0.761582838043,"d":"0.7616"},{"v":1,"d":"1.0000"},{"v":0.748784943233,"d":"0.7488"},{"v":0.833775109439,"d":"0.8338"}]
["C. indicum(Yuntaishan)",{"v":0.753352173465,"d":"0.7534"},{"v":0.764916274939,"d":"0.7649"},{"v":0.767018828158,"d":"0.7670"},{"v":0.828523731176,"d":"0.8285"},{"v":0.750932282788,"d":"0.7509"},{"v":0.712000150203,"d":"0.7120"},{"v":0.769025874309,"d":"0.7690"},{"v":0.807466973234,"d":"0.8075"},{"v":0.750436727722,"d":"0.7504"},{"v":0.818380399758,"d":"0.8184"},{"v":0.748784943233,"d":"0.7488"},{"v":1,"d":"1.0000"},{"v":0.77852297101,"d":"0.7785"}]
["C. morifolium",{"v":0.83992462821,"d":"0.8399"},{"v":0.804363245082,"d":"0.8044"},{"v":0.812234683922,"d":"0.8122"},{"v":0.764398475235,"d":"0.7644"},{"v":0.836465463037,"d":"0.8365"},{"v":0.831466041467,"d":"0.8315"},{"v":0.859153596005,"d":"0.8592"},{"v":0.77206238444,"d":"0.7721"},{"v":0.829094997218,"d":"0.8291"},{"v":0.795077793462,"d":"0.7951"},{"v":0.833775109439,"d":"0.8338"},{"v":0.77852297101,"d":"0.7785"},{"v":1,"d":"1.0000"}]

{"sheet":"Supplementary Data 7","index":6,"n_rows":39,"n_cols":7,"rows_kept":39,"merged":[[1,1,1,3],[1,4,1,6]]}
["Supplementary Data 7. Gene retention ratios between C. nankingense and C. seticuspe in the C. morifolium genome."]
["Taxa","C. nankingense",null,null,"C. seticuspe"]
["Group1","Chr1","Chr2","Chr3","Chr1","Chr2","Chr3"]
["Mean",87.71,86.8,91.29,88.49,84.43,85.7]
["P-value",0.4028,{"v":0.0002344,"d":"2.34E-04"},{"v":1.512e-8,"d":"1.51E-08"},{"v":1.318e-6,"d":"1.32E-06"},{"v":0.003761,"d":"3.76E-03"},0.2198]
["Sig.","ns","***","***","***","**","ns"]
["Group2","Chr4","Chr5","Chr6","Chr4","Chr5","Chr6"]
["Mean",89.52,89.48,82.97,86.03,86.51,80.77]
["P-value",0.9567,{"v":8.924e-9,"d":"8.92E-09"},{"v":7.109e-8,"d":"7.11E-08"},0.5804,{"v":8.448e-6,"d":"8.45E-06"},{"v":2.527e-6,"d":"2.53E-06"}]
["Sig.","ns                                                                                                                                                                                                                                                                       ","***","***","ns","***","***"]
["Group3","Chr7","Chr8","Chr9","Chr7","Chr8","Chr9"]
["Mean",89.03,80.54,90.32,87.57,85.57,82.37]
["P-value",{"v":2.585e-7,"d":"2.59E-07"},0.1417,{"v":5.697e-10,"d":"5.70E-10"},{"v":0.02859,"d":"2.86E-02"},{"v":2.664e-5,"d":"2.66E-05"},{"v":0.00996,"d":"9.96E-03"}]
["Sig.","***","ns","***","*","***","**"]
["Group4","Chr10","Chr11","Chr12","Chr10","Chr11","Chr12"]
["Mean",84.7,89.91,86.27,82.94,86.56,80.94]
["P-value",{"v":2.817e-5,"d":"2.82E-05"},0.36,{"v":0.01166,"d":"1.17E-02"},{"v":0.002414,"d":"2.41E-03"},0.1846,{"v":7.264e-6,"d":"7.26E-06"}]
["Sig.","***","ns","*","**","ns","***"]
["Group5","Chr13","Chr14","Chr15","Chr13","Chr14","Chr15"]
["Mean",90.98,87.77,83.33,89.63,85.43,81.16]
["P-value",{"v":2.939e-7,"d":"2.94E-07"},{"v":2.633e-14,"d":"2.63E-14"},{"v":2.759e-5,"d":"2.76E-05"},{"v":1.747e-12,"d":"1.75E-12"},{"v":1.321e-12,"d":"1.32E-12"},{"v":0.0005325,"d":"5.33E-04"}]
["Sig.","***","***","***","***","***","***"]
["Group6","Chr16","Chr17","Chr18","Chr16","Chr17","Chr18"]
["Mean",87.43,90.4,82.72,85.78,86.25,84.84]
["P-value",{"v":0.0002165,"d":"2.17E-04"},{"v":2.155e-5,"d":"2.16E-05"},{"v":9.83e-14,"d":"9.83E-14"},0.5461,0.2014,0.06904]
["Sig.","***","***","***","ns","ns","ns"]
["Group7","Chr19","Chr20","Chr21","Chr19","Chr20","Chr21"]
["Mean",82.42,79.89,88.09,79.7,78.57,84.38]
["P-value",0.1431,{"v":6.625e-5,"d":"6.63E-05"},{"v":7.444e-9,"d":"7.44E-09"},0.4704,{"v":0.0001861,"d":"1.86E-04"},{"v":8.933e-6,"d":"8.93E-06"}]
["Sig.","ns","***","***","ns","***","***"]
["Group8","Chr22","Chr23","Chr24","Chr22","Chr23","Chr24"]
["Mean",86.24,89.04,85.86,85.52,86.33,84.66]
["P-value",{"v":0.00225,"d":"2.25E-03"},0.6999,{"v":0.001137,"d":"1.14E-03"},0.4032,0.3616,0.08424]
["Sig.","**","ns","**","ns","ns","ns"]
["Group9","Chr25","Chr26","Chr27","Chr25","Chr26","Chr27"]
["Mean",86.21,90.75,87.61,83.17,83.11,82.89]
["P-value",{"v":0.0009214,"d":"9.21E-04"},0.2767,{"v":0.004423,"d":"4.42E-03"},0.9715,0.8479,0.8868]
["Sig.","***","ns","**","ns","ns","ns"]
["The significance of the differences in the values between traid1 vs traid2, traid1 vs traid3, traid2 vs traid3 within a homoeologous chromosome group were respectively estimated using the two-tailed Welch's t-test (*** P < 0.001, ** P < 0.01, * P < 0.05, ns: not significance)."]

{"sheet":"Supplementary Data 8","index":7,"n_rows":26,"n_cols":5,"rows_kept":26,"merged":[[2,0,3,0],[4,0,7,0],[8,0,11,0],[12,0,14,0],[17,0,20,0]]}
["Supplementary Data 8. Oligonucleotide probes used for FISH analysis in this study"]
["No","Probe","Sequence","Length (bp)","Modification"]
[1,"JHCL22-1","AAGCCCCTACTTTAAAACATACAACCACCAA",31,"5'-FAM"]
[null,"JHCL22-2","AATAAGTCGTATAATTTCATTGAGTTTTTTCACACAC",37,"5'-FAM"]
[2,"JHCL77-1","GTTCTCACGGATGTTTTGACAGGTAATTCGG",31,"5'-TAMRA"]
[null,"JHCL77-2","CAACGGGTCGACATAATTCCAAATATGATCCAATGGGT",38,"5'-TAMRA"]
[null,"JHCL77-3","AAAATGGAGTTACGGTTCAAAAGTTATAAAGGTTC",35,"5'-TAMRA"]
[null,"JHCL77-4","CTGGAGATGACCCAAAATTCAGAGACCTGTT",31,"5'-TAMRA"]
[3,"JHCL110-1","ATCGACCGTTTGTATTTCATATGCTTATCACACCCTTC",38,"5'-FAM"]
[null,"JHCL110-2","CACAAAGACTCGTATAATTTATTTCGCACCTA",32,"5'-FAM"]
[null,"JHCL110-3","CTTGGTCATGTGGGCTTTATGTGATCTGTTG",31,"5'-FAM"]
[null,"JHCL110-4","TAATATGAGGCAAGAAACTACTATATACCCTTTGTGTAA",39,"5'-FAM"]
[4,"JHCL143-1","CATAAGAAGATCCCGTCGTTGCAATTGGTT",30,"5'-TAMRA"]
[null,"JHCL143-2","TCTCCGTTCGAAGTTGTAAGGCTAATTTTATATTTCTAGA",40,"5'-TAMRA"]
[null,"JHCL143-3","TTAATCTTCAAATGCCCGATTGTGATCTAAA",31,"5'-TAMRA"]
[5,"JHCL151","GTTGAACGTCTAATGTGTAACCATAACATATCGACTCATCC",41,"5'-FAM"]
[6,"JHCL168","ATCATGTTAAACGACCGAGTATAGGTGCTATGGTATACGT",40,"5'-TAMRA"]
[7,"JHCL173-1","ATATTACACATATCTATACTACTTATAATGGAGGGATGAC",40,"5'-FAM"]
[null,"JHCL173-2","TAAGACAAATGATGCAAAGATGTAAATTCACAA",33,"5'-FAM"]
[null,"JHCL173-3","AAATAAAATTAACCACAAAAGTAAAAAACG",30,"5'-FAM"]
[null,"JHCL173-4","TAGCTTTTACTAATTTATCTTCCACAACAT",30,"5'-FAM"]
[8,"JHCL98","GCAGTTAGAACACATTCAGGCCAAAGATATAGAGGTAATT",40,"5'-FAM"]
[9,"JHCL229","AAAATGCAAATAACTCATAAAATATAGTGTTTCAGGGCTT",40,"5'-FAM"]
[10,"JHCL263","TTTTATTTGGCATTTTTTAGATGAATTGTTAT",32,"5'-TAMRA"]
[11,"JHCL279","TTAGGTCAAGTGGGCAATAATTAATTTGGTAAAGTTGTA",39,"5'-FAM"]
[12,"JHKmer10","AGACCAAGTTTCCTAGGCCGACGTAA",26,"5'-TAMRA"]

{"sheet":"Supplementary Data 9","index":8,"n_rows":252,"n_cols":8,"rows_kept":252}
["Supplementary Data 9. Enriched GO terms for balanced genes in C. morifolium genome.   "]
["Taxa","GO accession","Description","Term","Pvalue","P.adjust","Rich Factor","Gene ID"]
["Chr1_Chr2_Chr3","GO:0019222","regulation of metabolic process","biological_process",{"v":9.5173e-8,"d":"9.52E-08"},0.00028746,{"v":0.220276497695853,"d":"0.22"},"evm.model.scaffold_1581.143_evm.model.scaffold_1581.141,evm.model.scaffold_391.71,evm.model.scaffold_1473.80,evm.model.scaffold_1398.101,evm.model.scaffold_719.90,evm.model.scaffold_116.142,evm.model.scaffold_598.36,evm.model.scaffold_425.85,evm.model.scaffold_963.91,evm.model.scaffold_6083.349,evm.model.scaffold_48.892,evm.model.scaffold_1822.56,evm.model.scaffold_8453.105.2,evm.model.scaffold_35.58,evm.model.scaffold_756.151,evm.model.scaffold_539.40,evm.model.scaffold_1730.225,evm.model.scaffold_4916.11,evm.model.scaffold_628.62,evm.model.scaffold_1499.4,evm.model.scaffold_9941.49,evm.model.scaffold_243.93,evm.model.scaffold_48.325,evm.model.scaffold_598.687,evm.model.scaffold_205.127,evm.model.scaffold_243.188,evm.model.scaffold_728.26,evm.model.scaffold_8453.158,evm.model.scaffold_1045.30,evm.model.scaffold_1495.55,evm.model.scaffold_871.122,evm.model.scaffold_537.7,evm.model.scaffold_598.431,evm.model.scaffold_220.26_evm.model.scaffold_220.27,evm.model.scaffold_499.284,evm.model.scaffold_499.388,evm.model.scaffold_308.278,evm.model.scaffold_533.73,evm.model.scaffold_688.16,evm.model.scaffold_5424.75,evm.model.scaffold_243.122,evm.model.scaffold_1648.14,evm.model.scaffold_1487.60,evm.model.scaffold_545.278,evm.model.scaffold_5601.120,evm.model.scaffold_499.210,evm.model.scaffold_285.733,evm.model.scaffold_545.380,evm.model.scaffold_409.13,evm.model.scaffold_11779.27,evm.model.scaffold_205.25,evm.model.scaffold_7350.70,evm.model.scaffold_205.63,evm.model.scaffold_116.35,evm.model.scaffold_932.72,evm.model.scaffold_74.319,evm.model.scaffold_7966.2,evm.model.scaffold_709.40,evm.model.scaffold_1072.38,evm.model.scaffold_688.14,evm.model.scaffold_484.13,evm.model.scaffold_1518.9,evm.model.scaffold_286.111,evm.model.scaffold_391.63.1,evm.model.scaffold_1495.92,evm.model.scaffold_894.119_evm.model.scaffold_894.120,evm.model.scaffold_4964.298_evm.model.scaffold_4964.299,evm.model.scaffold_599.160.1,evm.model.scaffold_1050.189,evm.model.scaffold_599.111,evm.model.scaffold_8568.8,evm.model.scaffold_1550.25,evm.model.scaffold_1109.175,evm.model.scaffold_1473.252,evm.model.scaffold_485.45,evm.model.scaffold_871.248,evm.model.scaffold_1064.77,evm.model.scaffold_476.10.1,evm.model.scaffold_5234.136,evm.model.scaffold_599.226,evm.model.scaffold_1684.82,evm.model.scaffold_1270.44,evm.model.scaffold_737.181,evm.model.scaffold_8676.37,evm.model.scaffold_5424.39,evm.model.scaffold_242.117,evm.model.scaffold_2.18,evm.model.scaffold_1064.274,evm.model.scaffold_48.403,evm.model.scaffold_668.35,evm.model.scaffold_5424.87,evm.model.scaffold_1064.315,evm.model.scaffold_48.705,evm.model.scaffold_127.86,evm.model.scaffold_391.123,evm.model.scaffold_628.64,evm.model.scaffold_1505.30,evm.model.scaffold_1684.89,evm.model.scaffold_8453.23,evm.model.scaffold_308.355,evm.model.scaffold_286.13,evm.model.scaffold_35.210,evm.model.scaffold_872.2,evm.model.scaffold_598.852,evm.model.scaffold_1109.203,evm.model.scaffold_400.203,evm.model.scaffold_1581.213,evm.model.scaffold_9609.165,evm.model.scaffold_1045.26,evm.model.scaffold_738.26,evm.model.scaffold_1833.123,evm.model.scaffold_48.162,evm.model.scaffold_205.28,evm.model.scaffold_545.157,evm.model.scaffold_756.317,evm.model.scaffold_238.64,evm.model.scaffold_1142.42,evm.model.scaffold_599.228_evm.model.scaffold_599.229,evm.model.scaffold_628.30,evm.model.scaffold_1499.112,evm.model.scaffold_10190.68,evm.model.scaffold_481.188,evm.model.scaffold_6668.104,evm.model.scaffold_167.71,evm.model.scaffold_1495.128,evm.model.scaffold_308.466,evm.model.scaffold_708.64,evm.model.scaffold_200.67,evm.model.scaffold_742.70,evm.model.scaffold_1443.91,evm.model.scaffold_731.219,evm.model.scaffold_2475.4,evm.model.scaffold_8540.88,evm.model.scaffold_1269.365,evm.model.scaffold_350.98,evm.model.scaffold_11.52,evm.model.scaffold_709.122,evm.model.scaffold_1122.100,evm.model.scaffold_1050.213,evm.model.scaffold_558.50,evm.model.scaffold_425.375,evm.model.scaffold_1254.74,evm.model.scaffold_1013.126,evm.model.scaffold_532.72,evm.model.scaffold_325.338,evm.model.scaffold_268.23,evm.model.scaffold_1064.124,evm.model.scaffold_1269.243,evm.model.scaffold_1275.132,evm.model.scaffold_400.342,evm.model.scaffold_1822.119.1,evm.model.scaffold_1142.351,evm.model.scaffold_545.453,evm.model.scaffold_476.140.1,evm.model.scaffold_1395.287,evm.model.scaffold_1495.114.1,evm.model.scaffold_6083.293,evm.model.scaffold_285.545,evm.model.scaffold_5318.98,evm.model.scaffold_499.512,evm.model.scaffold_1443.88,evm.model.scaffold_895.131,evm.model.scaffold_1648.17,evm.model.scaffold_285.680,evm.model.scaffold_11084.23,evm.model.scaffold_6083.358,evm.model.scaffold_756.339,evm.model.scaffold_1081.193,evm.model.scaffold_5987.68,evm.model.scaffold_598.342,evm.model.scaffold_1142.337,evm.model.scaffold_1269.33,evm.model.scaffold_8453.31,evm.model.scaffold_4964.196,evm.model.scaffold_8491.5,evm.model.scaffold_1050.344,evm.model.scaffold_692.443,evm.model.scaffold_905.193,evm.model.scaffold_507.30.1,evm.model.scaffold_719.184,evm.model.scaffold_400.127,evm.model.scaffold_1050.156.1,evm.model.scaffold_1050.140,evm.model.scaffold_308.650,evm.model.scaffold_238.52,evm.model.scaffold_4598.28,evm.model.scaffold_10250.31,evm.model.scaffold_48.388,evm.model.scaffold_308.447,evm.model.scaffold_1473.229,evm.model.scaffold_598.82,evm.model.scaffold_905.88,evm.model.scaffold_499.58,evm.model.scaffold_737.406,evm.model.scaffold_11.198,evm.model.scaffold_7990.23,evm.model.scaffold_1398.82,evm.model.scaffold_1499.123,evm.model.scaffold_11.25,evm.model.scaffold_127.33,evm.model.scaffold_4616.6,evm.model.scaffold_545.205,evm.model.scaffold_598.360,evm.model.scaffold_895.41,evm.model.scaffold_5432.22,evm.model.scaffold_8241.5,evm.model.scaffold_1045.3,evm.model.scaffold_1395.369,evm.model.scaffold_1730.289.1,evm.model.scaffold_3255.35,evm.model.scaffold_308.399,evm.model.scaffold_1833.117,evm.model.scaffold_731.139,evm.model.scaffold_462.96,evm.model.scaffold_5424.107,evm.model.scaffold_218.22,evm.model.scaffold_1269.579,evm.model.scaffold_539.43,evm.model.scaffold_7350.37,evm.model.scaffold_308.371,evm.model.scaffold_984.93,evm.model.scaffold_308.272,evm.model.scaffold_801.149,evm.model.scaffold_222.42,evm.model.scaffold_400.28,evm.model.scaffold_14.215,evm.model.scaffold_1473.285,evm.model.scaffold_1473.365,evm.model.scaffold_1505.17,evm.model.scaffold_384.26,evm.model.scaffold_285.546.1,evm.model.scaffold_425.593,evm.model.scaffold_545.111,evm.model.scaffold_286.168,evm.model.scaffold_8798.79,evm.model.scaffold_598.181,evm.model.scaffold_598.106,evm.model.scaffold_1270.29,evm.model.scaffold_329.47"]
["Chr1_Chr2_Chr3","GO:0044711","single-organism biosynthetic process","biological_process",{"v":1.5851e-7,"d":"1.59E-07"},0.00028746,{"v":0.295454545454545,"d":"0.30"},"evm.model.scaffold_668.84,evm.model.scaffold_1270.191,evm.model.scaffold_1275.97,evm.model.scaffold_167.148,evm.model.scaffold_737.33,evm.model.scaffold_1122.20,evm.model.scaffold_905.19,evm.model.scaffold_10636.52,evm.model.scaffold_6083.358,evm.model.scaffold_8676.104,evm.model.scaffold_967.120,evm.model.scaffold_871.135,evm.model.scaffold_425.281,evm.model.scaffold_12254.35,evm.model.scaffold_205.63,evm.model.scaffold_152.128,evm.model.scaffold_1530.11,evm.model.scaffold_391.71,evm.model.scaffold_1473.80,evm.model.scaffold_499.365,evm.model.scaffold_1722.46,evm.model.scaffold_6083.349,evm.model.scaffold_268.248,evm.model.scaffold_598.591,evm.model.scaffold_1398.137,evm.model.scaffold_1064.124,evm.model.scaffold_598.578,evm.model.scaffold_1822.119.1,evm.model.scaffold_1168.30,evm.model.scaffold_10712.14,evm.model.scaffold_963.7,evm.model.scaffold_286.291,evm.model.scaffold_737.189,evm.model.scaffold_286.13,evm.model.scaffold_1398.322,evm.model.scaffold_598.659.2,evm.model.scaffold_1473.165,evm.model.scaffold_677.20,evm.model.scaffold_984.93,evm.model.scaffold_756.61,evm.model.scaffold_668.8,evm.model.scaffold_1395.162,evm.model.scaffold_1495.171,evm.model.scaffold_482.105,evm.model.scaffold_286.168,evm.model.scaffold_756.317,evm.model.scaffold_709.87,evm.model.scaffold_4517.73,evm.model.scaffold_1530.90,evm.model.scaffold_400.258,evm.model.scaffold_481.188,evm.model.scaffold_598.106,evm.model.scaffold_1443.38,evm.model.scaffold_1889.101,evm.model.scaffold_1142.339,evm.model.scaffold_135.115,evm.model.scaffold_205.28,evm.model.scaffold_400.278,evm.model.scaffold_425.524.1,evm.model.scaffold_599.160.1,evm.model.scaffold_286.293,evm.model.scaffold_598.30,evm.model.scaffold_737.406,evm.model.scaffold_1050.99,evm.model.scaffold_1518.9,evm.model.scaffold_932.71,evm.model.scaffold_1684.87,evm.model.scaffold_308.650,evm.model.scaffold_599.69,evm.model.scaffold_391.63.1,evm.model.scaffold_7966.28,evm.model.scaffold_735.253,evm.model.scaffold_598.471,evm.model.scaffold_1530.7,evm.model.scaffold_48.449,evm.model.scaffold_1064.315,evm.model.scaffold_598.360,evm.model.scaffold_8115.27"]
["Chr1_Chr2_Chr3","GO:0006271","DNA strand elongation involved in DNA replication","biological_process",{"v":2.3378e-7,"d":"2.34E-07"},0.00028746,{"v":1,"d":"1.00"},"evm.model.scaffold_545.453,evm.model.scaffold_1398.140,evm.model.scaffold_737.35,evm.model.scaffold_462.96,evm.model.scaffold_7966.30,evm.model.scaffold_598.864,evm.model.scaffold_545.278,evm.model.scaffold_1270.29,evm.model.scaffold_242.103"]
["Chr1_Chr2_Chr3","GO:0009695","jasmonic acid biosynthetic process","biological_process",{"v":2.6209e-7,"d":"2.62E-07"},0.00028746,{"v":1,"d":"1.00"},"evm.model.scaffold_1122.20,evm.model.scaffold_1473.165,evm.model.scaffold_10636.52,evm.model.scaffold_756.317,evm.model.scaffold_425.524.1,evm.model.scaffold_598.578,evm.model.scaffold_735.253,evm.model.scaffold_1530.7,evm.model.scaffold_286.291"]
["Chr1_Chr2_Chr3","GO:0010252","auxin homeostasis","biological_process",{"v":7.7765e-7,"d":"7.78E-07"},0.00071077,{"v":0.8,"d":"0.80"},"evm.model.scaffold_6083.358,evm.model.scaffold_391.71,evm.model.scaffold_1081.219,evm.model.scaffold_6083.349,evm.model.scaffold_205.63,evm.model.scaffold_507.171,evm.model.scaffold_218.4,evm.model.scaffold_205.28,evm.model.scaffold_391.63.1,evm.model.scaffold_4598.7,evm.model.scaffold_499.80,evm.model.scaffold_285.616"]
["Chr1_Chr2_Chr3","GO:0060255","regulation of macromolecule metabolic process","biological_process",{"v":3.4231e-6,"d":"3.42E-06"},0.0026818,{"v":0.214884696016771,"d":"0.21"},"evm.model.scaffold_35.210,evm.model.scaffold_872.2,evm.model.scaffold_308.355,evm.model.scaffold_1581.213,evm.model.scaffold_598.852,evm.model.scaffold_1109.203,evm.model.scaffold_48.705,evm.model.scaffold_8453.23,evm.model.scaffold_127.86,evm.model.scaffold_391.123,evm.model.scaffold_1684.89,evm.model.scaffold_628.64,evm.model.scaffold_628.30,evm.model.scaffold_10190.68,evm.model.scaffold_1499.112,evm.model.scaffold_238.64,evm.model.scaffold_756.317,evm.model.scaffold_599.228_evm.model.scaffold_599.229,evm.model.scaffold_1142.42,evm.model.scaffold_167.71,evm.model.scaffold_6668.104,evm.model.scaffold_1045.26,evm.model.scaffold_9609.165,evm.model.scaffold_1833.123,evm.model.scaffold_545.157,evm.model.scaffold_48.162,evm.model.scaffold_1473.252,evm.model.scaffold_599.160.1,evm.model.scaffold_8568.8,evm.model.scaffold_599.111,evm.model.scaffold_1550.25,evm.model.scaffold_1109.175,evm.model.scaffold_1050.189,evm.model.scaffold_485.45,evm.model.scaffold_871.248,evm.model.scaffold_476.10.1,evm.model.scaffold_1064.77,evm.model.scaffold_484.13,evm.model.scaffold_894.119_evm.model.scaffold_894.120,evm.model.scaffold_4964.298_evm.model.scaffold_4964.299,evm.model.scaffold_286.111,evm.model.scaffold_1495.92,evm.model.scaffold_48.403,evm.model.scaffold_8676.37,evm.model.scaffold_2.18,evm.model.scaffold_5424.39,evm.model.scaffold_242.117,evm.model.scaffold_1064.274,evm.model.scaffold_1064.315,evm.model.scaffold_668.35,evm.model.scaffold_5424.87,evm.model.scaffold_599.226,evm.model.scaffold_5234.136,evm.model.scaffold_1270.44,evm.model.scaffold_1684.82,evm.model.scaffold_5424.75,evm.model.scaffold_1648.14,evm.model.scaffold_1487.60,evm.model.scaffold_243.122,evm.model.scaffold_533.73,evm.model.scaffold_688.16,evm.model.scaffold_5601.120,evm.model.scaffold_499.210,evm.model.scaffold_285.733,evm.model.scaffold_545.278,evm.model.scaffold_598.431,evm.model.scaffold_537.7,evm.model.scaffold_220.26_evm.model.scaffold_220.27,evm.model.scaffold_308.278,evm.model.scaffold_932.72,evm.model.scaffold_74.319,evm.model.scaffold_116.35,evm.model.scaffold_688.14,evm.model.scaffold_709.40,evm.model.scaffold_1072.38,evm.model.scaffold_7966.2,evm.model.scaffold_7350.70,evm.model.scaffold_205.25,evm.model.scaffold_11779.27,evm.model.scaffold_409.13,evm.model.scaffold_539.40,evm.model.scaffold_756.151,evm.model.scaffold_1822.56,evm.model.scaffold_8453.105.2,evm.model.scaffold_35.58,evm.model.scaffold_1730.225,evm.model.scaffold_1398.101,evm.model.scaffold_719.90,evm.model.scaffold_1473.80,evm.model.scaffold_963.91,evm.model.scaffold_48.892,evm.model.scaffold_116.142,evm.model.scaffold_425.85,evm.model.scaffold_728.26,evm.model.scaffold_243.188,evm.model.scaffold_1045.30,evm.model.scaffold_1495.55,evm.model.scaffold_871.122,evm.model.scaffold_8453.158,evm.model.scaffold_1499.4,evm.model.scaffold_628.62,evm.model.scaffold_4916.11,evm.model.scaffold_48.325,evm.model.scaffold_598.687,evm.model.scaffold_205.127,evm.model.scaffold_9941.49,evm.model.scaffold_1269.579,evm.model.scaffold_7350.37,evm.model.scaffold_539.43,evm.model.scaffold_984.93,evm.model.scaffold_308.371,evm.model.scaffold_731.139,evm.model.scaffold_1833.117,evm.model.scaffold_308.399,evm.model.scaffold_3255.35,evm.model.scaffold_218.22,evm.model.scaffold_462.96,evm.model.scaffold_5424.107,evm.model.scaffold_598.181,evm.model.scaffold_8798.79,evm.model.scaffold_286.168,evm.model.scaffold_425.593,evm.model.scaffold_285.546.1,evm.model.scaffold_545.111,evm.model.scaffold_1270.29,evm.model.scaffold_222.42,evm.model.scaffold_400.28,evm.model.scaffold_14.215,evm.model.scaffold_1473.285,evm.model.scaffold_1473.365,evm.model.scaffold_801.149,evm.model.scaffold_384.26,evm.model.scaffold_1505.17,evm.model.scaffold_1473.229,evm.model.scaffold_737.406,evm.model.scaffold_598.82,evm.model.scaffold_905.88,evm.model.scaffold_499.58,evm.model.scaffold_238.52,evm.model.scaffold_4598.28,evm.model.scaffold_1050.140,evm.model.scaffold_1050.156.1,evm.model.scaffold_48.388,evm.model.scaffold_10250.31,evm.model.scaffold_308.447,evm.model.scaffold_8241.5,evm.model.scaffold_895.41,evm.model.scaffold_5432.22,evm.model.scaffold_1395.369,evm.model.scaffold_1045.3,evm.model.scaffold_11.25,evm.model.scaffold_7990.23,evm.model.scaffold_11.198,evm.model.scaffold_1499.123,evm.model.scaffold_1398.82,evm.model.scaffold_545.205,evm.model.scaffold_5318.98,evm.model.scaffold_1443.88,evm.model.scaffold_499.512,evm.model.scaffold_285.545,evm.model.scaffold_1648.17,evm.model.scaffold_285.680,evm.model.scaffold_895.131,evm.model.scaffold_1395.287,evm.model.scaffold_545.453,evm.model.scaffold_6083.293,evm.model.scaffold_1495.114.1,evm.model.scaffold_1050.344,evm.model.scaffold_905.193,evm.model.scaffold_1269.33,evm.model.scaffold_8453.31,evm.model.scaffold_4964.196,evm.model.scaffold_719.184,evm.model.scaffold_400.127,evm.model.scaffold_507.30.1,evm.model.scaffold_756.339,evm.model.scaffold_1081.193,evm.model.scaffold_1142.337,evm.model.scaffold_598.342,evm.model.scaffold_5987.68,evm.model.scaffold_731.219,evm.model.scaffold_1443.91,evm.model.scaffold_350.98,evm.model.scaffold_1269.365,evm.model.scaffold_1050.213,evm.model.scaffold_709.122,evm.model.scaffold_11.52,evm.model.scaffold_1122.100,evm.model.scaffold_1495.128,evm.model.scaffold_200.67,evm.model.scaffold_708.64,evm.model.scaffold_742.70,evm.model.scaffold_308.466,evm.model.scaffold_1064.124,evm.model.scaffold_1269.243,evm.model.scaffold_1275.132,evm.model.scaffold_268.23,evm.model.scaffold_1822.119.1,evm.model.scaffold_1142.351,evm.model.scaffold_400.342,evm.model.scaffold_532.72,evm.model.scaffold_425.375,evm.model.scaffold_1254.74,evm.model.scaffold_1013.126,evm.model.scaffold_325.338"]
["Chr1_Chr2_Chr3","GO:0010608","posttranscriptional regulation of gene expression","biological_process",{"v":8.1742e-6,"d":"8.17E-06"},0.0044975,{"v":0.395061728395062,"d":"0.40"},"evm.model.scaffold_1395.287,evm.model.scaffold_731.139,evm.model.scaffold_308.399,evm.model.scaffold_308.355,evm.model.scaffold_533.73,evm.model.scaffold_5424.75,evm.model.scaffold_1109.203,evm.model.scaffold_895.131,evm.model.scaffold_1648.17,evm.model.scaffold_1581.213,evm.model.scaffold_5601.120,evm.model.scaffold_1833.123,evm.model.scaffold_545.157,evm.model.scaffold_1499.112,evm.model.scaffold_1050.140,evm.model.scaffold_719.90,evm.model.scaffold_238.52,evm.model.scaffold_1495.128,evm.model.scaffold_8453.105.2,evm.model.scaffold_599.160.1,evm.model.scaffold_1473.252,evm.model.scaffold_539.40,evm.model.scaffold_905.88,evm.model.scaffold_4916.11,evm.model.scaffold_532.72,evm.model.scaffold_11.25,evm.model.scaffold_628.62,evm.model.scaffold_2.18,evm.model.scaffold_8676.37,evm.model.scaffold_48.403,evm.model.scaffold_728.26,evm.model.scaffold_668.35"]
["Chr1_Chr2_Chr3","GO:0031647","regulation of protein stability","biological_process",{"v":8.7273e-6,"d":"8.73E-06"},0.0044975,0.75,"evm.model.scaffold_48.403,evm.model.scaffold_728.26,evm.model.scaffold_2.18,evm.model.scaffold_5601.120,evm.model.scaffold_308.399,evm.model.scaffold_532.72,evm.model.scaffold_1495.128,evm.model.scaffold_4916.11,evm.model.scaffold_1050.140"]
["Chr1_Chr2_Chr3","GO:0006298","mismatch repair","biological_process",{"v":9.801e-6,"d":"9.80E-06"},0.0044975,{"v":1,"d":"1.00"},"evm.model.scaffold_35.324,evm.model.scaffold_1269.490,evm.model.scaffold_545.453,evm.model.scaffold_1218.34,evm.model.scaffold_462.96,evm.model.scaffold_285.717,evm.model.scaffold_545.278"]
["Chr1_Chr2_Chr3","GO:0031407","oxylipin metabolic process","biological_process",{"v":9.902e-6,"d":"9.90E-06"},0.0044975,{"v":0.818181818181818,"d":"0.82"},"evm.model.scaffold_1050.99,evm.model.scaffold_1530.7,evm.model.scaffold_735.253,evm.model.scaffold_1495.171,evm.model.scaffold_598.578,evm.model.scaffold_756.317,evm.model.scaffold_48.449,evm.model.scaffold_425.524.1,evm.model.scaffold_286.291"]
["Chr1_Chr2_Chr3","GO:0006633","fatty acid biosynthetic process","biological_process",{"v":1.2205e-5,"d":"1.22E-05"},0.0044975,{"v":0.4,"d":"0.40"},"evm.model.scaffold_599.69,evm.model.scaffold_7966.28,evm.model.scaffold_598.591,evm.model.scaffold_668.84,evm.model.scaffold_1050.99,evm.model.scaffold_286.293,evm.model.scaffold_599.160.1,evm.model.scaffold_425.524.1,evm.model.scaffold_1530.11,evm.model.scaffold_286.291,evm.model.scaffold_8676.104,evm.model.scaffold_963.7,evm.model.scaffold_1064.315,evm.model.scaffold_1822.119.1,evm.model.scaffold_905.19,evm.model.scaffold_48.449,evm.model.scaffold_756.317,evm.model.scaffold_737.33,evm.model.scaffold_709.87,evm.model.scaffold_598.578,evm.model.scaffold_668.8,evm.model.scaffold_1495.171,evm.model.scaffold_735.253,evm.model.scaffold_1064.124,evm.model.scaffold_1398.137,evm.model.scaffold_1530.7"]
["Chr1_Chr2_Chr3","GO:1901362","organic cyclic compound biosynthetic process","biological_process",{"v":1.5003e-5,"d":"1.50E-05"},0.0044975,{"v":0.209424083769634,"d":"0.21"},"evm.model.scaffold_1648.17,evm.model.scaffold_285.680,evm.model.scaffold_1443.88,evm.model.scaffold_5318.98,evm.model.scaffold_499.512,evm.model.scaffold_1495.114.1,evm.model.scaffold_1275.97,evm.model.scaffold_545.453,evm.model.scaffold_719.184,evm.model.scaffold_400.127,evm.model.scaffold_507.30.1,evm.model.scaffold_905.193,evm.model.scaffold_1269.33,evm.model.scaffold_8453.31,evm.model.scaffold_8491.5,evm.model.scaffold_677.16,evm.model.scaffold_1270.73,evm.model.scaffold_5424.54.1,evm.model.scaffold_4964.196,evm.model.scaffold_18.315,evm.model.scaffold_598.342,evm.model.scaffold_5987.68,evm.model.scaffold_756.339,evm.model.scaffold_6083.358,evm.model.scaffold_967.120,evm.model.scaffold_11084.23,evm.model.scaffold_350.98,evm.model.scaffold_1269.365,evm.model.scaffold_709.122,evm.model.scaffold_1122.100,evm.model.scaffold_1443.91,evm.model.scaffold_731.219,evm.model.scaffold_708.64,evm.model.scaffold_1722.46,evm.model.scaffold_499.365,evm.model.scaffold_742.70,evm.model.scaffold_1142.351,evm.model.scaffold_1822.119.1,evm.model.scaffold_1168.30,evm.model.scaffold_400.342,evm.model.scaffold_10712.14,evm.model.scaffold_11.170,evm.model.scaffold_1064.124,evm.model.scaffold_1269.243,evm.model.scaffold_6668.72,evm.model.scaffold_268.23,evm.model.scaffold_325.338,evm.model.scaffold_1254.196,evm.model.scaffold_425.375,evm.model.scaffold_1254.74,evm.model.scaffold_1013.126,evm.model.scaffold_308.272,evm.model.scaffold_984.93,evm.model.scaffold_1269.579,evm.model.scaffold_7350.37,evm.model.scaffold_1398.322,evm.model.scaffold_218.22,evm.model.scaffold_462.96,evm.model.scaffold_5424.107,evm.model.scaffold_3255.35,evm.model.scaffold_1270.29,evm.model.scaffold_400.258,evm.model.scaffold_4517.73,evm.model.scaffold_598.106,evm.model.scaffold_1395.162,evm.model.scaffold_482.105,evm.model.scaffold_286.168,evm.model.scaffold_425.593,evm.model.scaffold_285.546.1,evm.model.scaffold_545.111,evm.model.scaffold_1456.51,evm.model.scaffold_384.26,evm.model.scaffold_400.278,evm.model.scaffold_1505.17,evm.model.scaffold_400.28,evm.model.scaffold_222.42,evm.model.scaffold_14.215,evm.model.scaffold_1889.101,evm.model.scaffold_1473.365,evm.model.scaffold_135.115,evm.model.scaffold_737.406,evm.model.scaffold_1473.229,evm.model.scaffold_10250.31,evm.model.scaffold_48.388,evm.model.scaffold_308.447,evm.model.scaffold_238.52,evm.model.scaffold_4598.28,evm.model.scaffold_1050.156.1,evm.model.scaffold_285.740,evm.model.scaffold_1395.369,evm.model.scaffold_1045.3,evm.model.scaffold_8241.5,evm.model.scaffold_545.173.1,evm.model.scaffold_895.41,evm.model.scaffold_5432.22,evm.model.scaffold_598.360,evm.model.scaffold_1530.219,evm.model.scaffold_545.205,evm.model.scaffold_11.25,evm.model.scaffold_7990.23,evm.model.scaffold_11.198,evm.model.scaffold_499.210,evm.model.scaffold_285.733,evm.model.scaffold_545.278,evm.model.scaffold_1487.60,evm.model.scaffold_243.122,evm.model.scaffold_533.73,evm.model.scaffold_688.16,evm.model.scaffold_241.18,evm.model.scaffold_308.278,evm.model.scaffold_598.431,evm.model.scaffold_537.7,evm.model.scaffold_220.26_evm.model.scaffold_220.27,evm.model.scaffold_688.14,evm.model.scaffold_709.40,evm.model.scaffold_7966.2,evm.model.scaffold_1072.38,evm.model.scaffold_18.153,evm.model.scaffold_116.35,evm.model.scaffold_205.63,evm.model.scaffold_12254.35,evm.model.scaffold_152.128,evm.model.scaffold_205.25,evm.model.scaffold_11779.27,evm.model.scaffold_7350.70,evm.model.scaffold_871.135,evm.model.scaffold_409.13,evm.model.scaffold_1730.225,evm.model.scaffold_5234.21,evm.model.scaffold_539.40,evm.model.scaffold_756.151,evm.model.scaffold_1822.56,evm.model.scaffold_35.58,evm.model.scaffold_963.91,evm.model.scaffold_6083.349,evm.model.scaffold_6624.17,evm.model.scaffold_268.248,evm.model.scaffold_116.142,evm.model.scaffold_425.85,evm.model.scaffold_1398.101,evm.model.scaffold_391.71,evm.model.scaffold_1473.80,evm.model.scaffold_1045.30,evm.model.scaffold_8453.158,evm.model.scaffold_243.188,evm.model.scaffold_598.687,evm.model.scaffold_9941.49,evm.model.scaffold_243.93,evm.model.scaffold_1499.4,evm.model.scaffold_598.852,evm.model.scaffold_1109.203,evm.model.scaffold_35.210,evm.model.scaffold_737.189,evm.model.scaffold_872.2,evm.model.scaffold_308.355,evm.model.scaffold_286.13,evm.model.scaffold_598.814,evm.model.scaffold_628.64,evm.model.scaffold_167.71,evm.model.scaffold_1142.196,evm.model.scaffold_6668.104,evm.model.scaffold_628.30,evm.model.scaffold_1499.112,evm.model.scaffold_10190.68,evm.model.scaffold_756.317,evm.model.scaffold_1142.42,evm.model.scaffold_205.28,evm.model.scaffold_1045.26,evm.model.scaffold_285.360,evm.model.scaffold_1833.123,evm.model.scaffold_871.248,evm.model.scaffold_222.13.2,evm.model.scaffold_485.45,evm.model.scaffold_476.10.1,evm.model.scaffold_1064.291,evm.model.scaffold_1064.77,evm.model.scaffold_1473.252,evm.model.scaffold_598.30,evm.model.scaffold_599.111,evm.model.scaffold_8568.8,evm.model.scaffold_1050.189,evm.model.scaffold_308.511,evm.model.scaffold_1550.25,evm.model.scaffold_894.119_evm.model.scaffold_894.120,evm.model.scaffold_4964.298_evm.model.scaffold_4964.299,evm.model.scaffold_391.63.1,evm.model.scaffold_286.111,evm.model.scaffold_1495.92,evm.model.scaffold_815.58,evm.model.scaffold_484.13,evm.model.scaffold_5424.87,evm.model.scaffold_1064.315,evm.model.scaffold_737.181,evm.model.scaffold_5424.39,evm.model.scaffold_1064.274,evm.model.scaffold_242.117,evm.model.scaffold_1270.44,evm.model.scaffold_1684.82,evm.model.scaffold_5234.136,evm.model.scaffold_599.226"]
["Chr1_Chr2_Chr3","GO:0044283","small molecule biosynthetic process","biological_process",{"v":1.58e-5,"d":"1.58E-05"},0.0044975,{"v":0.285046728971963,"d":"0.29"},"evm.model.scaffold_10712.14,evm.model.scaffold_1168.30,evm.model.scaffold_1064.315,evm.model.scaffold_1822.119.1,evm.model.scaffold_598.578,evm.model.scaffold_48.449,evm.model.scaffold_1530.7,evm.model.scaffold_735.253,evm.model.scaffold_1398.137,evm.model.scaffold_1064.124,evm.model.scaffold_286.291,evm.model.scaffold_963.7,evm.model.scaffold_1050.99,evm.model.scaffold_737.406,evm.model.scaffold_598.30,evm.model.scaffold_599.160.1,evm.model.scaffold_425.524.1,evm.model.scaffold_286.293,evm.model.scaffold_7966.28,evm.model.scaffold_598.591,evm.model.scaffold_268.248,evm.model.scaffold_599.69,evm.model.scaffold_499.365,evm.model.scaffold_308.650,evm.model.scaffold_1684.87,evm.model.scaffold_932.71,evm.model.scaffold_1518.9,evm.model.scaffold_481.188,evm.model.scaffold_4517.73,evm.model.scaffold_1530.90,evm.model.scaffold_400.258,evm.model.scaffold_10636.52,evm.model.scaffold_1122.20,evm.model.scaffold_905.19,evm.model.scaffold_709.87,evm.model.scaffold_737.33,evm.model.scaffold_756.317,evm.model.scaffold_482.105,evm.model.scaffold_668.8,evm.model.scaffold_1395.162,evm.model.scaffold_1495.171,evm.model.scaffold_167.148,evm.model.scaffold_1530.11,evm.model.scaffold_400.278,evm.model.scaffold_152.128,evm.model.scaffold_12254.35,evm.model.scaffold_135.115,evm.model.scaffold_425.281,evm.model.scaffold_1142.339,evm.model.scaffold_871.135,evm.model.scaffold_1889.101,evm.model.scaffold_967.120,evm.model.scaffold_8676.104,evm.model.scaffold_1473.165,evm.model.scaffold_598.659.2,evm.model.scaffold_1398.322,evm.model.scaffold_737.189,evm.model.scaffold_1275.97,evm.model.scaffold_1270.191,evm.model.scaffold_756.61,evm.model.scaffold_668.84"]
["Chr1_Chr2_Chr3","GO:0006887","exocytosis","biological_process",{"v":1.6476e-5,"d":"1.65E-05"},0.0044975,0.75,"evm.model.scaffold_871.110,evm.model.scaffold_737.341,evm.model.scaffold_1275.45,evm.model.scaffold_1822.77,evm.model.scaffold_1275.140,evm.model.scaffold_1064.91,evm.model.scaffold_871.197,evm.model.scaffold_1064.291,evm.model.scaffold_737.432"]
["Chr1_Chr2_Chr3","GO:0010119","regulation of stomatal movement","biological_process",{"v":2.1399e-5,"d":"2.14E-05"},0.0044975,{"v":0.513513513513513,"d":"0.51"},"evm.model.scaffold_1064.91,evm.model.scaffold_5318.98,evm.model.scaffold_11210.201,evm.model.scaffold_737.259,evm.model.scaffold_499.58,evm.model.scaffold_1064.291,evm.model.scaffold_815.58,evm.model.scaffold_6083.23,evm.model.scaffold_218.22,evm.model.scaffold_708.64,evm.model.scaffold_241.18,evm.model.scaffold_1456.51,evm.model.scaffold_148.1,evm.model.scaffold_1398.428,evm.model.scaffold_3813.22,evm.model.scaffold_1081.193,evm.model.scaffold_871.274,evm.model.scaffold_9941.49,evm.model.scaffold_801.265"]
["Chr1_Chr2_Chr3","GO:0006446","regulation of translational initiation","biological_process",{"v":2.2051e-5,"d":"2.21E-05"},0.0044975,{"v":1,"d":"1.00"},"evm.model.scaffold_1395.287,evm.model.scaffold_533.73,evm.model.scaffold_308.355,evm.model.scaffold_1499.112,evm.model.scaffold_731.139,evm.model.scaffold_238.52"]
["Chr1_Chr2_Chr3","GO:0009893","positive regulation of metabolic process","biological_process",{"v":2.8281e-5,"d":"2.83E-05"},0.0046106,{"v":0.304054054054054,"d":"0.30"},"evm.model.scaffold_1275.132,evm.model.scaffold_5432.22,evm.model.scaffold_871.122,evm.model.scaffold_1499.4,evm.model.scaffold_11.198,evm.model.scaffold_1013.126,evm.model.scaffold_598.360,evm.model.scaffold_205.127,evm.model.scaffold_4616.6,evm.model.scaffold_8540.88,evm.model.scaffold_1473.229,evm.model.scaffold_1122.100,evm.model.scaffold_499.58,evm.model.scaffold_238.52,evm.model.scaffold_484.13,evm.model.scaffold_1050.156.1,evm.model.scaffold_391.71,evm.model.scaffold_6083.349,evm.model.scaffold_48.388,evm.model.scaffold_391.63.1,evm.model.scaffold_692.443,evm.model.scaffold_628.30,evm.model.scaffold_10190.68,evm.model.scaffold_1499.112,evm.model.scaffold_545.111,evm.model.scaffold_599.228_evm.model.scaffold_599.229,evm.model.scaffold_598.106,evm.model.scaffold_6083.358,evm.model.scaffold_1473.365,evm.model.scaffold_1081.193,evm.model.scaffold_205.63,evm.model.scaffold_205.28,evm.model.scaffold_1648.14,evm.model.scaffold_539.43,evm.model.scaffold_308.355,evm.model.scaffold_286.13,evm.model.scaffold_308.272,evm.model.scaffold_1833.117,evm.model.scaffold_8453.23,evm.model.scaffold_218.22,evm.model.scaffold_6083.293,evm.model.scaffold_308.278,evm.model.scaffold_1495.114.1,evm.model.scaffold_391.123,evm.model.scaffold_5424.107"]
["Chr1_Chr2_Chr3","GO:0009694","jasmonic acid metabolic process","biological_process",{"v":2.8585e-5,"d":"2.86E-05"},0.0046106,0.75,"evm.model.scaffold_286.291,evm.model.scaffold_735.253,evm.model.scaffold_1530.7,evm.model.scaffold_425.524.1,evm.model.scaffold_756.317,evm.model.scaffold_598.578,evm.model.scaffold_1122.20,evm.model.scaffold_1473.165,evm.model.scaffold_10636.52"]
["Chr1_Chr2_Chr3","GO:0008152","metabolic process","biological_process",{"v":2.998e-5,"d":"3.00E-05"},0.0046311,{"v":0.18445508307519,"d":"0.18"},{"$cut":{"chars":17872,"head":"evm.model.scaffold_756.113,evm.model.scaffold_539.43,evm.model.scaffold_1142.308,evm.model.scaffold_10636.63,evm.model.scaffold_438.95,evm.model.scaffold_598.659.2,evm.model.scaffold_737.25,evm.model.scaffold_18.373,evm.model.scaffold_400.9,evm.model.scaffold_10636.64,evm.model.scaffold_984.93,evm.model.scaffold_1473.365,evm.model.scaffold_1684.147,evm.model.scaffold_932.66,evm.model.scaffold_308.564,evm.model.scaffold_384.26,evm.model.scaffold_507.13,evm.model.scaffold_1505.17,evm.model.scaffold_425.119,evm.model.scaffold_8798.79,evm.model.scaffold_1122.17,evm.model.scaffold_967.49,evm.model.scaffold_425.593,evm.model.scaffold_4598.28,evm.model.scaffold_599.68,evm.model.scaffold_6083.23,evm.model.scaffold_545.151,evm.model.scaffold_10250.31,evm.model.scaffold_668.70,evm.model.scaffold_499.58,evm.model.scaffold_905.88,evm.model.scaffold_1684.148,evm.model.scaffold_1530.194,evm.model.scaffold_1398.58,evm.model.scaffold_11.198,evm.model.scaffold_4741.85,evm.model.scaffold_1530.219,evm.model.scaffold_4616.6,evm.model.scaffold_5432.22,evm.model.scaffold_2475.72,evm.model.scaffold_1395.337,evm.model.scaffold_499.80,evm.model.scaffold_499.538,evm.model.scaffold_6083.293,evm.model.scaffold_1072.192,evm.model.scaffold_3092.63,evm.model.scaffold_5318.98,evm.model.scaffold_285.545,evm.model.scaffold_967.55,evm.model.scaffold_1722.70,evm.model.scaffold_485.31,evm.model.scaffold_895.131,evm.model.scaffold_400.164,evm.model.scaffold_1122.16,evm.model.scaffold_4517.78,evm.model.scaffold_1142.337,evm.model.scaffold_18.315,evm.model.scaffold_3092.47,evm.model.scaffold_4517.71,evm.model.scaffold_1889.102,evm.model.scaffold_692.443,evm.model.scaffold_4964.196,evm.model.scaffold_8491.5,evm.model.scaffold_222.32,evm.model.scaffold_756.135,evm.model.scaffold_4741.59,evm.model.scaffold_308.398,evm.model.scaffold_1395.307,evm.model.scaffold_1889.77,evm.model.scaffold_9377.12,evm.model.scaffold_1109.193,evm.model.scaffold_525.401,evm.model.scaffold_708.64,evm.model.scaffold_200.67,evm.model.scaffold_116.163,evm.model.scaffold_308.466,evm.model.scaffold_243.313,evm.model.scaffold_1269.365,evm.model.scaffold_1013.126,evm.model.scaffold_1254.74,evm.model.scaffold_325.338,evm.model.scaffold_598.864,evm.model.scaffold_1275.132,evm.model.scaffold_1064.124,evm.model.scaffold_10190.76,evm.model.scaffold_48.705,evm.model.scaffold_709.85,evm.model.scaffold_1684.89,evm.model.scaffold_7966.30,evm.model.scaffold_391.123,evm.model.scaffold_872.2,evm.model.scaffold_48.241,evm.model.scaffold_1473.255,evm.model.scaffold_1581.213,evm.model.scaffold_668.94,evm.model.scaffold_1342.58,evm.model.scaffold_205.28,evm.model.scaffold_1499.129,evm.model.scaffold_8676.17.1,evm.model.scaffold_1142.42,evm.model.scaffold_599.228_evm.model.scaffold_599.229,evm.model.scaffold_598.229,evm.model.scaffold_6668.104,evm.model.scaffold_756.272,evm.model.scaffold_481.188,evm.model.scaffold_815.58,evm.model.scaffold_932.71,evm.model.scaffold_1684.87,evm.model.scaffold_1398.310,evm.model.scaffold_286.153,evm.model.scaffold_276.6,evm.model.scaffold_871.248,evm.model.scaffold_48.316,evm.model.scaffold_545.236,evm.model.scaffold_5424.40,evm.model.scaffold_1109.74,evm.model.scaffold_719.17,evm.model.scaffold_1269.69,evm.model.scaffold_598.471,evm.model.scaffold_9363.28,evm.model.scaffold_1064.274,evm.model.scaffold_668.35,evm.model.scaffold_1081.237,evm.model.scaffold_308.565,evm.model.scaffold_801.201,evm.model.scaffold_499.388,evm.model.scaffold_241.18,evm.model.scaffold_167.103,evm.model.scaffold_1487.60,evm.model.scaffold_1275.140,evm.model.scaffold_8241.9,evm.model.scaffold_967.149,evm.model.scaffold_533.73,evm.model.scaffold_5601.120,evm.model.scaffold_871.135,evm.model.scaffold_7350.70,evm.model.scaffold_425.281,evm.model.scaffold_8798.64,evm.model.scaffold_12254.35,evm.model.scaffold_152.128,evm.model.scaffold_1473.143,evm.model.scaffold_963.8,evm.model.scaffold_598.469,evm.model.scaffold_1707.52,evm.model.scaffold_1398.101,evm.model.scaffold_963.91,evm.model.scaffold_1013.108,evm.model.scaffold_116.142,evm.model.scaffold_3709.32,evm.model.scaffold_539.40,evm.model.scaffold_8453.10"}}]
["Chr1_Chr2_Chr3","GO:1901576","organic substance biosynthetic process","biological_process",{"v":3.0401e-5,"d":"3.04E-05"},0.0046311,{"v":0.199067909454061,"d":"0.20"},"evm.model.scaffold_499.512,evm.model.scaffold_1443.88,evm.model.scaffold_10636.44,evm.model.scaffold_285.680,evm.model.scaffold_1648.17,evm.model.scaffold_545.453,evm.model.scaffold_1395.287,evm.model.scaffold_1270.191,evm.model.scaffold_167.83,evm.model.scaffold_400.186,evm.model.scaffold_1275.97,evm.model.scaffold_1495.114.1,evm.model.scaffold_5424.54.1,evm.model.scaffold_677.16,evm.model.scaffold_1270.73,evm.model.scaffold_8453.31,evm.model.scaffold_737.33,evm.model.scaffold_400.127,evm.model.scaffold_719.184,evm.model.scaffold_525.398,evm.model.scaffold_1081.193,evm.model.scaffold_8676.104,evm.model.scaffold_11084.23,evm.model.scaffold_598.342,evm.model.scaffold_731.219,evm.model.scaffold_1473.171,evm.model.scaffold_731.155,evm.model.scaffold_1722.46,evm.model.scaffold_742.70,evm.model.scaffold_598.591,evm.model.scaffold_1269.243,evm.model.scaffold_598.578,evm.model.scaffold_932.55,evm.model.scaffold_6668.72,evm.model.scaffold_1142.351,evm.model.scaffold_1822.119.1,evm.model.scaffold_11.170,evm.model.scaffold_1168.30,evm.model.scaffold_4908.71,evm.model.scaffold_1254.196,evm.model.scaffold_425.375,evm.model.scaffold_1889.57,evm.model.scaffold_1398.322,evm.model.scaffold_308.272,evm.model.scaffold_1473.165,evm.model.scaffold_731.139,evm.model.scaffold_3255.35,evm.model.scaffold_533.91,evm.model.scaffold_218.22,evm.model.scaffold_5424.107,evm.model.scaffold_462.96,evm.model.scaffold_482.105,evm.model.scaffold_1395.162,evm.model.scaffold_1456.51,evm.model.scaffold_545.111,evm.model.scaffold_285.546.1,evm.model.scaffold_400.258,evm.model.scaffold_4517.73,evm.model.scaffold_1270.29,evm.model.scaffold_598.106,evm.model.scaffold_14.215,evm.model.scaffold_222.42,evm.model.scaffold_400.28,evm.model.scaffold_400.278,evm.model.scaffold_1081.250,evm.model.scaffold_525.278,evm.model.scaffold_238.52,evm.model.scaffold_285.740,evm.model.scaffold_308.650,evm.model.scaffold_482.104,evm.model.scaffold_1050.156.1,evm.model.scaffold_7966.28,evm.model.scaffold_48.388,evm.model.scaffold_507.31,evm.model.scaffold_8241.5,evm.model.scaffold_735.253,evm.model.scaffold_895.41,evm.model.scaffold_545.173.1,evm.model.scaffold_738.2,evm.model.scaffold_1395.369,evm.model.scaffold_1499.123,evm.model.scaffold_1398.140,evm.model.scaffold_598.360,evm.model.scaffold_545.205,evm.model.scaffold_243.122,evm.model.scaffold_688.16,evm.model.scaffold_545.278,evm.model.scaffold_220.26_evm.model.scaffold_220.27,evm.model.scaffold_598.431,evm.model.scaffold_537.7,evm.model.scaffold_545.158,evm.model.scaffold_116.35,evm.model.scaffold_10636.52,evm.model.scaffold_1122.20,evm.model.scaffold_18.153,evm.model.scaffold_1072.38,evm.model.scaffold_709.40,evm.model.scaffold_205.25,evm.model.scaffold_409.13,evm.model.scaffold_205.63,evm.model.scaffold_728.69,evm.model.scaffold_1822.56,evm.model.scaffold_1269.490,evm.model.scaffold_1473.80,evm.model.scaffold_391.71,evm.model.scaffold_6083.349,evm.model.scaffold_6624.17,evm.model.scaffold_8453.158,evm.model.scaffold_1499.4,evm.model.scaffold_1269.646,evm.model.scaffold_243.93,evm.model.scaffold_9941.49,evm.model.scaffold_737.189,evm.model.scaffold_35.324,evm.model.scaffold_35.210,evm.model.scaffold_598.814,evm.model.scaffold_286.13,evm.model.scaffold_1109.203,evm.model.scaffold_598.852,evm.model.scaffold_756.61,evm.model.scaffold_10190.68,evm.model.scaffold_1499.112,evm.model.scaffold_1495.171,evm.model.scaffold_668.8,evm.model.scaffold_628.30,evm.model.scaffold_709.87,evm.model.scaffold_238.64,evm.model.scaffold_756.317,evm.model.scaffold_1530.90,evm.model.scaffold_1142.339,evm.model.scaffold_1833.123,evm.model.scaffold_285.360,evm.model.scaffold_276.4,evm.model.scaffold_276.49,evm.model.scaffold_10293.28,evm.model.scaffold_1473.252,evm.model.scaffold_599.111,evm.model.scaffold_308.511,evm.model.scaffold_1050.189,evm.model.scaffold_1550.25,evm.model.scaffold_598.30,evm.model.scaffold_1064.291,evm.model.scaffold_476.10.1,evm.model.scaffold_222.13.2,evm.model.scaffold_1050.99,evm.model.scaffold_485.45,evm.model.scaffold_484.13,evm.model.scaffold_1518.9,evm.model.scaffold_4964.298_evm.model.scaffold_4964.299,evm.model.scaffold_894.119_evm.model.scaffold_894.120,evm.model.scaffold_1495.92,evm.model.scaffold_599.69,evm.model.scaffold_391.63.1,evm.model.scaffold_5424.39,evm.model.scaffold_737.181,evm.model.scaffold_48.449,evm.model.scaffold_18.384,evm.model.scaffold_1064.315,evm.model.scaffold_5234.136,evm.model.scaffold_8115.27,evm.model.scaffold_1270.44,evm.model.scaffold_905.63.2,evm.model.scaffold_5318.98,evm.model.scaffold_1122.33,evm.model.scaffold_1889.102,evm.model.scaffold_905.193,evm.model.scaffold_8491.5,evm.model.scaffold_4964.196,evm.model.scaffold_499.114,evm.model.scaffold_1269.33,evm.model.scaffold_222.32,evm.model.scaffold_756.135,evm.model.scaffold_1395.307,evm.model.scaffold_507.30.1,evm.model.scaffold_6083.358,evm.model.scaffold_756.339,evm.model.scaffold_967.120,evm.model.scaffold_400.164,evm.model.scaffold_18.315,evm.model.scaffold_1530.11,evm.model.scaffold_3092.47,evm.model.scaffold_5987.68,evm.model.scaffold_1443.91,evm.model.scaffold_1122.100,evm.model.scaffold_709.122,evm.model.scaffold_350.98,evm.model.scaffold_1269.365,evm.model.scaffold_9377.12,evm.model.scaffold_499.365,evm.model.scaffold_708.64,evm.model.scaffold_1064.124,evm.model.scaffold_268.23,evm.model.scaffold_10712.14,evm.model.scaffold_400.342,evm.model.scaffold_737.35,evm.model.scaffold_1013.126,evm.model.scaffold_1254.74,evm.model.scaffold_325.338,evm.model.scaffold_598.864,evm.model.scaffold_7350.37,evm.model.scaffold_1269.579,evm.model.scaffold_598.659.2,evm.model.scaffold_308.371,evm.model.scaffold_984.93,evm.model.scaffold_285.547,evm.model.scaffold_286.168,evm.model.scaffold_425.593,evm.model.scaffold_598.781,evm.model.scaffold_1889.101,evm.model.scaffold_1473.365,evm.model.scaffold_135.115,evm.model.scaffold_384.26,evm.model.scaffold_1505.17,evm.model.scaffold_1473.229,evm.model.scaffold_425.524.1,evm.model.scaffold_242.103,evm.model.scaffold_737.406,evm.model.scaffold_499.58,evm.model.scaffold_905.88,evm.model.scaffold_4598.28,evm.model.scaffold_481.257,evm.model.scaffold_308.447,evm.model.scaffold_10250.31,evm.model.scaffold_5432.22,evm.model.scaffold_1045.3,evm.model.scaffold_11.25,evm.model.scaffold_11.198,evm.model.scaffold_7990.23,evm.model.scaffold_1530.219,evm.model.scaffold_1487.60,evm.model.scaffold_533.73,evm.model.scaffold_285.733,evm.model.scaffold_499.210,evm.model.scaffold_719.26,evm.model.scaffold_668.84,evm.model.scaffold_308.278,evm.model.scaffold_241.18,evm.model.scaffold_167.148,evm.model.scaffold_688.14,evm.model.scaffold_905.19,evm.model.scaffold_967.119,evm.model.scaffold_7966.2,evm.model.scaffold_871.135,evm.model.scaffold_7350.70,evm.model.scaffold_11779.27,evm.model.scaffold_425.281,evm.model.scaffold_12254.35,evm.model.scaffold_499.264,evm.model.scaffold_152.128,evm.model.scaffold_756.151,evm.model.scaffold_539.40,evm.model.scaffold_35.58,evm.model.scaffold_1730.225,evm.model.scaffold_5234.21,evm.model.scaffold_1398.101,evm.model.scaffold_963.91,evm.model.scaffold_1013.108,evm.model.scaffold_116.142,evm.model.scaffold_425.85,evm.model.scaffold_268.248,evm.model.scaffold_425.360,evm.model.scaffold_1398.137,evm.model.scaffold_243.188,evm.model.scaffold_1045.30,evm.model.scaffold_963.7,evm.model.scaffold_286.291,evm.model.scaffold_598.687,evm.model.scaffold_872.2,evm.model.scaffold_308.355,evm.model.scaffold_677.20,evm.model.scaffold_628.64,evm.model.scaffold_7966.30,evm.model.scaffold_1142.42,evm.model.scaffold_1142.196,evm.model.scaffold_167.71,evm.model.scaffold_1443.38,evm.model.scaffold_6668.104,evm.model.scaffold_481.188,evm.model.scaffold_1045.26,evm.model.scaffold_205.28,evm.model.scaffold_8568.8,evm.model.scaffold_286.293,evm.model.scaffold_599.160.1,evm.model.scaffold_1064.77,evm.model.scaffold_871.248,evm.model.scaffold_815.58,evm.model.scaffold_932.71,evm.model.scaffold_1684.87,evm.model.scaffold_400.362,evm.model.scaffold_286.111,evm.model.scaffold_1530.7,evm.model.scaffold_598.471,evm.model.scaffold_8676.37,evm.model.scaffold_242.117,evm.model.scaffold_1064.274,evm.model.scaffold_5424.87,evm.model.scaffold_668.35,evm.model.scaffold_599.226,evm.model.scaffold_1684.82"]
["Chr1_Chr2_Chr3","GO:0048518","positive regulation of biological process","biological_process",{"v":3.6323e-5,"d":"3.63E-05"},0.0052795,{"v":0.269230769230769,"d":"0.27"},"evm.model.scaffold_10190.56,evm.model.scaffold_6083.349,evm.model.scaffold_1684.146,evm.model.scaffold_391.71,evm.model.scaffold_499.269,evm.model.scaffold_1122.100,evm.model.scaffold_8540.88,evm.model.scaffold_205.127,evm.model.scaffold_1013.126,evm.model.scaffold_116.124,evm.model.scaffold_1499.4,evm.model.scaffold_1168.30,evm.model.scaffold_871.122,evm.model.scaffold_1275.132,evm.model.scaffold_1495.114.1,evm.model.scaffold_308.278,evm.model.scaffold_6083.293,evm.model.scaffold_533.98,evm.model.scaffold_1648.14,evm.model.scaffold_205.63,evm.model.scaffold_1142.337,evm.model.scaffold_6083.358,evm.model.scaffold_1081.193,evm.model.scaffold_400.189,evm.model.scaffold_8453.31,evm.model.scaffold_815.55,evm.model.scaffold_932.72,evm.model.scaffold_692.443,evm.model.scaffold_731.164,evm.model.scaffold_391.63.1,evm.model.scaffold_48.388,evm.model.scaffold_1050.156.1,evm.model.scaffold_238.52,evm.model.scaffold_484.13,evm.model.scaffold_499.58,evm.model.scaffold_1064.291,evm.model.scaffold_1473.229,evm.model.scaffold_7350.83,evm.model.scaffold_18.422,evm.model.scaffold_4616.6,evm.model.scaffold_598.360,evm.model.scaffold_11.198,evm.model.scaffold_599.226,evm.model.scaffold_5432.22,evm.model.scaffold_391.123,evm.model.scaffold_499.379,evm.model.scaffold_5424.107,evm.model.scaffold_1395.310,evm.model.scaffold_1684.89,evm.model.scaffold_8453.23,evm.model.scaffold_218.22,evm.model.scaffold_1833.117,evm.model.scaffold_400.356,evm.model.scaffold_308.272,evm.model.scaffold_286.13,evm.model.scaffold_308.355,evm.model.scaffold_1064.91,evm.model.scaffold_539.43,evm.model.scaffold_532.49,evm.model.scaffold_205.28,evm.model.scaffold_9363.25,evm.model.scaffold_1505.17,evm.model.scaffold_5601.58,evm.model.scaffold_1473.365,evm.model.scaffold_598.106,evm.model.scaffold_545.111,evm.model.scaffold_599.228_evm.model.scaffold_599.229,evm.model.scaffold_628.30,evm.model.scaffold_10190.68,evm.model.scaffold_1499.112"]
["Chr1_Chr2_Chr3","GO:0044249","cellular biosynthetic process","biological_process",{"v":4.3693e-5,"d":"4.37E-05"},0.0061439,{"v":0.198006644518272,"d":"0.20"},"evm.model.scaffold_628.64,evm.model.scaffold_7966.30,evm.model.scaffold_872.2,evm.model.scaffold_308.355,evm.model.scaffold_677.20,evm.model.scaffold_1045.26,evm.model.scaffold_205.28,evm.model.scaffold_1142.42,evm.model.scaffold_167.71,evm.model.scaffold_1142.196,evm.model.scaffold_481.188,evm.model.scaffold_6668.104,evm.model.scaffold_1443.38,evm.model.scaffold_815.58,evm.model.scaffold_932.71,evm.model.scaffold_1684.87,evm.model.scaffold_286.111,evm.model.scaffold_400.362,evm.model.scaffold_286.293,evm.model.scaffold_599.160.1,evm.model.scaffold_8568.8,evm.model.scaffold_871.248,evm.model.scaffold_1064.77,evm.model.scaffold_599.226,evm.model.scaffold_1684.82,evm.model.scaffold_598.471,evm.model.scaffold_1530.7,evm.model.scaffold_242.117,evm.model.scaffold_8676.37,evm.model.scaffold_1064.274,evm.model.scaffold_668.35,evm.model.scaffold_5424.87,evm.model.scaffold_668.84,evm.model.scaffold_241.18,evm.model.scaffold_308.278,evm.model.scaffold_1487.60,evm.model.scaffold_533.73,evm.model.scaffold_967.149,evm.model.scaffold_499.210,evm.model.scaffold_285.733,evm.model.scaffold_719.26,evm.model.scaffold_11779.27,evm.model.scaffold_7350.70,evm.model.scaffold_871.135,evm.model.scaffold_425.281,evm.model.scaffold_12254.35,evm.model.scaffold_152.128,evm.model.scaffold_499.264,evm.model.scaffold_167.148,evm.model.scaffold_905.19,evm.model.scaffold_688.14,evm.model.scaffold_7966.2,evm.model.scaffold_967.119,evm.model.scaffold_1398.101,evm.model.scaffold_1013.108,evm.model.scaffold_963.91,evm.model.scaffold_268.248,evm.model.scaffold_425.85,evm.model.scaffold_116.142,evm.model.scaffold_539.40,evm.model.scaffold_756.151,evm.model.scaffold_35.58,evm.model.scaffold_1730.225,evm.model.scaffold_5234.21,evm.model.scaffold_963.7,evm.model.scaffold_286.291,evm.model.scaffold_598.687,evm.model.scaffold_243.188,evm.model.scaffold_1398.137,evm.model.scaffold_425.360,evm.model.scaffold_1045.30,evm.model.scaffold_285.547,evm.model.scaffold_1269.579,evm.model.scaffold_7350.37,evm.model.scaffold_598.659.2,evm.model.scaffold_984.93,evm.model.scaffold_308.371,evm.model.scaffold_1889.101,evm.model.scaffold_1473.365,evm.model.scaffold_135.115,evm.model.scaffold_384.26,evm.model.scaffold_1505.17,evm.model.scaffold_286.168,evm.model.scaffold_425.593,evm.model.scaffold_598.781,evm.model.scaffold_4598.28,evm.model.scaffold_481.257,evm.model.scaffold_10250.31,evm.model.scaffold_308.447,evm.model.scaffold_1473.229,evm.model.scaffold_425.524.1,evm.model.scaffold_737.406,evm.model.scaffold_242.103,evm.model.scaffold_905.88,evm.model.scaffold_499.58,evm.model.scaffold_11.25,evm.model.scaffold_7990.23,evm.model.scaffold_11.198,evm.model.scaffold_1530.219,evm.model.scaffold_5432.22,evm.model.scaffold_1045.3,evm.model.scaffold_499.538,evm.model.scaffold_5318.98,evm.model.scaffold_1122.33,evm.model.scaffold_967.120,evm.model.scaffold_756.339,evm.model.scaffold_6083.358,evm.model.scaffold_400.164,evm.model.scaffold_3092.47,evm.model.scaffold_5987.68,evm.model.scaffold_1530.11,evm.model.scaffold_1889.102,evm.model.scaffold_905.193,evm.model.scaffold_1269.33,evm.model.scaffold_222.32,evm.model.scaffold_8491.5,evm.model.scaffold_4964.196,evm.model.scaffold_499.114,evm.model.scaffold_756.135,evm.model.scaffold_507.30.1,evm.model.scaffold_1395.307,evm.model.scaffold_1889.77,evm.model.scaffold_708.64,evm.model.scaffold_9377.12,evm.model.scaffold_1443.91,evm.model.scaffold_1269.365,evm.model.scaffold_350.98,evm.model.scaffold_709.122,evm.model.scaffold_1122.100,evm.model.scaffold_737.35,evm.model.scaffold_1013.126,evm.model.scaffold_1254.74,evm.model.scaffold_598.864,evm.model.scaffold_325.338,evm.model.scaffold_1064.124,evm.model.scaffold_268.23,evm.model.scaffold_400.342,evm.model.scaffold_10712.14,evm.model.scaffold_756.61,evm.model.scaffold_35.210,evm.model.scaffold_35.324,evm.model.scaffold_737.189,evm.model.scaffold_286.13,evm.model.scaffold_598.814,evm.model.scaffold_598.852,evm.model.scaffold_1109.203,evm.model.scaffold_285.360,evm.model.scaffold_276.4,evm.model.scaffold_1833.123,evm.model.scaffold_1142.339,evm.model.scaffold_276.49,evm.model.scaffold_10293.28,evm.model.scaffold_668.8,evm.model.scaffold_1495.171,evm.model.scaffold_628.30,evm.model.scaffold_1499.112,evm.model.scaffold_10190.68,evm.model.scaffold_238.64,evm.model.scaffold_756.317,evm.model.scaffold_709.87,evm.model.scaffold_1530.90,evm.model.scaffold_1518.9,evm.model.scaffold_484.13,evm.model.scaffold_894.119_evm.model.scaffold_894.120,evm.model.scaffold_4964.298_evm.model.scaffold_4964.299,evm.model.scaffold_599.69,evm.model.scaffold_391.63.1,evm.model.scaffold_1495.92,evm.model.scaffold_1473.252,evm.model.scaffold_598.30,evm.model.scaffold_308.511,evm.model.scaffold_599.111,evm.model.scaffold_1550.25,evm.model.scaffold_1050.189,evm.model.scaffold_222.13.2,evm.model.scaffold_1050.99,evm.model.scaffold_485.45,evm.model.scaffold_476.10.1,evm.model.scaffold_1064.291,evm.model.scaffold_5234.136,evm.model.scaffold_8115.27,evm.model.scaffold_1270.44,evm.model.scaffold_905.63.2,evm.model.scaffold_48.449,evm.model.scaffold_5424.39,evm.model.scaffold_737.181,evm.model.scaffold_1064.315,evm.model.scaffold_18.384,evm.model.scaffold_598.431,evm.model.scaffold_537.7,evm.model.scaffold_220.26_evm.model.scaffold_220.27,evm.model.scaffold_545.158,evm.model.scaffold_243.122,evm.model.scaffold_688.16,evm.model.scaffold_545.278,evm.model.scaffold_205.25,evm.model.scaffold_409.13,evm.model.scaffold_205.63,evm.model.scaffold_728.69,evm.model.scaffold_116.35,evm.model.scaffold_1122.20,evm.model.scaffold_10636.52,evm.model.scaffold_1072.38,evm.model.scaffold_709.40,evm.model.scaffold_18.153,evm.model.scaffold_391.71,evm.model.scaffold_1269.490,evm.model.scaffold_1473.80,evm.model.scaffold_6083.349,evm.model.scaffold_6624.17,evm.model.scaffold_1822.56,evm.model.scaffold_1499.4,evm.model.scaffold_1269.646,evm.model.scaffold_9941.49,evm.model.scaffold_243.93,evm.model.scaffold_8453.158,evm.model.scaffold_731.139,evm.model.scaffold_3255.35,evm.model.scaffold_218.22,evm.model.scaffold_533.91,evm.model.scaffold_462.96,evm.model.scaffold_5424.107,evm.model.scaffold_1398.322,evm.model.scaffold_1473.165,evm.model.scaffold_308.272,evm.model.scaffold_222.42,evm.model.scaffold_400.28,evm.model.scaffold_14.215,evm.model.scaffold_1395.162,evm.model.scaffold_482.105,evm.model.scaffold_285.546.1,evm.model.scaffold_1456.51,evm.model.scaffold_545.111,evm.model.scaffold_1270.29,evm.model.scaffold_4517.73,evm.model.scaffold_598.106,evm.model.scaffold_238.52,evm.model.scaffold_1050.156.1,evm.model.scaffold_285.740,evm.model.scaffold_308.650,evm.model.scaffold_482.104,evm.model.scaffold_48.388,evm.model.scaffold_7966.28,evm.model.scaffold_1081.250,evm.model.scaffold_525.278,evm.model.scaffold_1499.123,evm.model.scaffold_1398.140,evm.model.scaffold_598.360,evm.model.scaffold_545.205,evm.model.scaffold_8241.5,evm.model.scaffold_507.31,evm.model.scaffold_735.253,evm.model.scaffold_895.41,evm.model.scaffold_545.173.1,evm.model.scaffold_1395.369,evm.model.scaffold_738.2,evm.model.scaffold_545.453,evm.model.scaffold_1395.287,evm.model.scaffold_400.186,evm.model.scaffold_167.83,evm.model.scaffold_1270.191,evm.model.scaffold_1495.114.1,evm.model.scaffold_1275.97,evm.model.scaffold_499.512,evm.model.scaffold_1443.88,evm.model.scaffold_10636.44,evm.model.scaffold_1648.17,evm.model.scaffold_285.680,evm.model.scaffold_8676.104,evm.model.scaffold_1081.193,evm.model.scaffold_11084.23,evm.model.scaffold_598.342,evm.model.scaffold_8453.31,evm.model.scaffold_737.33,evm.model.scaffold_1270.73,evm.model.scaffold_677.16,evm.model.scaffold_5424.54.1,evm.model.scaffold_719.184,evm.model.scaffold_400.127,evm.model.scaffold_525.398,evm.model.scaffold_731.155,evm.model.scaffold_1722.46,evm.model.scaffold_742.70,evm.model.scaffold_598.591,evm.model.scaffold_731.219,evm.model.scaffold_1473.171,evm.model.scaffold_1254.196,evm.model.scaffold_4908.71,evm.model.scaffold_425.375,evm.model.scaffold_1889.57,evm.model.scaffold_1269.243,evm.model.scaffold_932.55,evm.model.scaffold_6668.72,evm.model.scaffold_598.578,evm.model.scaffold_1822.119.1,evm.model.scaffold_1142.351,evm.model.scaffold_1168.30,evm.model.scaffold_11.170"]
["Chr1_Chr2_Chr3","GO:0010311","lateral root formation","biological_process",{"v":5.5606e-5,"d":"5.56E-05"},0.0072605,{"v":0.555555555555556,"d":"0.56"},"evm.model.scaffold_599.111,evm.model.scaffold_48.449,evm.model.scaffold_286.293,evm.model.scaffold_1495.171,evm.model.scaffold_8453.158,evm.model.scaffold_709.122,evm.model.scaffold_1473.317,evm.model.scaffold_11.103,evm.model.scaffold_1050.99,evm.model.scaffold_719.184,evm.model.scaffold_14.215,evm.model.scaffold_1530.11,evm.model.scaffold_598.591,evm.model.scaffold_10250.31,evm.model.scaffold_1109.74"]
["Chr1_Chr2_Chr3","GO:0007112","male meiosis cytokinesis","biological_process",{"v":6.6637e-5,"d":"6.66E-05"},0.0084047,{"v":1,"d":"1.00"},"evm.model.scaffold_1398.383,evm.model.scaffold_4517.137,evm.model.scaffold_737.226,evm.model.scaffold_1109.74,evm.model.scaffold_11.103,evm.model.scaffold_1473.317"]
["Chr1_Chr2_Chr3","GO:0048878","chemical homeostasis","biological_process",{"v":6.8635e-5,"d":"6.86E-05"},0.0084047,{"v":0.29126213592233,"d":"0.29"},"evm.model.scaffold_243.93,evm.model.scaffold_218.4,evm.model.scaffold_545.205,evm.model.scaffold_243.282.1,evm.model.scaffold_507.171,evm.model.scaffold_1109.171,evm.model.scaffold_1081.219,evm.model.scaffold_243.86,evm.model.scaffold_539.6,evm.model.scaffold_1581.203,evm.model.scaffold_148.1,evm.model.scaffold_1822.122,evm.model.scaffold_1648.77,evm.model.scaffold_499.80,evm.model.scaffold_1142.287,evm.model.scaffold_6083.23,evm.model.scaffold_400.362,evm.model.scaffold_391.63.1,evm.model.scaffold_499.365,evm.model.scaffold_6083.349,evm.model.scaffold_116.163,evm.model.scaffold_575.51,evm.model.scaffold_558.59,evm.model.scaffold_391.71,evm.model.scaffold_719.74,evm.model.scaffold_1550.92,evm.model.scaffold_476.10.1,evm.model.scaffold_1064.129,evm.model.scaffold_1473.291,evm.model.scaffold_627.101,evm.model.scaffold_127.54,evm.model.scaffold_888.312,evm.model.scaffold_5424.29,evm.model.scaffold_400.278,evm.model.scaffold_205.28,evm.model.scaffold_1064.317,evm.model.scaffold_205.63,evm.model.scaffold_598.44,evm.model.scaffold_11084.23,evm.model.scaffold_222.42,evm.model.scaffold_1833.170,evm.model.scaffold_6083.358,evm.model.scaffold_285.616,evm.model.scaffold_1707.52,evm.model.scaffold_2475.71,evm.model.scaffold_400.258,evm.model.scaffold_8491.5,evm.model.scaffold_10665.22,evm.model.scaffold_462.96,evm.model.scaffold_476.140.1,evm.model.scaffold_1730.289.1,evm.model.scaffold_308.399,evm.model.scaffold_872.97,evm.model.scaffold_11.63,evm.model.scaffold_243.251,evm.model.scaffold_888.207,evm.model.scaffold_241.166,evm.model.scaffold_872.2,evm.model.scaffold_243.122,evm.model.scaffold_4598.7"]
["Chr1_Chr2_Chr3","GO:0031323","regulation of cellular metabolic process","biological_process",{"v":7.8463e-5,"d":"7.85E-05"},0.0087814,{"v":0.20746887966805,"d":"0.21"},"evm.model.scaffold_1050.189,evm.model.scaffold_599.111,evm.model.scaffold_8568.8,evm.model.scaffold_1550.25,evm.model.scaffold_1473.252,evm.model.scaffold_1064.77,evm.model.scaffold_476.10.1,evm.model.scaffold_871.248,evm.model.scaffold_485.45,evm.model.scaffold_1518.9,evm.model.scaffold_484.13,evm.model.scaffold_1495.92,evm.model.scaffold_286.111,evm.model.scaffold_4964.298_evm.model.scaffold_4964.299,evm.model.scaffold_894.119_evm.model.scaffold_894.120,evm.model.scaffold_8676.37,evm.model.scaffold_5424.39,evm.model.scaffold_737.181,evm.model.scaffold_1064.274,evm.model.scaffold_242.117,evm.model.scaffold_668.35,evm.model.scaffold_1064.315,evm.model.scaffold_5424.87,evm.model.scaffold_5234.136,evm.model.scaffold_599.226,evm.model.scaffold_1684.82,evm.model.scaffold_1270.44,evm.model.scaffold_308.355,evm.model.scaffold_286.13,evm.model.scaffold_872.2,evm.model.scaffold_35.210,evm.model.scaffold_1109.203,evm.model.scaffold_598.852,evm.model.scaffold_48.705,evm.model.scaffold_628.64,evm.model.scaffold_1505.30,evm.model.scaffold_391.123,evm.model.scaffold_127.86,evm.model.scaffold_8453.23,evm.model.scaffold_1142.42,evm.model.scaffold_599.228_evm.model.scaffold_599.229,evm.model.scaffold_238.64,evm.model.scaffold_756.317,evm.model.scaffold_1499.112,evm.model.scaffold_10190.68,evm.model.scaffold_628.30,evm.model.scaffold_6668.104,evm.model.scaffold_481.188,evm.model.scaffold_167.71,evm.model.scaffold_9609.165,evm.model.scaffold_1045.26,evm.model.scaffold_738.26,evm.model.scaffold_35.58,evm.model.scaffold_1822.56,evm.model.scaffold_756.151,evm.model.scaffold_1730.225,evm.model.scaffold_1473.80,evm.model.scaffold_1581.143_evm.model.scaffold_1581.141,evm.model.scaffold_1398.101,evm.model.scaffold_116.142,evm.model.scaffold_598.36,evm.model.scaffold_425.85,evm.model.scaffold_48.892,evm.model.scaffold_963.91,evm.model.scaffold_243.188,evm.model.scaffold_8453.158,evm.model.scaffold_871.122,evm.model.scaffold_1045.30,evm.model.scaffold_1495.55,evm.model.scaffold_1499.4,evm.model.scaffold_243.93,evm.model.scaffold_9941.49,evm.model.scaffold_205.127,evm.model.scaffold_598.687,evm.model.scaffold_48.325,evm.model.scaffold_688.16,evm.model.scaffold_533.73,evm.model.scaffold_1648.14,evm.model.scaffold_243.122,evm.model.scaffold_1487.60,evm.model.scaffold_545.278,evm.model.scaffold_285.733,evm.model.scaffold_545.380,evm.model.scaffold_499.210,evm.model.scaffold_220.26_evm.model.scaffold_220.27,evm.model.scaffold_537.7,evm.model.scaffold_598.431,evm.model.scaffold_308.278,evm.model.scaffold_499.388,evm.model.scaffold_116.35,evm.model.scaffold_709.40,evm.model.scaffold_7966.2,evm.model.scaffold_1072.38,evm.model.scaffold_688.14,evm.model.scaffold_409.13,evm.model.scaffold_205.25,evm.model.scaffold_11779.27,evm.model.scaffold_7350.70,evm.model.scaffold_1473.229,evm.model.scaffold_499.58,evm.model.scaffold_598.82,evm.model.scaffold_905.88,evm.model.scaffold_737.406,evm.model.scaffold_308.650,evm.model.scaffold_1050.156.1,evm.model.scaffold_4598.28,evm.model.scaffold_238.52,evm.model.scaffold_308.447,evm.model.scaffold_10250.31,evm.model.scaffold_48.388,evm.model.scaffold_5432.22,evm.model.scaffold_895.41,evm.model.scaffold_8241.5,evm.model.scaffold_1045.3,evm.model.scaffold_1395.369,evm.model.scaffold_1398.82,evm.model.scaffold_1499.123,evm.model.scaffold_11.198,evm.model.scaffold_7990.23,evm.model.scaffold_11.25,evm.model.scaffold_545.205,evm.model.scaffold_4616.6,evm.model.scaffold_127.33,evm.model.scaffold_598.360,evm.model.scaffold_7350.37,evm.model.scaffold_539.43,evm.model.scaffold_1269.579,evm.model.scaffold_308.371,evm.model.scaffold_984.93,evm.model.scaffold_308.272,evm.model.scaffold_3255.35,evm.model.scaffold_1730.289.1,evm.model.scaffold_731.139,evm.model.scaffold_1833.117,evm.model.scaffold_5424.107,evm.model.scaffold_462.96,evm.model.scaffold_218.22,evm.model.scaffold_545.111,evm.model.scaffold_285.546.1,evm.model.scaffold_425.593,evm.model.scaffold_598.181,evm.model.scaffold_8798.79,evm.model.scaffold_286.168,evm.model.scaffold_598.106,evm.model.scaffold_329.47,evm.model.scaffold_1270.29,evm.model.scaffold_1473.365,evm.model.scaffold_14.215,evm.model.scaffold_400.28,evm.model.scaffold_222.42,evm.model.scaffold_1505.17,evm.model.scaffold_384.26,evm.model.scaffold_1443.91,evm.model.scaffold_731.219,evm.model.scaffold_8540.88,evm.model.scaffold_1050.213,evm.model.scaffold_709.122,evm.model.scaffold_1122.100,evm.model.scaffold_1269.365,evm.model.scaffold_350.98,evm.model.scaffold_558.50,evm.model.scaffold_308.466,evm.model.scaffold_742.70,evm.model.scaffold_708.64,evm.model.scaffold_268.23,evm.model.scaffold_1275.132,evm.model.scaffold_1269.243,evm.model.scaffold_1064.124,evm.model.scaffold_400.342,evm.model.scaffold_1822.119.1,evm.model.scaffold_1142.351,evm.model.scaffold_1254.74,evm.model.scaffold_1013.126,evm.model.scaffold_425.375,evm.model.scaffold_325.338,evm.model.scaffold_285.545,evm.model.scaffold_499.512,evm.model.scaffold_5318.98,evm.model.scaffold_1443.88,evm.model.scaffold_285.680,evm.model.scaffold_545.453,evm.model.scaffold_476.140.1,evm.model.scaffold_1395.287,evm.model.scaffold_1495.114.1,evm.model.scaffold_6083.293,evm.model.scaffold_4964.196,evm.model.scaffold_8491.5,evm.model.scaffold_1269.33,evm.model.scaffold_8453.31,evm.model.scaffold_905.193,evm.model.scaffold_692.443,evm.model.scaffold_507.30.1,evm.model.scaffold_400.127,evm.model.scaffold_719.184,evm.model.scaffold_11084.23,evm.model.scaffold_1081.193,evm.model.scaffold_6083.358,evm.model.scaffold_756.339,evm.model.scaffold_598.342,evm.model.scaffold_5987.68"]
["Chr1_Chr2_Chr3","GO:0006732","coenzyme metabolic process","biological_process",{"v":8.2382e-5,"d":"8.24E-05"},0.0090357,{"v":0.375,"d":"0.38"},"evm.model.scaffold_499.237,evm.model.scaffold_1109.177,evm.model.scaffold_888.221,evm.model.scaffold_286.13,evm.model.scaffold_2475.63,evm.model.scaffold_756.61,evm.model.scaffold_268.248,evm.model.scaffold_482.105,evm.model.scaffold_167.148,evm.model.scaffold_8491.5,evm.model.scaffold_241.144,evm.model.scaffold_10712.14,evm.model.scaffold_598.106,evm.model.scaffold_1889.101,evm.model.scaffold_967.120,evm.model.scaffold_11.51,evm.model.scaffold_400.164,evm.model.scaffold_425.281,evm.model.scaffold_11084.23,evm.model.scaffold_1473.282,evm.model.scaffold_598.360,evm.model.scaffold_1342.58,evm.model.scaffold_243.93,evm.model.scaffold_152.128"]
["Chr1_Chr2_Chr3","GO:0051338","regulation of transferase activity","biological_process",{"v":8.515e-5,"d":"8.52E-05"},0.0091561,{"v":0.409090909090909,"d":"0.41"},"evm.model.scaffold_8798.79,evm.model.scaffold_598.181,evm.model.scaffold_481.188,evm.model.scaffold_1045.30,evm.model.scaffold_1495.55,evm.model.scaffold_1398.82,evm.model.scaffold_1081.193,evm.model.scaffold_598.342,evm.model.scaffold_48.325,evm.model.scaffold_285.545,evm.model.scaffold_598.82,evm.model.scaffold_1050.213,evm.model.scaffold_499.58,evm.model.scaffold_308.650,evm.model.scaffold_1518.9,evm.model.scaffold_127.86,evm.model.scaffold_308.466,evm.model.scaffold_218.22"]
["Chr4_Chr5_Chr6","GO:0048441","petal/corolla development","biological_process",{"v":1.2552e-8,"d":"1.26E-08"},{"v":4.5723e-6,"d":"4.57E-06"},{"v":0.5625,"d":"0.56"},"evm.model.scaffold_8286.130,evm.model.scaffold_329.276,evm.model.scaffold_1438.238,evm.model.scaffold_1563.117,evm.model.scaffold_1002.20,evm.model.scaffold_1400.749,evm.model.scaffold_1196.99,evm.model.scaffold_1000.20,evm.model.scaffold_784.21"]
["Chr4_Chr5_Chr6","GO:0031570","DNA integrity checkpoint","biological_process",{"v":2.0649e-8,"d":"2.06E-08"},{"v":6.7697e-6,"d":"6.77E-06"},{"v":0.5625,"d":"0.56"},"evm.model.scaffold_11314.63,evm.model.scaffold_1196.44,evm.model.scaffold_826.23,evm.model.scaffold_1400.493,evm.model.scaffold_8286.394,evm.model.scaffold_1002.72,evm.model.scaffold_1438.671,evm.model.scaffold_1047.339,evm.model.scaffold_1400.460"]
["Chr4_Chr5_Chr6","GO:0044070","regulation of anion transport","biological_process",{"v":3.5122e-8,"d":"3.51E-08"},{"v":1.0966e-5,"d":"1.10E-05"},{"v":0.583333333333333,"d":"0.58"},"evm.model.scaffold_915.180,evm.model.scaffold_4838.20,evm.model.scaffold_6033.13,evm.model.scaffold_1699.122,evm.model.scaffold_1699.117,evm.model.scaffold_1786.75,evm.model.scaffold_957.31"]
["Chr4_Chr5_Chr6","GO:0051726","regulation of cell cycle","biological_process",{"v":4.8156e-8,"d":"4.82E-08"},{"v":1.4353e-5,"d":"1.44E-05"},0.25,"evm.model.scaffold_1787.31,evm.model.scaffold_11314.63,evm.model.scaffold_8286.394,evm.model.scaffold_826.23,evm.model.scaffold_397.80,evm.model.scaffold_749.127,evm.model.scaffold_1438.671,evm.model.scaffold_915.484,evm.model.scaffold_1400.460,evm.model.scaffold_1047.339,evm.model.scaffold_1153.106,evm.model.scaffold_777.130,evm.model.scaffold_1400.493,evm.model.scaffold_1196.44,evm.model.scaffold_1300.87,evm.model.scaffold_1002.72,evm.model.scaffold_1749.319,evm.model.scaffold_746.55"]
["Chr4_Chr5_Chr6","GO:0009954","proximal/distal pattern formation","biological_process",{"v":6.9288e-8,"d":"6.93E-08"},{"v":1.9753e-5,"d":"1.98E-05"},{"v":0.857142857142857,"d":"0.86"},"evm.model.scaffold_784.21,evm.model.scaffold_1438.238,evm.model.scaffold_1002.20,evm.model.scaffold_329.276,evm.model.scaffold_1196.99,evm.model.scaffold_1563.117"]
["Chr4_Chr5_Chr6","GO:0032890","regulation of organic acid transport","biological_process",{"v":1.0093e-7,"d":"1.01E-07"},{"v":2.3635e-5,"d":"2.36E-05"},{"v":1,"d":"1.00"},"evm.model.scaffold_1786.75,evm.model.scaffold_1699.122,evm.model.scaffold_1699.117,evm.model.scaffold_915.180"]
["Chr4_Chr5_Chr6","GO:0006312","mitotic recombination","biological_process",{"v":1.5559e-7,"d":"1.56E-07"},{"v":3.4006e-5,"d":"3.40E-05"},{"v":1,"d":"1.00"},"evm.model.scaffold_777.113,evm.model.scaffold_1400.460,evm.model.scaffold_746.41,evm.model.scaffold_1400.493,evm.model.scaffold_8286.394,evm.model.scaffold_749.110"]
["Chr4_Chr5_Chr6","GO:0009798","axis specification","biological_process",{"v":1.7177e-7,"d":"1.72E-07"},{"v":3.578e-5,"d":"3.58E-05"},{"v":0.615384615384615,"d":"0.62"},"evm.model.scaffold_397.218,evm.model.scaffold_1002.20,evm.model.scaffold_1196.99,evm.model.scaffold_915.395,evm.model.scaffold_1400.749,evm.model.scaffold_1000.20,evm.model.scaffold_784.21,evm.model.scaffold_8286.130"]
["Chr4_Chr5_Chr6","GO:0021700","developmental maturation","biological_process",{"v":2.4762e-7,"d":"2.48E-07"},{"v":4.9201e-5,"d":"4.92E-05"},{"v":0.340909090909091,"d":"0.34"},"evm.model.scaffold_10328.1,evm.model.scaffold_1692.174,evm.model.scaffold_7633.139,evm.model.scaffold_3006.53,evm.model.scaffold_82.17,evm.model.scaffold_643.26,evm.model.scaffold_2488.12,evm.model.scaffold_1047.111,evm.model.scaffold_7633.147,evm.model.scaffold_82.3,evm.model.scaffold_2488.2,evm.model.scaffold_397.218,evm.model.scaffold_915.395,evm.model.scaffold_121.180,evm.model.scaffold_1537.126"]
["Chr4_Chr5_Chr6","GO:1901988","negative regulation of cell cycle phase transition","biological_process",{"v":3.776e-7,"d":"3.78E-07"},{"v":7.074e-5,"d":"7.07E-05"},0.45,"evm.model.scaffold_11314.63,evm.model.scaffold_826.23,evm.model.scaffold_1196.44,evm.model.scaffold_8286.394,evm.model.scaffold_1400.493,evm.model.scaffold_1002.72,evm.model.scaffold_1438.671,evm.model.scaffold_1400.460,evm.model.scaffold_1047.339"]
["Chr4_Chr5_Chr6","GO:0031118","rRNA pseudouridine synthesis","biological_process",{"v":6.3869e-7,"d":"6.39E-07"},0.00011319,0.75,"evm.model.scaffold_397.146,evm.model.scaffold_690.13,evm.model.scaffold_1300.148,evm.model.scaffold_11631.153,evm.model.scaffold_11883.148,evm.model.scaffold_915.436"]
["Chr4_Chr5_Chr6","GO:0000076","DNA replication checkpoint","biological_process",{"v":6.6175e-7,"d":"6.62E-07"},0.00011419,{"v":1,"d":"1.00"},"evm.model.scaffold_1196.44,evm.model.scaffold_1047.339,evm.model.scaffold_1438.671,evm.model.scaffold_1002.72,evm.model.scaffold_11314.63"]
["Chr4_Chr5_Chr6","GO:0009451","RNA modification","biological_process",{"v":1.0888e-6,"d":"1.09E-06"},0.00017413,{"v":0.1875,"d":"0.19"},"evm.model.scaffold_915.262,evm.model.scaffold_690.13,evm.model.scaffold_10328.63,evm.model.scaffold_749.490,evm.model.scaffold_1692.200,evm.model.scaffold_1942.14,evm.model.scaffold_12228.4,evm.model.scaffold_11883.148,evm.model.scaffold_11631.153,evm.model.scaffold_9608.1,evm.model.scaffold_8575.11,evm.model.scaffold_1699.183,evm.model.scaffold_397.330,evm.model.scaffold_2677.6,evm.model.scaffold_1300.148,evm.model.scaffold_915.436,evm.model.scaffold_1692.126,evm.model.scaffold_3006.25,evm.model.scaffold_234.255,evm.model.scaffold_463.162,evm.model.scaffold_397.146"]
["Chr4_Chr5_Chr6","GO:0010948","negative regulation of cell cycle process","biological_process",{"v":1.3606e-6,"d":"1.36E-06"},0.00021241,0.36,"evm.model.scaffold_1400.460,evm.model.scaffold_1047.339,evm.model.scaffold_1002.72,evm.model.scaffold_1438.671,evm.model.scaffold_826.23,evm.model.scaffold_1196.44,evm.model.scaffold_8286.394,evm.model.scaffold_1400.493,evm.model.scaffold_11314.63"]
["Chr4_Chr5_Chr6","GO:0000077","DNA damage checkpoint","biological_process",{"v":1.7116e-6,"d":"1.71E-06"},0.00025507,{"v":0.5,"d":"0.50"},"evm.model.scaffold_1047.339,evm.model.scaffold_1400.460,evm.model.scaffold_826.23,evm.model.scaffold_1400.493,evm.model.scaffold_8286.394,evm.model.scaffold_11314.63,evm.model.scaffold_1438.671"]
["Chr4_Chr5_Chr6","GO:0010564","regulation of cell cycle process","biological_process",{"v":1.8759e-6,"d":"1.88E-06"},0.00027334,{"v":0.27906976744186,"d":"0.28"},"evm.model.scaffold_11314.63,evm.model.scaffold_1400.493,evm.model.scaffold_8286.394,evm.model.scaffold_1196.44,evm.model.scaffold_1300.87,evm.model.scaffold_826.23,evm.model.scaffold_1438.671,evm.model.scaffold_397.80,evm.model.scaffold_1002.72,evm.model.scaffold_915.484,evm.model.scaffold_1047.339,evm.model.scaffold_1400.460"]
["Chr4_Chr5_Chr6","GO:0043562","cellular response to nitrogen levels","biological_process",{"v":2.3972e-6,"d":"2.40E-06"},0.00034171,{"v":0.6,"d":"0.60"},"evm.model.scaffold_1863.83,evm.model.scaffold_823.5,evm.model.scaffold_1735.36,evm.model.scaffold_1096.32,evm.model.scaffold_1563.66,evm.model.scaffold_1438.182"]
["Chr4_Chr5_Chr6","GO:0000154","rRNA modification","biological_process",{"v":3.2842e-6,"d":"3.28E-06"},0.00045818,{"v":0.321428571428571,"d":"0.32"},"evm.model.scaffold_749.490,evm.model.scaffold_915.436,evm.model.scaffold_11883.148,evm.model.scaffold_234.255,evm.model.scaffold_11631.153,evm.model.scaffold_397.146,evm.model.scaffold_8575.11,evm.model.scaffold_1300.148,evm.model.scaffold_690.13"]
["Chr4_Chr5_Chr6","GO:0031573","intra-S DNA damage checkpoint","biological_process",{"v":3.3597e-6,"d":"3.36E-06"},0.00045895,{"v":0.6,"d":"0.60"},"evm.model.scaffold_1438.671,evm.model.scaffold_11314.63,evm.model.scaffold_1400.493,evm.model.scaffold_8286.394,evm.model.scaffold_1047.339,evm.model.scaffold_1400.460"]
["Chr4_Chr5_Chr6","GO:0044770","cell cycle phase transition","biological_process",{"v":3.4456e-6,"d":"3.45E-06"},0.00046107,{"v":0.285714285714286,"d":"0.29"},"evm.model.scaffold_1749.319,evm.model.scaffold_1400.460,evm.model.scaffold_1047.339,evm.model.scaffold_1438.671,evm.model.scaffold_1002.72,evm.model.scaffold_8286.394,evm.model.scaffold_1400.493,evm.model.scaffold_826.23,evm.model.scaffold_1196.44,evm.model.scaffold_1787.31,evm.model.scaffold_1153.106,evm.model.scaffold_11314.63"]
["Chr4_Chr5_Chr6","GO:0080147","root hair cell development","biological_process",{"v":4.1848e-6,"d":"4.18E-06"},0.00052768,{"v":0.5,"d":"0.50"},"evm.model.scaffold_82.17,evm.model.scaffold_1047.111,evm.model.scaffold_2488.12,evm.model.scaffold_7633.139,evm.model.scaffold_2488.2,evm.model.scaffold_121.180,evm.model.scaffold_1537.126,evm.model.scaffold_82.3,evm.model.scaffold_7633.147"]
["Chr4_Chr5_Chr6","GO:0006213","pyrimidine nucleoside metabolic process","biological_process",{"v":7.4279e-6,"d":"7.43E-06"},0.00091896,0.45,"evm.model.scaffold_2488.12,evm.model.scaffold_82.17,evm.model.scaffold_7633.139,evm.model.scaffold_1735.36,evm.model.scaffold_1096.32,evm.model.scaffold_2488.2,evm.model.scaffold_1863.83,evm.model.scaffold_82.3,evm.model.scaffold_7633.147"]
["Chr4_Chr5_Chr6","GO:0009165","nucleotide biosynthetic process","biological_process",{"v":8.149e-6,"d":"8.15E-06"},0.00097151,{"v":0.158620689655172,"d":"0.16"},"evm.model.scaffold_915.440,evm.model.scaffold_749.245,evm.model.scaffold_7181.37,evm.model.scaffold_749.277,evm.model.scaffold_2677.59,evm.model.scaffold_1341.38,evm.model.scaffold_1735.36,evm.model.scaffold_380.218,evm.model.scaffold_2879.64,evm.model.scaffold_1096.32,evm.model.scaffold_10401.4,evm.model.scaffold_1048.21,evm.model.scaffold_7181.53,evm.model.scaffold_1048.13,evm.model.scaffold_1863.83,evm.model.scaffold_1863.53,evm.model.scaffold_1300.144,evm.model.scaffold_1048.40,evm.model.scaffold_6252.234,evm.model.scaffold_1692.74,evm.model.scaffold_777.181,evm.model.scaffold_397.142,evm.model.scaffold_260.68"]
["Chr4_Chr5_Chr6","GO:0006302","double-strand break repair","biological_process",{"v":9.1059e-6,"d":"9.11E-06"},0.0010662,{"v":0.3,"d":"0.30"},"evm.model.scaffold_121.26,evm.model.scaffold_1438.484,evm.model.scaffold_1461.8,evm.model.scaffold_8286.394,evm.model.scaffold_1400.493,evm.model.scaffold_11314.63,evm.model.scaffold_1400.460,evm.model.scaffold_1047.339,evm.model.scaffold_837.110,evm.model.scaffold_1047.190,evm.model.scaffold_2951.54,evm.model.scaffold_1438.671"]
["Chr4_Chr5_Chr6","GO:1901987","regulation of cell cycle phase transition","biological_process",{"v":9.7874e-6,"d":"9.79E-06"},0.0011259,{"v":0.333333333333333,"d":"0.33"},"evm.model.scaffold_1047.339,evm.model.scaffold_1400.460,evm.model.scaffold_1438.671,evm.model.scaffold_1002.72,evm.model.scaffold_1400.493,evm.model.scaffold_8286.394,evm.model.scaffold_1196.44,evm.model.scaffold_826.23,evm.model.scaffold_11314.63"]
["Chr4_Chr5_Chr6","GO:1900865","chloroplast RNA modification","biological_process",{"v":1.7675e-5,"d":"1.77E-05"},0.0017422,{"v":0.6,"d":"0.60"},"evm.model.scaffold_1692.126,evm.model.scaffold_12228.4,evm.model.scaffold_10328.63,evm.model.scaffold_463.162,evm.model.scaffold_9608.1,evm.model.scaffold_2677.6"]
["Chr4_Chr5_Chr6","GO:0046125","pyrimidine deoxyribonucleoside metabolic process","biological_process",{"v":1.8333e-5,"d":"1.83E-05"},0.0017422,{"v":0.857142857142857,"d":"0.86"},"evm.model.scaffold_82.3,evm.model.scaffold_7633.147,evm.model.scaffold_7633.139,evm.model.scaffold_82.17,evm.model.scaffold_2488.2,evm.model.scaffold_2488.12"]
["Chr4_Chr5_Chr6","GO:0055086","nucleobase-containing small molecule metabolic process","biological_process",{"v":2.1686e-5,"d":"2.17E-05"},0.0020028,{"v":0.10989010989011,"d":"0.11"},"evm.model.scaffold_380.218,evm.model.scaffold_8178.70,evm.model.scaffold_2879.64,evm.model.scaffold_2677.59,evm.model.scaffold_749.490,evm.model.scaffold_1341.38,evm.model.scaffold_749.219,evm.model.scaffold_7181.37,evm.model.scaffold_7633.139,evm.model.scaffold_234.255,evm.model.scaffold_1048.40,evm.model.scaffold_1863.53,evm.model.scaffold_1863.83,evm.model.scaffold_9352.49,evm.model.scaffold_7181.53,evm.model.scaffold_8575.11,evm.model.scaffold_1118.111,evm.model.scaffold_2488.2,evm.model.scaffold_1048.13,evm.model.scaffold_1735.36,evm.model.scaffold_10401.4,evm.model.scaffold_1096.32,evm.model.scaffold_749.277,evm.model.scaffold_837.142,evm.model.scaffold_82.17,evm.model.scaffold_7633.147,evm.model.scaffold_2287.82,evm.model.scaffold_749.245,evm.model.scaffold_915.440,evm.model.scaffold_1692.74,evm.model.scaffold_6252.234,evm.model.scaffold_260.68,evm.model.scaffold_777.181,evm.model.scaffold_397.142,evm.model.scaffold_7181.59,evm.model.scaffold_2488.12,evm.model.scaffold_1300.144,evm.model.scaffold_2951.25,evm.model.scaffold_82.3,evm.model.scaffold_1048.21"]
["Chr4_Chr5_Chr6","GO:0009734","auxin mediated signaling pathway","biological_process",{"v":2.4784e-5,"d":"2.48E-05"},0.0022571,{"v":0.260869565217391,"d":"0.26"},"evm.model.scaffold_7633.139,evm.model.scaffold_82.17,evm.model.scaffold_2677.8,evm.model.scaffold_2488.12,evm.model.scaffold_1118.337,evm.model.scaffold_7633.147,evm.model.scaffold_82.3,evm.model.scaffold_177.138,evm.model.scaffold_117.339,evm.model.scaffold_1692.122,evm.model.scaffold_10328.67,evm.model.scaffold_2488.2"]
["Chr4_Chr5_Chr6","GO:1990066","energy quenching","biological_process",{"v":2.8298e-5,"d":"2.83E-05"},0.0024403,{"v":0.428571428571429,"d":"0.43"},"evm.model.scaffold_980.88,evm.model.scaffold_7146.32,evm.model.scaffold_1749.558,evm.model.scaffold_1692.331,evm.model.scaffold_7702.176,evm.model.scaffold_915.14"]
["Chr4_Chr5_Chr6","GO:0052542","defense response by callose deposition","biological_process",{"v":2.8657e-5,"d":"2.87E-05"},0.0024403,{"v":0.428571428571429,"d":"0.43"},"evm.model.scaffold_7633.139,evm.model.scaffold_1300.169,evm.model.scaffold_915.405,evm.model.scaffold_2488.12,evm.model.scaffold_82.17,evm.model.scaffold_82.3,evm.model.scaffold_7633.147,evm.model.scaffold_397.194,evm.model.scaffold_2488.2"]
["Chr4_Chr5_Chr6","GO:0010016","shoot system morphogenesis","biological_process",{"v":4.1251e-5,"d":"4.13E-05"},0.0034677,{"v":0.188888888888889,"d":"0.19"},"evm.model.scaffold_329.276,evm.model.scaffold_1563.66,evm.model.scaffold_2677.8,evm.model.scaffold_1692.74,evm.model.scaffold_1438.238,evm.model.scaffold_823.5,evm.model.scaffold_1692.122,evm.model.scaffold_624.9,evm.model.scaffold_1438.182,evm.model.scaffold_2677.59,evm.model.scaffold_8286.130,evm.model.scaffold_1341.38,evm.model.scaffold_272.57,evm.model.scaffold_1400.749,evm.model.scaffold_1563.117,evm.model.scaffold_10328.67,evm.model.scaffold_1000.20"]
["Chr4_Chr5_Chr6","GO:0001522","pseudouridine synthesis","biological_process",{"v":4.8169e-5,"d":"4.82E-05"},0.003998,{"v":0.4,"d":"0.40"},"evm.model.scaffold_11883.148,evm.model.scaffold_915.436,evm.model.scaffold_397.146,evm.model.scaffold_690.13,evm.model.scaffold_1300.148,evm.model.scaffold_11631.153"]
["Chr4_Chr5_Chr6","GO:0000724","double-strand break repair via homologous recombination","biological_process",{"v":4.9781e-5,"d":"4.98E-05"},0.0040802,{"v":0.321428571428571,"d":"0.32"},"evm.model.scaffold_1400.493,evm.model.scaffold_8286.394,evm.model.scaffold_1461.8,evm.model.scaffold_11314.63,evm.model.scaffold_1047.339,evm.model.scaffold_1400.460,evm.model.scaffold_837.110,evm.model.scaffold_2951.54,evm.model.scaffold_1438.671"]
["Chr4_Chr5_Chr6","GO:0010067","procambium histogenesis","biological_process",{"v":5.7089e-5,"d":"5.71E-05"},0.004565,{"v":1,"d":"1.00"},"evm.model.scaffold_1787.181,evm.model.scaffold_3800.65,evm.model.scaffold_1749.118"]
["Chr4_Chr5_Chr6","GO:0033037","polysaccharide localization","biological_process",{"v":6.6103e-5,"d":"6.61E-05"},0.0050992,{"v":0.375,"d":"0.38"},"evm.model.scaffold_2488.12,evm.model.scaffold_82.17,evm.model.scaffold_7633.139,evm.model.scaffold_1300.169,evm.model.scaffold_915.405,evm.model.scaffold_2488.2,evm.model.scaffold_7633.147,evm.model.scaffold_82.3,evm.model.scaffold_397.194"]
["Chr4_Chr5_Chr6","GO:0006995","cellular response to nitrogen starvation","biological_process",{"v":7.2439e-5,"d":"7.24E-05"},0.0054589,0.75,"evm.model.scaffold_823.5,evm.model.scaffold_1438.182,evm.model.scaffold_1563.66"]
["Chr4_Chr5_Chr6","GO:0006139","nucleobase-containing compound metabolic process","biological_process",{"v":7.5403e-5,"d":"7.54E-05"},0.0054589,{"v":0.0657395701643489,"d":"0.07"},"evm.model.scaffold_8286.298,evm.model.scaffold_1537.155,evm.model.scaffold_1749.521,evm.model.scaffold_915.262,evm.model.scaffold_826.7,evm.model.scaffold_2287.32,evm.model.scaffold_749.54,evm.model.scaffold_746.41,evm.model.scaffold_909.277,evm.model.scaffold_82.17,evm.model.scaffold_10328.63,evm.model.scaffold_1692.331,evm.model.scaffold_329.180,evm.model.scaffold_1048.21,evm.model.scaffold_8249.82,evm.model.scaffold_1699.183,evm.model.scaffold_397.330,evm.model.scaffold_216.160,evm.model.scaffold_1300.148,evm.model.scaffold_749.65,evm.model.scaffold_11549.20,evm.model.scaffold_915.436,evm.model.scaffold_837.110,evm.model.scaffold_10328.2,evm.model.scaffold_6533.104,evm.model.scaffold_1457.394,evm.model.scaffold_1692.74,evm.model.scaffold_1863.54,evm.model.scaffold_1749.118,evm.model.scaffold_7181.37,evm.model.scaffold_560.415,evm.model.scaffold_216.425,evm.model.scaffold_121.129,evm.model.scaffold_82.40.1,evm.model.scaffold_1457.123,evm.model.scaffold_1478.342,evm.model.scaffold_1735.78,evm.model.scaffold_8178.70,evm.model.scaffold_1735.23,evm.model.scaffold_1438.1204,evm.model.scaffold_9608.1,evm.model.scaffold_1692.173,evm.model.scaffold_826.96,evm.model.scaffold_1863.52,evm.model.scaffold_1048.13,evm.model.scaffold_749.425,evm.model.scaffold_560.103,evm.model.scaffold_1457.475,evm.model.scaffold_1461.8,evm.model.scaffold_8575.11,evm.model.scaffold_2287.73,evm.model.scaffold_1438.334,evm.model.scaffold_9352.49,evm.model.scaffold_777.45,evm.model.scaffold_1863.53,evm.model.scaffold_2677.8,evm.model.scaffold_1048.40,evm.model.scaffold_3006.25,evm.model.scaffold_234.255,evm.model.scaffold_560.146,evm.model.scaffold_915.212,evm.model.scaffold_234.300,evm.model.scaffold_1196.44,evm.model.scaffold_749.245,evm.model.scaffold_234.346,evm.model.scaffold_1400.749,evm.model.scaffold_1594.155,evm.model.scaffold_216.105,evm.model.scaffold_2951.49,evm.model.scaffold_1692.187,evm.model.scaffold_823.4,evm.model.scaffold_837.142,evm.model.scaffold_1457.389,evm.model.scaffold_1692.200,evm.model.scaffold_749.277,evm.model.scaffold_837.153,evm.model.scaffold_1096.32,evm.model.scaffold_1988.14,evm.model.scaffold_121.26,evm.model.scaffold_1096.20,evm.model.scaffold_2951.25,evm.model.scaffold_1461.106,evm.model.scaffold_1300.144,evm.model.scaffold_1735.57,evm.model.scaffold_1047.339,evm.model.scaffold_909.32,evm.model.scaffold_1096.68,evm.model.scaffold_915.405,evm.model.scaffold_7181.59,evm.model.scaffold_777.181,evm.model.scaffold_397.142,evm.model.scaffold_1594.151,evm.model.scaffold_746.60,evm.model.scaffold_1563.117,evm.model.scaffold_7504.42,evm.model.scaffold_7702.136,evm.model.scaffold_1000.20,evm.model.scaffold_749.490,evm.model.scaffold_11883.148,evm.model.scaffold_1002.72,evm.model.scaffold_1786.115,evm.model.scaffold_777.75,evm.model.scaffold_380.218,evm.model.scaffold_823.9,evm.model.scaffold_11314.62,evm.model.scaffold_2677.6,evm.model.scaffold_117.268,evm.model.scaffold_749.31,evm.model.scaffold_10401.7,evm.model.scaffold_572.15,evm.model.scaffold_915.172,evm.model.scaffold_1478.368,evm.model.scaffold_397.146,evm.model.scaffold_536.268,evm.model.scaffold_2287.82,evm.model.scaffold_1692.157,evm.model.scaffold_1863.91,evm.model.scaffold_7633.147,evm.model.scaffold_10328.13,evm.model.scaffold_11549.51,evm.model.scaffold_1942.14,evm.model.scaffold_1796.20,evm.model.scaffold_10401.4,evm.model.scaffold_329.210,evm.model.scaffold_11314.63,evm.model.scaffold_8608.49,evm.model.scaffold_1400.460,evm.model.scaffold_1699.101,evm.model.scaffold_1563.187,evm.model.scaffold_1787.181,evm.model.scaffold_1563.221,evm.model.scaffold_1141.46,evm.model.scaffold_2951.54,evm.model.scaffold_1400.493,evm.model.scaffold_560.193,evm.model.scaffold_749.219,evm.model.scaffold_1341.38,evm.model.scaffold_1438.845,evm.model.scaffold_8249.10,evm.model.scaffold_749.110,evm.model.scaffold_749.120,evm.model.scaffold_11883.225,evm.model.scaffold_2488.2,evm.model.scaffold_845.110,evm.model.scaffold_8178.73,evm.model.scaffold_7181.53,evm.model.scaffold_9352.26,evm.model.scaffold_397.194,evm.model.scaffold_1863.83,evm.model.scaffold_980.57,evm.model.scaffold_777.116,evm.model.scaffold_1478.340,evm.model.scaffold_749.132,evm.model.scaffold_1438.238,evm.model.scaffold_1438.671,evm.model.scaffold_915.440,evm.model.scaffold_1438.361,evm.model.scaffold_1096.50,evm.model.scaffold_1438.484,evm.model.scaffold_1457.432,evm.model.scaffold_1699.197,evm.model.scaffold_1438.1181,evm.model.scaffold_10328.67,evm.model.scaffold_690.13,evm.model.scaffold_777.113,evm.model.scaffold_643.26,evm.model.scaffold_8286.130,evm.model.scaffold_10401.3,evm.model.scaffold_3006.54,evm.model.scaffold_12228.4,evm.model.scaffold_1735.36,evm.model.scaffold_826.23,evm.model.scaffold_8286.394,evm.model.scaffold_980.44,evm.model.scaffold_380.157,evm.model.scaffold_82.3,evm.model.scaffold_1457.125,evm.model.scaffold_2488.12,evm.model.scaffold_329.276,evm.model.scaffold_777.134,evm.model.scaffold_746.46,evm.model.scaffold_260.68,evm.model.scaffold_6252.234,evm.model.scaffold_1047.190,evm.model.scaffold_117.393,evm.model.scaffold_463.162,evm.model.scaffold_1692.159,evm.model.scaffold_633.276,evm.model.scaffold_1296.73,evm.model.scaffold_642.23,evm.model.scaffold_1786.64,evm.model.scaffold_7702.131,evm.model.scaffold_383.7,evm.model.scaffold_919.3,evm.model.scaffold_2677.59,evm.model.scaffold_2879.64,evm.model.scaffold_1400.324,evm.model.scaffold_11631.153,evm.model.scaffold_1047.138,evm.model.scaffold_1096.76,evm.model.scaffold_1118.111,evm.model.scaffold_3800.65,evm.model.scaffold_1786.117,evm.model.scaffold_1692.122,evm.model.scaffold_1438.329,evm.model.scaffold_1692.126,evm.model.scaffold_1699.146,evm.model.scaffold_7633.139"]
["Chr4_Chr5_Chr6","GO:0044238","primary metabolic process","biological_process",{"v":7.8745e-5,"d":"7.87E-05"},0.0054589,{"v":0.0609233698238934,"d":"0.06"},"evm.model.scaffold_1692.173,evm.model.scaffold_9608.1,evm.model.scaffold_826.96,evm.model.scaffold_82.40.1,evm.model.scaffold_1457.123,evm.model.scaffold_1478.342,evm.model.scaffold_159.41,evm.model.scaffold_1735.78,evm.model.scaffold_980.41,evm.model.scaffold_560.415,evm.model.scaffold_216.425,evm.model.scaffold_1863.54,evm.model.scaffold_560.146,evm.model.scaffold_177.44,evm.model.scaffold_234.300,evm.model.scaffold_1863.53,evm.model.scaffold_1749.161,evm.model.scaffold_3006.25,evm.model.scaffold_10036.60,evm.model.scaffold_1048.14,evm.model.scaffold_777.45,evm.model.scaffold_915.180,evm.model.scaffold_2287.70,evm.model.scaffold_1461.8,evm.model.scaffold_8575.11,evm.model.scaffold_3968.39,evm.model.scaffold_1537.174,evm.model.scaffold_82.17,evm.model.scaffold_909.277,evm.model.scaffold_8286.435,evm.model.scaffold_10328.63,evm.model.scaffold_560.222_evm.model.scaffold_560.229_evm.model.scaffold_560.230,evm.model.scaffold_1863.76,evm.model.scaffold_560.276,evm.model.scaffold_915.262,evm.model.scaffold_826.7,evm.model.scaffold_2287.32,evm.model.scaffold_1438.655,evm.model.scaffold_749.54,evm.model.scaffold_8286.298,evm.model.scaffold_1787.120,evm.model.scaffold_749.209,evm.model.scaffold_1537.155,evm.model.scaffold_1153.5,evm.model.scaffold_1749.521,evm.model.scaffold_10328.2,evm.model.scaffold_1457.394,evm.model.scaffold_8575.3,evm.model.scaffold_1699.183,evm.model.scaffold_8249.82,evm.model.scaffold_216.160,evm.model.scaffold_5538.120,evm.model.scaffold_177.138,evm.model.scaffold_777.182,evm.model.scaffold_1002.72,evm.model.scaffold_1786.115,evm.model.scaffold_380.218,evm.model.scaffold_749.490,evm.model.scaffold_1942.36,evm.model.scaffold_633.233,evm.model.scaffold_11883.148,evm.model.scaffold_1000.20,evm.model.scaffold_1118.103,evm.model.scaffold_1438.584,evm.model.scaffold_909.145,evm.model.scaffold_1563.117,evm.model.scaffold_397.146,evm.model.scaffold_10401.7,evm.model.scaffold_1141.38,evm.model.scaffold_8286.465,evm.model.scaffold_117.268,evm.model.scaffold_749.31,evm.model.scaffold_121.210,evm.model.scaffold_11314.62,evm.model.scaffold_1096.32,evm.model.scaffold_1047.341,evm.model.scaffold_7702.11.1,evm.model.scaffold_1000.225,evm.model.scaffold_1735.142,evm.model.scaffold_837.142,evm.model.scaffold_1457.389,evm.model.scaffold_837.153,evm.model.scaffold_909.312,evm.model.scaffold_1786.55,evm.model.scaffold_1692.187,evm.model.scaffold_8178.84,evm.model.scaffold_909.79,evm.model.scaffold_234.346,evm.model.scaffold_1400.749,evm.model.scaffold_397.142,evm.model.scaffold_7181.59,evm.model.scaffold_746.60,evm.model.scaffold_1594.151,evm.model.scaffold_121.103,evm.model.scaffold_1300.144,evm.model.scaffold_1047.339,evm.model.scaffold_1118.120,evm.model.scaffold_1787.118,evm.model.scaffold_1096.68,evm.model.scaffold_2951.25,evm.model.scaffold_121.26,evm.model.scaffold_397.311,evm.model.scaffold_1438.845,evm.model.scaffold_1735.45,evm.model.scaffold_749.110,evm.model.scaffold_6533.67,evm.model.scaffold_1863.41,evm.model.scaffold_1699.199,evm.model.scaffold_1699.91,evm.model.scaffold_1341.38,evm.model.scaffold_560.193,evm.model.scaffold_749.219,evm.model.scaffold_1153.106,evm.model.scaffold_1438.238,evm.model.scaffold_1438.671,evm.model.scaffold_1478.340,evm.model.scaffold_749.132,evm.model.scaffold_9352.26,evm.model.scaffold_624.9,evm.model.scaffold_980.57,evm.model.scaffold_784.59,evm.model.scaffold_777.116,evm.model.scaffold_2488.2,evm.model.scaffold_560.433,evm.model.scaffold_8178.73,evm.model.scaffold_7181.53,evm.model.scaffold_845.110,evm.model.scaffold_329.210,evm.model.scaffold_845.128,evm.model.scaffold_746.55,evm.model.scaffold_96.14,evm.model.scaffold_3800.59,evm.model.scaffold_1118.136,evm.model.scaffold_216.264,evm.model.scaffold_7633.147,evm.model.scaffold_10328.13,evm.model.scaffold_11549.51,evm.model.scaffold_6252.212,evm.model.scaffold_749.210,evm.model.scaffold_1563.221,evm.model.scaffold_1787.181,evm.model.scaffold_2951.54,evm.model.scaffold_915.404,evm.model.scaffold_96.124,evm.model.scaffold_8608.49,evm.model.scaffold_1699.122,evm.model.scaffold_7181.55,evm.model.scaffold_2879.64,evm.model.scaffold_1047.138,evm.model.scaffold_11631.153,evm.model.scaffold_8286.29,evm.model.scaffold_1400.324,evm.model.scaffold_272.57,evm.model.scaffold_383.7,evm.model.scaffold_1537.38,evm.model.scaffold_1786.64,evm.model.scaffold_642.23,evm.model.scaffold_915.299,evm.model.scaffold_915.162,evm.model.scaffold_11883.146,evm.model.scaffold_3800.65,evm.model.scaffold_11314.128,evm.model.scaffold_1786.117,evm.model.scaffold_1692.350,evm.model.scaffold_1438.329,evm.model.scaffold_1537.128,evm.model.scaffold_915.14,evm.model.scaffold_216.447,evm.model.scaffold_749.30,evm.model.scaffold_9549.8_evm.model.scaffold_9549.12,evm.model.scaffold_643.26,evm.model.scaffold_10401.3,evm.model.scaffold_1400.317,evm.model.scaffold_3006.54,evm.model.scaffold_2287.91,evm.model.scaffold_9524.14,evm.model.scaffold_1047.52,evm.model.scaffold_1438.484,evm.model.scaffold_1096.50,evm.model.scaffold_216.62,evm.model.scaffold_117.32,evm.model.scaffold_260.68,evm.model.scaffold_6252.234,evm.model.scaffold_1047.190,evm.model.scaffold_329.319_evm.model.scaffold_329.320,evm.model.scaffold_749.127,evm.model.scaffold_117.393,evm.model.scaffold_1457.125,evm.model.scaffold_6252.176.1,evm.model.scaffold_7504.47,evm.model.scaffold_2488.12,evm.model.scaffold_1749.163,evm.model.scaffold_1563.116,evm.model.scaffold_746.46,evm.model.scaffold_82.3,evm.model.scaffold_380.157,evm.model.scaffold_1749.613.1,evm.model.scaffold_8178.70,evm.model.scaffold_10201.16,evm.model.scaffold_915.183,evm.model.scaffold_1735.23,evm.model.scaffold_1438.248,evm.model.scaffold_1047.113,evm.model.scaffold_1400.406,evm.model.scaffold_1438.1204,evm.model.scaffold_1863.52,evm.model.scaffold_216.203,evm.model.scaffold_7181.37,evm.model.scaffold_749.451,evm.model.scaffold_121.129,evm.model.scaffold_1296.62,evm.model.scaffold_1563.189,evm.model.scaffold_1047.275,evm.model.scaffold_1749.118,evm.model.scaffold_1699.280,evm.model.scaffold_234.255,evm.model.scaffold_1096.49,evm.model.scaffold_915.212,evm.model.scaffold_2677.8,evm.model.scaffold_1048.40,evm.model.scaffold_1457.473,evm.model.scaffold_1438.334,evm.model.scaffold_9352.49,evm.model.scaffold_749.425,evm.model.scaffold_3800.92,evm.model.scaffold_1048.13,evm.model.scaffold_397.218,evm.model.scaffold_1699.196.2,evm.model.scaffold_560.103,evm.model.scaffold_1457.475,evm.model.scaffold_3285.197,evm.model.scaffold_11314.93,evm.model.scaffold_2287.73,evm.model.scaffold_1196.60.1,evm.model.scaffold_7146.32,evm.model.scaffold_746.41,evm.model.scaffold_8178.62,evm.model.scaffold_1692.331,evm.model.scaffold_1296.56,evm.model.scaffold_1400.426,evm.model.scaffold_121.178,evm.model.scaffold_2287.57,evm.model.scaffold_6533.104,evm.model.scaffold_1692.74,evm.model.scaffold_329.207,evm.model.scaffold_915.436,evm.model.scaffold_1118.337,evm.model.scaffold_837.110,evm.model.scaffold_397.330,evm.model.scaffold_1438.236,evm.model.scaffold_1153.1,evm.model.scaffold_1300.148,evm.model.scaffold_749.65,evm.model.scaffold_11549.20,evm.model.scaffold_1692.176,evm.model.scaffold_329.180,evm.model.scaffold_1048.21,evm.model.scaffold_1438.653,evm.model.scaffold_777.75,evm.model.scaffold_560.99,evm.model.scaffold_7504.42,evm.model.scaffold_1002.63,evm.model.scaffold_1749.140,evm.model.scaffold_9524.13,evm.model.scaffold_7702.136,evm.model.scaffold_572.15,evm.model.scaffold_915.172,evm.model.scaffold_3380.71,evm.model.scaffold_1478.368,evm.model.scaffold_159.39,evm.model.scaffold_8178.75,evm.model.scaffold_2677.6,evm.model.scaffold_1787.31,evm.model.scaffold_1749.384,evm.model.scaffold_823.9,evm.model.scaffold_1988.14,evm.model.scaffold_784.46,evm.model.scaffold_823.4,evm.model.scaffold_1692.200,evm.model.scaffold_749.277,evm.model.scaffold_777.130,evm.model.scaffold_216.105,evm.model.scaffold_1047.156,evm.model.scaffold_2951.49,evm.model.scaffold_749.245,evm.model.scaffold_1196.44,evm.model.scaffold_1594.155,evm.model.scaffold_915.405,evm.model.scaffold_777.181,evm.model.scaffold_1735.57,evm.model.scaffold_909.32,evm.model.scaffold_383.122,evm.model.scaffold_397.200,evm.model.scaffold_1461.106,evm.model.scaffold_1096.20,evm.model.scaffold_1796.136,evm.model.scaffold_8249.10,evm.model.scaffold_3006.50,evm.model.scaffold_1048.17,evm.model.scaffold_749.120,evm.model.scaffold_11883.225,evm.model.scaffold_10328.1,evm.model.scaffold_1749.319,evm.model.scaffold_8249.32,evm.model.scaffold_1400.493,evm.model.scaffold_4627.106,evm.model.scaffold_11314.91,evm.model.scaffold_397.194,evm.model.scaffold_1461.165,evm.model.scaffold_1863.83,evm.model.scaffold_1787.140,evm.model.scaffold_159.72,evm.model.scaffold_915.395,evm.model.scaffold_1796.20,evm.model.scaffold_10401.4,evm.model.scaffold_1942.34,evm.model.scaffold_1942.14,evm.model.scaffold_117.311,evm.model.scaffold_1692.157,evm.model.scaffold_1863.91,evm.model.scaffold_9425.28,evm.model.scaffold_536.268,evm.model.scaffold_1548.71,evm.model.scaffold_2287.82,evm.model.scaffold_1141.46,evm.model.scaffold_1400.460,evm.model.scaffold_1563.187,evm.model.scaffold_1699.101,evm.model.scaffold_1118.126,evm.model.scaffold_11314.63,evm.model.scaffold_1787.191,evm.model.scaffold_826.101,evm.model.scaffold_749.223,evm.model.scaffold_1096.76,evm.model.scaffold_234.280,evm.model.scaffold_919.3,evm.model.scaffold_845.58,evm.model.scaffold_1749.74,evm.model.scaffold_2677.59,evm.model.scaffold_633.276,evm.model.scaffold_1296.73,evm.model.scaffold_7702.131,evm.model.scaffold_1692.159,evm.model.scaffold_1699.146,evm.model.scaffold_1096.184,evm.model.scaffold_7633.139,evm.model.scaffold_1118.366,evm.model.scaffold_3006.53,evm.model.scaffold_7181.58,evm.model.scaffold_1692.126,evm.model.scaffold_1692.122,evm.model.scaffold_1118.111,evm.model.scaffold_837.111,evm.model.scaffold_1692.177,evm.model.scaffold_1735.36,evm.model.scaffold_4627.12,evm.model.scaffold_777.113,evm.model.scaffold_8286.130,evm.model.scaffold_1400.89,evm.model.scaffold_12228.4,evm.model.scaffold_1457.432,evm.model.scaffold_8608.13,evm.model.scaffold_8249.100,evm.model.scaffold_1699.197,evm.model.scaffold_1438.1181,evm.model.scaffold_10328.67,evm.model.scaffold_690.13,evm.model.scaffold_915.440,evm.model.scaffold_1438.361,evm.model.scaffold_7544.5,evm.model.scaffold_7146.20,evm.model.scaffold_6252.262,evm.model.scaffold_463.162,evm.model.scaffold_1300.170,evm.model.scaffold_1047.321,evm.model.scaffold_1692.174,evm.model.scaffold_777.134,evm.model.scaffold_329.276,evm.model.scaffold_980.44,evm.model.scaffold_826.23,evm.model.scaffold_1400.582,evm.model.scaffold_10201.25,evm.model.scaffold_1047.316,evm.model.scaffold_8286.394"]
["Chr4_Chr5_Chr6","GO:0000188","inactivation of MAPK activity","biological_process",{"v":8.4919e-5,"d":"8.49E-05"},0.0054589,{"v":1,"d":"1.00"},"evm.model.scaffold_1296.62,evm.model.scaffold_7504.47,evm.model.scaffold_159.41"]
["Chr4_Chr5_Chr6","GO:0007049","cell cycle","biological_process",{"v":9.2566e-5,"d":"9.26E-05"},0.0058928,{"v":0.128676470588235,"d":"0.13"},"evm.model.scaffold_777.130,evm.model.scaffold_536.187,evm.model.scaffold_10328.67,evm.model.scaffold_1196.44,evm.model.scaffold_746.55,evm.model.scaffold_1735.61,evm.model.scaffold_749.277,evm.model.scaffold_24.172,evm.model.scaffold_11314.63,evm.model.scaffold_980.44,evm.model.scaffold_826.23,evm.model.scaffold_8286.394,evm.model.scaffold_397.80,evm.model.scaffold_1692.174,evm.model.scaffold_749.127,evm.model.scaffold_2951.54,evm.model.scaffold_1400.460,evm.model.scaffold_1047.339,evm.model.scaffold_915.484,evm.model.scaffold_837.110,evm.model.scaffold_1153.106,evm.model.scaffold_919.44,evm.model.scaffold_1300.87,evm.model.scaffold_1400.493,evm.model.scaffold_1002.72,evm.model.scaffold_10328.1,evm.model.scaffold_1096.76,evm.model.scaffold_1749.319,evm.model.scaffold_1692.122,evm.model.scaffold_1787.31,evm.model.scaffold_1461.8,evm.model.scaffold_1438.238,evm.model.scaffold_1438.671,evm.model.scaffold_2677.8,evm.model.scaffold_3006.53"]
["Chr4_Chr5_Chr6","GO:0010152","pollen maturation","biological_process",{"v":9.3658e-5,"d":"9.37E-05"},0.0059013,{"v":0.714285714285714,"d":"0.71"},"evm.model.scaffold_3006.53,evm.model.scaffold_397.218,evm.model.scaffold_915.395,evm.model.scaffold_10328.1,evm.model.scaffold_1692.174"]
["Chr4_Chr5_Chr6","GO:1900618","regulation of shoot system morphogenesis","biological_process",0.00010127,0.0062644,{"v":0.454545454545455,"d":"0.45"},"evm.model.scaffold_1438.182,evm.model.scaffold_1563.66,evm.model.scaffold_624.9,evm.model.scaffold_823.5,evm.model.scaffold_272.57"]
["Chr4_Chr5_Chr6","GO:0071365","cellular response to auxin stimulus","biological_process",0.00010681,0.0063637,{"v":0.222222222222222,"d":"0.22"},"evm.model.scaffold_7633.139,evm.model.scaffold_82.17,evm.model.scaffold_2677.8,evm.model.scaffold_2488.12,evm.model.scaffold_1118.337,evm.model.scaffold_82.3,evm.model.scaffold_7633.147,evm.model.scaffold_117.339,evm.model.scaffold_177.138,evm.model.scaffold_1692.122,evm.model.scaffold_10328.67,evm.model.scaffold_2488.2"]
["Chr4_Chr5_Chr6","GO:0002238","response to molecule of fungal origin","biological_process",0.00012582,0.0069043,{"v":0.6,"d":"0.60"},"evm.model.scaffold_7633.147,evm.model.scaffold_82.3,evm.model.scaffold_7633.139,evm.model.scaffold_82.17,evm.model.scaffold_2488.2,evm.model.scaffold_2488.12"]
["Chr4_Chr5_Chr6","GO:0000723","telomere maintenance","biological_process",0.00012852,0.0069043,{"v":0.461538461538462,"d":"0.46"},"evm.model.scaffold_1047.339,evm.model.scaffold_1400.460,evm.model.scaffold_1400.493,evm.model.scaffold_8286.394,evm.model.scaffold_11314.63,evm.model.scaffold_1438.671"]
["Chr4_Chr5_Chr6","GO:0065009","regulation of molecular function","biological_process",0.00012945,0.0069043,{"v":0.127777777777778,"d":"0.13"},"evm.model.scaffold_6252.234,evm.model.scaffold_1047.190,evm.model.scaffold_1047.321,evm.model.scaffold_11314.91,evm.model.scaffold_777.181,evm.model.scaffold_7504.47,evm.model.scaffold_1863.53,evm.model.scaffold_1787.31,evm.model.scaffold_121.26,evm.model.scaffold_1692.177,evm.model.scaffold_3006.50,evm.model.scaffold_784.46,evm.model.scaffold_1196.60.1,evm.model.scaffold_777.142,evm.model.scaffold_749.145,evm.model.scaffold_1749.319,evm.model.scaffold_1942.34,evm.model.scaffold_159.41,evm.model.scaffold_1438.655,evm.model.scaffold_1153.106,evm.model.scaffold_1296.62,evm.model.scaffold_1002.63,evm.model.scaffold_1438.484"]
["Chr4_Chr5_Chr6","GO:0033314","mitotic DNA replication checkpoint","biological_process",0.00013162,0.0069043,{"v":1,"d":"1.00"},"evm.model.scaffold_1047.339,evm.model.scaffold_11314.63,evm.model.scaffold_1438.671"]
["Chr4_Chr5_Chr6","GO:0042026","protein refolding","biological_process",0.00013977,0.0071309,{"v":0.296296296296296,"d":"0.30"},"evm.model.scaffold_1692.176,evm.model.scaffold_1047.52,evm.model.scaffold_8286.435,evm.model.scaffold_1537.38,evm.model.scaffold_1942.36,evm.model.scaffold_3380.71,evm.model.scaffold_1400.324,evm.model.scaffold_1400.406"]
["Chr4_Chr5_Chr6","GO:0048469","cell maturation","biological_process",0.00014029,0.0071309,{"v":0.277777777777778,"d":"0.28"},"evm.model.scaffold_121.180,evm.model.scaffold_1537.126,evm.model.scaffold_2488.2,evm.model.scaffold_7633.147,evm.model.scaffold_82.3,evm.model.scaffold_1047.111,evm.model.scaffold_2488.12,evm.model.scaffold_643.26,evm.model.scaffold_82.17,evm.model.scaffold_7633.139"]
["Chr4_Chr5_Chr6","GO:0048508","embryonic meristem development","biological_process",0.00015039,0.0075854,{"v":0.421052631578947,"d":"0.42"},"evm.model.scaffold_2677.59,evm.model.scaffold_1341.38,evm.model.scaffold_1692.74,evm.model.scaffold_1787.181,evm.model.scaffold_1749.118,evm.model.scaffold_915.395,evm.model.scaffold_397.218,evm.model.scaffold_3800.65"]
["Chr4_Chr5_Chr6","GO:0044273","sulfur compound catabolic process","biological_process",0.00016068,0.0079815,{"v":0.6,"d":"0.60"},"evm.model.scaffold_2488.12,evm.model.scaffold_82.17,evm.model.scaffold_2488.2,evm.model.scaffold_7633.139,evm.model.scaffold_82.3,evm.model.scaffold_7633.147"]
["Chr4_Chr5_Chr6","GO:0080162","intracellular auxin transport","biological_process",0.00016394,0.0080825,{"v":1,"d":"1.00"},"evm.model.scaffold_1118.337,evm.model.scaffold_177.138,evm.model.scaffold_117.339"]
["Chr4_Chr5_Chr6","GO:0060918","auxin transport","biological_process",0.00017185,0.0083996,{"v":0.220588235294118,"d":"0.22"},"evm.model.scaffold_2488.2,evm.model.scaffold_82.3,evm.model.scaffold_7633.147,evm.model.scaffold_177.138,evm.model.scaffold_117.339,evm.model.scaffold_1457.432,evm.model.scaffold_82.17,evm.model.scaffold_1942.34,evm.model.scaffold_642.61,evm.model.scaffold_1457.152,evm.model.scaffold_2488.12,evm.model.scaffold_1118.337,evm.model.scaffold_1692.177,evm.model.scaffold_3006.50,evm.model.scaffold_7633.139"]
["Chr4_Chr5_Chr6","GO:0055078","sodium ion homeostasis","biological_process",0.00017381,0.0083996,{"v":0.6,"d":"0.60"},"evm.model.scaffold_2488.12,evm.model.scaffold_2488.2,evm.model.scaffold_82.17,evm.model.scaffold_7633.139,evm.model.scaffold_7633.147,evm.model.scaffold_82.3"]
["Chr4_Chr5_Chr6","GO:0009804","coumarin metabolic process","biological_process",0.00018246,0.0084849,{"v":0.545454545454545,"d":"0.55"},"evm.model.scaffold_7633.139,evm.model.scaffold_82.3,evm.model.scaffold_7633.147,evm.model.scaffold_2488.12,evm.model.scaffold_2488.2,evm.model.scaffold_82.17"]
["Chr4_Chr5_Chr6","GO:0042149","cellular response to glucose starvation","biological_process",0.00018375,0.0084849,{"v":1,"d":"1.00"},"evm.model.scaffold_1047.321,evm.model.scaffold_11314.91,evm.model.scaffold_1438.655"]
["Chr4_Chr5_Chr6","GO:0051952","regulation of amine transport","biological_process",0.00018709,0.0085193,{"v":0.444444444444444,"d":"0.44"},"evm.model.scaffold_915.180,evm.model.scaffold_1786.75,evm.model.scaffold_1699.122,evm.model.scaffold_1699.117"]
["Chr4_Chr5_Chr6","GO:0000455","enzyme-directed rRNA pseudouridine synthesis","biological_process",0.00019153,0.0086612,{"v":1,"d":"1.00"},"evm.model.scaffold_11883.148,evm.model.scaffold_690.13,evm.model.scaffold_11631.153"]
["Chr4_Chr5_Chr6","GO:0043549","regulation of kinase activity","biological_process",0.00019808,0.0087282,{"v":0.290322580645161,"d":"0.29"},"evm.model.scaffold_1296.62,evm.model.scaffold_1153.106,evm.model.scaffold_1787.31,evm.model.scaffold_1002.63,evm.model.scaffold_1196.60.1,evm.model.scaffold_784.46,evm.model.scaffold_159.41,evm.model.scaffold_1749.319,evm.model.scaffold_7504.47"]
["Chr4_Chr5_Chr6","GO:1901891","regulation of cell septum assembly","biological_process",0.00020499,0.0087282,{"v":1,"d":"1.00"},"evm.model.scaffold_397.80,evm.model.scaffold_1300.87,evm.model.scaffold_915.484"]
["Chr4_Chr5_Chr6","GO:0001933","negative regulation of protein phosphorylation","biological_process",0.00021402,0.0089351,0.75,"evm.model.scaffold_1296.62,evm.model.scaffold_159.41,evm.model.scaffold_7504.47"]
["Chr4_Chr5_Chr6","GO:0065003","macromolecular complex assembly","biological_process",0.00021513,0.0089351,{"v":0.0825147347740668,"d":"0.08"},"evm.model.scaffold_826.96,evm.model.scaffold_1749.558,evm.model.scaffold_1047.138,evm.model.scaffold_1002.72,evm.model.scaffold_919.3,evm.model.scaffold_121.129,evm.model.scaffold_749.219,evm.model.scaffold_1300.87,evm.model.scaffold_397.146,evm.model.scaffold_560.146,evm.model.scaffold_1296.21,evm.model.scaffold_1438.238,evm.model.scaffold_11631.200,evm.model.scaffold_1438.329,evm.model.scaffold_810.19,evm.model.scaffold_3800.65,evm.model.scaffold_1048.13,evm.model.scaffold_7702.11.1,evm.model.scaffold_980.88,evm.model.scaffold_329.210,evm.model.scaffold_1400.317,evm.model.scaffold_749.277,evm.model.scaffold_7702.176,evm.model.scaffold_1699.197,evm.model.scaffold_216.105,evm.model.scaffold_10328.13,evm.model.scaffold_536.187,evm.model.scaffold_1537.155,evm.model.scaffold_1196.44,evm.model.scaffold_397.80,evm.model.scaffold_1141.46,evm.model.scaffold_7181.59,evm.model.scaffold_1563.221,evm.model.scaffold_915.484,evm.model.scaffold_1563.187,evm.model.scaffold_8178.92,evm.model.scaffold_1300.144,evm.model.scaffold_1461.70,evm.model.scaffold_980.44,evm.model.scaffold_24.172,evm.model.scaffold_8249.82,evm.model.scaffold_837.31"]
["Chr4_Chr5_Chr6","GO:0044260","cellular macromolecule metabolic process","biological_process",0.00021727,0.0089351,{"v":0.062987012987013,"d":"0.06"},"evm.model.scaffold_1594.155,evm.model.scaffold_1196.44,evm.model.scaffold_2951.49,evm.model.scaffold_216.105,evm.model.scaffold_1047.156,evm.model.scaffold_777.130,evm.model.scaffold_1692.200,evm.model.scaffold_823.4,evm.model.scaffold_784.46,evm.model.scaffold_1988.14,evm.model.scaffold_1096.20,evm.model.scaffold_1461.106,evm.model.scaffold_909.32,evm.model.scaffold_1735.57,evm.model.scaffold_777.181,evm.model.scaffold_915.405,evm.model.scaffold_7702.136,evm.model.scaffold_9524.13,evm.model.scaffold_1749.140,evm.model.scaffold_1002.63,evm.model.scaffold_777.75,evm.model.scaffold_823.9,evm.model.scaffold_1787.31,evm.model.scaffold_2677.6,evm.model.scaffold_8178.75,evm.model.scaffold_915.172,evm.model.scaffold_1478.368,evm.model.scaffold_3380.71,evm.model.scaffold_572.15,evm.model.scaffold_121.178,evm.model.scaffold_1296.56,evm.model.scaffold_1692.331,evm.model.scaffold_746.41,evm.model.scaffold_7146.32,evm.model.scaffold_1196.60.1,evm.model.scaffold_1692.176,evm.model.scaffold_329.180,evm.model.scaffold_11549.20,evm.model.scaffold_749.65,evm.model.scaffold_1300.148,evm.model.scaffold_1153.1,evm.model.scaffold_1438.236,evm.model.scaffold_397.330,evm.model.scaffold_837.110,evm.model.scaffold_915.436,evm.model.scaffold_329.207,evm.model.scaffold_6533.104,evm.model.scaffold_2287.57,evm.model.scaffold_1047.275,evm.model.scaffold_1749.118,evm.model.scaffold_1563.189,evm.model.scaffold_1296.62,evm.model.scaffold_121.129,evm.model.scaffold_1863.52,evm.model.scaffold_1438.1204,evm.model.scaffold_915.183,evm.model.scaffold_1047.113,evm.model.scaffold_1735.23,evm.model.scaffold_1400.406,evm.model.scaffold_2287.73,evm.model.scaffold_1457.475,evm.model.scaffold_397.218,evm.model.scaffold_1699.196.2,evm.model.scaffold_560.103,evm.model.scaffold_3285.197,evm.model.scaffold_3800.92,evm.model.scaffold_749.425,evm.model.scaffold_9352.49,evm.model.scaffold_1438.334,evm.model.scaffold_1457.473,evm.model.scaffold_2677.8,evm.model.scaffold_915.212,evm.model.scaffold_1096.49,evm.model.scaffold_234.255,evm.model.scaffold_1699.280,evm.model.scaffold_7544.5,evm.model.scaffold_1438.361,evm.model.scaffold_8249.100,evm.model.scaffold_1699.197,evm.model.scaffold_10328.67,evm.model.scaffold_1438.1181,evm.model.scaffold_690.13,evm.model.scaffold_8608.13,evm.model.scaffold_1457.432,evm.model.scaffold_12228.4,evm.model.scaffold_8286.130,evm.model.scaffold_777.113,evm.model.scaffold_4627.12,evm.model.scaffold_8286.394,evm.model.scaffold_10201.25,evm.model.scaffold_1400.582,evm.model.scaffold_826.23,evm.model.scaffold_980.44,evm.model.scaffold_777.134,evm.model.scaffold_329.276,evm.model.scaffold_1692.174,evm.model.scaffold_463.162,evm.model.scaffold_1047.321,evm.model.scaffold_6252.262,evm.model.scaffold_1692.159,evm.model.scaffold_7702.131,evm.model.scaffold_633.276,evm.model.scaffold_845.58,evm.model.scaffold_1749.74,evm.model.scaffold_919.3,evm.model.scaffold_1096.76,evm.model.scaffold_749.223,evm.model.scaffold_1692.122,evm.model.scaffold_1692.126,evm.model.scaffold_7181.58,evm.model.scaffold_3006.53,evm.model.scaffold_1699.146,evm.model.scaffold_536.268,evm.model.scaffold_1863.91,evm.model.scaffold_1692.157,evm.model.scaffold_1942.14,evm.model.scaffold_1796.20,evm.model.scaffold_826.101,evm.model.scaffold_1787.191,evm.model.scaffold_1118.126,evm.model.scaffold_11314.63,evm.model.scaffold_1563.187,evm.model.scaffold_1699.101,evm.model.scaffold_1400.460,evm.model.scaffold_1141.46,evm.model.scaffold_1400.493,evm.model.scaffold_1749.319,evm.model.scaffold_749.120,evm.model.scaffold_11883.225,evm.model.scaffold_10328.1,evm.model.scaffold_1048.17,evm.model.scaffold_8249.10,evm.model.scaffold_915.395,evm.model.scaffold_1787.140,evm.model.scaffold_159.72,evm.model.scaffold_1863.83,evm.model.scaffold_1461.165,evm.model.scaffold_397.194,evm.model.scaffold_11314.91,evm.model.scaffold_4627.106,evm.model.scaffold_1400.749,evm.model.scaffold_234.346,evm.model.scaffold_8178.84,evm.model.scaffold_1692.187,evm.model.scaffold_837.153,evm.model.scaffold_1457.389,evm.model.scaffold_837.142,evm.model.scaffold_1000.225,evm.model.scaffold_397.311,evm.model.scaffold_121.26,evm.model.scaffold_2951.25,evm.model.scaffold_1096.68,evm.model.scaffold_1787.118,evm.model.scaffold_1118.120,evm.model.scaffold_1047.339,evm.model.scaffold_1300.144,evm.model.scaffold_121.103,evm.model.scaffold_746.60,evm.model.scaffold_1594.151,evm.model.scaffold_909.145,evm.model.scaffold_1563.117,evm.model.scaffold_1438.584,evm.model.scaffold_1000.20,evm.model.scaffold_11883.148,evm.model.scaffold_633.233,evm.model.scaffold_1942.36,evm.model.scaffold_749.490,evm.model.scaffold_380.218,evm.model.scaffold_1786.115,evm.model.scaffold_1002.72,evm.model.scaffold_11314.62,evm.model.scaffold_749.31,evm.model.scaffold_117.268,evm.model.scaffold_1141.38,evm.model.scaffold_10401.7,evm.model.scaffold_397.146,evm.model.scaffold_1153.5,evm.model.scaffold_1749.521,evm.model.scaffold_1537.155,evm.model.scaffold_749.209,evm.model.scaffold_1787.120,evm.model.scaffold_8286.298,evm.model.scaffold_749.54,evm.model.scaffold_1438.655,evm.model.scaffold_915.262,evm.model.scaffold_2287.32,evm.model.scaffold_826.7,evm.model.scaffold_560.276,evm.model.scaffold_1863.76,evm.model.scaffold_10328.63,evm.model.scaffold_909.277,evm.model.scaffold_8286.435,evm.model.scaffold_1537.174,evm.model.scaffold_777.182,evm.model.scaffold_5538.120,evm.model.scaffold_216.160,evm.model.scaffold_8249.82,evm.model.scaffold_1699.183,evm.model.scaffold_1457.394,evm.model.scaffold_10328.2,evm.model.scaffold_1863.54,evm.model.scaffold_216.425,evm.model.scaffold_560.415,evm.model.scaffold_1478.342,evm.model.scaffold_159.41,evm.model.scaffold_1735.78,evm.model.scaffold_1457.123,evm.model.scaffold_82.40.1,evm.model.scaffold_826.96,evm.model.scaffold_1692.173,evm.model.scaffold_9608.1,evm.model.scaffold_1461.8,evm.model.scaffold_8575.11,evm.model.scaffold_2287.70,evm.model.scaffold_915.180,evm.model.scaffold_777.45,evm.model.scaffold_10036.60,evm.model.scaffold_3006.25,evm.model.scaffold_1749.161,evm.model.scaffold_234.300,evm.model.scaffold_560.146,evm.model.scaffold_117.32,evm.model.scaffold_216.62,evm.model.scaffold_1438.484,evm.model.scaffold_1096.50,evm.model.scaffold_1047.52,evm.model.scaffold_9524.14,evm.model.scaffold_3006.54,evm.model.scaffold_10401.3,evm.model.scaffold_643.26,evm.model.scaffold_82.3,evm.model.scaffold_380.157,evm.model.scaffold_746.46,evm.model.scaffold_7504.47,evm.model.scaffold_1563.116,evm.model.scaffold_1749.163,evm.model.scaffold_1457.125,evm.model.scaffold_749.127,evm.model.scaffold_117.393,evm.model.scaffold_1047.190,evm.model.scaffold_915.299,evm.model.scaffold_642.23,evm.model.scaffold_1786.64,evm.model.scaffold_1537.38,evm.model.scaffold_383.7,evm.model.scaffold_272.57,evm.model.scaffold_11631.153,evm.model.scaffold_1400.324,evm.model.scaffold_1047.138,evm.model.scaffold_915.14,evm.model.scaffold_1438.329,evm.model.scaffold_1537.128,evm.model.scaffold_1786.117,evm.model.scaffold_11314.128,evm.model.scaffold_3800.65,evm.model.scaffold_6252.212,evm.model.scaffold_749.210,evm.model.scaffold_11549.51,evm.model.scaffold_10328.13,evm.model.scaffold_1118.136,evm.model.scaffold_216.264,evm.model.scaffold_3800.59,evm.model.scaffold_96.14,evm.model.scaffold_746.55,evm.model.scaffold_845.128,evm.model.scaffold_329.210,evm.model.scaffold_7181.55,evm.model.scaffold_8608.49,evm.model.scaffold_1699.122,evm.model.scaffold_96.124,evm.model.scaffold_2951.54,evm.model.scaffold_1563.221,evm.model.scaffold_1787.181,evm.model.scaffold_1153.106,evm.model.scaffold_560.193,evm.model.scaffold_1699.199,evm.model.scaffold_6533.67,evm.model.scaffold_749.110,evm.model.scaffold_1438.845,evm.model.scaffold_1735.45,evm.model.scaffold_845.110,evm.model.scaffold_8178.73,evm.model.scaffold_784.59,evm.model.scaffold_777.116,evm.model.scaffold_980.57,evm.model.scaffold_624.9,evm.model.scaffold_9352.26,evm.model.scaffold_749.132,evm.model.scaffold_1478.340,evm.model.scaffold_1438.671,evm.model.scaffold_1438.238"]
["Chr4_Chr5_Chr6","GO:0046483","heterocycle metabolic process","biological_process",0.00022173,0.0089351,{"v":0.0642857142857143,"d":"0.06"},"evm.model.scaffold_3006.54,evm.model.scaffold_12228.4,evm.model.scaffold_10401.3,evm.model.scaffold_8286.130,evm.model.scaffold_643.26,evm.model.scaffold_777.113,evm.model.scaffold_1735.36,evm.model.scaffold_1096.50,evm.model.scaffold_1438.484,evm.model.scaffold_1438.361,evm.model.scaffold_915.440,evm.model.scaffold_1699.197,evm.model.scaffold_10328.67,evm.model.scaffold_1438.1181,evm.model.scaffold_690.13,evm.model.scaffold_1457.432,evm.model.scaffold_746.46,evm.model.scaffold_777.134,evm.model.scaffold_329.276,evm.model.scaffold_2488.12,evm.model.scaffold_1942.28,evm.model.scaffold_1457.125,evm.model.scaffold_117.393,evm.model.scaffold_463.162,evm.model.scaffold_1047.190,evm.model.scaffold_6252.234,evm.model.scaffold_260.68,evm.model.scaffold_1749.613.1,evm.model.scaffold_8286.394,evm.model.scaffold_826.23,evm.model.scaffold_380.157,evm.model.scaffold_82.3,evm.model.scaffold_980.44,evm.model.scaffold_2677.59,evm.model.scaffold_383.7,evm.model.scaffold_919.3,evm.model.scaffold_1096.76,evm.model.scaffold_1047.138,evm.model.scaffold_11631.153,evm.model.scaffold_1400.324,evm.model.scaffold_2879.64,evm.model.scaffold_915.162,evm.model.scaffold_1692.159,evm.model.scaffold_7702.131,evm.model.scaffold_642.23,evm.model.scaffold_1786.64,evm.model.scaffold_1296.73,evm.model.scaffold_633.276,evm.model.scaffold_1692.126,evm.model.scaffold_7633.139,evm.model.scaffold_1699.146,evm.model.scaffold_1118.111,evm.model.scaffold_1438.329,evm.model.scaffold_1692.122,evm.model.scaffold_1786.117,evm.model.scaffold_3800.65,evm.model.scaffold_1942.14,evm.model.scaffold_1796.20,evm.model.scaffold_329.210,evm.model.scaffold_10401.4,evm.model.scaffold_2287.82,evm.model.scaffold_536.268,evm.model.scaffold_11549.51,evm.model.scaffold_10328.13,evm.model.scaffold_7633.147,evm.model.scaffold_1863.91,evm.model.scaffold_1692.157,evm.model.scaffold_1563.187,evm.model.scaffold_1699.101,evm.model.scaffold_1400.460,evm.model.scaffold_2951.54,evm.model.scaffold_1141.46,evm.model.scaffold_1787.181,evm.model.scaffold_1563.221,evm.model.scaffold_8608.49,evm.model.scaffold_11314.63,evm.model.scaffold_1699.91,evm.model.scaffold_1341.38,evm.model.scaffold_749.120,evm.model.scaffold_11883.225,evm.model.scaffold_749.110,evm.model.scaffold_8249.10,evm.model.scaffold_1438.845,evm.model.scaffold_1400.493,evm.model.scaffold_560.193,evm.model.scaffold_749.219,evm.model.scaffold_749.132,evm.model.scaffold_1478.340,evm.model.scaffold_1438.671,evm.model.scaffold_1438.238,evm.model.scaffold_8178.73,evm.model.scaffold_7181.53,evm.model.scaffold_845.110,evm.model.scaffold_2488.2,evm.model.scaffold_3006.44,evm.model.scaffold_777.116,evm.model.scaffold_980.57,evm.model.scaffold_1863.83,evm.model.scaffold_397.194,evm.model.scaffold_9352.26,evm.model.scaffold_749.277,evm.model.scaffold_837.153,evm.model.scaffold_837.142,evm.model.scaffold_1457.389,evm.model.scaffold_1692.200,evm.model.scaffold_823.4,evm.model.scaffold_7702.11.1,evm.model.scaffold_1096.32,evm.model.scaffold_1988.14,evm.model.scaffold_1594.155,evm.model.scaffold_1400.749,evm.model.scaffold_234.346,evm.model.scaffold_749.245,evm.model.scaffold_1196.44,evm.model.scaffold_1786.55,evm.model.scaffold_2951.49,evm.model.scaffold_1692.187,evm.model.scaffold_216.105,evm.model.scaffold_1096.68,evm.model.scaffold_909.32,evm.model.scaffold_1047.339,evm.model.scaffold_1735.57,evm.model.scaffold_1300.144,evm.model.scaffold_1594.151,evm.model.scaffold_746.60,evm.model.scaffold_777.181,evm.model.scaffold_7181.59,evm.model.scaffold_397.142,evm.model.scaffold_915.405,evm.model.scaffold_1096.20,evm.model.scaffold_121.26,evm.model.scaffold_1461.106,evm.model.scaffold_2951.25,evm.model.scaffold_11883.148,evm.model.scaffold_749.490,evm.model.scaffold_380.218,evm.model.scaffold_777.75,evm.model.scaffold_1786.115,evm.model.scaffold_1002.72,evm.model.scaffold_7702.136,evm.model.scaffold_1563.117,evm.model.scaffold_7504.42,evm.model.scaffold_1000.20,evm.model.scaffold_10401.7,evm.model.scaffold_397.146,evm.model.scaffold_915.172,evm.model.scaffold_572.15,evm.model.scaffold_1478.368,evm.model.scaffold_11314.62,evm.model.scaffold_823.9,evm.model.scaffold_749.31,evm.model.scaffold_1749.384,evm.model.scaffold_117.268,evm.model.scaffold_2677.6,evm.model.scaffold_1692.331,evm.model.scaffold_10328.63,evm.model.scaffold_746.41,evm.model.scaffold_909.277,evm.model.scaffold_82.17,evm.model.scaffold_1749.521,evm.model.scaffold_1537.155,evm.model.scaffold_8286.298,evm.model.scaffold_749.54,evm.model.scaffold_826.7,evm.model.scaffold_915.262,evm.model.scaffold_2287.32,evm.model.scaffold_837.110,evm.model.scaffold_915.436,evm.model.scaffold_1692.74,evm.model.scaffold_1457.394,evm.model.scaffold_6533.104,evm.model.scaffold_10328.2,evm.model.scaffold_1048.21,evm.model.scaffold_329.180,evm.model.scaffold_11549.20,evm.model.scaffold_749.65,evm.model.scaffold_1300.148,evm.model.scaffold_216.160,evm.model.scaffold_1699.183,evm.model.scaffold_8249.82,evm.model.scaffold_397.330,evm.model.scaffold_1735.78,evm.model.scaffold_1478.342,evm.model.scaffold_1457.123,evm.model.scaffold_82.40.1,evm.model.scaffold_1863.52,evm.model.scaffold_826.96,evm.model.scaffold_9608.1,evm.model.scaffold_1692.173,evm.model.scaffold_1438.1204,evm.model.scaffold_1735.23,evm.model.scaffold_8178.70,evm.model.scaffold_1749.118,evm.model.scaffold_1863.54,evm.model.scaffold_121.129,evm.model.scaffold_216.425,evm.model.scaffold_560.415,evm.model.scaffold_7181.37,evm.model.scaffold_3006.25,evm.model.scaffold_1048.40,evm.model.scaffold_2677.8,evm.model.scaffold_1863.53,evm.model.scaffold_234.300,evm.model.scaffold_915.212,evm.model.scaffold_560.146,evm.model.scaffold_234.255,evm.model.scaffold_2287.73,evm.model.scaffold_8575.11,evm.model.scaffold_1461.8,evm.model.scaffold_1457.475,evm.model.scaffold_560.103,evm.model.scaffold_749.425,evm.model.scaffold_1048.13,evm.model.scaffold_777.45,evm.model.scaffold_9352.49,evm.model.scaffold_1438.334"]
["Chr4_Chr5_Chr6","GO:0043933","macromolecular complex subunit organization","biological_process",0.00022637,0.0089351,{"v":0.0806451612903226,"d":"0.08"},"evm.model.scaffold_1300.144,evm.model.scaffold_8178.92,evm.model.scaffold_1563.187,evm.model.scaffold_915.484,evm.model.scaffold_1563.221,evm.model.scaffold_7181.59,evm.model.scaffold_397.80,evm.model.scaffold_1141.46,evm.model.scaffold_837.31,evm.model.scaffold_777.182,evm.model.scaffold_980.44,evm.model.scaffold_8249.82,evm.model.scaffold_24.172,evm.model.scaffold_1461.70,evm.model.scaffold_7702.176,evm.model.scaffold_749.277,evm.model.scaffold_1400.317,evm.model.scaffold_329.210,evm.model.scaffold_397.315.1,evm.model.scaffold_980.88,evm.model.scaffold_7702.11.1,evm.model.scaffold_749.210,evm.model.scaffold_1196.44,evm.model.scaffold_1537.155,evm.model.scaffold_1438.361,evm.model.scaffold_10328.13,evm.model.scaffold_216.105,evm.model.scaffold_536.187,evm.model.scaffold_9524.14,evm.model.scaffold_1699.197,evm.model.scaffold_10401.7,evm.model.scaffold_915.280,evm.model.scaffold_11631.200,evm.model.scaffold_1438.238,evm.model.scaffold_1296.21,evm.model.scaffold_560.146,evm.model.scaffold_397.146,evm.model.scaffold_1048.13,evm.model.scaffold_2287.70,evm.model.scaffold_3800.65,evm.model.scaffold_810.19,evm.model.scaffold_1438.329,evm.model.scaffold_919.3,evm.model.scaffold_1002.72,evm.model.scaffold_1749.558,evm.model.scaffold_1047.138,evm.model.scaffold_826.96,evm.model.scaffold_1300.87,evm.model.scaffold_749.219,evm.model.scaffold_121.129"]
["Chr4_Chr5_Chr6","GO:0009866","induced systemic resistance, ethylene mediated signaling pathway","biological_process",0.000231,0.0089351,{"v":1,"d":"1.00"},"evm.model.scaffold_96.124,evm.model.scaffold_845.58,evm.model.scaffold_4627.106"]
["Chr4_Chr5_Chr6","GO:0006208","pyrimidine nucleobase catabolic process","biological_process",0.00023983,0.0089351,{"v":1,"d":"1.00"},"evm.model.scaffold_1096.32,evm.model.scaffold_1863.83,evm.model.scaffold_1735.36"]
["Chr4_Chr5_Chr6","GO:0048559","establishment of floral organ orientation","biological_process",0.00025213,0.0089364,{"v":1,"d":"1.00"},"evm.model.scaffold_1000.20,evm.model.scaffold_8286.130,evm.model.scaffold_1400.749"]
["Chr4_Chr5_Chr6","GO:0051338","regulation of transferase activity","biological_process",0.00025954,0.0089722,{"v":0.28125,"d":"0.28"},"evm.model.scaffold_159.41,evm.model.scaffold_1749.319,evm.model.scaffold_7504.47,evm.model.scaffold_1196.60.1,evm.model.scaffold_784.46,evm.model.scaffold_1002.63,evm.model.scaffold_1296.62,evm.model.scaffold_1153.106,evm.model.scaffold_1787.31"]
["Chr4_Chr5_Chr6","GO:0014070","response to organic cyclic compound","biological_process",0.00026106,0.0089722,0.14,"evm.model.scaffold_1563.66,evm.model.scaffold_2488.12,evm.model.scaffold_3006.53,evm.model.scaffold_749.127,evm.model.scaffold_7633.139,evm.model.scaffold_1047.217,evm.model.scaffold_1692.174,evm.model.scaffold_397.311,evm.model.scaffold_2488.2,evm.model.scaffold_1594.33,evm.model.scaffold_749.65,evm.model.scaffold_823.5,evm.model.scaffold_11314.208,evm.model.scaffold_82.3,evm.model.scaffold_1438.182,evm.model.scaffold_560.276,evm.model.scaffold_746.55,evm.model.scaffold_82.17,evm.model.scaffold_10328.1,evm.model.scaffold_777.75,evm.model.scaffold_11631.153,evm.model.scaffold_909.145,evm.model.scaffold_1438.520,evm.model.scaffold_915.299,evm.model.scaffold_11549.51,evm.model.scaffold_216.264,evm.model.scaffold_7633.147,evm.model.scaffold_777.130"]
["Chr4_Chr5_Chr6","GO:0048569","post-embryonic organ development","biological_process",0.00026669,0.0089722,{"v":0.139784946236559,"d":"0.14"},"evm.model.scaffold_7633.139,evm.model.scaffold_1692.174,evm.model.scaffold_11314.91,evm.model.scaffold_1047.321,evm.model.scaffold_1438.238,evm.model.scaffold_2488.12,evm.model.scaffold_329.276,evm.model.scaffold_1563.66,evm.model.scaffold_3006.53,evm.model.scaffold_784.21,evm.model.scaffold_823.5,evm.model.scaffold_82.3,evm.model.scaffold_1002.20,evm.model.scaffold_915.395,evm.model.scaffold_1196.99,evm.model.scaffold_2488.2,evm.model.scaffold_397.218,evm.model.scaffold_10328.1,evm.model.scaffold_1438.182,evm.model.scaffold_82.17,evm.model.scaffold_8286.130,evm.model.scaffold_1438.655,evm.model.scaffold_7633.147,evm.model.scaffold_1000.20,evm.model.scaffold_1400.749,evm.model.scaffold_1563.117"]
["Chr4_Chr5_Chr6","GO:1901679","nucleotide transmembrane transport","biological_process",0.00026699,0.0089722,{"v":1,"d":"1.00"},"evm.model.scaffold_6533.67,evm.model.scaffold_6252.262,evm.model.scaffold_1438.1176"]
["Chr4_Chr5_Chr6","GO:0051017","actin filament bundle assembly","biological_process",0.00027661,0.0089722,{"v":1,"d":"1.00"},"evm.model.scaffold_749.219,evm.model.scaffold_7181.59,evm.model.scaffold_1048.13"]
["Chr4_Chr5_Chr6","GO:0006335","DNA replication-dependent nucleosome assembly","biological_process",0.00027711,0.0089722,{"v":1,"d":"1.00"},"evm.model.scaffold_1563.187,evm.model.scaffold_1438.329,evm.model.scaffold_329.210"]
["Chr4_Chr5_Chr6","GO:0043487","regulation of RNA stability","biological_process",0.00027777,0.0089722,{"v":1,"d":"1.00"},"evm.model.scaffold_7146.32,evm.model.scaffold_1692.331,evm.model.scaffold_915.14"]
["Chr4_Chr5_Chr6","GO:0010252","auxin homeostasis","biological_process",0.00028022,0.0090068,{"v":0.375,"d":"0.38"},"evm.model.scaffold_1118.337,evm.model.scaffold_2677.8,evm.model.scaffold_10328.67,evm.model.scaffold_1692.122,evm.model.scaffold_117.339,evm.model.scaffold_177.138"]
["Chr4_Chr5_Chr6","GO:0015698","inorganic anion transport","biological_process",0.0003099,0.0097694,{"v":0.126506024096386,"d":"0.13"},"evm.model.scaffold_1786.117,evm.model.scaffold_11314.208,evm.model.scaffold_823.5,evm.model.scaffold_1096.20,evm.model.scaffold_1537.172,evm.model.scaffold_1438.1176,evm.model.scaffold_6252.262,evm.model.scaffold_1438.870,evm.model.scaffold_1341.31,evm.model.scaffold_2677.48,evm.model.scaffold_1692.81,evm.model.scaffold_1563.66,evm.model.scaffold_121.107,evm.model.scaffold_1537.173,evm.model.scaffold_1563.189,evm.model.scaffold_1438.520,evm.model.scaffold_777.142,evm.model.scaffold_6533.67,evm.model.scaffold_1047.152,evm.model.scaffold_749.145,evm.model.scaffold_1438.182"]
["Chr4_Chr5_Chr6","GO:0010054","trichoblast differentiation","biological_process",0.00032743,0.009864,0.25,"evm.model.scaffold_1047.111,evm.model.scaffold_2488.12,evm.model.scaffold_643.26,evm.model.scaffold_82.17,evm.model.scaffold_7633.139,evm.model.scaffold_121.180,evm.model.scaffold_1537.126,evm.model.scaffold_2488.2,evm.model.scaffold_7633.147,evm.model.scaffold_82.3"]
["Chr4_Chr5_Chr6","GO:0000495","box H/ACA snoRNA 3'-end processing","biological_process",0.00033634,0.009864,{"v":1,"d":"1.00"},"evm.model.scaffold_1300.148,evm.model.scaffold_397.146,evm.model.scaffold_915.436"]
["Chr4_Chr5_Chr6","GO:0034622","cellular macromolecular complex assembly","biological_process",0.00033817,0.009864,{"v":0.0865139949109415,"d":"0.09"},"evm.model.scaffold_1300.87,evm.model.scaffold_121.129,evm.model.scaffold_749.219,evm.model.scaffold_919.3,evm.model.scaffold_826.96,evm.model.scaffold_1047.138,evm.model.scaffold_1749.558,evm.model.scaffold_1002.72,evm.model.scaffold_1048.13,evm.model.scaffold_1438.329,evm.model.scaffold_3800.65,evm.model.scaffold_11631.200,evm.model.scaffold_397.146,evm.model.scaffold_560.146,evm.model.scaffold_1296.21,evm.model.scaffold_1537.155,evm.model.scaffold_1196.44,evm.model.scaffold_1699.197,evm.model.scaffold_216.105,evm.model.scaffold_10328.13,evm.model.scaffold_1400.317,evm.model.scaffold_7702.176,evm.model.scaffold_7702.11.1,evm.model.scaffold_980.88,evm.model.scaffold_329.210,evm.model.scaffold_8249.82,evm.model.scaffold_915.484,evm.model.scaffold_1563.187,evm.model.scaffold_8178.92,evm.model.scaffold_1300.144,evm.model.scaffold_1141.46,evm.model.scaffold_397.80,evm.model.scaffold_7181.59,evm.model.scaffold_1563.221"]
["Chr4_Chr5_Chr6","GO:0002474","antigen processing and presentation of peptide antigen via MHC class I","biological_process",0.00034139,0.009864,{"v":0.416666666666667,"d":"0.42"},"evm.model.scaffold_1048.21,evm.model.scaffold_2287.82,evm.model.scaffold_1118.111,evm.model.scaffold_909.32,evm.model.scaffold_560.193"]
["Chr4_Chr5_Chr6","GO:0043001","Golgi to plasma membrane protein transport","biological_process",0.00034478,0.009864,{"v":1,"d":"1.00"},"evm.model.scaffold_749.210,evm.model.scaffold_777.182,evm.model.scaffold_9524.14"]
["Chr4_Chr5_Chr6","GO:0002940","tRNA N2-guanine methylation","biological_process",0.00034663,0.009864,{"v":1,"d":"1.00"},"evm.model.scaffold_1699.183,evm.model.scaffold_397.330,evm.model.scaffold_915.262"]
["Chr4_Chr5_Chr6","GO:0032879","regulation of localization","biological_process",0.00035503,0.009864,{"v":0.133858267716535,"d":"0.13"},"evm.model.scaffold_82.3,evm.model.scaffold_1699.122,evm.model.scaffold_957.31,evm.model.scaffold_1786.75,evm.model.scaffold_2488.2,evm.model.scaffold_4838.20,evm.model.scaffold_915.180,evm.model.scaffold_1699.117,evm.model.scaffold_7633.139,evm.model.scaffold_2488.12,evm.model.scaffold_7633.147,evm.model.scaffold_6033.13,evm.model.scaffold_1692.177,evm.model.scaffold_3006.50,evm.model.scaffold_82.17,evm.model.scaffold_1942.34,evm.model.scaffold_1735.142"]
["Chr4_Chr5_Chr6","GO:0051570","regulation of histone H3-K9 methylation","biological_process",0.0003596,0.009949,{"v":0.8,"d":"0.80"},"evm.model.scaffold_1863.52,evm.model.scaffold_1096.76,evm.model.scaffold_1438.361,evm.model.scaffold_329.180"]
["Chr7_Chr8_Chr9","GO:0048193","Golgi vesicle transport","biological_process",{"v":6.0206e-9,"d":"6.02E-09"},{"v":3.3914e-5,"d":"3.39E-05"},{"v":0.51219512195122,"d":"0.51"},"evm.model.scaffold_10246.29,evm.model.scaffold_1226.21,evm.model.scaffold_9203.133,evm.model.scaffold_639.97,evm.model.scaffold_938.235,evm.model.scaffold_7954.127,evm.model.scaffold_1284.283,evm.model.scaffold_644.280,evm.model.scaffold_841.206,evm.model.scaffold_415.136,evm.model.scaffold_362.305,evm.model.scaffold_118.572,evm.model.scaffold_1566.60,evm.model.scaffold_187.77,evm.model.scaffold_1150.49,evm.model.scaffold_225.270,evm.model.scaffold_10817.189,evm.model.scaffold_629.240,evm.model.scaffold_1748.2,evm.model.scaffold_1397.41,evm.model.scaffold_1405.213"]
["Chr7_Chr8_Chr9","GO:0009791","post-embryonic development","biological_process",{"v":1.9962e-7,"d":"2.00E-07"},0.00038037,{"v":0.244623655913978,"d":"0.24"},"evm.model.scaffold_6679.54.1,evm.model.scaffold_644.508,evm.model.scaffold_1569.196,evm.model.scaffold_6133.57,evm.model.scaffold_9874.229,evm.model.scaffold_1012.57,evm.model.scaffold_10885.38,evm.model.scaffold_98.256,evm.model.scaffold_924.286,evm.model.scaffold_1501.590,evm.model.scaffold_1659.465,evm.model.scaffold_965.253,evm.model.scaffold_551.67,evm.model.scaffold_1284.266_evm.model.scaffold_1284.267,evm.model.scaffold_493.249,evm.model.scaffold_86.112,evm.model.scaffold_6133.160,evm.model.scaffold_1303.450,evm.model.scaffold_629.240,evm.model.scaffold_4558.9,evm.model.scaffold_284.81,evm.model.scaffold_86.173,evm.model.scaffold_11180.45,evm.model.scaffold_1799.28,evm.model.scaffold_9874.219,evm.model.scaffold_639.2,evm.model.scaffold_1615.80,evm.model.scaffold_1521.96,evm.model.scaffold_225.554,evm.model.scaffold_362.49,evm.model.scaffold_5250.5,evm.model.scaffold_7251.106,evm.model.scaffold_11394.26,evm.model.scaffold_629.60,evm.model.scaffold_1621.136,evm.model.scaffold_629.112,evm.model.scaffold_6679.112,evm.model.scaffold_102.132.1,evm.model.scaffold_10269.111,evm.model.scaffold_4503.84,evm.model.scaffold_9411.65,evm.model.scaffold_1284.92,evm.model.scaffold_4558.16,evm.model.scaffold_1150.190,evm.model.scaffold_1303.29,evm.model.scaffold_9086.245,evm.model.scaffold_284.92,evm.model.scaffold_9187.60,evm.model.scaffold_639.85,evm.model.scaffold_10246.194,evm.model.scaffold_11321.71,evm.model.scaffold_5394.100,evm.model.scaffold_1056.169,evm.model.scaffold_1748.104,evm.model.scaffold_7251.61,evm.model.scaffold_1284.200,evm.model.scaffold_9187.8,evm.model.scaffold_952.110,evm.model.scaffold_6133.96,evm.model.scaffold_4461.12,evm.model.scaffold_493.436,evm.model.scaffold_2260.81,evm.model.scaffold_4678.21,evm.model.scaffold_9411.21,evm.model.scaffold_1659.166,evm.model.scaffold_566.439,evm.model.scaffold_1150.26,evm.model.scaffold_680.141,evm.model.scaffold_1226.21,evm.model.scaffold_5394.26,evm.model.scaffold_3999.169,evm.model.scaffold_1659.53,evm.model.scaffold_938.300,evm.model.scaffold_1501.181,evm.model.scaffold_1560.9,evm.model.scaffold_187.147,evm.model.scaffold_639.122,evm.model.scaffold_102.82,evm.model.scaffold_9671.140,evm.model.scaffold_1566.60,evm.model.scaffold_3999.191,evm.model.scaffold_1659.323,evm.model.scaffold_952.182,evm.model.scaffold_11321.78,evm.model.scaffold_1150.73_evm.model.scaffold_1150.74,evm.model.scaffold_9340.99,evm.model.scaffold_3830.84,evm.model.scaffold_1762.119,evm.model.scaffold_493.309,evm.model.scaffold_1303.167,evm.model.scaffold_493.392"]
["Chr7_Chr8_Chr9","GO:0060341","regulation of cellular localization","biological_process",{"v":2.4246e-7,"d":"2.42E-07"},0.00038037,{"v":0.608695652173913,"d":"0.61"},"evm.model.scaffold_953.34_evm.model.scaffold_953.33,evm.model.scaffold_10817.189,evm.model.scaffold_362.190,evm.model.scaffold_1272.21,evm.model.scaffold_1226.21,evm.model.scaffold_1303.356,evm.model.scaffold_644.280,evm.model.scaffold_225.397,evm.model.scaffold_493.436,evm.model.scaffold_415.136,evm.model.scaffold_4399.13,evm.model.scaffold_629.240,evm.model.scaffold_841.87,evm.model.scaffold_1566.60"]
["Chr7_Chr8_Chr9","GO:0003006","developmental process involved in reproduction","biological_process",{"v":2.9438e-7,"d":"2.94E-07"},0.00038037,{"v":0.245014245014245,"d":"0.25"},"evm.model.scaffold_4461.12,evm.model.scaffold_6133.96,evm.model.scaffold_405.58,evm.model.scaffold_1150.26,evm.model.scaffold_680.141,evm.model.scaffold_493.436,evm.model.scaffold_2260.81,evm.model.scaffold_4678.21,evm.model.scaffold_924.39,evm.model.scaffold_9411.21,evm.model.scaffold_1659.166,evm.model.scaffold_566.439,evm.model.scaffold_284.92,evm.model.scaffold_639.85,evm.model.scaffold_9187.60,evm.model.scaffold_7251.61,evm.model.scaffold_1284.200,evm.model.scaffold_9187.8,evm.model.scaffold_11321.71,evm.model.scaffold_1056.169,evm.model.scaffold_629.275,evm.model.scaffold_9340.99,evm.model.scaffold_3830.84,evm.model.scaffold_1762.119,evm.model.scaffold_11321.78,evm.model.scaffold_1150.73_evm.model.scaffold_1150.74,evm.model.scaffold_1303.167,evm.model.scaffold_493.392,evm.model.scaffold_1825.11,evm.model.scaffold_493.309,evm.model.scaffold_1659.53,evm.model.scaffold_1226.52,evm.model.scaffold_187.106,evm.model.scaffold_938.300,evm.model.scaffold_1501.181,evm.model.scaffold_5394.26,evm.model.scaffold_1226.21,evm.model.scaffold_362.190,evm.model.scaffold_3999.169,evm.model.scaffold_1566.60,evm.model.scaffold_3999.191,evm.model.scaffold_1572.70,evm.model.scaffold_841.87,evm.model.scaffold_1560.9,evm.model.scaffold_187.147,evm.model.scaffold_102.82,evm.model.scaffold_639.122,evm.model.scaffold_1284.266_evm.model.scaffold_1284.267,evm.model.scaffold_965.253,evm.model.scaffold_551.67,evm.model.scaffold_86.173,evm.model.scaffold_11180.45,evm.model.scaffold_1303.450,evm.model.scaffold_629.240,evm.model.scaffold_4558.9,evm.model.scaffold_225.397,evm.model.scaffold_6133.57,evm.model.scaffold_644.508,evm.model.scaffold_6679.54.1,evm.model.scaffold_98.256,evm.model.scaffold_924.286,evm.model.scaffold_1501.590,evm.model.scaffold_1659.465,evm.model.scaffold_1012.57,evm.model.scaffold_10885.38,evm.model.scaffold_1566.108,evm.model.scaffold_4503.84,evm.model.scaffold_10269.111,evm.model.scaffold_629.112,evm.model.scaffold_6679.112,evm.model.scaffold_102.132.1,evm.model.scaffold_1303.29,evm.model.scaffold_9086.245,evm.model.scaffold_1284.92,evm.model.scaffold_1150.190,evm.model.scaffold_9086.74,evm.model.scaffold_9874.219,evm.model.scaffold_1615.80,evm.model.scaffold_639.2,evm.model.scaffold_225.554,evm.model.scaffold_1521.96,evm.model.scaffold_1621.136,evm.model.scaffold_629.60,evm.model.scaffold_362.49,evm.model.scaffold_7251.106,evm.model.scaffold_953.101"]
["Chr7_Chr8_Chr9","GO:2000026","regulation of multicellular organismal development","biological_process",{"v":3.3763e-7,"d":"3.38E-07"},0.00038037,{"v":0.294117647058824,"d":"0.29"},"evm.model.scaffold_938.117,evm.model.scaffold_1284.310,evm.model.scaffold_680.85,evm.model.scaffold_4558.16,evm.model.scaffold_9086.245,evm.model.scaffold_6499.17,evm.model.scaffold_1825.7,evm.model.scaffold_1150.73_evm.model.scaffold_1150.74,evm.model.scaffold_11321.78,evm.model.scaffold_3830.84,evm.model.scaffold_9340.99,evm.model.scaffold_4558.52,evm.model.scaffold_9411.65,evm.model.scaffold_10269.111,evm.model.scaffold_11394.26,evm.model.scaffold_1560.9,evm.model.scaffold_9340.131,evm.model.scaffold_953.95,evm.model.scaffold_3999.191,evm.model.scaffold_1621.136,evm.model.scaffold_1521.96,evm.model.scaffold_1659.53,evm.model.scaffold_566.439,evm.model.scaffold_1659.166,evm.model.scaffold_4678.21,evm.model.scaffold_405.70,evm.model.scaffold_680.141,evm.model.scaffold_284.81,evm.model.scaffold_551.67,evm.model.scaffold_423.48,evm.model.scaffold_86.112,evm.model.scaffold_1284.266_evm.model.scaffold_1284.267,evm.model.scaffold_493.249,evm.model.scaffold_4461.12,evm.model.scaffold_10885.38,evm.model.scaffold_1056.169,evm.model.scaffold_1748.104,evm.model.scaffold_1012.57,evm.model.scaffold_1560.47,evm.model.scaffold_9874.229,evm.model.scaffold_10246.194,evm.model.scaffold_9187.8,evm.model.scaffold_1659.465,evm.model.scaffold_98.256,evm.model.scaffold_924.286,evm.model.scaffold_12301.20,evm.model.scaffold_639.85,evm.model.scaffold_1146.31,evm.model.scaffold_644.508,evm.model.scaffold_924.344"]
["Chr7_Chr8_Chr9","GO:0010540","basipetal auxin transport","biological_process",{"v":6.5666e-7,"d":"6.57E-07"},0.0006165,{"v":0.9,"d":"0.90"},"evm.model.scaffold_629.112,evm.model.scaffold_1226.21,evm.model.scaffold_6679.112,evm.model.scaffold_1825.64,evm.model.scaffold_1566.60,evm.model.scaffold_405.10,evm.model.scaffold_474.233,evm.model.scaffold_629.240,evm.model.scaffold_102.82"]
["Chr7_Chr8_Chr9","GO:0016192","vesicle-mediated transport","biological_process",{"v":8.495e-7,"d":"8.50E-07"},0.0006836,{"v":0.303030303030303,"d":"0.30"},"evm.model.scaffold_1272.21,evm.model.scaffold_10012.208,evm.model.scaffold_1397.76,evm.model.scaffold_9203.47,evm.model.scaffold_9203.133,evm.model.scaffold_1825.170,evm.model.scaffold_639.97,evm.model.scaffold_187.107,evm.model.scaffold_1284.283,evm.model.scaffold_644.280,evm.model.scaffold_7954.127,evm.model.scaffold_225.397,evm.model.scaffold_362.229,evm.model.scaffold_362.305,evm.model.scaffold_118.572,evm.model.scaffold_225.270,evm.model.scaffold_1303.356,evm.model.scaffold_629.240,evm.model.scaffold_362.190,evm.model.scaffold_10246.29,evm.model.scaffold_1226.21,evm.model.scaffold_938.235,evm.model.scaffold_841.206,evm.model.scaffold_952.233,evm.model.scaffold_415.136,evm.model.scaffold_841.87,evm.model.scaffold_474.140,evm.model.scaffold_938.264,evm.model.scaffold_1566.60,evm.model.scaffold_187.77,evm.model.scaffold_551.63,evm.model.scaffold_1150.49,evm.model.scaffold_10817.189,evm.model.scaffold_11694.57,evm.model.scaffold_4399.13,evm.model.scaffold_896.3,evm.model.scaffold_11005.95,evm.model.scaffold_1748.2,evm.model.scaffold_1397.41,evm.model.scaffold_1405.213"]
["Chr7_Chr8_Chr9","GO:0009914","hormone transport","biological_process",{"v":1.1435e-6,"d":"1.14E-06"},0.00079119,{"v":0.53125,"d":"0.53"},"evm.model.scaffold_1566.60,evm.model.scaffold_1501.590,evm.model.scaffold_1462.192,evm.model.scaffold_102.82,evm.model.scaffold_1501.181,evm.model.scaffold_1226.21,evm.model.scaffold_405.10,evm.model.scaffold_629.240,evm.model.scaffold_474.233,evm.model.scaffold_493.436,evm.model.scaffold_1284.92,evm.model.scaffold_3806.3,evm.model.scaffold_741.109,evm.model.scaffold_1825.64,evm.model.scaffold_6679.112,evm.model.scaffold_629.112,evm.model.scaffold_953.34_evm.model.scaffold_953.33"]
["Chr7_Chr8_Chr9","GO:0000003","reproduction","biological_process",{"v":1.2641e-6,"d":"1.26E-06"},0.00079119,{"v":0.232613908872902,"d":"0.23"},"evm.model.scaffold_953.101,evm.model.scaffold_7251.106,evm.model.scaffold_362.49,evm.model.scaffold_1012.113,evm.model.scaffold_1621.136,evm.model.scaffold_629.60,evm.model.scaffold_1521.96,evm.model.scaffold_225.554,evm.model.scaffold_1615.80,evm.model.scaffold_639.2,evm.model.scaffold_9874.219,evm.model.scaffold_9086.74,evm.model.scaffold_1150.190,evm.model.scaffold_1284.92,evm.model.scaffold_9086.245,evm.model.scaffold_1303.29,evm.model.scaffold_102.132.1,evm.model.scaffold_6679.112,evm.model.scaffold_629.112,evm.model.scaffold_362.187,evm.model.scaffold_10269.111,evm.model.scaffold_4503.84,evm.model.scaffold_1566.108,evm.model.scaffold_10885.38,evm.model.scaffold_362.305,evm.model.scaffold_1012.57,evm.model.scaffold_1659.465,evm.model.scaffold_1501.590,evm.model.scaffold_841.84,evm.model.scaffold_924.286,evm.model.scaffold_98.256,evm.model.scaffold_6679.54.1,evm.model.scaffold_644.508,evm.model.scaffold_6133.57,evm.model.scaffold_225.397,evm.model.scaffold_4558.9,evm.model.scaffold_629.240,evm.model.scaffold_1303.450,evm.model.scaffold_1056.91,evm.model.scaffold_11180.45,evm.model.scaffold_86.173,evm.model.scaffold_225.270,evm.model.scaffold_551.67,evm.model.scaffold_965.253,evm.model.scaffold_1284.266_evm.model.scaffold_1284.267,evm.model.scaffold_102.82,evm.model.scaffold_639.122,evm.model.scaffold_1560.9,evm.model.scaffold_841.87,evm.model.scaffold_187.147,evm.model.scaffold_1572.70,evm.model.scaffold_3999.191,evm.model.scaffold_1693.395,evm.model.scaffold_1566.60,evm.model.scaffold_362.190,evm.model.scaffold_3999.169,evm.model.scaffold_5394.26,evm.model.scaffold_1226.21,evm.model.scaffold_1501.181,evm.model.scaffold_938.300,evm.model.scaffold_841.206,evm.model.scaffold_1659.53,evm.model.scaffold_1226.52,evm.model.scaffold_187.106,evm.model.scaffold_493.309,evm.model.scaffold_1825.11,evm.model.scaffold_493.392,evm.model.scaffold_225.398,evm.model.scaffold_1303.167,evm.model.scaffold_1150.73_evm.model.scaffold_1150.74,evm.model.scaffold_11321.78,evm.model.scaffold_3830.84,evm.model.scaffold_1762.119,evm.model.scaffold_9340.99,evm.model.scaffold_629.275,evm.model.scaffold_1056.169,evm.model.scaffold_952.341,evm.model.scaffold_11321.71,evm.model.scaffold_9187.8,evm.model.scaffold_1284.200,evm.model.scaffold_7251.61,evm.model.scaffold_9187.60,evm.model.scaffold_639.85,evm.model.scaffold_994.296,evm.model.scaffold_284.92,evm.model.scaffold_1659.166,evm.model.scaffold_9411.21,evm.model.scaffold_566.439,evm.model.scaffold_924.39,evm.model.scaffold_2260.81,evm.model.scaffold_493.436,evm.model.scaffold_4678.21,evm.model.scaffold_680.141,evm.model.scaffold_1150.26,evm.model.scaffold_405.58,evm.model.scaffold_6133.96,evm.model.scaffold_4461.12"]
["Chr7_Chr8_Chr9","GO:0060627","regulation of vesicle-mediated transport","biological_process",{"v":1.612e-6,"d":"1.61E-06"},0.00081575,{"v":0.5,"d":"0.50"},"evm.model.scaffold_644.280,evm.model.scaffold_225.397,evm.model.scaffold_362.229,evm.model.scaffold_10817.189,evm.model.scaffold_1272.21,evm.model.scaffold_362.190,evm.model.scaffold_1303.356,evm.model.scaffold_1226.21,evm.model.scaffold_551.63,evm.model.scaffold_1566.60,evm.model.scaffold_4399.13,evm.model.scaffold_415.136,evm.model.scaffold_841.87,evm.model.scaffold_629.240,evm.model.scaffold_896.3"]
["Chr7_Chr8_Chr9","GO:0007275","multicellular organismal development","biological_process",{"v":1.9178e-6,"d":"1.92E-06"},0.00081575,{"v":0.20906432748538,"d":"0.21"},"evm.model.scaffold_9203.60,evm.model.scaffold_405.70,evm.model.scaffold_4558.9,evm.model.scaffold_1793.49,evm.model.scaffold_284.81,evm.model.scaffold_86.173,evm.model.scaffold_8034.45,evm.model.scaffold_11180.45,evm.model.scaffold_1799.28,evm.model.scaffold_405.10,evm.model.scaffold_551.67,evm.model.scaffold_965.253,evm.model.scaffold_493.249,evm.model.scaffold_629.331,evm.model.scaffold_1284.266_evm.model.scaffold_1284.267,evm.model.scaffold_6133.160,evm.model.scaffold_423.48,evm.model.scaffold_86.112,evm.model.scaffold_1560.47,evm.model.scaffold_9874.229,evm.model.scaffold_952.150.1,evm.model.scaffold_98.256,evm.model.scaffold_1825.170,evm.model.scaffold_12301.20,evm.model.scaffold_288.65,evm.model.scaffold_6133.57,evm.model.scaffold_1569.196,evm.model.scaffold_1284.92,evm.model.scaffold_4558.16,evm.model.scaffold_11005.95,evm.model.scaffold_9086.245,evm.model.scaffold_1303.29,evm.model.scaffold_629.112,evm.model.scaffold_102.132.1,evm.model.scaffold_4503.84,evm.model.scaffold_5250.5,evm.model.scaffold_7251.106,evm.model.scaffold_5250.33.1,evm.model.scaffold_1621.136,evm.model.scaffold_629.60,evm.model.scaffold_1521.96,evm.model.scaffold_1615.80,evm.model.scaffold_9086.74,evm.model.scaffold_4678.21,evm.model.scaffold_493.436,evm.model.scaffold_2260.81,evm.model.scaffold_1659.166,evm.model.scaffold_924.39,evm.model.scaffold_680.141,evm.model.scaffold_6133.96,evm.model.scaffold_1462.192,evm.model.scaffold_7251.61,evm.model.scaffold_9187.8,evm.model.scaffold_1284.200,evm.model.scaffold_1146.31,evm.model.scaffold_639.85,evm.model.scaffold_9187.60,evm.model.scaffold_1566.119,evm.model.scaffold_1566.161,evm.model.scaffold_938.117,evm.model.scaffold_493.309,evm.model.scaffold_10269.110,evm.model.scaffold_1659.323,evm.model.scaffold_952.182,evm.model.scaffold_629.275,evm.model.scaffold_9340.99,evm.model.scaffold_474.140,evm.model.scaffold_9340.131,evm.model.scaffold_841.87,evm.model.scaffold_9671.140,evm.model.scaffold_493.205.1,evm.model.scaffold_3999.191,evm.model.scaffold_10885.39,evm.model.scaffold_362.190,evm.model.scaffold_1226.21,evm.model.scaffold_5394.26,evm.model.scaffold_938.300,evm.model.scaffold_1659.53,evm.model.scaffold_187.106,evm.model.scaffold_1501.181,evm.model.scaffold_1303.450,evm.model.scaffold_629.240,evm.model.scaffold_1825.64,evm.model.scaffold_2558.17,evm.model.scaffold_10885.38,evm.model.scaffold_1012.57,evm.model.scaffold_1566.108,evm.model.scaffold_924.286,evm.model.scaffold_1659.465,evm.model.scaffold_1501.590,evm.model.scaffold_644.508,evm.model.scaffold_6679.54.1,evm.model.scaffold_924.344,evm.model.scaffold_225.397,evm.model.scaffold_9411.117,evm.model.scaffold_1150.190,evm.model.scaffold_86.61,evm.model.scaffold_1825.7,evm.model.scaffold_493.376,evm.model.scaffold_6679.112,evm.model.scaffold_741.109,evm.model.scaffold_9411.65,evm.model.scaffold_10269.111,evm.model.scaffold_362.49,evm.model.scaffold_11394.26,evm.model.scaffold_9874.219,evm.model.scaffold_225.554,evm.model.scaffold_639.2,evm.model.scaffold_566.439,evm.model.scaffold_9411.21,evm.model.scaffold_1150.26,evm.model.scaffold_952.110,evm.model.scaffold_4461.12,evm.model.scaffold_1056.169,evm.model.scaffold_5394.100,evm.model.scaffold_1748.104,evm.model.scaffold_11321.71,evm.model.scaffold_10246.194,evm.model.scaffold_284.92,evm.model.scaffold_474.233,evm.model.scaffold_3806.3,evm.model.scaffold_680.85,evm.model.scaffold_1284.310,evm.model.scaffold_6499.17,evm.model.scaffold_1303.167,evm.model.scaffold_493.392,evm.model.scaffold_1150.73_evm.model.scaffold_1150.74,evm.model.scaffold_11321.78,evm.model.scaffold_11365.28,evm.model.scaffold_1762.119,evm.model.scaffold_3830.84,evm.model.scaffold_4558.52,evm.model.scaffold_1572.70,evm.model.scaffold_639.122,evm.model.scaffold_102.82,evm.model.scaffold_187.147,evm.model.scaffold_1560.9,evm.model.scaffold_953.95,evm.model.scaffold_1566.60,evm.model.scaffold_3999.169,evm.model.scaffold_1226.52,evm.model.scaffold_6133.49,evm.model.scaffold_7954.36"]
["Chr7_Chr8_Chr9","GO:0022414","reproductive process","biological_process",{"v":1.9328e-6,"d":"1.93E-06"},0.00081575,{"v":0.234375,"d":"0.23"},"evm.model.scaffold_187.106,evm.model.scaffold_1659.53,evm.model.scaffold_1226.52,evm.model.scaffold_938.300,evm.model.scaffold_1501.181,evm.model.scaffold_1226.21,evm.model.scaffold_5394.26,evm.model.scaffold_3999.169,evm.model.scaffold_362.190,evm.model.scaffold_1566.60,evm.model.scaffold_3999.191,evm.model.scaffold_1572.70,evm.model.scaffold_841.87,evm.model.scaffold_1560.9,evm.model.scaffold_187.147,evm.model.scaffold_639.122,evm.model.scaffold_102.82,evm.model.scaffold_629.275,evm.model.scaffold_9340.99,evm.model.scaffold_3830.84,evm.model.scaffold_1762.119,evm.model.scaffold_11321.78,evm.model.scaffold_1150.73_evm.model.scaffold_1150.74,evm.model.scaffold_1303.167,evm.model.scaffold_225.398,evm.model.scaffold_493.392,evm.model.scaffold_1825.11,evm.model.scaffold_493.309,evm.model.scaffold_284.92,evm.model.scaffold_994.296,evm.model.scaffold_639.85,evm.model.scaffold_9187.60,evm.model.scaffold_7251.61,evm.model.scaffold_1284.200,evm.model.scaffold_9187.8,evm.model.scaffold_11321.71,evm.model.scaffold_1056.169,evm.model.scaffold_4461.12,evm.model.scaffold_6133.96,evm.model.scaffold_405.58,evm.model.scaffold_1150.26,evm.model.scaffold_680.141,evm.model.scaffold_493.436,evm.model.scaffold_4678.21,evm.model.scaffold_2260.81,evm.model.scaffold_924.39,evm.model.scaffold_9411.21,evm.model.scaffold_566.439,evm.model.scaffold_1659.166,evm.model.scaffold_9086.74,evm.model.scaffold_9874.219,evm.model.scaffold_1615.80,evm.model.scaffold_639.2,evm.model.scaffold_1521.96,evm.model.scaffold_225.554,evm.model.scaffold_629.60,evm.model.scaffold_1621.136,evm.model.scaffold_1012.113,evm.model.scaffold_362.49,evm.model.scaffold_7251.106,evm.model.scaffold_953.101,evm.model.scaffold_10269.111,evm.model.scaffold_4503.84,evm.model.scaffold_629.112,evm.model.scaffold_6679.112,evm.model.scaffold_102.132.1,evm.model.scaffold_1303.29,evm.model.scaffold_9086.245,evm.model.scaffold_1284.92,evm.model.scaffold_1150.190,evm.model.scaffold_225.397,evm.model.scaffold_6133.57,evm.model.scaffold_6679.54.1,evm.model.scaffold_644.508,evm.model.scaffold_98.256,evm.model.scaffold_924.286,evm.model.scaffold_1501.590,evm.model.scaffold_1659.465,evm.model.scaffold_1012.57,evm.model.scaffold_10885.38,evm.model.scaffold_1566.108,evm.model.scaffold_1284.266_evm.model.scaffold_1284.267,evm.model.scaffold_965.253,evm.model.scaffold_551.67,evm.model.scaffold_86.173,evm.model.scaffold_1056.91,evm.model.scaffold_11180.45,evm.model.scaffold_1303.450,evm.model.scaffold_629.240,evm.model.scaffold_4558.9"]
["Chr7_Chr8_Chr9","GO:0051239","regulation of multicellular organismal process","biological_process",{"v":2.0401e-6,"d":"2.04E-06"},0.00081575,{"v":0.262672811059908,"d":"0.26"},"evm.model.scaffold_423.48,evm.model.scaffold_86.112,evm.model.scaffold_493.249,evm.model.scaffold_1284.266_evm.model.scaffold_1284.267,evm.model.scaffold_4461.12,evm.model.scaffold_551.67,evm.model.scaffold_680.141,evm.model.scaffold_284.81,evm.model.scaffold_1659.166,evm.model.scaffold_566.439,evm.model.scaffold_405.70,evm.model.scaffold_4678.21,evm.model.scaffold_11180.186,evm.model.scaffold_924.344,evm.model.scaffold_9340.107,evm.model.scaffold_12301.20,evm.model.scaffold_639.85,evm.model.scaffold_1146.31,evm.model.scaffold_896.41,evm.model.scaffold_644.508,evm.model.scaffold_1659.465,evm.model.scaffold_9187.8,evm.model.scaffold_415.100,evm.model.scaffold_7251.61,evm.model.scaffold_924.286,evm.model.scaffold_98.256,evm.model.scaffold_10885.38,evm.model.scaffold_1056.169,evm.model.scaffold_1748.104,evm.model.scaffold_1560.47,evm.model.scaffold_9874.229,evm.model.scaffold_1012.57,evm.model.scaffold_10246.194,evm.model.scaffold_3830.84,evm.model.scaffold_4558.52,evm.model.scaffold_9340.99,evm.model.scaffold_9411.65,evm.model.scaffold_10269.111,evm.model.scaffold_1150.73_evm.model.scaffold_1150.74,evm.model.scaffold_11321.78,evm.model.scaffold_9086.245,evm.model.scaffold_6499.17,evm.model.scaffold_1825.7,evm.model.scaffold_1284.310,evm.model.scaffold_938.117,evm.model.scaffold_680.85,evm.model.scaffold_4558.16,evm.model.scaffold_1659.53,evm.model.scaffold_1521.96,evm.model.scaffold_3999.191,evm.model.scaffold_1522.59,evm.model.scaffold_953.95,evm.model.scaffold_1621.136,evm.model.scaffold_11394.26,evm.model.scaffold_1560.9,evm.model.scaffold_9340.131,evm.model.scaffold_1123.42"]
["Chr7_Chr8_Chr9","GO:0009926","auxin polar transport","biological_process",{"v":2.3171e-6,"d":"2.32E-06"},0.00081575,{"v":0.555555555555556,"d":"0.56"},"evm.model.scaffold_741.109,evm.model.scaffold_1501.181,evm.model.scaffold_629.112,evm.model.scaffold_6679.112,evm.model.scaffold_1226.21,evm.model.scaffold_1825.64,evm.model.scaffold_405.10,evm.model.scaffold_1566.60,evm.model.scaffold_1501.590,evm.model.scaffold_1284.92,evm.model.scaffold_474.233,evm.model.scaffold_3806.3,evm.model.scaffold_1462.192,evm.model.scaffold_629.240,evm.model.scaffold_102.82"]
["Chr7_Chr8_Chr9","GO:0032879","regulation of localization","biological_process",{"v":3.5281e-6,"d":"3.53E-06"},0.001169,{"v":0.381818181818182,"d":"0.38"},"evm.model.scaffold_10817.189,evm.model.scaffold_953.34_evm.model.scaffold_953.33,evm.model.scaffold_1303.356,evm.model.scaffold_11321.78,evm.model.scaffold_493.436,evm.model.scaffold_629.240,evm.model.scaffold_896.3,evm.model.scaffold_4399.13,evm.model.scaffold_362.229,evm.model.scaffold_225.397,evm.model.scaffold_644.280,evm.model.scaffold_1226.21,evm.model.scaffold_1272.21,evm.model.scaffold_362.190,evm.model.scaffold_551.63,evm.model.scaffold_1621.136,evm.model.scaffold_1566.60,evm.model.scaffold_9187.8,evm.model.scaffold_102.141,evm.model.scaffold_841.87,evm.model.scaffold_415.136"]
["Chr7_Chr8_Chr9","GO:0006888","ER to Golgi vesicle-mediated transport","biological_process",{"v":4.277e-6,"d":"4.28E-06"},0.0013385,{"v":0.5,"d":"0.50"},"evm.model.scaffold_187.77,evm.model.scaffold_1405.213,evm.model.scaffold_1397.41,evm.model.scaffold_1748.2,evm.model.scaffold_415.136,evm.model.scaffold_1284.283,evm.model.scaffold_644.280,evm.model.scaffold_938.235,evm.model.scaffold_10817.189,evm.model.scaffold_639.97,evm.model.scaffold_10246.29,evm.model.scaffold_1150.49"]
["Chr7_Chr8_Chr9","GO:0050793","regulation of developmental process","biological_process",{"v":5.9297e-6,"d":"5.93E-06"},0.0016375,{"v":0.26530612244898,"d":"0.27"},"evm.model.scaffold_4678.21,evm.model.scaffold_405.70,evm.model.scaffold_1659.166,evm.model.scaffold_566.439,evm.model.scaffold_284.81,evm.model.scaffold_680.141,evm.model.scaffold_551.67,evm.model.scaffold_1284.266_evm.model.scaffold_1284.267,evm.model.scaffold_493.249,evm.model.scaffold_4461.12,evm.model.scaffold_423.48,evm.model.scaffold_86.112,evm.model.scaffold_1056.169,evm.model.scaffold_1748.104,evm.model.scaffold_10885.38,evm.model.scaffold_1560.47,evm.model.scaffold_11321.71,evm.model.scaffold_1012.57,evm.model.scaffold_9874.229,evm.model.scaffold_10246.194,evm.model.scaffold_98.256,evm.model.scaffold_924.286,evm.model.scaffold_1659.465,evm.model.scaffold_9187.8,evm.model.scaffold_1146.31,evm.model.scaffold_644.508,evm.model.scaffold_12301.20,evm.model.scaffold_639.85,evm.model.scaffold_9187.60,evm.model.scaffold_924.344,evm.model.scaffold_680.85,evm.model.scaffold_938.117,evm.model.scaffold_1284.310,evm.model.scaffold_4558.16,evm.model.scaffold_6499.17,evm.model.scaffold_9086.245,evm.model.scaffold_1825.7,evm.model.scaffold_1150.73_evm.model.scaffold_1150.74,evm.model.scaffold_11321.78,evm.model.scaffold_9411.65,evm.model.scaffold_10269.111,evm.model.scaffold_3830.84,evm.model.scaffold_4558.52,evm.model.scaffold_9340.99,evm.model.scaffold_11394.26,evm.model.scaffold_1560.9,evm.model.scaffold_9340.131,evm.model.scaffold_3999.191,evm.model.scaffold_953.95,evm.model.scaffold_1621.136,evm.model.scaffold_1521.96,evm.model.scaffold_1659.53"]
["Chr7_Chr8_Chr9","GO:0032501","multicellular organismal process","biological_process",{"v":9.8202e-6,"d":"9.82E-06"},0.0023385,{"v":0.196470588235294,"d":"0.20"},"evm.model.scaffold_1659.166,evm.model.scaffold_924.39,evm.model.scaffold_493.436,evm.model.scaffold_4678.21,evm.model.scaffold_2260.81,evm.model.scaffold_680.141,evm.model.scaffold_405.58,evm.model.scaffold_6133.96,evm.model.scaffold_405.50,evm.model.scaffold_1462.192,evm.model.scaffold_9187.8,evm.model.scaffold_1284.200,evm.model.scaffold_7251.61,evm.model.scaffold_9187.60,evm.model.scaffold_639.85,evm.model.scaffold_1146.31,evm.model.scaffold_994.296,evm.model.scaffold_11180.186,evm.model.scaffold_1566.119,evm.model.scaffold_9340.107,evm.model.scaffold_1012.184,evm.model.scaffold_938.117,evm.model.scaffold_493.309,evm.model.scaffold_1566.161,evm.model.scaffold_10269.110,evm.model.scaffold_952.182,evm.model.scaffold_1659.323,evm.model.scaffold_9340.99,evm.model.scaffold_629.275,evm.model.scaffold_9340.131,evm.model.scaffold_841.87,evm.model.scaffold_474.140,evm.model.scaffold_1522.59,evm.model.scaffold_3999.191,evm.model.scaffold_493.205.1,evm.model.scaffold_9671.140,evm.model.scaffold_362.190,evm.model.scaffold_5394.26,evm.model.scaffold_1226.21,evm.model.scaffold_10885.39,evm.model.scaffold_1501.181,evm.model.scaffold_938.300,evm.model.scaffold_1659.53,evm.model.scaffold_187.106,evm.model.scaffold_1793.49,evm.model.scaffold_4558.9,evm.model.scaffold_9203.60,evm.model.scaffold_405.70,evm.model.scaffold_8034.45,evm.model.scaffold_6797.196,evm.model.scaffold_405.10,evm.model.scaffold_11180.45,evm.model.scaffold_1799.28,evm.model.scaffold_284.81,evm.model.scaffold_86.173,evm.model.scaffold_551.67,evm.model.scaffold_965.253,evm.model.scaffold_6133.160,evm.model.scaffold_423.48,evm.model.scaffold_86.112,evm.model.scaffold_493.249,evm.model.scaffold_1284.266_evm.model.scaffold_1284.267,evm.model.scaffold_629.331,evm.model.scaffold_1560.47,evm.model.scaffold_9874.229,evm.model.scaffold_952.150.1,evm.model.scaffold_98.256,evm.model.scaffold_12301.20,evm.model.scaffold_644.514,evm.model.scaffold_1825.170,evm.model.scaffold_6133.57,evm.model.scaffold_288.65,evm.model.scaffold_1569.196,evm.model.scaffold_4558.16,evm.model.scaffold_11005.95,evm.model.scaffold_1284.92,evm.model.scaffold_9086.245,evm.model.scaffold_1303.29,evm.model.scaffold_102.132.1,evm.model.scaffold_629.112,evm.model.scaffold_4503.84,evm.model.scaffold_953.101,evm.model.scaffold_5250.33.1,evm.model.scaffold_7251.106,evm.model.scaffold_5250.5,evm.model.scaffold_1123.42,evm.model.scaffold_1012.113,evm.model.scaffold_1621.136,evm.model.scaffold_629.60,evm.model.scaffold_1521.96,evm.model.scaffold_1615.80,evm.model.scaffold_9086.74,evm.model.scaffold_9411.21,evm.model.scaffold_566.439,evm.model.scaffold_1150.26,evm.model.scaffold_953.34_evm.model.scaffold_953.33,evm.model.scaffold_952.110,evm.model.scaffold_4461.12,evm.model.scaffold_6137.24,evm.model.scaffold_1056.169,evm.model.scaffold_5394.100,evm.model.scaffold_1748.104,evm.model.scaffold_11321.71,evm.model.scaffold_10246.194,evm.model.scaffold_415.100,evm.model.scaffold_11180.191,evm.model.scaffold_1056.50,evm.model.scaffold_284.92,evm.model.scaffold_896.41,evm.model.scaffold_1284.310,evm.model.scaffold_680.85,evm.model.scaffold_3806.3,evm.model.scaffold_474.233,evm.model.scaffold_1825.11,evm.model.scaffold_493.392,evm.model.scaffold_6499.17,evm.model.scaffold_1303.167,evm.model.scaffold_1150.73_evm.model.scaffold_1150.74,evm.model.scaffold_11321.78,evm.model.scaffold_1762.119,evm.model.scaffold_3830.84,evm.model.scaffold_4558.52,evm.model.scaffold_11365.28,evm.model.scaffold_639.122,evm.model.scaffold_102.82,evm.model.scaffold_187.147,evm.model.scaffold_1560.9,evm.model.scaffold_1572.70,evm.model.scaffold_953.95,evm.model.scaffold_1566.60,evm.model.scaffold_6797.172,evm.model.scaffold_3999.169,evm.model.scaffold_6133.49,evm.model.scaffold_7954.36,evm.model.scaffold_1226.52,evm.model.scaffold_629.240,evm.model.scaffold_1303.450,evm.model.scaffold_1056.91,evm.model.scaffold_1825.64,evm.model.scaffold_1566.129,evm.model.scaffold_2558.17,evm.model.scaffold_1566.108,evm.model.scaffold_10885.38,evm.model.scaffold_1012.57,evm.model.scaffold_1659.465,evm.model.scaffold_1501.590,evm.model.scaffold_924.286,evm.model.scaffold_644.508,evm.model.scaffold_6679.54.1,evm.model.scaffold_924.344,evm.model.scaffold_225.397,evm.model.scaffold_9411.117,evm.model.scaffold_86.61,evm.model.scaffold_1150.190,evm.model.scaffold_1825.7,evm.model.scaffold_6679.112,evm.model.scaffold_493.376,evm.model.scaffold_741.109,evm.model.scaffold_9411.65,evm.model.scaffold_10269.111,evm.model.scaffold_11394.26,evm.model.scaffold_362.49,evm.model.scaffold_225.554,evm.model.scaffold_639.2,evm.model.scaffold_1799.3,evm.model.scaffold_9874.219,evm.model.scaffold_994.189"]
["Chr7_Chr8_Chr9","GO:0050821","protein stabilization","biological_process",{"v":1.1002e-5,"d":"1.10E-05"},0.0023385,{"v":1,"d":"1.00"},"evm.model.scaffold_9874.229,evm.model.scaffold_566.253,evm.model.scaffold_4558.16,evm.model.scaffold_1659.53,evm.model.scaffold_284.81,evm.model.scaffold_1693.201"]
["Chr7_Chr8_Chr9","GO:0044707","single-multicellular organism process","biological_process",{"v":1.6221e-5,"d":"1.62E-05"},0.0023385,{"v":0.196172248803828,"d":"0.20"},"evm.model.scaffold_187.106,evm.model.scaffold_1659.53,evm.model.scaffold_938.300,evm.model.scaffold_1501.181,evm.model.scaffold_10885.39,evm.model.scaffold_1226.21,evm.model.scaffold_5394.26,evm.model.scaffold_362.190,evm.model.scaffold_493.205.1,evm.model.scaffold_9671.140,evm.model.scaffold_3999.191,evm.model.scaffold_1522.59,evm.model.scaffold_474.140,evm.model.scaffold_9340.131,evm.model.scaffold_841.87,evm.model.scaffold_629.275,evm.model.scaffold_9340.99,evm.model.scaffold_1659.323,evm.model.scaffold_952.182,evm.model.scaffold_10269.110,evm.model.scaffold_1566.161,evm.model.scaffold_493.309,evm.model.scaffold_1012.184,evm.model.scaffold_938.117,evm.model.scaffold_9340.107,evm.model.scaffold_1566.119,evm.model.scaffold_11180.186,evm.model.scaffold_994.296,evm.model.scaffold_1146.31,evm.model.scaffold_9187.60,evm.model.scaffold_639.85,evm.model.scaffold_7251.61,evm.model.scaffold_1284.200,evm.model.scaffold_9187.8,evm.model.scaffold_1462.192,evm.model.scaffold_405.50,evm.model.scaffold_6133.96,evm.model.scaffold_680.141,evm.model.scaffold_493.436,evm.model.scaffold_2260.81,evm.model.scaffold_4678.21,evm.model.scaffold_924.39,evm.model.scaffold_1659.166,evm.model.scaffold_9086.74,evm.model.scaffold_1615.80,evm.model.scaffold_1521.96,evm.model.scaffold_629.60,evm.model.scaffold_1621.136,evm.model.scaffold_1012.113,evm.model.scaffold_5250.5,evm.model.scaffold_1123.42,evm.model.scaffold_5250.33.1,evm.model.scaffold_7251.106,evm.model.scaffold_4503.84,evm.model.scaffold_629.112,evm.model.scaffold_102.132.1,evm.model.scaffold_1303.29,evm.model.scaffold_9086.245,evm.model.scaffold_1284.92,evm.model.scaffold_4558.16,evm.model.scaffold_11005.95,evm.model.scaffold_1569.196,evm.model.scaffold_6133.57,evm.model.scaffold_288.65,evm.model.scaffold_1825.170,evm.model.scaffold_644.514,evm.model.scaffold_12301.20,evm.model.scaffold_98.256,evm.model.scaffold_952.150.1,evm.model.scaffold_1560.47,evm.model.scaffold_9874.229,evm.model.scaffold_629.331,evm.model.scaffold_493.249,evm.model.scaffold_1284.266_evm.model.scaffold_1284.267,evm.model.scaffold_86.112,evm.model.scaffold_6133.160,evm.model.scaffold_423.48,evm.model.scaffold_965.253,evm.model.scaffold_551.67,evm.model.scaffold_86.173,evm.model.scaffold_284.81,evm.model.scaffold_11180.45,evm.model.scaffold_405.10,evm.model.scaffold_1799.28,evm.model.scaffold_8034.45,evm.model.scaffold_6797.196,evm.model.scaffold_405.70,evm.model.scaffold_9203.60,evm.model.scaffold_1793.49,evm.model.scaffold_4558.9,evm.model.scaffold_1226.52,evm.model.scaffold_7954.36,evm.model.scaffold_6133.49,evm.model.scaffold_3999.169,evm.model.scaffold_6797.172,evm.model.scaffold_1566.60,evm.model.scaffold_953.95,evm.model.scaffold_1572.70,evm.model.scaffold_1560.9,evm.model.scaffold_187.147,evm.model.scaffold_639.122,evm.model.scaffold_102.82,evm.model.scaffold_11365.28,evm.model.scaffold_4558.52,evm.model.scaffold_1762.119,evm.model.scaffold_3830.84,evm.model.scaffold_11321.78,evm.model.scaffold_1150.73_evm.model.scaffold_1150.74,evm.model.scaffold_1303.167,evm.model.scaffold_6499.17,evm.model.scaffold_493.392,evm.model.scaffold_3806.3,evm.model.scaffold_474.233,evm.model.scaffold_1284.310,evm.model.scaffold_680.85,evm.model.scaffold_896.41,evm.model.scaffold_284.92,evm.model.scaffold_11180.191,evm.model.scaffold_1056.50,evm.model.scaffold_415.100,evm.model.scaffold_11321.71,evm.model.scaffold_10246.194,evm.model.scaffold_1056.169,evm.model.scaffold_5394.100,evm.model.scaffold_1748.104,evm.model.scaffold_4461.12,evm.model.scaffold_6137.24,evm.model.scaffold_952.110,evm.model.scaffold_953.34_evm.model.scaffold_953.33,evm.model.scaffold_1150.26,evm.model.scaffold_566.439,evm.model.scaffold_9411.21,evm.model.scaffold_994.189,evm.model.scaffold_9874.219,evm.model.scaffold_1799.3,evm.model.scaffold_639.2,evm.model.scaffold_225.554,evm.model.scaffold_362.49,evm.model.scaffold_11394.26,evm.model.scaffold_10269.111,evm.model.scaffold_741.109,evm.model.scaffold_9411.65,evm.model.scaffold_493.376,evm.model.scaffold_6679.112,evm.model.scaffold_1825.7,evm.model.scaffold_1150.190,evm.model.scaffold_86.61,evm.model.scaffold_9411.117,evm.model.scaffold_225.397,evm.model.scaffold_924.344,evm.model.scaffold_644.508,evm.model.scaffold_6679.54.1,evm.model.scaffold_924.286,evm.model.scaffold_1501.590,evm.model.scaffold_1659.465,evm.model.scaffold_1012.57,evm.model.scaffold_10885.38,evm.model.scaffold_1566.108,evm.model.scaffold_2558.17,evm.model.scaffold_1566.129,evm.model.scaffold_1825.64,evm.model.scaffold_1056.91,evm.model.scaffold_1303.450,evm.model.scaffold_629.240"]
["Chr7_Chr8_Chr9","GO:0048608","reproductive structure development","biological_process",{"v":1.6548e-5,"d":"1.65E-05"},0.0023385,{"v":0.235668789808917,"d":"0.24"},"evm.model.scaffold_4678.21,evm.model.scaffold_493.436,evm.model.scaffold_2260.81,evm.model.scaffold_9411.21,evm.model.scaffold_1659.166,evm.model.scaffold_566.439,evm.model.scaffold_1150.26,evm.model.scaffold_680.141,evm.model.scaffold_6133.96,evm.model.scaffold_4461.12,evm.model.scaffold_11321.71,evm.model.scaffold_1056.169,evm.model.scaffold_7251.61,evm.model.scaffold_1284.200,evm.model.scaffold_9187.8,evm.model.scaffold_284.92,evm.model.scaffold_639.85,evm.model.scaffold_9187.60,evm.model.scaffold_493.309,evm.model.scaffold_1303.167,evm.model.scaffold_493.392,evm.model.scaffold_11321.78,evm.model.scaffold_1150.73_evm.model.scaffold_1150.74,evm.model.scaffold_9340.99,evm.model.scaffold_1762.119,evm.model.scaffold_3830.84,evm.model.scaffold_1560.9,evm.model.scaffold_187.147,evm.model.scaffold_639.122,evm.model.scaffold_102.82,evm.model.scaffold_1566.60,evm.model.scaffold_3999.191,evm.model.scaffold_5394.26,evm.model.scaffold_1226.21,evm.model.scaffold_3999.169,evm.model.scaffold_187.106,evm.model.scaffold_1659.53,evm.model.scaffold_938.300,evm.model.scaffold_1501.181,evm.model.scaffold_1303.450,evm.model.scaffold_629.240,evm.model.scaffold_4558.9,evm.model.scaffold_86.173,evm.model.scaffold_11180.45,evm.model.scaffold_965.253,evm.model.scaffold_551.67,evm.model.scaffold_1284.266_evm.model.scaffold_1284.267,evm.model.scaffold_1012.57,evm.model.scaffold_10885.38,evm.model.scaffold_924.286,evm.model.scaffold_98.256,evm.model.scaffold_1501.590,evm.model.scaffold_1659.465,evm.model.scaffold_6679.54.1,evm.model.scaffold_644.508,evm.model.scaffold_6133.57,evm.model.scaffold_1284.92,evm.model.scaffold_1150.190,evm.model.scaffold_1303.29,evm.model.scaffold_9086.245,evm.model.scaffold_629.112,evm.model.scaffold_6679.112,evm.model.scaffold_102.132.1,evm.model.scaffold_4503.84,evm.model.scaffold_10269.111,evm.model.scaffold_362.49,evm.model.scaffold_7251.106,evm.model.scaffold_1621.136,evm.model.scaffold_629.60,evm.model.scaffold_9874.219,evm.model.scaffold_1615.80,evm.model.scaffold_639.2,evm.model.scaffold_1521.96,evm.model.scaffold_225.554"]
["Chr7_Chr8_Chr9","GO:0051049","regulation of transport","biological_process",{"v":1.8513e-5,"d":"1.85E-05"},0.0023385,{"v":0.382978723404255,"d":"0.38"},"evm.model.scaffold_415.136,evm.model.scaffold_841.87,evm.model.scaffold_102.141,evm.model.scaffold_1566.60,evm.model.scaffold_551.63,evm.model.scaffold_1272.21,evm.model.scaffold_362.190,evm.model.scaffold_1226.21,evm.model.scaffold_644.280,evm.model.scaffold_362.229,evm.model.scaffold_225.397,evm.model.scaffold_4399.13,evm.model.scaffold_629.240,evm.model.scaffold_896.3,evm.model.scaffold_493.436,evm.model.scaffold_1303.356,evm.model.scaffold_953.34_evm.model.scaffold_953.33,evm.model.scaffold_10817.189"]
["Chr7_Chr8_Chr9","GO:0001736","establishment of planar polarity","biological_process",{"v":2.0342e-5,"d":"2.03E-05"},0.0023385,{"v":1,"d":"1.00"},"evm.model.scaffold_3806.3,evm.model.scaffold_629.240,evm.model.scaffold_1462.192,evm.model.scaffold_1226.21,evm.model.scaffold_741.109,evm.model.scaffold_1566.60"]
["Chr7_Chr8_Chr9","GO:0006900","membrane budding","biological_process",{"v":2.2934e-5,"d":"2.29E-05"},0.0025838,{"v":0.727272727272727,"d":"0.73"},"evm.model.scaffold_10012.208,evm.model.scaffold_10817.189,evm.model.scaffold_1397.76,evm.model.scaffold_187.107,evm.model.scaffold_11694.57,evm.model.scaffold_644.280,evm.model.scaffold_415.136,evm.model.scaffold_938.264"]
["Chr7_Chr8_Chr9","GO:0032502","developmental process","biological_process",{"v":2.5044e-5,"d":"2.50E-05"},0.0027661,{"v":0.19813829787234,"d":"0.20"},"evm.model.scaffold_6133.96,evm.model.scaffold_405.58,evm.model.scaffold_680.141,evm.model.scaffold_493.436,evm.model.scaffold_2260.81,evm.model.scaffold_4678.21,evm.model.scaffold_1659.166,evm.model.scaffold_924.39,evm.model.scaffold_1566.119,evm.model.scaffold_1146.31,evm.model.scaffold_9187.60,evm.model.scaffold_639.85,evm.model.scaffold_7251.61,evm.model.scaffold_9187.8,evm.model.scaffold_1284.200,evm.model.scaffold_11180.129,evm.model.scaffold_1462.192,evm.model.scaffold_629.275,evm.model.scaffold_9340.99,evm.model.scaffold_1659.323,evm.model.scaffold_952.182,evm.model.scaffold_10269.110,evm.model.scaffold_1566.161,evm.model.scaffold_938.117,evm.model.scaffold_493.309,evm.model.scaffold_938.300,evm.model.scaffold_1659.53,evm.model.scaffold_187.106,evm.model.scaffold_1501.181,evm.model.scaffold_10885.39,evm.model.scaffold_362.190,evm.model.scaffold_5394.26,evm.model.scaffold_1226.21,evm.model.scaffold_9671.140,evm.model.scaffold_493.205.1,evm.model.scaffold_3999.191,evm.model.scaffold_474.140,evm.model.scaffold_841.87,evm.model.scaffold_9340.131,evm.model.scaffold_493.249,evm.model.scaffold_629.331,evm.model.scaffold_1284.266_evm.model.scaffold_1284.267,evm.model.scaffold_6133.160,evm.model.scaffold_423.48,evm.model.scaffold_86.112,evm.model.scaffold_551.67,evm.model.scaffold_965.253,evm.model.scaffold_284.81,evm.model.scaffold_86.173,evm.model.scaffold_8034.45,evm.model.scaffold_11180.45,evm.model.scaffold_405.10,evm.model.scaffold_1799.28,evm.model.scaffold_9203.60,evm.model.scaffold_405.70,evm.model.scaffold_4558.9,evm.model.scaffold_1793.49,evm.model.scaffold_288.65,evm.model.scaffold_6133.57,evm.model.scaffold_1569.196,evm.model.scaffold_1825.170,evm.model.scaffold_12301.20,evm.model.scaffold_952.150.1,evm.model.scaffold_98.256,evm.model.scaffold_1560.47,evm.model.scaffold_9874.229,evm.model.scaffold_4503.84,evm.model.scaffold_629.112,evm.model.scaffold_102.132.1,evm.model.scaffold_9086.245,evm.model.scaffold_1303.29,evm.model.scaffold_1284.92,evm.model.scaffold_4558.16,evm.model.scaffold_11005.95,evm.model.scaffold_9086.74,evm.model.scaffold_1521.96,evm.model.scaffold_1615.80,evm.model.scaffold_629.60,evm.model.scaffold_1621.136,evm.model.scaffold_5250.5,evm.model.scaffold_953.101,evm.model.scaffold_5250.33.1,evm.model.scaffold_7251.106,evm.model.scaffold_4461.12,evm.model.scaffold_952.110,evm.model.scaffold_1150.26,evm.model.scaffold_9411.21,evm.model.scaffold_566.439,evm.model.scaffold_284.92,evm.model.scaffold_1056.169,evm.model.scaffold_5394.100,evm.model.scaffold_1748.104,evm.model.scaffold_11321.71,evm.model.scaffold_10246.194,evm.model.scaffold_11365.28,evm.model.scaffold_1762.119,evm.model.scaffold_3830.84,evm.model.scaffold_4558.52,evm.model.scaffold_1150.73_evm.model.scaffold_1150.74,evm.model.scaffold_11321.78,evm.model.scaffold_6499.17,evm.model.scaffold_1303.167,evm.model.scaffold_493.392,evm.model.scaffold_474.233,evm.model.scaffold_1825.11,evm.model.scaffold_3806.3,evm.model.scaffold_1284.310,evm.model.scaffold_680.85,evm.model.scaffold_1226.52,evm.model.scaffold_6133.49,evm.model.scaffold_7954.36,evm.model.scaffold_3999.169,evm.model.scaffold_953.95,evm.model.scaffold_952.400,evm.model.scaffold_1566.60,evm.model.scaffold_1572.70,evm.model.scaffold_639.122,evm.model.scaffold_102.82,evm.model.scaffold_1560.9,evm.model.scaffold_187.147,evm.model.scaffold_2558.17,evm.model.scaffold_1825.64,evm.model.scaffold_1303.450,evm.model.scaffold_629.240,evm.model.scaffold_924.344,evm.model.scaffold_225.397,evm.model.scaffold_644.508,evm.model.scaffold_6679.54.1,evm.model.scaffold_924.286,evm.model.scaffold_1659.465,evm.model.scaffold_1501.590,evm.model.scaffold_10885.38,evm.model.scaffold_1012.57,evm.model.scaffold_1566.108,evm.model.scaffold_741.109,evm.model.scaffold_9411.65,evm.model.scaffold_10269.111,evm.model.scaffold_225.630,evm.model.scaffold_493.376,evm.model.scaffold_6679.112,evm.model.scaffold_1825.7,evm.model.scaffold_9411.117,evm.model.scaffold_86.61,evm.model.scaffold_1150.190,evm.model.scaffold_9874.219,evm.model.scaffold_225.554,evm.model.scaffold_639.2,evm.model.scaffold_362.49,evm.model.scaffold_11394.26"]
["Chr7_Chr8_Chr9","GO:0048580","regulation of post-embryonic development","biological_process",{"v":2.5973e-5,"d":"2.60E-05"},0.0028136,{"v":0.313131313131313,"d":"0.31"},"evm.model.scaffold_3999.191,evm.model.scaffold_9187.8,evm.model.scaffold_1621.136,evm.model.scaffold_98.256,evm.model.scaffold_924.286,evm.model.scaffold_11394.26,evm.model.scaffold_1560.9,evm.model.scaffold_1748.104,evm.model.scaffold_1056.169,evm.model.scaffold_9874.229,evm.model.scaffold_1012.57,evm.model.scaffold_10246.194,evm.model.scaffold_1659.53,evm.model.scaffold_1521.96,evm.model.scaffold_639.85,evm.model.scaffold_644.508,evm.model.scaffold_680.141,evm.model.scaffold_9086.245,evm.model.scaffold_284.81,evm.model.scaffold_4558.16,evm.model.scaffold_4678.21,evm.model.scaffold_3830.84,evm.model.scaffold_9340.99,evm.model.scaffold_86.112,evm.model.scaffold_1284.266_evm.model.scaffold_1284.267,evm.model.scaffold_9411.65,evm.model.scaffold_493.249,evm.model.scaffold_4461.12,evm.model.scaffold_551.67,evm.model.scaffold_1150.73_evm.model.scaffold_1150.74,evm.model.scaffold_11321.78"]
["Chr7_Chr8_Chr9","GO:0048532","anatomical structure arrangement","biological_process",{"v":2.9518e-5,"d":"2.95E-05"},0.0031373,0.55,"evm.model.scaffold_1825.7,evm.model.scaffold_1501.590,evm.model.scaffold_953.95,evm.model.scaffold_1284.92,evm.model.scaffold_405.70,evm.model.scaffold_1560.9,evm.model.scaffold_1284.310,evm.model.scaffold_9340.99,evm.model.scaffold_1501.181,evm.model.scaffold_644.508,evm.model.scaffold_9187.60"]
["Chr7_Chr8_Chr9","GO:0048856","anatomical structure development","biological_process",{"v":4.6382e-5,"d":"4.64E-05"},0.0048384,{"v":0.200906344410876,"d":"0.20"},"evm.model.scaffold_629.60,evm.model.scaffold_1621.136,evm.model.scaffold_953.101,evm.model.scaffold_5250.33.1,evm.model.scaffold_7251.106,evm.model.scaffold_9086.74,evm.model.scaffold_1521.96,evm.model.scaffold_1615.80,evm.model.scaffold_9086.245,evm.model.scaffold_1303.29,evm.model.scaffold_11005.95,evm.model.scaffold_1284.92,evm.model.scaffold_4503.84,evm.model.scaffold_102.132.1,evm.model.scaffold_629.112,evm.model.scaffold_952.150.1,evm.model.scaffold_98.256,evm.model.scaffold_1560.47,evm.model.scaffold_288.65,evm.model.scaffold_6133.57,evm.model.scaffold_12301.20,evm.model.scaffold_1825.170,evm.model.scaffold_8034.45,evm.model.scaffold_11180.45,evm.model.scaffold_405.10,evm.model.scaffold_86.173,evm.model.scaffold_1793.49,evm.model.scaffold_4558.9,evm.model.scaffold_9203.60,evm.model.scaffold_405.70,evm.model.scaffold_423.48,evm.model.scaffold_1284.266_evm.model.scaffold_1284.267,evm.model.scaffold_629.331,evm.model.scaffold_551.67,evm.model.scaffold_965.253,evm.model.scaffold_3999.191,evm.model.scaffold_493.205.1,evm.model.scaffold_9340.131,evm.model.scaffold_841.87,evm.model.scaffold_474.140,evm.model.scaffold_1501.181,evm.model.scaffold_938.300,evm.model.scaffold_1659.53,evm.model.scaffold_187.106,evm.model.scaffold_362.190,evm.model.scaffold_1226.21,evm.model.scaffold_5394.26,evm.model.scaffold_938.117,evm.model.scaffold_493.309,evm.model.scaffold_1566.161,evm.model.scaffold_9340.99,evm.model.scaffold_629.275,evm.model.scaffold_9187.8,evm.model.scaffold_1284.200,evm.model.scaffold_7251.61,evm.model.scaffold_1462.192,evm.model.scaffold_11180.129,evm.model.scaffold_1566.119,evm.model.scaffold_639.85,evm.model.scaffold_9187.60,evm.model.scaffold_1146.31,evm.model.scaffold_680.141,evm.model.scaffold_405.58,evm.model.scaffold_1659.166,evm.model.scaffold_924.39,evm.model.scaffold_493.436,evm.model.scaffold_4678.21,evm.model.scaffold_2260.81,evm.model.scaffold_6133.96,evm.model.scaffold_11394.26,evm.model.scaffold_362.49,evm.model.scaffold_225.554,evm.model.scaffold_639.2,evm.model.scaffold_9874.219,evm.model.scaffold_1825.7,evm.model.scaffold_9411.117,evm.model.scaffold_86.61,evm.model.scaffold_1150.190,evm.model.scaffold_741.109,evm.model.scaffold_10269.111,evm.model.scaffold_6679.112,evm.model.scaffold_225.630,evm.model.scaffold_493.376,evm.model.scaffold_1659.465,evm.model.scaffold_1501.590,evm.model.scaffold_924.286,evm.model.scaffold_1566.108,evm.model.scaffold_10885.38,evm.model.scaffold_1012.57,evm.model.scaffold_924.344,evm.model.scaffold_225.397,evm.model.scaffold_6679.54.1,evm.model.scaffold_644.508,evm.model.scaffold_629.240,evm.model.scaffold_1303.450,evm.model.scaffold_2558.17,evm.model.scaffold_1825.64,evm.model.scaffold_953.95,evm.model.scaffold_1566.60,evm.model.scaffold_952.400,evm.model.scaffold_102.82,evm.model.scaffold_639.122,evm.model.scaffold_1560.9,evm.model.scaffold_187.147,evm.model.scaffold_1572.70,evm.model.scaffold_6133.49,evm.model.scaffold_7954.36,evm.model.scaffold_1226.52,evm.model.scaffold_3999.169,evm.model.scaffold_493.392,evm.model.scaffold_6499.17,evm.model.scaffold_1303.167,evm.model.scaffold_1284.310,evm.model.scaffold_680.85,evm.model.scaffold_3806.3,evm.model.scaffold_474.233,evm.model.scaffold_1825.11,evm.model.scaffold_3830.84,evm.model.scaffold_1762.119,evm.model.scaffold_4558.52,evm.model.scaffold_11365.28,evm.model.scaffold_1150.73_evm.model.scaffold_1150.74,evm.model.scaffold_11321.78,evm.model.scaffold_5394.100,evm.model.scaffold_1748.104,evm.model.scaffold_1056.169,evm.model.scaffold_11321.71,evm.model.scaffold_10246.194,evm.model.scaffold_284.92,evm.model.scaffold_1150.26,evm.model.scaffold_9411.21,evm.model.scaffold_566.439,evm.model.scaffold_4461.12"]
["Chr7_Chr8_Chr9","GO:0048367","shoot system development","biological_process",{"v":4.769e-5,"d":"4.77E-05"},0.0048844,{"v":0.253731343283582,"d":"0.25"},"evm.model.scaffold_9086.245,evm.model.scaffold_1284.92,evm.model.scaffold_3806.3,evm.model.scaffold_1150.190,evm.model.scaffold_680.85,evm.model.scaffold_10269.111,evm.model.scaffold_741.109,evm.model.scaffold_9340.99,evm.model.scaffold_493.376,evm.model.scaffold_629.112,evm.model.scaffold_11321.78,evm.model.scaffold_6679.112,evm.model.scaffold_1150.73_evm.model.scaffold_1150.74,evm.model.scaffold_1621.136,evm.model.scaffold_3999.191,evm.model.scaffold_362.49,evm.model.scaffold_9340.131,evm.model.scaffold_1560.9,evm.model.scaffold_102.82,evm.model.scaffold_639.122,evm.model.scaffold_1501.181,evm.model.scaffold_7954.36,evm.model.scaffold_6133.49,evm.model.scaffold_639.2,evm.model.scaffold_225.554,evm.model.scaffold_1521.96,evm.model.scaffold_1150.26,evm.model.scaffold_11180.45,evm.model.scaffold_8034.45,evm.model.scaffold_680.141,evm.model.scaffold_9203.60,evm.model.scaffold_1659.166,evm.model.scaffold_1793.49,evm.model.scaffold_566.439,evm.model.scaffold_4461.12,evm.model.scaffold_1284.266_evm.model.scaffold_1284.267,evm.model.scaffold_423.48,evm.model.scaffold_924.286,evm.model.scaffold_1284.200,evm.model.scaffold_1501.590,evm.model.scaffold_9187.8,evm.model.scaffold_1659.465,evm.model.scaffold_1560.47,evm.model.scaffold_11321.71,evm.model.scaffold_10885.38,evm.model.scaffold_1462.192,evm.model.scaffold_924.344,evm.model.scaffold_644.508,evm.model.scaffold_1146.31,evm.model.scaffold_639.85,evm.model.scaffold_9187.60"]
["Chr7_Chr8_Chr9","GO:0031167","rRNA methylation","biological_process",{"v":6.093e-5,"d":"6.09E-05"},0.0060214,{"v":0.857142857142857,"d":"0.86"},"evm.model.scaffold_1825.206,evm.model.scaffold_644.214,evm.model.scaffold_11005.115,evm.model.scaffold_415.80,evm.model.scaffold_474.130,evm.model.scaffold_10817.127"]
["Chr7_Chr8_Chr9","GO:0016482","cytoplasmic transport","biological_process",{"v":6.945e-5,"d":"6.95E-05"},0.0066332,{"v":0.260869565217391,"d":"0.26"},"evm.model.scaffold_639.97,evm.model.scaffold_9203.133,evm.model.scaffold_896.41,evm.model.scaffold_10246.29,evm.model.scaffold_7954.127,evm.model.scaffold_1284.283,evm.model.scaffold_841.206,evm.model.scaffold_644.280,evm.model.scaffold_644.279,evm.model.scaffold_938.235,evm.model.scaffold_1284.113,evm.model.scaffold_118.572,evm.model.scaffold_362.305,evm.model.scaffold_6133.112,evm.model.scaffold_415.136,evm.model.scaffold_187.77,evm.model.scaffold_10817.187,evm.model.scaffold_10885.178,evm.model.scaffold_10817.189,evm.model.scaffold_493.442,evm.model.scaffold_225.270,evm.model.scaffold_1150.49,evm.model.scaffold_1501.520,evm.model.scaffold_415.135,evm.model.scaffold_1748.2,evm.model.scaffold_1405.213,evm.model.scaffold_1501.221,evm.model.scaffold_7251.41,evm.model.scaffold_1397.41,evm.model.scaffold_1659.384"]
["Chr7_Chr8_Chr9","GO:0010228","vegetative to reproductive phase transition of meristem","biological_process",{"v":7.0144e-5,"d":"7.01E-05"},0.0066332,{"v":0.349206349206349,"d":"0.35"},"evm.model.scaffold_629.60,evm.model.scaffold_98.256,evm.model.scaffold_924.286,evm.model.scaffold_187.147,evm.model.scaffold_1056.169,evm.model.scaffold_1012.57,evm.model.scaffold_938.300,evm.model.scaffold_1659.53,evm.model.scaffold_639.85,evm.model.scaffold_5394.26,evm.model.scaffold_6679.54.1,evm.model.scaffold_680.141,evm.model.scaffold_9086.245,evm.model.scaffold_86.173,evm.model.scaffold_9411.21,evm.model.scaffold_493.309,evm.model.scaffold_4678.21,evm.model.scaffold_3830.84,evm.model.scaffold_1284.266_evm.model.scaffold_1284.267,evm.model.scaffold_551.67,evm.model.scaffold_102.132.1,evm.model.scaffold_1150.73_evm.model.scaffold_1150.74"]
["Chr7_Chr8_Chr9","GO:0010817","regulation of hormone levels","biological_process",{"v":7.3122e-5,"d":"7.31E-05"},0.0066435,{"v":0.354838709677419,"d":"0.35"},"evm.model.scaffold_1226.21,evm.model.scaffold_1501.181,evm.model.scaffold_639.122,evm.model.scaffold_102.82,evm.model.scaffold_1462.192,evm.model.scaffold_5394.100,evm.model.scaffold_1566.60,evm.model.scaffold_1501.590,evm.model.scaffold_9671.140,evm.model.scaffold_1825.64,evm.model.scaffold_6679.112,evm.model.scaffold_629.112,evm.model.scaffold_953.34_evm.model.scaffold_953.33,evm.model.scaffold_6133.160,evm.model.scaffold_741.109,evm.model.scaffold_629.240,evm.model.scaffold_493.436,evm.model.scaffold_474.233,evm.model.scaffold_1284.92,evm.model.scaffold_3806.3,evm.model.scaffold_405.10,evm.model.scaffold_1150.26"]
["Chr7_Chr8_Chr9","GO:0009908","flower development","biological_process",{"v":7.6807e-5,"d":"7.68E-05"},0.0068675,{"v":0.288135593220339,"d":"0.29"},"evm.model.scaffold_102.82,evm.model.scaffold_1560.9,evm.model.scaffold_362.49,evm.model.scaffold_3999.191,evm.model.scaffold_1621.136,evm.model.scaffold_1521.96,evm.model.scaffold_225.554,evm.model.scaffold_639.2,evm.model.scaffold_1501.181,evm.model.scaffold_1150.190,evm.model.scaffold_1284.92,evm.model.scaffold_9086.245,evm.model.scaffold_1150.73_evm.model.scaffold_1150.74,evm.model.scaffold_6679.112,evm.model.scaffold_11321.78,evm.model.scaffold_629.112,evm.model.scaffold_9340.99,evm.model.scaffold_10269.111,evm.model.scaffold_10885.38,evm.model.scaffold_11321.71,evm.model.scaffold_9187.8,evm.model.scaffold_1659.465,evm.model.scaffold_1284.200,evm.model.scaffold_1501.590,evm.model.scaffold_924.286,evm.model.scaffold_9187.60,evm.model.scaffold_639.85,evm.model.scaffold_644.508,evm.model.scaffold_566.439,evm.model.scaffold_1659.166,evm.model.scaffold_680.141,evm.model.scaffold_11180.45,evm.model.scaffold_1284.266_evm.model.scaffold_1284.267,evm.model.scaffold_4461.12"]
["Chr7_Chr8_Chr9","GO:0007031","peroxisome organization","biological_process",0.00010623,0.00935,{"v":0.526315789473684,"d":"0.53"},"evm.model.scaffold_952.182,evm.model.scaffold_924.355,evm.model.scaffold_952.110,evm.model.scaffold_6133.160,evm.model.scaffold_841.197,evm.model.scaffold_680.74,evm.model.scaffold_5394.100,evm.model.scaffold_5250.5,evm.model.scaffold_423.54,evm.model.scaffold_9671.140"]
["Chr7_Chr8_Chr9","GO:0048731","system development","biological_process",0.00010981,0.0095162,{"v":0.205882352941176,"d":"0.21"},"evm.model.scaffold_86.173,evm.model.scaffold_8034.45,evm.model.scaffold_11180.45,evm.model.scaffold_9203.60,evm.model.scaffold_1303.450,evm.model.scaffold_405.70,evm.model.scaffold_4558.9,evm.model.scaffold_1793.49,evm.model.scaffold_629.240,evm.model.scaffold_1284.266_evm.model.scaffold_1284.267,evm.model.scaffold_2558.17,evm.model.scaffold_423.48,evm.model.scaffold_551.67,evm.model.scaffold_965.253,evm.model.scaffold_924.286,evm.model.scaffold_952.150.1,evm.model.scaffold_98.256,evm.model.scaffold_1659.465,evm.model.scaffold_1501.590,evm.model.scaffold_10885.38,evm.model.scaffold_1560.47,evm.model.scaffold_1012.57,evm.model.scaffold_924.344,evm.model.scaffold_288.65,evm.model.scaffold_6133.57,evm.model.scaffold_6679.54.1,evm.model.scaffold_644.508,evm.model.scaffold_12301.20,evm.model.scaffold_9086.245,evm.model.scaffold_1303.29,evm.model.scaffold_1825.7,evm.model.scaffold_1284.92,evm.model.scaffold_1150.190,evm.model.scaffold_741.109,evm.model.scaffold_10269.111,evm.model.scaffold_4503.84,evm.model.scaffold_629.112,evm.model.scaffold_493.376,evm.model.scaffold_102.132.1,evm.model.scaffold_6679.112,evm.model.scaffold_1621.136,evm.model.scaffold_629.60,evm.model.scaffold_362.49,evm.model.scaffold_11394.26,evm.model.scaffold_7251.106,evm.model.scaffold_5250.33.1,evm.model.scaffold_9874.219,evm.model.scaffold_225.554,evm.model.scaffold_1521.96,evm.model.scaffold_1615.80,evm.model.scaffold_639.2,evm.model.scaffold_680.141,evm.model.scaffold_1150.26,evm.model.scaffold_4678.21,evm.model.scaffold_493.436,evm.model.scaffold_2260.81,evm.model.scaffold_9411.21,evm.model.scaffold_1659.166,evm.model.scaffold_566.439,evm.model.scaffold_4461.12,evm.model.scaffold_6133.96,evm.model.scaffold_7251.61,evm.model.scaffold_9187.8,evm.model.scaffold_1284.200,evm.model.scaffold_1748.104,evm.model.scaffold_1056.169,evm.model.scaffold_11321.71,evm.model.scaffold_10246.194,evm.model.scaffold_1462.192,evm.model.scaffold_1566.119,evm.model.scaffold_1146.31,evm.model.scaffold_284.92,evm.model.scaffold_639.85,evm.model.scaffold_9187.60,evm.model.scaffold_6499.17,evm.model.scaffold_1303.167,evm.model.scaffold_493.392,evm.model.scaffold_3806.3,evm.model.scaffold_938.117,evm.model.scaffold_1284.310,evm.model.scaffold_680.85,evm.model.scaffold_493.309,evm.model.scaffold_1762.119,evm.model.scaffold_3830.84,evm.model.scaffold_9340.99,evm.model.scaffold_4558.52,evm.model.scaffold_1150.73_evm.model.scaffold_1150.74,evm.model.scaffold_11321.78,evm.model.scaffold_953.95,evm.model.scaffold_3999.191,evm.model.scaffold_1566.60,evm.model.scaffold_639.122,evm.model.scaffold_102.82,evm.model.scaffold_1560.9,evm.model.scaffold_9340.131,evm.model.scaffold_187.147,evm.model.scaffold_938.300,evm.model.scaffold_187.106,evm.model.scaffold_1659.53,evm.model.scaffold_6133.49,evm.model.scaffold_1501.181,evm.model.scaffold_7954.36,evm.model.scaffold_3999.169,evm.model.scaffold_1226.21,evm.model.scaffold_5394.26"]
["Chr10_Chr11_Chr12","GO:0072593","reactive oxygen species metabolic process","biological_process",{"v":1.9552e-7,"d":"1.96E-07"},0.00025772,{"v":0.653846153846154,"d":"0.65"},"evm.model.scaffold_11127.46,evm.model.scaffold_3417.27,evm.model.scaffold_1374.134,evm.model.scaffold_1365.455,evm.model.scaffold_11127.28,evm.model.scaffold_4095.41,evm.model.scaffold_670.116,evm.model.scaffold_1374.118,evm.model.scaffold_807.68,evm.model.scaffold_500.111,evm.model.scaffold_5723.311,evm.model.scaffold_1591.109,evm.model.scaffold_670.131,evm.model.scaffold_1344.181,evm.model.scaffold_24.21,evm.model.scaffold_1591.68,evm.model.scaffold_981.76"]
["Chr10_Chr11_Chr12","GO:0048367","shoot system development","biological_process",{"v":3.3765e-7,"d":"3.38E-07"},0.00025772,{"v":0.349753694581281,"d":"0.35"},"evm.model.scaffold_381.119,evm.model.scaffold_84.29,evm.model.scaffold_1613.118,evm.model.scaffold_1489.117,evm.model.scaffold_535.532,evm.model.scaffold_379.270,evm.model.scaffold_8080.3,evm.model.scaffold_1366.374,evm.model.scaffold_3249.36,evm.model.scaffold_1366.223,evm.model.scaffold_609.21,evm.model.scaffold_1350.108,evm.model.scaffold_414.90,evm.model.scaffold_3959.26,evm.model.scaffold_6149.146,evm.model.scaffold_1634.132,evm.model.scaffold_14.95,evm.model.scaffold_154.60,evm.model.scaffold_19.108,evm.model.scaffold_1489.299,evm.model.scaffold_1820.259,evm.model.scaffold_103.9,evm.model.scaffold_427.78,evm.model.scaffold_19.114,evm.model.scaffold_745.78,evm.model.scaffold_155.118,evm.model.scaffold_535.133,evm.model.scaffold_1266.258,evm.model.scaffold_414.84,evm.model.scaffold_3604.62.1,evm.model.scaffold_10592.42,evm.model.scaffold_14.101,evm.model.scaffold_831.291.1,evm.model.scaffold_831.296,evm.model.scaffold_1709.192,evm.model.scaffold_1366.220,evm.model.scaffold_1374.170,evm.model.scaffold_255.125,evm.model.scaffold_830.77,evm.model.scaffold_4095.41,evm.model.scaffold_460.616,evm.model.scaffold_262.28,evm.model.scaffold_1197.110,evm.model.scaffold_1710.74,evm.model.scaffold_500.279,evm.model.scaffold_1527.54,evm.model.scaffold_1374.95,evm.model.scaffold_521.149,evm.model.scaffold_398.20,evm.model.scaffold_1776.282.1,evm.model.scaffold_309.226,evm.model.scaffold_255.57,evm.model.scaffold_9124.12,evm.model.scaffold_1366.21,evm.model.scaffold_427.260,evm.model.scaffold_670.97,evm.model.scaffold_236.5_evm.model.scaffold_236.6,evm.model.scaffold_1591.109,evm.model.scaffold_11127.65,evm.model.scaffold_103.64,evm.model.scaffold_40.83,evm.model.scaffold_535.436.1,evm.model.scaffold_10226.55,evm.model.scaffold_1032.150,evm.model.scaffold_1489.194,evm.model.scaffold_637.38,evm.model.scaffold_500.33,evm.model.scaffold_9749.168,evm.model.scaffold_1310.110.2,evm.model.scaffold_10226.48,evm.model.scaffold_1489.518"]
["Chr10_Chr11_Chr12","GO:0006109","regulation of carbohydrate metabolic process","biological_process",{"v":4.6879e-7,"d":"4.69E-07"},0.00029311,{"v":0.761904761904762,"d":"0.76"},"evm.model.scaffold_1366.355,evm.model.scaffold_500.302,evm.model.scaffold_1769.97,evm.model.scaffold_500.279,evm.model.scaffold_154.60,evm.model.scaffold_1197.110,evm.model.scaffold_381.119,evm.model.scaffold_460.616,evm.model.scaffold_255.41,evm.model.scaffold_1374.170,evm.model.scaffold_1350.108,evm.model.scaffold_255.57,evm.model.scaffold_1187.478,evm.model.scaffold_381.135,evm.model.scaffold_637.38,evm.model.scaffold_254.315"]
["Chr10_Chr11_Chr12","GO:0034599","cellular response to oxidative stress","biological_process",{"v":1.0314e-6,"d":"1.03E-06"},0.00049452,{"v":0.666666666666667,"d":"0.67"},"evm.model.scaffold_1365.455,evm.model.scaffold_1310.108,evm.model.scaffold_1591.109,evm.model.scaffold_11127.46,evm.model.scaffold_309.27,evm.model.scaffold_807.68,evm.model.scaffold_3604.56,evm.model.scaffold_830.106,evm.model.scaffold_460.690,evm.model.scaffold_1591.68,evm.model.scaffold_670.116,evm.model.scaffold_1374.118,evm.model.scaffold_4095.41,evm.model.scaffold_656.151"]
["Chr10_Chr11_Chr12","GO:0048580","regulation of post-embryonic development","biological_process",{"v":1.0875e-6,"d":"1.09E-06"},0.00049452,{"v":0.432098765432099,"d":"0.43"},"evm.model.scaffold_381.67,evm.model.scaffold_535.532,evm.model.scaffold_67.29,evm.model.scaffold_1074.122,evm.model.scaffold_500.279,evm.model.scaffold_1769.97,evm.model.scaffold_11038.49,evm.model.scaffold_460.616,evm.model.scaffold_381.119,evm.model.scaffold_1350.108,evm.model.scaffold_1119.24,evm.model.scaffold_1187.478,evm.model.scaffold_1776.282.1,evm.model.scaffold_255.57,evm.model.scaffold_1527.23,evm.model.scaffold_1366.223,evm.model.scaffold_1489.194,evm.model.scaffold_155.118,evm.model.scaffold_427.78,evm.model.scaffold_19.114,evm.model.scaffold_1591.109,evm.model.scaffold_154.60,evm.model.scaffold_1613.32,evm.model.scaffold_427.260,evm.model.scaffold_3959.26,evm.model.scaffold_6149.146,evm.model.scaffold_1634.132,evm.model.scaffold_14.95,evm.model.scaffold_414.200,evm.model.scaffold_521.183,evm.model.scaffold_830.77,evm.model.scaffold_4095.41,evm.model.scaffold_1613.77,evm.model.scaffold_11933.23,evm.model.scaffold_254.315"]
["Chr10_Chr11_Chr12","GO:0048366","leaf development","biological_process",{"v":2.8173e-6,"d":"2.82E-06"},0.0011743,{"v":0.421052631578947,"d":"0.42"},"evm.model.scaffold_1489.299,evm.model.scaffold_1591.109,evm.model.scaffold_236.5_evm.model.scaffold_236.6,evm.model.scaffold_154.60,evm.model.scaffold_19.108,evm.model.scaffold_6149.146,evm.model.scaffold_1489.194,evm.model.scaffold_10226.55,evm.model.scaffold_535.436.1,evm.model.scaffold_500.33,evm.model.scaffold_1709.192,evm.model.scaffold_637.38,evm.model.scaffold_14.101,evm.model.scaffold_831.296,evm.model.scaffold_831.291.1,evm.model.scaffold_3604.62.1,evm.model.scaffold_10592.42,evm.model.scaffold_414.84,evm.model.scaffold_4095.41,evm.model.scaffold_1374.170,evm.model.scaffold_255.125,evm.model.scaffold_10226.48,evm.model.scaffold_1366.220,evm.model.scaffold_1310.110.2,evm.model.scaffold_1613.118,evm.model.scaffold_1527.54,evm.model.scaffold_84.29,evm.model.scaffold_1197.110,evm.model.scaffold_460.616,evm.model.scaffold_535.532,evm.model.scaffold_1489.117,evm.model.scaffold_609.21,evm.model.scaffold_3249.36,evm.model.scaffold_521.149,evm.model.scaffold_1350.108,evm.model.scaffold_9124.12,evm.model.scaffold_414.90,evm.model.scaffold_309.226,evm.model.scaffold_398.20,evm.model.scaffold_1776.282.1"]
["Chr10_Chr11_Chr12","GO:0009791","post-embryonic development","biological_process",{"v":5.1263e-6,"d":"5.13E-06"},0.0019724,{"v":0.303867403314917,"d":"0.30"},"evm.model.scaffold_379.270,evm.model.scaffold_24.21,evm.model.scaffold_1187.533,evm.model.scaffold_529.78,evm.model.scaffold_1489.117,evm.model.scaffold_67.29,evm.model.scaffold_535.532,evm.model.scaffold_381.67,evm.model.scaffold_1769.97,evm.model.scaffold_1074.122,evm.model.scaffold_935.83,evm.model.scaffold_381.119,evm.model.scaffold_1350.108,evm.model.scaffold_414.90,evm.model.scaffold_1166.76,evm.model.scaffold_6567.20,evm.model.scaffold_1187.552,evm.model.scaffold_1366.223,evm.model.scaffold_609.21,evm.model.scaffold_3249.36,evm.model.scaffold_254.263,evm.model.scaffold_155.118,evm.model.scaffold_535.133,evm.model.scaffold_427.78,evm.model.scaffold_19.114,evm.model.scaffold_535.480,evm.model.scaffold_154.60,evm.model.scaffold_19.108,evm.model.scaffold_1613.32,evm.model.scaffold_1820.259,evm.model.scaffold_1489.299,evm.model.scaffold_1634.132,evm.model.scaffold_6149.146,evm.model.scaffold_3959.26,evm.model.scaffold_14.95,evm.model.scaffold_830.77,evm.model.scaffold_1374.170,evm.model.scaffold_521.183,evm.model.scaffold_4095.41,evm.model.scaffold_1613.77,evm.model.scaffold_19.22,evm.model.scaffold_7722.29,evm.model.scaffold_1366.220,evm.model.scaffold_14.101,evm.model.scaffold_11933.23,evm.model.scaffold_831.291.1,evm.model.scaffold_831.296,evm.model.scaffold_1709.192,evm.model.scaffold_6149.48,evm.model.scaffold_414.84,evm.model.scaffold_1266.258,evm.model.scaffold_1032.103,evm.model.scaffold_3604.62.1,evm.model.scaffold_10835.2,evm.model.scaffold_138.93,evm.model.scaffold_683.38,evm.model.scaffold_5723.37,evm.model.scaffold_1197.110,evm.model.scaffold_1710.74,evm.model.scaffold_500.279,evm.model.scaffold_1489.239,evm.model.scaffold_1374.95,evm.model.scaffold_1365.74,evm.model.scaffold_500.111,evm.model.scaffold_1404.151,evm.model.scaffold_11038.49,evm.model.scaffold_460.616,evm.model.scaffold_262.28,evm.model.scaffold_138.90,evm.model.scaffold_9124.12,evm.model.scaffold_398.20,evm.model.scaffold_1119.24,evm.model.scaffold_1187.478,evm.model.scaffold_1776.282.1,evm.model.scaffold_1366.121,evm.model.scaffold_309.226,evm.model.scaffold_255.57,evm.model.scaffold_4841.94,evm.model.scaffold_1527.23,evm.model.scaffold_1266.304,evm.model.scaffold_683.39,evm.model.scaffold_1489.194,evm.model.scaffold_1032.150,evm.model.scaffold_193.29,evm.model.scaffold_535.436.1,evm.model.scaffold_500.359.1,evm.model.scaffold_10226.55,evm.model.scaffold_935.78,evm.model.scaffold_427.260,evm.model.scaffold_1489.489,evm.model.scaffold_11127.65,evm.model.scaffold_670.97,evm.model.scaffold_236.5_evm.model.scaffold_236.6,evm.model.scaffold_1591.109,evm.model.scaffold_535.166,evm.model.scaffold_103.64,evm.model.scaffold_831.195,evm.model.scaffold_414.200,evm.model.scaffold_1769.44,evm.model.scaffold_1489.518,evm.model.scaffold_1310.110.2,evm.model.scaffold_1800.121,evm.model.scaffold_10226.48,evm.model.scaffold_4828.193,evm.model.scaffold_637.38,evm.model.scaffold_1646.122,evm.model.scaffold_3417.27,evm.model.scaffold_9749.168,evm.model.scaffold_254.315,evm.model.scaffold_1820.201"]
["Chr10_Chr11_Chr12","GO:0009553","embryo sac development","biological_process",{"v":8.0124e-6,"d":"8.01E-06"},0.0028156,{"v":0.53125,"d":"0.53"},"evm.model.scaffold_500.406,evm.model.scaffold_14.95,evm.model.scaffold_535.480,evm.model.scaffold_1365.74,evm.model.scaffold_1489.239,evm.model.scaffold_762.284,evm.model.scaffold_19.114,evm.model.scaffold_306.52,evm.model.scaffold_1366.223,evm.model.scaffold_4841.94,evm.model.scaffold_1351.21,evm.model.scaffold_6149.48,evm.model.scaffold_7722.29,evm.model.scaffold_5723.71,evm.model.scaffold_4828.193,evm.model.scaffold_379.177,evm.model.scaffold_1769.44"]
["Chr10_Chr11_Chr12","GO:0050793","regulation of developmental process","biological_process",{"v":8.4433e-6,"d":"8.44E-06"},0.0028156,{"v":0.370860927152318,"d":"0.37"},"evm.model.scaffold_1489.299,evm.model.scaffold_521.17,evm.model.scaffold_427.260,evm.model.scaffold_1591.109,evm.model.scaffold_1613.32,evm.model.scaffold_154.60,evm.model.scaffold_14.95,evm.model.scaffold_6149.146,evm.model.scaffold_3959.26,evm.model.scaffold_1634.132,evm.model.scaffold_193.29,evm.model.scaffold_155.118,evm.model.scaffold_1489.194,evm.model.scaffold_19.114,evm.model.scaffold_609.3,evm.model.scaffold_535.436.1,evm.model.scaffold_427.78,evm.model.scaffold_398.1,evm.model.scaffold_11933.23,evm.model.scaffold_1820.201,evm.model.scaffold_254.315,evm.model.scaffold_1032.103,evm.model.scaffold_1613.77,evm.model.scaffold_4095.41,evm.model.scaffold_1583.221,evm.model.scaffold_830.77,evm.model.scaffold_521.183,evm.model.scaffold_414.200,evm.model.scaffold_906.41,evm.model.scaffold_19.22,evm.model.scaffold_1187.276,evm.model.scaffold_1769.97,evm.model.scaffold_500.279,evm.model.scaffold_1074.122,evm.model.scaffold_683.38,evm.model.scaffold_935.83,evm.model.scaffold_138.90,evm.model.scaffold_381.119,evm.model.scaffold_460.616,evm.model.scaffold_11038.49,evm.model.scaffold_935.44,evm.model.scaffold_3249.3,evm.model.scaffold_868.134,evm.model.scaffold_67.29,evm.model.scaffold_381.67,evm.model.scaffold_906.185,evm.model.scaffold_535.532,evm.model.scaffold_1366.223,evm.model.scaffold_1527.23,evm.model.scaffold_1166.76,evm.model.scaffold_1350.108,evm.model.scaffold_1366.121,evm.model.scaffold_255.57,evm.model.scaffold_1776.282.1,evm.model.scaffold_1119.24,evm.model.scaffold_1187.478"]
["Chr10_Chr11_Chr12","GO:0048608","reproductive structure development","biological_process",{"v":1.5381e-5,"d":"1.54E-05"},0.0045256,{"v":0.311643835616438,"d":"0.31"},"evm.model.scaffold_9749.168,evm.model.scaffold_1646.122,evm.model.scaffold_637.38,evm.model.scaffold_1820.201,evm.model.scaffold_254.315,evm.model.scaffold_1489.518,evm.model.scaffold_1769.44,evm.model.scaffold_414.200,evm.model.scaffold_4828.193,evm.model.scaffold_10226.48,evm.model.scaffold_1800.121,evm.model.scaffold_1310.110.2,evm.model.scaffold_103.64,evm.model.scaffold_427.260,evm.model.scaffold_935.78,evm.model.scaffold_1489.489,evm.model.scaffold_670.97,evm.model.scaffold_11127.65,evm.model.scaffold_535.166,evm.model.scaffold_236.5_evm.model.scaffold_236.6,evm.model.scaffold_193.29,evm.model.scaffold_1032.150,evm.model.scaffold_1489.194,evm.model.scaffold_500.359.1,evm.model.scaffold_10226.55,evm.model.scaffold_535.436.1,evm.model.scaffold_1527.23,evm.model.scaffold_4841.94,evm.model.scaffold_1266.304,evm.model.scaffold_683.39,evm.model.scaffold_9124.12,evm.model.scaffold_309.226,evm.model.scaffold_255.57,evm.model.scaffold_398.20,evm.model.scaffold_1776.282.1,evm.model.scaffold_1187.478,evm.model.scaffold_500.279,evm.model.scaffold_1374.95,evm.model.scaffold_1365.74,evm.model.scaffold_1489.239,evm.model.scaffold_683.38,evm.model.scaffold_5723.37,evm.model.scaffold_1710.74,evm.model.scaffold_1197.110,evm.model.scaffold_138.90,evm.model.scaffold_11038.49,evm.model.scaffold_460.616,evm.model.scaffold_262.28,evm.model.scaffold_10835.2,evm.model.scaffold_138.93,evm.model.scaffold_6149.48,evm.model.scaffold_1709.192,evm.model.scaffold_14.101,evm.model.scaffold_831.291.1,evm.model.scaffold_831.296,evm.model.scaffold_3604.62.1,evm.model.scaffold_1266.258,evm.model.scaffold_414.84,evm.model.scaffold_1032.103,evm.model.scaffold_1613.77,evm.model.scaffold_521.183,evm.model.scaffold_830.77,evm.model.scaffold_1374.170,evm.model.scaffold_1366.220,evm.model.scaffold_7722.29,evm.model.scaffold_1820.259,evm.model.scaffold_1489.299,evm.model.scaffold_535.480,evm.model.scaffold_19.108,evm.model.scaffold_154.60,evm.model.scaffold_3959.26,evm.model.scaffold_6149.146,evm.model.scaffold_1634.132,evm.model.scaffold_155.118,evm.model.scaffold_535.133,evm.model.scaffold_427.78,evm.model.scaffold_609.21,evm.model.scaffold_254.263,evm.model.scaffold_3249.36,evm.model.scaffold_6567.20,evm.model.scaffold_1350.108,evm.model.scaffold_414.90,evm.model.scaffold_1187.552,evm.model.scaffold_1769.97,evm.model.scaffold_935.83,evm.model.scaffold_381.119,evm.model.scaffold_1187.533,evm.model.scaffold_379.270,evm.model.scaffold_381.67,evm.model.scaffold_535.532,evm.model.scaffold_1489.117"]
["Chr10_Chr11_Chr12","GO:0051302","regulation of cell division","biological_process",{"v":1.6888e-5,"d":"1.69E-05"},0.0045325,{"v":0.9,"d":"0.90"},"evm.model.scaffold_6567.20,evm.model.scaffold_9124.12,evm.model.scaffold_309.226,evm.model.scaffold_500.359.1,evm.model.scaffold_1489.117,evm.model.scaffold_138.93,evm.model.scaffold_5723.37,evm.model.scaffold_935.78,evm.model.scaffold_683.39"]
["Chr10_Chr11_Chr12","GO:0006892","post-Golgi vesicle-mediated transport","biological_process",{"v":1.7216e-5,"d":"1.72E-05"},0.0045325,{"v":1,"d":"1.00"},"evm.model.scaffold_1166.79,evm.model.scaffold_19.13,evm.model.scaffold_3007.117,evm.model.scaffold_1366.118,evm.model.scaffold_8080.3,evm.model.scaffold_1366.374,evm.model.scaffold_1366.21,evm.model.scaffold_1820.322,evm.model.scaffold_9092.79"]
["Chr10_Chr11_Chr12","GO:2000026","regulation of multicellular organismal development","biological_process",{"v":2.139e-5,"d":"2.14E-05"},0.0053495,{"v":0.373831775700935,"d":"0.37"},"evm.model.scaffold_1350.108,evm.model.scaffold_255.57,evm.model.scaffold_1119.24,evm.model.scaffold_1776.282.1,evm.model.scaffold_1187.478,evm.model.scaffold_1366.223,evm.model.scaffold_1527.23,evm.model.scaffold_67.29,evm.model.scaffold_535.532,evm.model.scaffold_381.67,evm.model.scaffold_500.279,evm.model.scaffold_1769.97,evm.model.scaffold_1074.122,evm.model.scaffold_381.119,evm.model.scaffold_11038.49,evm.model.scaffold_460.616,evm.model.scaffold_4095.41,evm.model.scaffold_1613.77,evm.model.scaffold_830.77,evm.model.scaffold_521.183,evm.model.scaffold_414.200,evm.model.scaffold_906.41,evm.model.scaffold_11933.23,evm.model.scaffold_1820.201,evm.model.scaffold_1032.103,evm.model.scaffold_254.315,evm.model.scaffold_193.29,evm.model.scaffold_155.118,evm.model.scaffold_1489.194,evm.model.scaffold_19.114,evm.model.scaffold_427.78,evm.model.scaffold_521.17,evm.model.scaffold_427.260,evm.model.scaffold_1613.32,evm.model.scaffold_1591.109,evm.model.scaffold_154.60,evm.model.scaffold_14.95,evm.model.scaffold_3959.26,evm.model.scaffold_6149.146,evm.model.scaffold_1634.132"]
["Chr10_Chr11_Chr12","GO:2000241","regulation of reproductive process","biological_process",{"v":2.7782e-5,"d":"2.78E-05"},0.0063166,{"v":0.4375,"d":"0.44"},"evm.model.scaffold_1187.478,evm.model.scaffold_1776.282.1,evm.model.scaffold_255.57,evm.model.scaffold_830.77,evm.model.scaffold_1350.108,evm.model.scaffold_521.183,evm.model.scaffold_414.200,evm.model.scaffold_1613.77,evm.model.scaffold_10683.25,evm.model.scaffold_254.315,evm.model.scaffold_1187.283,evm.model.scaffold_1527.23,evm.model.scaffold_427.78,evm.model.scaffold_381.67,evm.model.scaffold_535.532,evm.model.scaffold_155.118,evm.model.scaffold_1489.194,evm.model.scaffold_11038.49,evm.model.scaffold_460.616,evm.model.scaffold_1634.132,evm.model.scaffold_6149.146,evm.model.scaffold_3959.26,evm.model.scaffold_381.119,evm.model.scaffold_427.260,evm.model.scaffold_154.60,evm.model.scaffold_1769.97,evm.model.scaffold_500.279,evm.model.scaffold_1583.246"]
["Chr10_Chr11_Chr12","GO:0000027","ribosomal large subunit assembly","biological_process",{"v":3.1893e-5,"d":"3.19E-05"},0.0069361,{"v":1,"d":"1.00"},"evm.model.scaffold_535.500,evm.model.scaffold_1351.21,evm.model.scaffold_6149.109,evm.model.scaffold_1489.216,evm.model.scaffold_500.406,evm.model.scaffold_5723.71"]
["Chr10_Chr11_Chr12","GO:0060918","auxin transport","biological_process",{"v":3.5233e-5,"d":"3.52E-05"},0.0073169,{"v":0.62962962962963,"d":"0.63"},"evm.model.scaffold_10226.55,evm.model.scaffold_8080.3,evm.model.scaffold_1366.374,evm.model.scaffold_138.90,evm.model.scaffold_935.83,evm.model.scaffold_1591.109,evm.model.scaffold_1197.110,evm.model.scaffold_683.38,evm.model.scaffold_10226.48,evm.model.scaffold_414.90,evm.model.scaffold_1374.170,evm.model.scaffold_1366.21,evm.model.scaffold_4095.41,evm.model.scaffold_414.84,evm.model.scaffold_831.296,evm.model.scaffold_831.291.1,evm.model.scaffold_637.38"]
["Chr10_Chr11_Chr12","GO:0071395","cellular response to jasmonic acid stimulus","biological_process",{"v":3.657e-5,"d":"3.66E-05"},0.0073169,{"v":0.705882352941177,"d":"0.71"},"evm.model.scaffold_500.111,evm.model.scaffold_1769.97,evm.model.scaffold_500.279,evm.model.scaffold_3417.27,evm.model.scaffold_427.260,evm.model.scaffold_381.119,evm.model.scaffold_3959.26,evm.model.scaffold_254.315,evm.model.scaffold_24.21,evm.model.scaffold_255.57,evm.model.scaffold_427.78,evm.model.scaffold_1187.478"]
["Chr10_Chr11_Chr12","GO:0009851","auxin biosynthetic process","biological_process",{"v":3.9632e-5,"d":"3.96E-05"},0.0076246,{"v":1,"d":"1.00"},"evm.model.scaffold_1187.276,evm.model.scaffold_1583.221,evm.model.scaffold_1197.110,evm.model.scaffold_1374.170,evm.model.scaffold_637.38,evm.model.scaffold_868.134"]
["Chr10_Chr11_Chr12","GO:0009926","auxin polar transport","biological_process",{"v":4.2344e-5,"d":"4.23E-05"},0.0078447,{"v":0.681818181818182,"d":"0.68"},"evm.model.scaffold_1366.21,evm.model.scaffold_1366.374,evm.model.scaffold_414.90,evm.model.scaffold_8080.3,evm.model.scaffold_1374.170,evm.model.scaffold_10226.55,evm.model.scaffold_10226.48,evm.model.scaffold_1197.110,evm.model.scaffold_831.291.1,evm.model.scaffold_831.296,evm.model.scaffold_637.38,evm.model.scaffold_683.38,evm.model.scaffold_138.90,evm.model.scaffold_935.83,evm.model.scaffold_414.84"]
["Chr10_Chr11_Chr12","GO:0006473","protein acetylation","biological_process",{"v":5.561e-5,"d":"5.56E-05"},0.009272,{"v":1,"d":"1.00"},"evm.model.scaffold_7907.39,evm.model.scaffold_440.13,evm.model.scaffold_4828.136,evm.model.scaffold_11038.49,evm.model.scaffold_3636.100,evm.model.scaffold_414.200"]
["Chr10_Chr11_Chr12","GO:0051301","cell division","biological_process",{"v":5.7833e-5,"d":"5.78E-05"},0.0093317,{"v":0.512820512820513,"d":"0.51"},"evm.model.scaffold_19.114,evm.model.scaffold_500.359.1,evm.model.scaffold_745.78,evm.model.scaffold_138.93,evm.model.scaffold_103.9,evm.model.scaffold_1489.117,evm.model.scaffold_40.83,evm.model.scaffold_935.78,evm.model.scaffold_5723.37,evm.model.scaffold_14.95,evm.model.scaffold_255.41,evm.model.scaffold_6567.20,evm.model.scaffold_9124.12,evm.model.scaffold_309.226,evm.model.scaffold_398.20,evm.model.scaffold_609.21,evm.model.scaffold_1709.192,evm.model.scaffold_1366.223,evm.model.scaffold_683.39,evm.model.scaffold_3249.36"]
["Chr10_Chr11_Chr12","GO:0003006","developmental process involved in reproduction","biological_process",{"v":6.2753e-5,"d":"6.28E-05"},0.0098091,{"v":0.292753623188406,"d":"0.29"},"evm.model.scaffold_3601.137,evm.model.scaffold_9124.12,evm.model.scaffold_309.226,evm.model.scaffold_255.57,evm.model.scaffold_3183.14,evm.model.scaffold_398.20,evm.model.scaffold_1187.478,evm.model.scaffold_1776.282.1,evm.model.scaffold_1527.23,evm.model.scaffold_4841.94,evm.model.scaffold_1266.304,evm.model.scaffold_683.39,evm.model.scaffold_138.93,evm.model.scaffold_762.284,evm.model.scaffold_10835.2,evm.model.scaffold_500.279,evm.model.scaffold_1374.95,evm.model.scaffold_1365.74,evm.model.scaffold_1489.239,evm.model.scaffold_5723.37,evm.model.scaffold_683.38,evm.model.scaffold_1197.110,evm.model.scaffold_1710.74,evm.model.scaffold_138.90,evm.model.scaffold_11038.49,evm.model.scaffold_460.616,evm.model.scaffold_262.28,evm.model.scaffold_427.428,evm.model.scaffold_379.177,evm.model.scaffold_1489.518,evm.model.scaffold_1769.44,evm.model.scaffold_414.200,evm.model.scaffold_4828.193,evm.model.scaffold_10226.48,evm.model.scaffold_1800.121,evm.model.scaffold_1310.110.2,evm.model.scaffold_9749.168,evm.model.scaffold_637.38,evm.model.scaffold_1646.122,evm.model.scaffold_1820.201,evm.model.scaffold_254.315,evm.model.scaffold_193.29,evm.model.scaffold_1032.150,evm.model.scaffold_1489.194,evm.model.scaffold_500.359.1,evm.model.scaffold_10226.55,evm.model.scaffold_535.436.1,evm.model.scaffold_103.64,evm.model.scaffold_427.260,evm.model.scaffold_935.78,evm.model.scaffold_1489.489,evm.model.scaffold_670.97,evm.model.scaffold_11127.65,evm.model.scaffold_236.5_evm.model.scaffold_236.6,evm.model.scaffold_535.166,evm.model.scaffold_6567.20,evm.model.scaffold_1350.108,evm.model.scaffold_414.90,evm.model.scaffold_1187.552,evm.model.scaffold_609.21,evm.model.scaffold_1366.223,evm.model.scaffold_306.52,evm.model.scaffold_254.263,evm.model.scaffold_3249.36,evm.model.scaffold_1187.533,evm.model.scaffold_379.270,evm.model.scaffold_381.67,evm.model.scaffold_535.532,evm.model.scaffold_1489.117,evm.model.scaffold_1769.97,evm.model.scaffold_935.83,evm.model.scaffold_381.119,evm.model.scaffold_1613.77,evm.model.scaffold_521.183,evm.model.scaffold_830.77,evm.model.scaffold_1374.170,evm.model.scaffold_1366.220,evm.model.scaffold_7722.29,evm.model.scaffold_1709.192,evm.model.scaffold_6149.48,evm.model.scaffold_14.101,evm.model.scaffold_831.291.1,evm.model.scaffold_831.296,evm.model.scaffold_3604.62.1,evm.model.scaffold_3959.142,evm.model.scaffold_414.84,evm.model.scaffold_1266.258,evm.model.scaffold_1032.103,evm.model.scaffold_155.118,evm.model.scaffold_535.133,evm.model.scaffold_19.114,evm.model.scaffold_427.78,evm.model.scaffold_1820.259,evm.model.scaffold_1489.299,evm.model.scaffold_535.480,evm.model.scaffold_154.60,evm.model.scaffold_19.108,evm.model.scaffold_14.95,evm.model.scaffold_6149.146,evm.model.scaffold_1634.132,evm.model.scaffold_3959.26"]
["Chr13_Chr14_Chr15","GO:0009664","plant-type cell wall organization","biological_process",{"v":3.1463e-7,"d":"3.15E-07"},0.00059119,{"v":0.511627906976744,"d":"0.51"},"evm.model.scaffold_1389.10,evm.model.scaffold_5386.25,evm.model.scaffold_7068.25,evm.model.scaffold_1662.190,evm.model.scaffold_25.57,evm.model.scaffold_490.254,evm.model.scaffold_4404.201,evm.model.scaffold_1427.105,evm.model.scaffold_352.126,evm.model.scaffold_948.77,evm.model.scaffold_693.20,evm.model.scaffold_455.181,evm.model.scaffold_6528.33,evm.model.scaffold_1455.169,evm.model.scaffold_8801.304,evm.model.scaffold_1713.81,evm.model.scaffold_1416.35,evm.model.scaffold_1016.118,evm.model.scaffold_1403.66,evm.model.scaffold_1149.381,evm.model.scaffold_320.347,evm.model.scaffold_1149.273"]
["Chr13_Chr14_Chr15","GO:0042273","ribosomal large subunit biogenesis","biological_process",{"v":1.2601e-6,"d":"1.26E-06"},0.00099844,{"v":1,"d":"1.00"},"evm.model.scaffold_858.320,evm.model.scaffold_1573.358,evm.model.scaffold_1573.780,evm.model.scaffold_1654.251,evm.model.scaffold_4353.84,evm.model.scaffold_62.212"]
["Chr13_Chr14_Chr15","GO:0019915","lipid storage","biological_process",{"v":1.2993e-6,"d":"1.30E-06"},0.00099844,{"v":1,"d":"1.00"},"evm.model.scaffold_1089.164,evm.model.scaffold_296.127,evm.model.scaffold_553.137,evm.model.scaffold_1478.30,evm.model.scaffold_948.93,evm.model.scaffold_4060.83,evm.model.scaffold_132.190"]
["Chr13_Chr14_Chr15","GO:0070988","demethylation","biological_process",{"v":1.3394e-6,"d":"1.34E-06"},0.00099844,{"v":1,"d":"1.00"},"evm.model.scaffold_811.422,evm.model.scaffold_622.251,evm.model.scaffold_1600.87,evm.model.scaffold_455.359,evm.model.scaffold_1573.933,evm.model.scaffold_1403.109,evm.model.scaffold_320.213,evm.model.scaffold_1298.43,evm.model.scaffold_4404.51"]
["Chr13_Chr14_Chr15","GO:0006893","Golgi to plasma membrane transport","biological_process",{"v":1.3971e-6,"d":"1.40E-06"},0.00099844,{"v":1,"d":"1.00"},"evm.model.scaffold_425.567,evm.model.scaffold_1573.303,evm.model.scaffold_1506.329,evm.model.scaffold_296.130,evm.model.scaffold_1573.736,evm.model.scaffold_1506.504,evm.model.scaffold_553.121,evm.model.scaffold_8474.55,evm.model.scaffold_132.160"]
["Chr13_Chr14_Chr15","GO:0071669","plant-type cell wall organization or biogenesis","biological_process",{"v":1.6949e-6,"d":"1.69E-06"},0.0010616,{"v":0.4,"d":"0.40"},"evm.model.scaffold_6528.33,evm.model.scaffold_1455.169,evm.model.scaffold_1042.301,evm.model.scaffold_1389.10,evm.model.scaffold_694.37,evm.model.scaffold_1004.21,evm.model.scaffold_490.254,evm.model.scaffold_1520.251,evm.model.scaffold_1806.830,evm.model.scaffold_693.20,evm.model.scaffold_455.181,evm.model.scaffold_126.23,evm.model.scaffold_8801.304,evm.model.scaffold_1713.81,evm.model.scaffold_1416.35,evm.model.scaffold_1016.118,evm.model.scaffold_1403.66,evm.model.scaffold_6400.11,evm.model.scaffold_1149.381,evm.model.scaffold_1149.273,evm.model.scaffold_320.347,evm.model.scaffold_1483.52,evm.model.scaffold_461.151,evm.model.scaffold_1089.132,evm.model.scaffold_5386.25,evm.model.scaffold_3615.39,evm.model.scaffold_7068.25,evm.model.scaffold_6045.22,evm.model.scaffold_1662.190,evm.model.scaffold_25.57,evm.model.scaffold_4404.201,evm.model.scaffold_1427.105,evm.model.scaffold_352.126,evm.model.scaffold_948.77"]
["Chr13_Chr14_Chr15","GO:0006094","gluconeogenesis","biological_process",{"v":2.5295e-6,"d":"2.53E-06"},0.0014259,{"v":1,"d":"1.00"},"evm.model.scaffold_1273.117,evm.model.scaffold_1478.221,evm.model.scaffold_10346.333,evm.model.scaffold_1828.4,evm.model.scaffold_1688.213,evm.model.scaffold_271.432,evm.model.scaffold_191.210"]
["Chr13_Chr14_Chr15","GO:0009163","nucleoside biosynthetic process","biological_process",{"v":7.8217e-6,"d":"7.82E-06"},0.0029394,{"v":0.6,"d":"0.60"},"evm.model.scaffold_3711.32,evm.model.scaffold_1298.138,evm.model.scaffold_1654.273,evm.model.scaffold_320.96,evm.model.scaffold_1403.185,evm.model.scaffold_1298.136,evm.model.scaffold_1573.820,evm.model.scaffold_9738.16,evm.model.scaffold_9738.19,evm.model.scaffold_1573.394,evm.model.scaffold_320.97,evm.model.scaffold_644.95"]
["Chr13_Chr14_Chr15","GO:0030388","fructose 1,6-bisphosphate metabolic process","biological_process",{"v":1.1834e-5,"d":"1.18E-05"},0.0039239,{"v":1,"d":"1.00"},"evm.model.scaffold_10346.333,evm.model.scaffold_1478.221,evm.model.scaffold_1273.117,evm.model.scaffold_1828.4,evm.model.scaffold_271.432,evm.model.scaffold_1688.213"]
["Chr13_Chr14_Chr15","GO:0000255","allantoin metabolic process","biological_process",{"v":1.5394e-5,"d":"1.54E-05"},0.0041817,{"v":1,"d":"1.00"},"evm.model.scaffold_4404.157,evm.model.scaffold_443.377,evm.model.scaffold_5404.195,evm.model.scaffold_8801.333,evm.model.scaffold_455.225,evm.model.scaffold_1999.11"]
["Chr13_Chr14_Chr15","GO:0045995","regulation of embryonic development","biological_process",{"v":2.024e-5,"d":"2.02E-05"},0.0048015,{"v":1,"d":"1.00"},"evm.model.scaffold_858.22,evm.model.scaffold_455.319,evm.model.scaffold_8801.406,evm.model.scaffold_9367.5,evm.model.scaffold_1816.26,evm.model.scaffold_4404.77"]
["Chr13_Chr14_Chr15","GO:0045682","regulation of epidermis development","biological_process",{"v":2.334e-5,"d":"2.33E-05"},0.0050462,{"v":1,"d":"1.00"},"evm.model.scaffold_944.191,evm.model.scaffold_858.22,evm.model.scaffold_213.44,evm.model.scaffold_1589.29,evm.model.scaffold_9367.5,evm.model.scaffold_1816.26"]
["Chr13_Chr14_Chr15","GO:0016051","carbohydrate biosynthetic process","biological_process",{"v":2.718e-5,"d":"2.72E-05"},0.0050462,{"v":0.316546762589928,"d":"0.32"},"evm.model.scaffold_271.432,evm.model.scaffold_9204.31,evm.model.scaffold_9494.146,evm.model.scaffold_1042.301,evm.model.scaffold_271.363,evm.model.scaffold_1042.237,evm.model.scaffold_508.120,evm.model.scaffold_694.37,evm.model.scaffold_1004.21,evm.model.scaffold_113.170,evm.model.scaffold_191.210,evm.model.scaffold_530.174,evm.model.scaffold_5386.5,evm.model.scaffold_1828.4,evm.model.scaffold_213.230,evm.model.scaffold_1688.213,evm.model.scaffold_1713.68,evm.model.scaffold_1688.282_evm.model.scaffold_1688.283,evm.model.scaffold_1520.251,evm.model.scaffold_1483.140,evm.model.scaffold_126.23,evm.model.scaffold_504.140,evm.model.scaffold_1806.830,evm.model.scaffold_455.181,evm.model.scaffold_455.185,evm.model.scaffold_1273.117,evm.model.scaffold_1478.221,evm.model.scaffold_8801.304,evm.model.scaffold_8801.313,evm.model.scaffold_1448.24,evm.model.scaffold_1483.52,evm.model.scaffold_461.151,evm.model.scaffold_1149.381,evm.model.scaffold_6400.11,evm.model.scaffold_1149.273,evm.model.scaffold_10346.333,evm.model.scaffold_1089.132,evm.model.scaffold_6045.22,evm.model.scaffold_4404.196,evm.model.scaffold_3615.39,evm.model.scaffold_7068.3,evm.model.scaffold_464.142,evm.model.scaffold_4404.201,evm.model.scaffold_352.126"]
["Chr13_Chr14_Chr15","GO:0010192","mucilage biosynthetic process","biological_process",{"v":2.741e-5,"d":"2.74E-05"},0.0050462,{"v":1,"d":"1.00"},"evm.model.scaffold_1818.59,evm.model.scaffold_1470.93,evm.model.scaffold_455.181,evm.model.scaffold_4404.201,evm.model.scaffold_175.48,evm.model.scaffold_8801.304"]
["Chr13_Chr14_Chr15","GO:0006754","ATP biosynthetic process","biological_process",{"v":2.9784e-5,"d":"2.98E-05"},0.0050462,{"v":0.692307692307692,"d":"0.69"},"evm.model.scaffold_644.95,evm.model.scaffold_320.97,evm.model.scaffold_1298.136,evm.model.scaffold_320.96,evm.model.scaffold_1403.185,evm.model.scaffold_9738.19,evm.model.scaffold_9738.16,evm.model.scaffold_1298.138,evm.model.scaffold_3711.32"]
["Chr13_Chr14_Chr15","GO:0006892","post-Golgi vesicle-mediated transport","biological_process",{"v":3.0437e-5,"d":"3.04E-05"},0.0050462,{"v":0.666666666666667,"d":"0.67"},"evm.model.scaffold_1506.504,evm.model.scaffold_1573.736,evm.model.scaffold_296.130,evm.model.scaffold_1506.329,evm.model.scaffold_425.567,evm.model.scaffold_1573.303,evm.model.scaffold_8474.55,evm.model.scaffold_132.160,evm.model.scaffold_622.29,evm.model.scaffold_553.121,evm.model.scaffold_1189.166,evm.model.scaffold_858.582"]
["Chr13_Chr14_Chr15","GO:0015985","energy coupled proton transport, down electrochemical gradient","biological_process",{"v":4.1528e-5,"d":"4.15E-05"},0.0063268,{"v":0.727272727272727,"d":"0.73"},"evm.model.scaffold_1403.185,evm.model.scaffold_320.96,evm.model.scaffold_1298.136,evm.model.scaffold_9738.16,evm.model.scaffold_644.95,evm.model.scaffold_320.97,evm.model.scaffold_3711.32,evm.model.scaffold_1298.138"]
["Chr13_Chr14_Chr15","GO:0015718","monocarboxylic acid transport","biological_process",{"v":5.2284e-5,"d":"5.23E-05"},0.007557,{"v":0.571428571428571,"d":"0.57"},"evm.model.scaffold_62.11,evm.model.scaffold_1390.24,evm.model.scaffold_1520.191,evm.model.scaffold_1015.10,evm.model.scaffold_1662.163,evm.model.scaffold_490.23,evm.model.scaffold_113.154,evm.model.scaffold_858.541,evm.model.scaffold_1239.94,evm.model.scaffold_1662.122,evm.model.scaffold_212.31,evm.model.scaffold_1049.119"]
["Chr13_Chr14_Chr15","GO:0010876","lipid localization","biological_process",{"v":6.1842e-5,"d":"6.18E-05"},0.0084378,{"v":0.41025641025641,"d":"0.41"},"evm.model.scaffold_1478.30,evm.model.scaffold_4060.83,evm.model.scaffold_1662.122,evm.model.scaffold_490.23,evm.model.scaffold_948.93,evm.model.scaffold_1189.136,evm.model.scaffold_1089.164,evm.model.scaffold_622.51,evm.model.scaffold_1520.191,evm.model.scaffold_132.190,evm.model.scaffold_1049.119,evm.model.scaffold_553.137,evm.model.scaffold_8662.10,evm.model.scaffold_1239.94,evm.model.scaffold_1662.163,evm.model.scaffold_296.127"]
["Chr13_Chr14_Chr15","GO:0048366","leaf development","biological_process",{"v":6.2868e-5,"d":"6.29E-05"},0.0084378,{"v":0.300751879699248,"d":"0.30"},"evm.model.scaffold_1573.469,evm.model.scaffold_644.128,evm.model.scaffold_10274.74,evm.model.scaffold_9494.146,evm.model.scaffold_7325.6,evm.model.scaffold_1506.534,evm.model.scaffold_2680.41,evm.model.scaffold_455.223,evm.model.scaffold_1573.253,evm.model.scaffold_6528.33,evm.model.scaffold_1052.127,evm.model.scaffold_1573.433,evm.model.scaffold_1816.26,evm.model.scaffold_10841.16,evm.model.scaffold_218.58,evm.model.scaffold_1654.292,evm.model.scaffold_9494.224,evm.model.scaffold_1573.183,evm.model.scaffold_10346.323,evm.model.scaffold_4404.27,evm.model.scaffold_9367.5,evm.model.scaffold_184.45,evm.model.scaffold_693.61,evm.model.scaffold_1403.35,evm.model.scaffold_1416.35,evm.model.scaffold_8148.13,evm.model.scaffold_1016.118,evm.model.scaffold_4404.159,evm.model.scaffold_1506.376,evm.model.scaffold_1573.833,evm.model.scaffold_858.22,evm.model.scaffold_8474.24,evm.model.scaffold_1478.185,evm.model.scaffold_1478.240,evm.model.scaffold_12000.57,evm.model.scaffold_5386.30,evm.model.scaffold_218.128,evm.model.scaffold_320.382,evm.model.scaffold_8801.331,evm.model.scaffold_1713.85"]
["Chr13_Chr14_Chr15","GO:0060321","acceptance of pollen","biological_process",{"v":7.6657e-5,"d":"7.67E-05"},0.0096026,{"v":1,"d":"1.00"},"evm.model.scaffold_553.121,evm.model.scaffold_425.567,evm.model.scaffold_1573.303,evm.model.scaffold_132.160,evm.model.scaffold_1573.736,evm.model.scaffold_296.130"]
["Chr16_Chr17_Chr18","GO:0005976","polysaccharide metabolic process","biological_process",{"v":1.1541e-7,"d":"1.15E-07"},0.00062405,{"v":0.3046875,"d":"0.30"},"evm.model.scaffold_1449.91,evm.model.scaffold_9357.61,evm.model.scaffold_1540.122,evm.model.scaffold_265.31,evm.model.scaffold_1075.30,evm.model.scaffold_1784.70,evm.model.scaffold_1654.214,evm.model.scaffold_108.142,evm.model.scaffold_1638.420,evm.model.scaffold_2377.20,evm.model.scaffold_3682.19,evm.model.scaffold_1449.54,evm.model.scaffold_1660.11,evm.model.scaffold_6580.25,evm.model.scaffold_108.116,evm.model.scaffold_964.125,evm.model.scaffold_1509.74,evm.model.scaffold_10154.76,evm.model.scaffold_9289.10,evm.model.scaffold_468.403,evm.model.scaffold_1809.253,evm.model.scaffold_384.50,evm.model.scaffold_244.32,evm.model.scaffold_611.11,evm.model.scaffold_384.234,evm.model.scaffold_9583.34_evm.model.scaffold_9583.35,evm.model.scaffold_1094.64,evm.model.scaffold_382.81,evm.model.scaffold_1075.11,evm.model.scaffold_1540.14,evm.model.scaffold_1419.212,evm.model.scaffold_7325.56,evm.model.scaffold_384.225,evm.model.scaffold_1654.82,evm.model.scaffold_1247.53,evm.model.scaffold_985.24.1,evm.model.scaffold_1638.427,evm.model.scaffold_1819.32,evm.model.scaffold_1419.60"]
["Chr16_Chr17_Chr18","GO:0010190","cytochrome b6f complex assembly","biological_process",{"v":2.3251e-6,"d":"2.33E-06"},0.0025144,{"v":1,"d":"1.00"},"evm.model.scaffold_6299.11,evm.model.scaffold_1618.18,evm.model.scaffold_108.125,evm.model.scaffold_1449.74,evm.model.scaffold_1075.27,evm.model.scaffold_1265.288"]
["Chr16_Chr17_Chr18","GO:0000271","polysaccharide biosynthetic process","biological_process",{"v":1.083e-5,"d":"1.08E-05"},0.0073196,{"v":0.316455696202532,"d":"0.32"},"evm.model.scaffold_108.142,evm.model.scaffold_1819.32,evm.model.scaffold_2377.20,evm.model.scaffold_985.24.1,evm.model.scaffold_1247.53,evm.model.scaffold_1654.82,evm.model.scaffold_1638.427,evm.model.scaffold_7325.56,evm.model.scaffold_384.225,evm.model.scaffold_1540.14,evm.model.scaffold_964.125,evm.model.scaffold_1660.11,evm.model.scaffold_6580.25,evm.model.scaffold_108.116,evm.model.scaffold_1449.54,evm.model.scaffold_1419.60,evm.model.scaffold_384.50,evm.model.scaffold_244.32,evm.model.scaffold_9357.61,evm.model.scaffold_1449.91,evm.model.scaffold_1809.253,evm.model.scaffold_468.403,evm.model.scaffold_382.81,evm.model.scaffold_1075.30,evm.model.scaffold_1075.11"]
["Chr16_Chr17_Chr18","GO:0006505","GPI anchor metabolic process","biological_process",{"v":1.5684e-5,"d":"1.57E-05"},0.0075382,{"v":1,"d":"1.00"},"evm.model.scaffold_1333.406,evm.model.scaffold_7432.14,evm.model.scaffold_1467.16,evm.model.scaffold_1638.218,evm.model.scaffold_7056.25,evm.model.scaffold_3073.87"]
["Chr16_Chr17_Chr18","GO:0043547","positive regulation of GTPase activity","biological_process",{"v":1.7402e-5,"d":"1.74E-05"},0.0075382,{"v":0.458333333333333,"d":"0.46"},"evm.model.scaffold_985.79,evm.model.scaffold_1809.46,evm.model.scaffold_11778.15,evm.model.scaffold_9007.23,evm.model.scaffold_8056.17,evm.model.scaffold_5966.20,evm.model.scaffold_10191.153,evm.model.scaffold_332.82,evm.model.scaffold_305.99,evm.model.scaffold_509.65,evm.model.scaffold_197.177"]
["Chr16_Chr17_Chr18","GO:0010393","galacturonan metabolic process","biological_process",{"v":1.8082e-5,"d":"1.81E-05"},0.0075382,{"v":0.384615384615385,"d":"0.38"},"evm.model.scaffold_10154.76,evm.model.scaffold_9289.10,evm.model.scaffold_468.403,evm.model.scaffold_1247.53,evm.model.scaffold_1654.82,evm.model.scaffold_1449.91,evm.model.scaffold_1540.122,evm.model.scaffold_244.32,evm.model.scaffold_384.50,evm.model.scaffold_108.116,evm.model.scaffold_1660.11,evm.model.scaffold_1075.30,evm.model.scaffold_1094.64,evm.model.scaffold_265.31,evm.model.scaffold_1784.70"]
["Chr16_Chr17_Chr18","GO:0016579","protein deubiquitination","biological_process",{"v":2.0912e-5,"d":"2.09E-05"},0.0075382,{"v":0.444444444444444,"d":"0.44"},"evm.model.scaffold_1809.171,evm.model.scaffold_926.35,evm.model.scaffold_1726.22,evm.model.scaffold_1570.53,evm.model.scaffold_616.137,evm.model.scaffold_396.357,evm.model.scaffold_265.184,evm.model.scaffold_699.42,evm.model.scaffold_985.11,evm.model.scaffold_995.82,evm.model.scaffold_675.35,evm.model.scaffold_4753.45"]
["Chr16_Chr17_Chr18","GO:0006664","glycolipid metabolic process","biological_process",{"v":2.5328e-5,"d":"2.53E-05"},0.0085594,{"v":0.727272727272727,"d":"0.73"},"evm.model.scaffold_1333.406,evm.model.scaffold_7432.14,evm.model.scaffold_1467.16,evm.model.scaffold_1831.232,evm.model.scaffold_7056.25,evm.model.scaffold_265.4,evm.model.scaffold_1638.218,evm.model.scaffold_3073.87"]
["Chr19_Chr20_Chr21","GO:0009083","branched-chain amino acid catabolic process","biological_process",{"v":3.2296e-7,"d":"3.23E-07"},0.00022325,{"v":0.9,"d":"0.90"},"evm.model.scaffold_11810.97,evm.model.scaffold_7419.224.1,evm.model.scaffold_5489.53,evm.model.scaffold_1780.66,evm.model.scaffold_3880.66,evm.model.scaffold_195.45,evm.model.scaffold_518.320,evm.model.scaffold_369.183,evm.model.scaffold_1675.21"]
["Chr19_Chr20_Chr21","GO:0009081","branched-chain amino acid metabolic process","biological_process",{"v":7.6348e-7,"d":"7.63E-07"},0.00037533,0.65,"evm.model.scaffold_1675.21,evm.model.scaffold_851.89,evm.model.scaffold_518.320,evm.model.scaffold_195.45,evm.model.scaffold_369.183,evm.model.scaffold_3880.66,evm.model.scaffold_1780.66,evm.model.scaffold_10013.19,evm.model.scaffold_11810.97,evm.model.scaffold_396.95,evm.model.scaffold_843.285,evm.model.scaffold_7419.224.1,evm.model.scaffold_5489.53"]
["Chr19_Chr20_Chr21","GO:1900057","positive regulation of leaf senescence","biological_process",{"v":2.5056e-6,"d":"2.51E-06"},0.0011198,{"v":1,"d":"1.00"},"evm.model.scaffold_299.12,evm.model.scaffold_620.350,evm.model.scaffold_4640.30,evm.model.scaffold_1421.113,evm.model.scaffold_960.166,evm.model.scaffold_1736.192"]
["Chr19_Chr20_Chr21","GO:0008380","RNA splicing","biological_process",{"v":4.2389e-6,"d":"4.24E-06"},0.0017365,{"v":0.477272727272727,"d":"0.48"},"evm.model.scaffold_110.314,evm.model.scaffold_1321.80,evm.model.scaffold_907.247,evm.model.scaffold_4175.8,evm.model.scaffold_640.142,evm.model.scaffold_851.63,evm.model.scaffold_5387.36,evm.model.scaffold_110.237,evm.model.scaffold_2926.4,evm.model.scaffold_10008.15,evm.model.scaffold_396.55,evm.model.scaffold_1067.34,evm.model.scaffold_699.857,evm.model.scaffold_699.761,evm.model.scaffold_4785.80,evm.model.scaffold_1780.14,evm.model.scaffold_5271.13,evm.model.scaffold_817.60,evm.model.scaffold_1036.84,evm.model.scaffold_727.298,evm.model.scaffold_8008.2"]
["Chr19_Chr20_Chr21","GO:1900055","regulation of leaf senescence","biological_process",{"v":1.3131e-5,"d":"1.31E-05"},0.0049654,{"v":0.727272727272727,"d":"0.73"},"evm.model.scaffold_960.166,evm.model.scaffold_1421.113,evm.model.scaffold_1736.192,evm.model.scaffold_1124.2,evm.model.scaffold_620.350,evm.model.scaffold_299.12,evm.model.scaffold_7863.265,evm.model.scaffold_4640.30"]
["Chr19_Chr20_Chr21","GO:0046500","S-adenosylmethionine metabolic process","biological_process",{"v":1.4667e-5,"d":"1.47E-05"},0.0051502,{"v":1,"d":"1.00"},"evm.model.scaffold_277.165,evm.model.scaffold_4328.43,evm.model.scaffold_18.47,evm.model.scaffold_727.128,evm.model.scaffold_10013.29,evm.model.scaffold_8180.8"]
["Chr19_Chr20_Chr21","GO:0006575","cellular modified amino acid metabolic process","biological_process",{"v":1.8528e-5,"d":"1.85E-05"},0.0060722,{"v":0.404761904761905,"d":"0.40"},"evm.model.scaffold_727.128,evm.model.scaffold_1043.74,evm.model.scaffold_881.503,evm.model.scaffold_11665.15,evm.model.scaffold_1675.80,evm.model.scaffold_277.165,evm.model.scaffold_10013.29,evm.model.scaffold_18.47,evm.model.scaffold_4328.43,evm.model.scaffold_8180.8,evm.model.scaffold_6394.41,evm.model.scaffold_1625.83,evm.model.scaffold_369.157,evm.model.scaffold_277.130,evm.model.scaffold_32.20,evm.model.scaffold_4328.72,evm.model.scaffold_145.187"]
["Chr19_Chr20_Chr21","GO:0051341","regulation of oxidoreductase activity","biological_process",{"v":2.1087e-5,"d":"2.11E-05"},0.0064789,{"v":1,"d":"1.00"},"evm.model.scaffold_5271.14,evm.model.scaffold_1757.39.1,evm.model.scaffold_1780.13,evm.model.scaffold_940.38,evm.model.scaffold_518.475"]
["Chr19_Chr20_Chr21","GO:0006520","cellular amino acid metabolic process","biological_process",{"v":2.2973e-5,"d":"2.30E-05"},0.0066433,{"v":0.281879194630872,"d":"0.28"},"evm.model.scaffold_277.165,evm.model.scaffold_699.480.1,evm.model.scaffold_699.407,evm.model.scaffold_1780.66,evm.model.scaffold_624.124,evm.model.scaffold_11665.15,evm.model.scaffold_699.955,evm.model.scaffold_881.503,evm.model.scaffold_1675.80,evm.model.scaffold_5489.53,evm.model.scaffold_6394.41,evm.model.scaffold_1675.21,evm.model.scaffold_369.157,evm.model.scaffold_32.20,evm.model.scaffold_803.16,evm.model.scaffold_145.187,evm.model.scaffold_4328.72,evm.model.scaffold_4856.101,evm.model.scaffold_369.183,evm.model.scaffold_5271.14,evm.model.scaffold_10013.19,evm.model.scaffold_11810.97,evm.model.scaffold_843.285,evm.model.scaffold_7419.224.1,evm.model.scaffold_10013.29,evm.model.scaffold_18.47,evm.model.scaffold_518.320,evm.model.scaffold_195.45,evm.model.scaffold_389.3,evm.model.scaffold_3880.66,evm.model.scaffold_1043.74,evm.model.scaffold_727.128,evm.model.scaffold_110.97,evm.model.scaffold_277.130,evm.model.scaffold_1625.83,evm.model.scaffold_851.89,evm.model.scaffold_8721.1,evm.model.scaffold_1348.239,evm.model.scaffold_699.313,evm.model.scaffold_4328.43,evm.model.scaffold_396.95,evm.model.scaffold_8180.8"]
["Chr22_Chr23_Chr24","GO:0090329","regulation of DNA-dependent DNA replication","biological_process",{"v":3.1852e-8,"d":"3.19E-08"},{"v":5.8809e-5,"d":"5.88E-05"},{"v":1,"d":"1.00"},"evm.model.scaffold_633.40,evm.model.scaffold_822.152,evm.model.scaffold_1135.11,evm.model.scaffold_166.124,evm.model.scaffold_764.159,evm.model.scaffold_1795.335,evm.model.scaffold_1017.252,evm.model.scaffold_805.10,evm.model.scaffold_1191.17,evm.model.scaffold_361.271,evm.model.scaffold_1290.109,evm.model.scaffold_1679.217"]
["Chr22_Chr23_Chr24","GO:0032509","endosome transport via multivesicular body sorting pathway","biological_process",{"v":6.2503e-8,"d":"6.25E-08"},{"v":6.9241e-5,"d":"6.92E-05"},{"v":1,"d":"1.00"},"evm.model.scaffold_1231.333,evm.model.scaffold_1618.157,evm.model.scaffold_130.383,evm.model.scaffold_209.321,evm.model.scaffold_408.320,evm.model.scaffold_1165.113,evm.model.scaffold_1375.40,evm.model.scaffold_1805.120,evm.model.scaffold_408.119"]
["Chr22_Chr23_Chr24","GO:0007034","vacuolar transport","biological_process",{"v":1.2922e-7,"d":"1.29E-07"},{"v":8.9466e-5,"d":"8.95E-05"},{"v":0.666666666666667,"d":"0.67"},"evm.model.scaffold_615.109,evm.model.scaffold_209.321,evm.model.scaffold_1231.333,evm.model.scaffold_6893.224,evm.model.scaffold_1620.50,evm.model.scaffold_1375.40,evm.model.scaffold_9627.292,evm.model.scaffold_408.320,evm.model.scaffold_10264.77,evm.model.scaffold_12098.16,evm.model.scaffold_130.383,evm.model.scaffold_1618.157,evm.model.scaffold_842.13,evm.model.scaffold_408.119,evm.model.scaffold_1805.120,evm.model.scaffold_732.159,evm.model.scaffold_1165.113,evm.model.scaffold_657.402"]
["Chr22_Chr23_Chr24","GO:0071478","cellular response to radiation","biological_process",{"v":2.3596e-7,"d":"2.36E-07"},0.00012169,{"v":0.625,"d":"0.63"},"evm.model.scaffold_665.134,evm.model.scaffold_604.281,evm.model.scaffold_1752.47,evm.model.scaffold_10163.21,evm.model.scaffold_1139.358,evm.model.scaffold_1618.145,evm.model.scaffold_166.56,evm.model.scaffold_6824.4,evm.model.scaffold_1166.160,evm.model.scaffold_1231.355,evm.model.scaffold_1290.257,evm.model.scaffold_9627.411,evm.model.scaffold_671.191,evm.model.scaffold_838.28,evm.model.scaffold_657.303,evm.model.scaffold_8085.60,evm.model.scaffold_209.306,evm.model.scaffold_1066.201,evm.model.scaffold_7959.236,evm.model.scaffold_581.148"]
["Chr22_Chr23_Chr24","GO:0019684","photosynthesis, light reaction","biological_process",{"v":2.6363e-7,"d":"2.64E-07"},0.00012169,{"v":0.620689655172414,"d":"0.62"},"evm.model.scaffold_1017.159,evm.model.scaffold_1763.546,evm.model.scaffold_776.25,evm.model.scaffold_931.80,evm.model.scaffold_1502.241,evm.model.scaffold_1573.565,evm.model.scaffold_1166.160,evm.model.scaffold_839.398,evm.model.scaffold_942.49,evm.model.scaffold_538.93,evm.model.scaffold_1139.28,evm.model.scaffold_3636.3,evm.model.scaffold_1113.92,evm.model.scaffold_166.219,evm.model.scaffold_705.169,evm.model.scaffold_5571.7,evm.model.scaffold_10163.21,evm.model.scaffold_665.134"]
["Chr22_Chr23_Chr24","GO:0032875","regulation of DNA endoreduplication","biological_process",{"v":1.9059e-6,"d":"1.91E-06"},0.00075407,{"v":1,"d":"1.00"},"evm.model.scaffold_1191.17,evm.model.scaffold_805.10,evm.model.scaffold_1795.335,evm.model.scaffold_764.159,evm.model.scaffold_822.152,evm.model.scaffold_633.40,evm.model.scaffold_1679.217,evm.model.scaffold_1290.109,evm.model.scaffold_361.271"]
["Chr22_Chr23_Chr24","GO:0042752","regulation of circadian rhythm","biological_process",{"v":5.2712e-6,"d":"5.27E-06"},0.0016221,{"v":1,"d":"1.00"},"evm.model.scaffold_581.148,evm.model.scaffold_209.306,evm.model.scaffold_8085.60,evm.model.scaffold_1066.201,evm.model.scaffold_6824.4,evm.model.scaffold_671.191,evm.model.scaffold_1290.257"]
["Chr22_Chr23_Chr24","GO:0006091","generation of precursor metabolites and energy","biological_process",{"v":5.8127e-6,"d":"5.81E-06"},0.0016945,{"v":0.358974358974359,"d":"0.36"},"evm.model.scaffold_1500.42,evm.model.scaffold_2912.65,evm.model.scaffold_812.43,evm.model.scaffold_776.52,evm.model.scaffold_361.213,evm.model.scaffold_952.540,evm.model.scaffold_657.54,evm.model.scaffold_705.169,evm.model.scaffold_798.202,evm.model.scaffold_9742.82,evm.model.scaffold_839.398,evm.model.scaffold_1166.160,evm.model.scaffold_6893.33,evm.model.scaffold_162.100.1,evm.model.scaffold_342.528,evm.model.scaffold_4624.5,evm.model.scaffold_1471.168,evm.model.scaffold_3636.3,evm.model.scaffold_143.6,evm.model.scaffold_538.93,evm.model.scaffold_952.438,evm.model.scaffold_705.116,evm.model.scaffold_839.263,evm.model.scaffold_1500.26,evm.model.scaffold_1017.159,evm.model.scaffold_839.370,evm.model.scaffold_161.593,evm.model.scaffold_1502.241,evm.model.scaffold_1281.27,evm.model.scaffold_446.117,evm.model.scaffold_884.56,evm.model.scaffold_1017.317,evm.model.scaffold_1719.1,evm.model.scaffold_665.134,evm.model.scaffold_1113.92,evm.model.scaffold_143.47,evm.model.scaffold_166.219,evm.model.scaffold_5571.7,evm.model.scaffold_10163.21,evm.model.scaffold_604.8,evm.model.scaffold_1113.76,evm.model.scaffold_1642.47,evm.model.scaffold_11225.1,evm.model.scaffold_1471.90,evm.model.scaffold_538.107,evm.model.scaffold_942.49,evm.model.scaffold_765.32,evm.model.scaffold_11355.5,evm.model.scaffold_1573.565,evm.model.scaffold_1139.28,evm.model.scaffold_1658.163,evm.model.scaffold_1635.26,evm.model.scaffold_1763.546,evm.model.scaffold_776.25,evm.model.scaffold_839.210,evm.model.scaffold_931.80"]
["Chr22_Chr23_Chr24","GO:0006833","water transport","biological_process",{"v":7.1353e-6,"d":"7.14E-06"},0.001882,{"v":0.705882352941177,"d":"0.71"},"evm.model.scaffold_765.32,evm.model.scaffold_5571.65,evm.model.scaffold_538.12,evm.model.scaffold_657.44,evm.model.scaffold_812.43,evm.model.scaffold_4624.5,evm.model.scaffold_952.443,evm.model.scaffold_839.216,evm.model.scaffold_2912.49,evm.model.scaffold_1763.499,evm.model.scaffold_705.121,evm.model.scaffold_1500.15"]
["Chr22_Chr23_Chr24","GO:0009637","response to blue light","biological_process",{"v":8.67e-6,"d":"8.67E-06"},0.0021829,{"v":1,"d":"1.00"},"evm.model.scaffold_9627.411,evm.model.scaffold_5571.7,evm.model.scaffold_1386.78,evm.model.scaffold_657.303,evm.model.scaffold_701.33,evm.model.scaffold_12245.45,evm.model.scaffold_1752.47"]
["Chr22_Chr23_Chr24","GO:0016197","endosomal transport","biological_process",{"v":1.2654e-5,"d":"1.27E-05"},0.0030474,{"v":0.666666666666667,"d":"0.67"},"evm.model.scaffold_1231.333,evm.model.scaffold_1618.157,evm.model.scaffold_209.321,evm.model.scaffold_130.383,evm.model.scaffold_408.320,evm.model.scaffold_5254.38,evm.model.scaffold_1165.113,evm.model.scaffold_1805.120,evm.model.scaffold_798.351,evm.model.scaffold_408.119,evm.model.scaffold_1375.40,evm.model.scaffold_11433.62"]
["Chr22_Chr23_Chr24","GO:0032511","late endosome to vacuole transport via multivesicular body sorting pathway","biological_process",{"v":1.4249e-5,"d":"1.42E-05"},0.0032886,{"v":1,"d":"1.00"},"evm.model.scaffold_1805.120,evm.model.scaffold_1165.113,evm.model.scaffold_209.321,evm.model.scaffold_130.383,evm.model.scaffold_1618.157,evm.model.scaffold_1231.333"]
["Chr22_Chr23_Chr24","GO:0015980","energy derivation by oxidation of organic compounds","biological_process",{"v":1.5903e-5,"d":"1.59E-05"},0.0033879,{"v":0.471698113207547,"d":"0.47"},"evm.model.scaffold_839.263,evm.model.scaffold_839.370,evm.model.scaffold_1281.27,evm.model.scaffold_446.117,evm.model.scaffold_839.210,evm.model.scaffold_6893.33,evm.model.scaffold_162.100.1,evm.model.scaffold_538.107,evm.model.scaffold_11355.5,evm.model.scaffold_342.528,evm.model.scaffold_1471.168,evm.model.scaffold_1658.163,evm.model.scaffold_952.438,evm.model.scaffold_361.213,evm.model.scaffold_143.47,evm.model.scaffold_952.540,evm.model.scaffold_657.54,evm.model.scaffold_1113.76,evm.model.scaffold_798.202,evm.model.scaffold_1642.47,evm.model.scaffold_11225.1,evm.model.scaffold_9742.82,evm.model.scaffold_1500.42,evm.model.scaffold_2912.65,evm.model.scaffold_776.52"]
["Chr22_Chr23_Chr24","GO:0010207","photosystem II assembly","biological_process",{"v":1.7533e-5,"d":"1.75E-05"},0.0035969,{"v":0.769230769230769,"d":"0.77"},"evm.model.scaffold_1113.92,evm.model.scaffold_931.80,evm.model.scaffold_776.25,evm.model.scaffold_1502.241,evm.model.scaffold_1573.565,evm.model.scaffold_942.49,evm.model.scaffold_839.398,evm.model.scaffold_538.93,evm.model.scaffold_3636.3,evm.model.scaffold_1139.28"]
["Chr22_Chr23_Chr24","GO:0010051","xylem and phloem pattern formation","biological_process",{"v":1.832e-5,"d":"1.83E-05"},0.0036241,0.75,"evm.model.scaffold_632.359,evm.model.scaffold_1635.60,evm.model.scaffold_1635.36,evm.model.scaffold_143.47,evm.model.scaffold_1185.64,evm.model.scaffold_161.330,evm.model.scaffold_143.69,evm.model.scaffold_763.23,evm.model.scaffold_1471.100,evm.model.scaffold_641.94,evm.model.scaffold_1471.113,evm.model.scaffold_1481.90"]
["Chr22_Chr23_Chr24","GO:0010608","posttranscriptional regulation of gene expression","biological_process",{"v":1.8992e-5,"d":"1.90E-05"},0.0036275,{"v":0.456140350877193,"d":"0.46"},"evm.model.scaffold_2387.101,evm.model.scaffold_1135.135,evm.model.scaffold_166.36,evm.model.scaffold_166.229,evm.model.scaffold_1635.60,evm.model.scaffold_633.64,evm.model.scaffold_1017.101,evm.model.scaffold_764.144,evm.model.scaffold_1017.332,evm.model.scaffold_1763.70,evm.model.scaffold_1290.35,evm.model.scaffold_5571.101,evm.model.scaffold_705.71,evm.model.scaffold_1017.423,evm.model.scaffold_8085.154,evm.model.scaffold_1135.82,evm.model.scaffold_1017.155,evm.model.scaffold_386.36,evm.model.scaffold_604.47,evm.model.scaffold_361.212,evm.model.scaffold_838.347,evm.model.scaffold_1763.427,evm.model.scaffold_1569.74,evm.model.scaffold_1471.100,evm.model.scaffold_1795.248,evm.model.scaffold_143.69"]
["Chr22_Chr23_Chr24","GO:0009585","red, far-red light phototransduction","biological_process",{"v":2.0467e-5,"d":"2.05E-05"},0.0036656,{"v":1,"d":"1.00"},"evm.model.scaffold_166.56,evm.model.scaffold_1618.145,evm.model.scaffold_6824.4,evm.model.scaffold_671.191,evm.model.scaffold_1066.201,evm.model.scaffold_209.306,evm.model.scaffold_1231.355"]
["Chr22_Chr23_Chr24","GO:0050821","protein stabilization","biological_process",{"v":2.1379e-5,"d":"2.14E-05"},0.0036656,0.75,"evm.model.scaffold_1763.427,evm.model.scaffold_5571.101,evm.model.scaffold_1017.101,evm.model.scaffold_1017.332,evm.model.scaffold_1017.155,evm.model.scaffold_166.229,evm.model.scaffold_705.71,evm.model.scaffold_1135.82,evm.model.scaffold_166.36"]
["Chr22_Chr23_Chr24","GO:0071214","cellular response to abiotic stimulus","biological_process",{"v":3.0561e-5,"d":"3.06E-05"},0.0049788,{"v":0.456140350877193,"d":"0.46"},"evm.model.scaffold_1139.358,evm.model.scaffold_10163.21,evm.model.scaffold_604.281,evm.model.scaffold_1752.47,evm.model.scaffold_1290.62_evm.model.scaffold_1290.63,evm.model.scaffold_665.134,evm.model.scaffold_1066.201,evm.model.scaffold_209.306,evm.model.scaffold_8085.60,evm.model.scaffold_1083.29,evm.model.scaffold_7959.236,evm.model.scaffold_581.148,evm.model.scaffold_1802.268,evm.model.scaffold_9627.411,evm.model.scaffold_1290.257,evm.model.scaffold_838.28,evm.model.scaffold_671.191,evm.model.scaffold_657.303,evm.model.scaffold_1166.160,evm.model.scaffold_361.236,evm.model.scaffold_1231.355,evm.model.scaffold_1795.270,evm.model.scaffold_1618.145,evm.model.scaffold_166.56,evm.model.scaffold_7821.92,evm.model.scaffold_6824.4"]
["Chr22_Chr23_Chr24","GO:0006655","phosphatidylglycerol biosynthetic process","biological_process",{"v":4e-5,"d":"4.00E-05"},0.0061544,{"v":1,"d":"1.00"},"evm.model.scaffold_10669.2,evm.model.scaffold_1763.657,evm.model.scaffold_942.131,evm.model.scaffold_1453.116,evm.model.scaffold_225.75,evm.model.scaffold_1545.10.2"]
["Chr22_Chr23_Chr24","GO:0009639","response to red or far red light","biological_process",{"v":4.3863e-5,"d":"4.39E-05"},0.0065664,{"v":0.424242424242424,"d":"0.42"},"evm.model.scaffold_1231.355,evm.model.scaffold_143.69,evm.model.scaffold_1471.100,evm.model.scaffold_798.206,evm.model.scaffold_2426.23,evm.model.scaffold_604.223,evm.model.scaffold_6824.4,evm.model.scaffold_1618.145,evm.model.scaffold_166.56,evm.model.scaffold_581.148,evm.model.scaffold_9202.33,evm.model.scaffold_209.306,evm.model.scaffold_1066.201,evm.model.scaffold_8085.60,evm.model.scaffold_1135.255,evm.model.scaffold_798.42,evm.model.scaffold_671.191,evm.model.scaffold_1290.257,evm.model.scaffold_12245.45,evm.model.scaffold_356.183,evm.model.scaffold_8673.7,evm.model.scaffold_604.281,evm.model.scaffold_1386.78,evm.model.scaffold_1635.25,evm.model.scaffold_1635.60,evm.model.scaffold_143.36,evm.model.scaffold_701.33,evm.model.scaffold_5571.7"]
["Chr22_Chr23_Chr24","GO:0046513","ceramide biosynthetic process","biological_process",{"v":4.6139e-5,"d":"4.61E-05"},0.006643,{"v":1,"d":"1.00"},"evm.model.scaffold_12245.24,evm.model.scaffold_1554.194,evm.model.scaffold_1386.64,evm.model.scaffold_701.43,evm.model.scaffold_1618.538,evm.model.scaffold_1084.175"]
["Chr22_Chr23_Chr24","GO:0007389","pattern specification process","biological_process",{"v":4.6773e-5,"d":"4.68E-05"},0.006643,{"v":0.469387755102041,"d":"0.47"},"evm.model.scaffold_641.94,evm.model.scaffold_1471.113,evm.model.scaffold_1481.90,evm.model.scaffold_162.98,evm.model.scaffold_1763.490,evm.model.scaffold_665.44,evm.model.scaffold_6298.13,evm.model.scaffold_1642.30,evm.model.scaffold_1375.40,evm.model.scaffold_1635.60,evm.model.scaffold_1185.64,evm.model.scaffold_143.47,evm.model.scaffold_705.115,evm.model.scaffold_143.69,evm.model.scaffold_446.112,evm.model.scaffold_5571.81,evm.model.scaffold_763.23,evm.model.scaffold_1471.100,evm.model.scaffold_408.320,evm.model.scaffold_408.119,evm.model.scaffold_632.359,evm.model.scaffold_161.330,evm.model.scaffold_1635.36"]
["Chr22_Chr23_Chr24","GO:0072666","establishment of protein localization to vacuole","biological_process",{"v":7.2895e-5,"d":"7.29E-05"},0.0088739,{"v":1,"d":"1.00"},"evm.model.scaffold_9627.292,evm.model.scaffold_657.402,evm.model.scaffold_10264.77,evm.model.scaffold_6893.224,evm.model.scaffold_732.159,evm.model.scaffold_615.109"]
["Chr22_Chr23_Chr24","GO:0045333","cellular respiration","biological_process",{"v":7.3245e-5,"d":"7.32E-05"},0.0088739,{"v":0.477272727272727,"d":"0.48"},"evm.model.scaffold_1500.42,evm.model.scaffold_776.52,evm.model.scaffold_2912.65,evm.model.scaffold_657.54,evm.model.scaffold_952.540,evm.model.scaffold_361.213,evm.model.scaffold_143.47,evm.model.scaffold_1642.47,evm.model.scaffold_9742.82,evm.model.scaffold_1113.76,evm.model.scaffold_11355.5,evm.model.scaffold_342.528,evm.model.scaffold_162.100.1,evm.model.scaffold_6893.33,evm.model.scaffold_538.107,evm.model.scaffold_952.438,evm.model.scaffold_1658.163,evm.model.scaffold_839.263,evm.model.scaffold_1281.27,evm.model.scaffold_839.210,evm.model.scaffold_446.117"]
["Chr22_Chr23_Chr24","GO:0010088","phloem development","biological_process",{"v":8.0249e-5,"d":"8.02E-05"},0.0088739,{"v":1,"d":"1.00"},"evm.model.scaffold_361.271,evm.model.scaffold_671.210,evm.model.scaffold_2614.67,evm.model.scaffold_1066.191,evm.model.scaffold_1290.109,evm.model.scaffold_1795.335"]
["Chr22_Chr23_Chr24","GO:0010268","brassinosteroid homeostasis","biological_process",{"v":8.4595e-5,"d":"8.46E-05"},0.0088739,{"v":1,"d":"1.00"},"evm.model.scaffold_581.121,evm.model.scaffold_143.75,evm.model.scaffold_1471.90,evm.model.scaffold_1635.71,evm.model.scaffold_8085.32,evm.model.scaffold_1290.245"]
["Chr22_Chr23_Chr24","GO:0015979","photosynthesis","biological_process",{"v":8.6087e-5,"d":"8.61E-05"},0.0088739,{"v":0.425925925925926,"d":"0.43"},"evm.model.scaffold_1113.92,evm.model.scaffold_166.219,evm.model.scaffold_1139.358,evm.model.scaffold_5571.7,evm.model.scaffold_10163.21,evm.model.scaffold_705.169,evm.model.scaffold_356.86,evm.model.scaffold_665.134,evm.model.scaffold_1763.546,evm.model.scaffold_1017.159,evm.model.scaffold_7959.236,evm.model.scaffold_604.199,evm.model.scaffold_1502.241,evm.model.scaffold_776.25,evm.model.scaffold_838.28,evm.model.scaffold_931.80,evm.model.scaffold_839.398,evm.model.scaffold_1166.160,evm.model.scaffold_942.49,evm.model.scaffold_1573.565,evm.model.scaffold_1139.28,evm.model.scaffold_3636.3,evm.model.scaffold_538.93"]
["Chr22_Chr23_Chr24","GO:0042149","cellular response to glucose starvation","biological_process",{"v":8.8114e-5,"d":"8.81E-05"},0.0088739,{"v":1,"d":"1.00"},"evm.model.scaffold_952.443,evm.model.scaffold_1635.142,evm.model.scaffold_2912.49,evm.model.scaffold_700.112,evm.model.scaffold_839.216,evm.model.scaffold_1471.16"]
["Chr22_Chr23_Chr24","GO:0060918","auxin transport","biological_process",{"v":9.9714e-5,"d":"9.97E-05"},0.0096497,0.75,"evm.model.scaffold_671.210,evm.model.scaffold_225.77_evm.model.scaffold_225.78,evm.model.scaffold_1481.94,evm.model.scaffold_1763.659_evm.model.scaffold_1763.660,evm.model.scaffold_2614.67,evm.model.scaffold_1066.191,evm.model.scaffold_1453.110,evm.model.scaffold_641.99,evm.model.scaffold_763.17"]
["Chr22_Chr23_Chr24","GO:0015696","ammonium transport","biological_process",0.00010976,0.0096497,{"v":1,"d":"1.00"},"evm.model.scaffold_1135.220,evm.model.scaffold_665.76,evm.model.scaffold_6298.122,evm.model.scaffold_604.176_evm.model.scaffold_604.177,evm.model.scaffold_1120.106,evm.model.scaffold_1501.16"]
["Chr25_Chr26_Chr27","GO:0009737","response to abscisic acid stimulus","biological_process",{"v":7.0318e-7,"d":"7.03E-07"},0.00091202,{"v":0.388888888888889,"d":"0.39"},"evm.model.scaffold_141.107,evm.model.scaffold_4833.43.1,evm.model.scaffold_9468.27,evm.model.scaffold_1353.306,evm.model.scaffold_443.5,evm.model.scaffold_2094.21,evm.model.scaffold_782.119,evm.model.scaffold_1274.126,evm.model.scaffold_1450.1,evm.model.scaffold_634.69,evm.model.scaffold_436.112.1,evm.model.scaffold_1561.99,evm.model.scaffold_574.47,evm.model.scaffold_1622.283,evm.model.scaffold_923.126,evm.model.scaffold_1425.24,evm.model.scaffold_2094.158,evm.model.scaffold_1097.347,evm.model.scaffold_1622.239,evm.model.scaffold_1817.271,evm.model.scaffold_782.36,evm.model.scaffold_1561.40,evm.model.scaffold_11546.116,evm.model.scaffold_252.31,evm.model.scaffold_61.164,evm.model.scaffold_1116.139,evm.model.scaffold_1769.144,evm.model.scaffold_1714.57,evm.model.scaffold_717.107,evm.model.scaffold_61.158,evm.model.scaffold_1291.67,evm.model.scaffold_1097.143,evm.model.scaffold_574.90,evm.model.scaffold_1279.23,evm.model.scaffold_11727.1,evm.model.scaffold_717.55,evm.model.scaffold_805.206,evm.model.scaffold_682.55,evm.model.scaffold_1353.259,evm.model.scaffold_1097.41,evm.model.scaffold_1104.72,evm.model.scaffold_1172.125,evm.model.scaffold_1279.179,evm.model.scaffold_1291.157,evm.model.scaffold_235.55,evm.model.scaffold_6275.99,evm.model.scaffold_1116.3,evm.model.scaffold_1082.90_evm.model.scaffold_1082.91,evm.model.scaffold_1187.170"]
["Chr25_Chr26_Chr27","GO:0009910","negative regulation of flower development","biological_process",{"v":1.261e-6,"d":"1.26E-06"},0.0013085,{"v":0.9,"d":"0.90"},"evm.model.scaffold_11771.305,evm.model.scaffold_10628.86,evm.model.scaffold_517.193,evm.model.scaffold_5019.82,evm.model.scaffold_11656.112,evm.model.scaffold_647.153,evm.model.scaffold_1266.546,evm.model.scaffold_1644.130,evm.model.scaffold_1400.828.1"]
["Chr25_Chr26_Chr27","GO:0051241","negative regulation of multicellular organismal process","biological_process",{"v":2.336e-6,"d":"2.34E-06"},0.0020199,{"v":0.684210526315789,"d":"0.68"},"evm.model.scaffold_1266.546,evm.model.scaffold_7588.168,evm.model.scaffold_1644.130,evm.model.scaffold_1400.828.1,evm.model.scaffold_11771.305,evm.model.scaffold_1622.55,evm.model.scaffold_10628.86,evm.model.scaffold_517.193,evm.model.scaffold_5019.82,evm.model.scaffold_1365.248,evm.model.scaffold_647.153,evm.model.scaffold_11656.112,evm.model.scaffold_6371.12"]
["Chr25_Chr26_Chr27","GO:0044087","regulation of cellular component biogenesis","biological_process",{"v":4.8096e-6,"d":"4.81E-06"},0.0035646,{"v":0.538461538461538,"d":"0.54"},"evm.model.scaffold_11771.154,evm.model.scaffold_8788.105,evm.model.scaffold_852.335_evm.model.scaffold_852.336,evm.model.scaffold_2900.50,evm.model.scaffold_2933.1,evm.model.scaffold_852.89.1,evm.model.scaffold_722.160_evm.model.scaffold_722.161,evm.model.scaffold_6702.50,evm.model.scaffold_1806.53,evm.model.scaffold_5893.93,evm.model.scaffold_782.119,evm.model.scaffold_4264.36,evm.model.scaffold_1601.96,evm.model.scaffold_1003.35,evm.model.scaffold_574.47,evm.model.scaffold_1817.92,evm.model.scaffold_10472.35,evm.model.scaffold_13.103,evm.model.scaffold_1353.259,evm.model.scaffold_6371.124,evm.model.scaffold_816.234"]
["Chr25_Chr26_Chr27","GO:0048581","negative regulation of post-embryonic development","biological_process",{"v":1.0341e-5,"d":"1.03E-05"},0.0067062,{"v":0.666666666666667,"d":"0.67"},"evm.model.scaffold_1400.828.1,evm.model.scaffold_1644.130,evm.model.scaffold_7588.168,evm.model.scaffold_1266.546,evm.model.scaffold_11656.112,evm.model.scaffold_647.153,evm.model.scaffold_1365.248,evm.model.scaffold_517.193,evm.model.scaffold_5019.82,evm.model.scaffold_10628.86,evm.model.scaffold_1622.55,evm.model.scaffold_11771.305"]
["Chr25_Chr26_Chr27","GO:0051130","positive regulation of cellular component organization","biological_process",{"v":1.454e-5,"d":"1.45E-05"},0.0081474,{"v":0.527777777777778,"d":"0.53"},"evm.model.scaffold_2933.1,evm.model.scaffold_852.89.1,evm.model.scaffold_722.160_evm.model.scaffold_722.161,evm.model.scaffold_1274.116,evm.model.scaffold_1817.271,evm.model.scaffold_852.335_evm.model.scaffold_852.336,evm.model.scaffold_1082.99_evm.model.scaffold_1082.104,evm.model.scaffold_1279.179,evm.model.scaffold_6371.124,evm.model.scaffold_816.234,evm.model.scaffold_13.103,evm.model.scaffold_1003.35,evm.model.scaffold_1817.92,evm.model.scaffold_1601.96,evm.model.scaffold_4264.36,evm.model.scaffold_141.91,evm.model.scaffold_61.158,evm.model.scaffold_1806.53,evm.model.scaffold_5893.93"]
["Chr25_Chr26_Chr27","GO:0031334","positive regulation of protein complex assembly","biological_process",{"v":1.5704e-5,"d":"1.57E-05"},0.0081474,{"v":0.833333333333333,"d":"0.83"},"evm.model.scaffold_5893.93,evm.model.scaffold_1806.53,evm.model.scaffold_4264.36,evm.model.scaffold_1601.96,evm.model.scaffold_1817.92,evm.model.scaffold_1003.35,evm.model.scaffold_2933.1,evm.model.scaffold_13.103,evm.model.scaffold_816.234,evm.model.scaffold_6371.124"]
["Chr25_Chr26_Chr27","GO:0010450","inflorescence meristem growth","biological_process",{"v":2.0076e-5,"d":"2.01E-05"},0.0089041,{"v":1,"d":"1.00"},"evm.model.scaffold_1266.546,evm.model.scaffold_10628.86,evm.model.scaffold_1644.152,evm.model.scaffold_11771.320,evm.model.scaffold_647.132,evm.model.scaffold_1400.828.1"]
["Enrichment was determined by a two-sided hypergeometric test followed by false discovery rate (FDR) correction for multiple testing."]

{"sheet":"Supplementary Data 10","index":9,"n_rows":107,"n_cols":8,"rows_kept":107}
["Supplementary Data 10. List of 105 MADS-box genes identified in C. morifolium."]
["Gene ID ","Name","Chr","Start","End","Length (bp)","Subfamily","Duplicate"]
["evm.model.scaffold_1142.286","CmAGL17-1","Chr1",{"v":131518431,"d":"131,518,431"},{"v":131560960,"d":"131,560,960"},{"$f":"E3-D3+1","v":{"v":42530,"d":"42,530"}},"AGL17","DSD, WGD"]
["evm.model.scaffold_11378.45","CmFLC-1","Chr1",{"v":300555605,"d":"300,555,605"},{"v":300563699,"d":"300,563,699"},{"v":8095,"d":"8,095"},"FLC","DSD, WGD"]
["evm.model.scaffold_1684.180","CmAGL17-3","Chr3",{"v":121163785,"d":"121,163,785"},{"v":121202712,"d":"121,202,712"},{"v":38928,"d":"38,928"},"AGL17","DSD, WGD"]
["evm.model.scaffold_325.143","CmFLC-3-1","Chr3",{"v":273212253,"d":"273,212,253"},{"v":273221082,"d":"273,221,082"},{"v":8830,"d":"8,830"},"FLC","WGD"]
["evm.model.scaffold_325.142","CmFLC-3-2","Chr3",{"v":273229065,"d":"273,229,065"},{"v":273235394,"d":"273,235,394"},{"v":6330,"d":"6,330"},"FLC","DSD, TD"]
["evm.model.scaffold_8001.21","CmSOC1-4-1","Chr4",{"v":55618984,"d":"55,618,984"},{"v":55628509,"d":"55,628,509"},{"v":9526,"d":"9,526"},"SOC1(TM3)","DSD, WGD"]
["evm.model.scaffold_6746.3","CmSOC1-4-2","Chr4",{"v":55912990,"d":"55,912,990"},{"v":55922499,"d":"55,922,499"},{"v":9510,"d":"9,510"},"SOC1(TM3)","DSD, TD"]
["evm.model.scaffold_267.47","CmSVP-4-1","Chr4",{"v":102721544,"d":"102,721,544"},{"v":102728103,"d":"102,728,103"},{"v":6560,"d":"6,560"},"SVP(StMADS11)","DSD, WGD"]
["evm.model.scaffold_915.251","CmSEP2-4","Chr4",{"v":170934127,"d":"170,934,127"},{"v":170939042,"d":"170,939,042"},{"v":4916,"d":"4,916"},"SEP","WGD"]
["evm.model.scaffold_560.196","CmAP3-4","Chr4",{"v":235626460,"d":"235,626,460"},{"v":235631363,"d":"235,631,363"},{"v":4904,"d":"4,904"},"PI/DEF/AP3","DSD, WGD"]
["evm.model.scaffold_11956.14","CmFUL-4","Chr4",{"v":239693186,"d":"239,693,186"},{"v":239701918,"d":"239,701,918"},{"v":8733,"d":"8,733"},"AP1(SUQA)","WGD"]
["evm.model.scaffold_8949.4","CmSVP-4-2","Chr4",{"v":244990098,"d":"244,990,098"},{"v":245003362,"d":"245,003,362"},{"v":13265,"d":"13,265"},"SVP(StMADS11)","WGD"]
["evm.model.scaffold_837.154","CmAGL17-4","Chr4",{"v":262380146,"d":"262,380,146"},{"v":262382902,"d":"262,382,902"},{"v":2757,"d":"2,757"},"AGL17","WGD"]
["evm.model.scaffold_9272.18","CmSOC1-5","Chr5",{"v":54953487,"d":"54,953,487"},{"v":54963044,"d":"54,963,044"},{"v":9558,"d":"9,558"},"SOC1(TM3)","DSD, WGD"]
["evm.model.scaffold_508.467","CmSVP-5-1","Chr5",{"v":102023885,"d":"102,023,885"},{"v":102031887,"d":"102,031,887"},{"v":8003,"d":"8,003"},"SVP(StMADS11)","WGD"]
["evm.model.scaffold_397.348","CmSEP2-5","Chr5",{"v":170887681,"d":"170,887,681"},{"v":170892971,"d":"170,892,971"},{"v":5291,"d":"5,291"},"SEP","WGD"]
["evm.model.scaffold_777.83","CmAGL12-5","Chr5",{"v":209569858,"d":"209,569,858"},{"v":209575067,"d":"209,575,067"},{"v":5210,"d":"5,210"},"AGL12","WGD"]
["evm.model.scaffold_1371.461","CmSVP-5-2","Chr5",{"v":243954738,"d":"243,954,738"},{"v":243967088,"d":"243,967,088"},{"v":12351,"d":"12,351"},"SVP(StMADS11)","WGD"]
["evm.model.scaffold_1371.143","CmFUL-5","Chr5",{"v":250283692,"d":"250,283,692"},{"v":250297265,"d":"250,297,265"},{"v":13574,"d":"13,574"},"AP1(SUQA)","DSD, WGD"]
["evm.model.scaffold_2951.1","CmAGL17-5","Chr5",{"v":256920315,"d":"256,920,315"},{"v":256926818,"d":"256,926,818"},{"v":6504,"d":"6,504"},"AGL17","WGD"]
["evm.model.scaffold_asm3_new.3040","CmSVP-6-1","Chr6",{"v":98981445,"d":"98,981,445"},{"v":98988004,"d":"98,988,004"},{"v":6560,"d":"6,560"},"SVP(StMADS11)","WGD"]
["evm.model.scaffold_1699.173","CmSEP2-6","Chr6",{"v":154057215,"d":"154,057,215"},{"v":154062097,"d":"154,062,097"},{"v":4883,"d":"4,883"},"SEP","DSD, WGD"]
["evm.model.scaffold_749.77","CmAGL12-6","Chr6",{"v":191178852,"d":"191,178,852"},{"v":191185503,"d":"191,185,503"},{"v":6652,"d":"6,652"},"AGL12","WGD"]
["evm.model.scaffold_909.37","CmAP3-6","Chr6",{"v":209934741,"d":"209,934,741"},{"v":209939027,"d":"209,939,027"},{"v":4287,"d":"4,287"},"PI/DEF/AP3","WGD"]
["evm.model.scaffold_759.138","CmSVP-6-2","Chr6",{"v":222784721,"d":"222,784,721"},{"v":222798928,"d":"222,798,928"},{"v":14208,"d":"14,208"},"SVP(StMADS11)","WGD"]
["evm.model.scaffold_10124.129","CmFUL-6","Chr6",{"v":229786489,"d":"229,786,489"},{"v":229801579,"d":"229,801,579"},{"v":15091,"d":"15,091"},"AP1(SUQA)","DSD, WGD"]
["evm.model.scaffold_9352.24","CmAGL17-6","Chr6",{"v":237907631,"d":"237,907,631"},{"v":237910052,"d":"237,910,052"},{"v":2422,"d":"2,422"},"AGL17","WGD"]
["evm.model.scaffold_5250.69","CmSVP-7","Chr7",{"v":136932772,"d":"136,932,772"},{"v":136941611,"d":"136,941,611"},{"v":8840,"d":"8,840"},"SVP(StMADS11)","DSD, WGD"]
["evm.model.scaffold_11365.36","CmSEP2-7","Chr7",{"v":198177780,"d":"198,177,780"},{"v":198189455,"d":"198,189,455"},{"v":11676,"d":"11,676"},"SEP","DSD, WGD"]
["evm.model.scaffold_11365.38","CmAP1-7","Chr7",{"v":198261023,"d":"198,261,023"},{"v":198276145,"d":"198,276,145"},{"v":15123,"d":"15,123"},"AP1(SUQA)","WGD"]
["evm.model.scaffold_952.250","CmSVP-8","Chr8",{"v":146620021,"d":"146,620,021"},{"v":146629305,"d":"146,629,305"},{"v":9285,"d":"9,285"},"SVP(StMADS11)","DSD, WGD"]
["evm.model.scaffold_1566.150","CmSEP2-8","Chr8",{"v":204697733,"d":"204,697,733"},{"v":204707701,"d":"204,707,701"},{"v":9969,"d":"9,969"},"SEP","DSD, WGD"]
["evm.model.scaffold_1522.37","CmSVP-9","Chr9",{"v":144283715,"d":"144,283,715"},{"v":144291443,"d":"144,291,443"},{"v":7729,"d":"7,729"},"SVP(StMADS11)","DSD, WGD"]
["evm.model.scaffold_629.337","CmSEP2-9","Chr9",{"v":205114376,"d":"205,114,376"},{"v":205129819,"d":"205,129,819"},{"v":15444,"d":"15,444"},"SEP","WGD"]
["evm.model.scaffold_629.343","CmAP1-9","Chr9",{"v":205194933,"d":"205,194,933"},{"v":205200783,"d":"205,200,783"},{"v":5851,"d":"5,851"},"AP1(SUQA)","DSD, WGD"]
["evm.model.scaffold_1820.447","CmSOC1-10","Chr10",{"v":99058937,"d":"99,058,937"},{"v":99072179,"d":"99,072,179"},{"v":13243,"d":"13,243"},"SOC1(TM3)","DSD, WGD"]
["evm.model.scaffold_1776.282.1","CmAG-10","Chr10",{"v":125078269,"d":"125,078,269"},{"v":125086780,"d":"125,086,780"},{"v":8512,"d":"8,512"},"AG/STK/SHP","WGD"]
["evm.model.scaffold_4253.83","CmPI-10-1","Chr10",{"v":146496428,"d":"146,496,428"},{"v":146498700,"d":"146,498,700"},{"v":2273,"d":"2,273"},"PI/DEF/AP3","WGD"]
["evm.model.scaffold_4253.117","CmPI-10-2","Chr10",{"v":147195719,"d":"147,195,719"},{"v":147197148,"d":"147,197,148"},{"v":1430,"d":"1,430"},"PI/DEF/AP3","DSD, PD"]
["evm.model.scaffold_390.59","CmAGL15-10","Chr10",{"v":185457726,"d":"185,457,726"},{"v":185463311,"d":"185,463,311"},{"v":5586,"d":"5,586"},"AGL15","WGD"]
["evm.model.scaffold_1111.42","CmFLC-10-1","Chr10",{"v":304105296,"d":"304,105,296"},{"v":304120925,"d":"304,120,925"},{"v":15630,"d":"15,630"},"FLC","DSD, WGD"]
["evm.model.scaffold_1111.39","CmFLC-10-2","Chr10",{"v":304159266,"d":"304,159,266"},{"v":304167948,"d":"304,167,948"},{"v":8683,"d":"8,683"},"FLC","DSD, TD"]
["evm.model.scaffold_1111.25","CmFLC-10-3","Chr10",{"v":304334103,"d":"304,334,103"},{"v":304346579,"d":"304,346,579"},{"v":12477,"d":"12,477"},"FLC","WGD"]
["evm.model.scaffold_1696.16","CmSOC1-11","Chr11",{"v":73419366,"d":"73,419,366"},{"v":73431999,"d":"73,431,999"},{"v":12634,"d":"12,634"},"SOC1(TM3)","WGD"]
["evm.model.scaffold_1489.299","CmAG-11","Chr11",{"v":95818493,"d":"95,818,493"},{"v":95825632,"d":"95,825,632"},{"v":7140,"d":"7,140"},"AG/STK/SHP","WGD"]
["evm.model.scaffold_1460.36","CmPI-11-1","Chr11",{"v":135889403,"d":"135,889,403"},{"v":135891707,"d":"135,891,707"},{"v":2305,"d":"2,305"},"PI/DEF/AP3","DSD, WGD"]
["evm.model.scaffold_1460.24","CmPI-11-2","Chr11",{"v":136085952,"d":"136,085,952"},{"v":136087020,"d":"136,087,020"},{"v":1069,"d":"1,069"},"PI/DEF/AP3","PD"]
["evm.model.scaffold_8450.35","CmAGL15-11","Chr11",{"v":166711612,"d":"166,711,612"},{"v":166715286,"d":"166,715,286"},{"v":3675,"d":"3,675"},"AGL15","WGD"]
["evm.model.scaffold_531.14","CmFLC-11-1","Chr11",{"v":265985671,"d":"265,985,671"},{"v":265999315,"d":"265,999,315"},{"v":13645,"d":"13,645"},"FLC","DSD, WGD"]
["evm.model.scaffold_531.11.1","CmFLC-11-2","Chr11",{"v":266070788,"d":"266,070,788"},{"v":266079309,"d":"266,079,309"},{"v":8522,"d":"8,522"},"FLC","DSD, WGD"]
["evm.model.scaffold_535.436.1","CmAG-12","Chr12",{"v":108529002,"d":"108,529,002"},{"v":108549212,"d":"108,549,212"},{"v":20211,"d":"20,211"},"AG/STK/SHP","DSD, WGD"]
["evm.model.scaffold_9505.222","CmAGL15-12","Chr12",{"v":185918167,"d":"185,918,167"},{"v":185921785,"d":"185,921,785"},{"v":3619,"d":"3,619"},"AGL15","WGD"]
["evm.model.scaffold_1742.25","CmFLC-12","Chr12",{"v":312830699,"d":"312,830,699"},{"v":312839278,"d":"312,839,278"},{"v":8580,"d":"8,580"},"FLC","WGD"]
["evm.model.scaffold_113.365","CmAGL17-13","Chr13",{"v":2069532,"d":"2,069,532"},{"v":2077289,"d":"2,077,289"},{"v":7758,"d":"7,758"},"AGL17","WGD"]
["evm.model.scaffold_1506.421","CmSOC1-13","Chr13",{"v":282018659,"d":"282,018,659"},{"v":282031420,"d":"282,031,420"},{"v":12762,"d":"12,762"},"SOC1(TM3)","DSD, WGD"]
["evm.model.scaffold_720.105","CmAGL17-14","Chr14",{"v":2949517,"d":"2,949,517"},{"v":2955835,"d":"2,955,835"},{"v":6319,"d":"6,319"},"AGL17","DSD, WGD"]
["evm.model.scaffold_1662.107","CmAG-14-1","Chr14",{"v":290303249,"d":"290,303,249"},{"v":290321271,"d":"290,321,271"},{"v":18023,"d":"18,023"},"AG/STK/SHP","WGD"]
["evm.model.scaffold_1662.109","CmAG-14-2","Chr14",{"v":290336592,"d":"290,336,592"},{"v":290343347,"d":"290,343,347"},{"v":6756,"d":"6,756"},"AG/STK/SHP","DSD, TD"]
["evm.model.scaffold_237.153","CmAGL17-15","Chr15",{"v":2385994,"d":"2,385,994"},{"v":2400301,"d":"2,400,301"},{"v":14308,"d":"14,308"},"AGL17","WGD"]
["evm.model.scaffold_1506.230","CmSOC1-15","Chr15",{"v":261757050,"d":"261,757,050"},{"v":261767048,"d":"261,767,048"},{"v":9999,"d":"9,999"},"SOC1(TM3)","DSD, WGD"]
["evm.model.scaffold_1662.184","CmAG-15","Chr15",{"v":279012414,"d":"279,012,414"},{"v":279024228,"d":"279,024,228"},{"v":11815,"d":"11,815"},"AG/STK/SHP","DSD, WGD"]
["evm.model.scaffold_4404.173","CmFLC-15","Chr15",{"v":287963818,"d":"287,963,818"},{"v":288016578,"d":"288,016,578"},{"v":52761,"d":"52,761"},"FLC","DSD, TRD"]
["evm.model.scaffold_1327.234","CmAGL17-16","Chr16",{"v":3505064,"d":"3,505,064"},{"v":3536086,"d":"3,536,086"},{"v":31023,"d":"31,023"},"AGL17","WGD"]
["evm.model.scaffold_1327.191","CmSVP-16","Chr16",{"v":4366709,"d":"4,366,709"},{"v":4371192,"d":"4,371,192"},{"v":4484,"d":"4,484"},"SVP(StMADS11)","WGD"]
["evm.model.scaffold_4933.18","CmSEP3-16","Chr16",{"v":224800847,"d":"224,800,847"},{"v":224806578,"d":"224,806,578"},{"$f":"E67-D67+1","v":{"v":5732,"d":"5,732"}},"SEP","DSD, WGD"]
["evm.model.scaffold_1756.135","CmAP1-16","Chr16",{"v":181572409,"d":"181,572,409"},{"v":181574095,"d":"181,574,095"},{"v":1687,"d":"1,687"},"AP1(SUQA)","WGD"]
["evm.model.scaffold_12108.74_evm.model.scaffold_12108.73","CmAGL17-17","Chr17",{"v":3789623,"d":"3,789,623"},{"v":3822068,"d":"3,822,068"},{"v":32446,"d":"32,446"},"AGL17","WGD"]
["evm.model.scaffold_2266.14","CmSVP-17","Chr17",{"v":4981056,"d":"4,981,056"},{"v":4984990,"d":"4,984,990"},{"v":3935,"d":"3,935"},"SVP(StMADS11)","DSD, WGD"]
["evm.model.scaffold_7072.5","CmFUL-17","Chr17",{"v":64320733,"d":"64,320,733"},{"v":64457487,"d":"64,457,487"},{"v":136755,"d":"136,755"},"AP1(SUQA)","WGD"]
["evm.model.scaffold_6.241","CmAP3-17","Chr17",{"v":69674730,"d":"69,674,730"},{"v":69679609,"d":"69,679,609"},{"v":4880,"d":"4,880"},"PI/DEF/AP3","WGD"]
["evm.model.scaffold_382.149","CmSEP3-17","Chr17",{"v":242729383,"d":"242,729,383"},{"v":242741397,"d":"242,741,397"},{"v":12015,"d":"12,015"},"SEP","DSD, WGD"]
["evm.model.scaffold_7686.40","CmAP1-17","Chr17",{"v":195042389,"d":"195,042,389"},{"v":195044075,"d":"195,044,075"},{"v":1687,"d":"1,687"},"AP1(SUQA)","WGD"]
["evm.model.scaffold_1702.118","CmAGL17-18","Chr18",{"v":2987613,"d":"2,987,613"},{"v":3018562,"d":"3,018,562"},{"v":30950,"d":"30,950"},"AGL17","WGD"]
["evm.model.scaffold_1702.41","CmSVP-18","Chr18",{"v":3958718,"d":"3,958,718"},{"v":3963411,"d":"3,963,411"},{"v":4694,"d":"4,694"},"SVP(StMADS11)","WGD"]
["evm.model.scaffold_asm16_new.355","CmFUL-18","Chr18",{"v":69834802,"d":"69,834,802"},{"v":69971556,"d":"69,971,556"},{"v":136755,"d":"136,755"},"AP1(SUQA)","WGD"]
["evm.model.scaffold_asm16_new.588","CmAP3-18","Chr18",{"v":75188525,"d":"75,188,525"},{"v":75193404,"d":"75,193,404"},{"v":4880,"d":"4,880"},"PI/DEF/AP3","WGD"]
["evm.model.scaffold_asm16_new.2569","CmBS-18","Chr18",{"v":117266084,"d":"117,266,084"},{"v":117267968,"d":"117,267,968"},{"v":1885,"d":"1,885"},"Bsister","TRD"]
["evm.model.scaffold_971.30","CmSEP3-18","Chr18",{"v":248965558,"d":"248,965,558"},{"v":248971064,"d":"248,971,064"},{"v":5507,"d":"5,507"},"SEP","WGD"]
["evm.model.scaffold_620.454.1","CmSVP-19","Chr19",{"v":128079175,"d":"128,079,175"},{"v":128095701,"d":"128,095,701"},{"v":16527,"d":"16,527"},"SVP(StMADS11)","DSD, TRD"]
["evm.model.scaffold_506.7","CmAGL15-19","Chr19",{"v":136797050,"d":"136,797,050"},{"v":136801130,"d":"136,801,130"},{"v":4081,"d":"4,081"},"AGL15","DSD, WGD"]
["evm.model.scaffold_1368.2","CmAGL6-19","Chr19",{"v":168164747,"d":"168,164,747"},{"v":168171569,"d":"168,171,569"},{"v":6823,"d":"6,823"},"AGL6","TD"]
["evm.model.scaffold_1085.55","CmFLC-2","Chr2",{"v":259961245,"d":"259,961,245"},{"v":259967673,"d":"259,967,673"},{"v":6429,"d":"6,429"},"FLC","DSD, WGD"]
["evm.model.scaffold_367.210","CmAGL15-20-1","Chr20",{"v":88957203,"d":"88,957,203"},{"v":88961024,"d":"88,961,024"},{"v":3822,"d":"3,822"},"AGL15","PD"]
["evm.model.scaffold_8792.36","CmAGL15-20-2","Chr20",{"v":89287909,"d":"89,287,909"},{"v":89291730,"d":"89,291,730"},{"v":3822,"d":"3,822"},"AGL15","DSD, PD"]
["evm.model.scaffold_1556.298","CmAGL6-20","Chr20",{"v":143796938,"d":"143,796,938"},{"v":143803968,"d":"143,803,968"},{"v":7031,"d":"7,031"},"AGL6","DSD, WGD"]
["evm.model.scaffold_1838.44","CmAGL6-21","Chr21",{"v":166487372,"d":"166,487,372"},{"v":166493924,"d":"166,493,924"},{"v":6553,"d":"6,553"},"AGL6","WGD"]
["evm.model.scaffold_839.104.1","CmSEP3-22","Chr22",{"v":38840454,"d":"38,840,454"},{"v":38843167,"d":"38,843,167"},{"v":2714,"d":"2,714"},"SEP","DSD, WGD"]
["evm.model.scaffold_161.24","CmFUL-22","Chr22",{"v":86044678,"d":"86,044,678"},{"v":86062079,"d":"86,062,079"},{"v":17402,"d":"17,402"},"AP1(SUQA)","WGD"]
["evm.model.scaffold_161.1","CmSEP4-22","Chr22",{"v":86504053,"d":"86,504,053"},{"v":86508553,"d":"86,508,553"},{"v":4501,"d":"4,501"},"SEP","WGD"]
["evm.model.scaffold_632.139","CmFUL-23","Chr23",{"v":91543487,"d":"91,543,487"},{"v":91566265,"d":"91,566,265"},{"v":22779,"d":"22,779"},"AP1(SUQA)","WGD"]
["evm.model.scaffold_632.117","CmSEP4-23","Chr23",{"v":92080608,"d":"92,080,608"},{"v":92084943,"d":"92,084,943"},{"v":4336,"d":"4,336"},"SEP","WGD"]
["evm.model.scaffold_1449.362","CmSEP4-24","Chr24",{"v":96651053,"d":"96,651,053"},{"v":96655409,"d":"96,655,409"},{"v":4357,"d":"4,357"},"SEP","DSD, WGD"]
["evm.model.scaffold_573.137","CmFUL-24","Chr24",{"v":97157637,"d":"97,157,637"},{"v":97183643,"d":"97,183,643"},{"v":26007,"d":"26,007"},"AP1(SUQA)","DSD, WGD"]
["evm.model.scaffold_1262.227","CmAP1-25","Chr25",{"v":101071060,"d":"101,071,060"},{"v":101076975,"d":"101,076,975"},{"v":5916,"d":"5,916"},"AP1(SUQA)","DSD, WGD"]
["evm.model.scaffold_1097.263","CmPI-25","Chr25",{"v":106386909,"d":"106,386,909"},{"v":106387238,"d":"106,387,238"},330,"PI/DEF/AP3","WGD"]
["evm.model.scaffold_517.193","CmFLC-25","Chr25",{"v":124889975,"d":"124,889,975"},{"v":124899983,"d":"124,899,983"},{"v":10009,"d":"10,009"},"FLC","DSD, WGD"]
["evm.model.scaffold_5605.23","CmSVP-25","Chr25",{"v":133550709,"d":"133,550,709"},{"v":133554069,"d":"133,554,069"},{"v":3361,"d":"3,361"},"SVP(StMADS11)","WGD"]
["evm.model.scaffold_816.290","CmFLC-26","Chr26",{"v":8226917,"d":"8,226,917"},{"v":8238748,"d":"8,238,748"},{"v":11832,"d":"11,832"},"FLC","DSD, WGD"]
["evm.model.scaffold_1291.374_evm.model.scaffold_1291.375","CmAGL17-26-1","Chr26",{"v":93301436,"d":"93,301,436"},{"v":93305320,"d":"93,305,320"},{"v":3885,"d":"3,885"},"AGL17","DSD, PD"]
["evm.model.scaffold_1291.316","CmAGL17-26-2","Chr26",{"v":94721736,"d":"94,721,736"},{"v":94729842,"d":"94,729,842"},{"v":8107,"d":"8,107"},"AGL17","PD"]
["evm.model.scaffold_1082.18","CmSEP3-26","Chr26",{"v":182128561,"d":"182,128,561"},{"v":182135330,"d":"182,135,330"},{"v":6770,"d":"6,770"},"SEP","DSD, WGD"]
["evm.model.scaffold_1003.151_evm.model.scaffold_1003.152","CmFLC-27-1","Chr27",{"v":4388635,"d":"4,388,635"},{"v":4401222,"d":"4,401,222"},{"v":12588,"d":"12,588"},"FLC","DSD, WGD"]
["evm.model.scaffold_1116.209","CmPI-27","Chr27",{"v":97158159,"d":"97,158,159"},{"v":97158423,"d":"97,158,423"},265,"PI/DEF/AP3","WGD"]
["evm.model.scaffold_5019.82","CmFLC-27-2","Chr27",{"v":112133888,"d":"112,133,888"},{"v":112146568,"d":"112,146,568"},{"v":12681,"d":"12,681"},"FLC","DSD, WGD"]
["evm.model.scaffold_582.91","CmSVP-27","Chr27",{"v":119075765,"d":"119,075,765"},{"v":119081170,"d":"119,081,170"},{"v":5406,"d":"5,406"},"SVP(StMADS11)","DSD, WGD"]

{"sheet":"Supplementary Data 11","index":10,"n_rows":75,"n_cols":10,"rows_kept":75,"merged":[[1,0,2,0],[1,1,2,1],[1,2,2,2],[1,3,2,3],[1,4,2,4],[1,5,1,6],[1,8,1,9]]}
["Supplementary Data 11. Consensus QTLs for petal type via BSA-seq analysis. "]
["QTL","Chr","Start(bp)","End(bp)","Region(Mb)"," SNP",null,null,"Indel"]
[{"$nulls":5},"ΔSNP-index","ED",null,"ΔSNP-index","ED"]
["qPS1-1","Chr1",{"v":184650000,"d":"184,650,000"},{"v":185250000,"d":"185,250,000"},{"v":0.6,"d":"0.60"},{"v":0.566666666666667,"d":"0.57"},{"v":0.642222222222222,"d":"0.64"},null,{"v":0.490384615384615,"d":"0.49"},{"v":0.480954142011834,"d":"0.48"}]
["qPS1-2","Chr1",{"v":290250000,"d":"290,250,000"},{"v":290850000,"d":"290,850,000"},{"v":0.6,"d":"0.60"},{"v":0.589673913043478,"d":"0.59"},{"v":0.695430647448015,"d":"0.70"},null,{"v":0.279166666666667,"d":"0.28"},{"v":0.155868055555556,"d":"0.16"}]
["qPS1-3","Chr1",{"v":292350000,"d":"292,350,000"},{"v":292850000,"d":"292,850,000"},{"v":0.5,"d":"0.50"},{"v":0.666666666666667,"d":"0.67"},{"v":0.888888888888889,"d":"0.89"},null,{"v":0.473684210526316,"d":"0.47"},{"v":0.448753462603878,"d":"0.45"}]
["qPS1-4","Chr1",{"v":294600000,"d":"294,600,000"},{"v":295150000,"d":"295,150,000"},0.55,0.55,{"v":0.605,"d":"0.61"},null,{"v":0.304347826086957,"d":"0.30"},{"v":0.185255198487713,"d":"0.19"}]
["qPS1-5","Chr1",{"v":295200000,"d":"295,200,000"},{"v":296050000,"d":"296,050,000"},0.85,{"v":0.7,"d":"0.70"},0.98,null,{"v":0.580357142857143,"d":"0.58"},{"v":0.673628826530612,"d":"0.67"}]
["qPS1-6","Chr1",{"v":302050000,"d":"302,050,000"},{"v":302550000,"d":"302,550,000"},{"v":0.5,"d":"0.50"},{"v":0.663636363636364,"d":"0.66"},{"v":0.880826446280992,"d":"0.88"},null,{"v":0.461538461538462,"d":"0.46"},{"v":0.42603550295858,"d":"0.43"}]
["qPS4-1","Chr4",{"v":22850000,"d":"22,850,000"},{"v":23650000,"d":"23,650,000"},{"v":0.8,"d":"0.80"},{"v":0.615384615384615,"d":"0.62"},{"v":0.757396449704142,"d":"0.76"},null,{"v":0.444444444444444,"d":"0.44"},{"v":0.395061728395062,"d":"0.40"}]
["qPS4-2","Chr4",{"v":58850000,"d":"58,850,000"},{"v":59350000,"d":"59,350,000"},{"v":0.5,"d":"0.50"},{"v":0.461904761904762,"d":"0.46"},{"v":0.426712018140589,"d":"0.43"},null,{"v":0.436363636363636,"d":"0.44"},{"v":0.380826446280992,"d":"0.38"}]
["qPS4-3","Chr4",{"v":161550000,"d":"161,550,000"},{"v":161900000,"d":"161,900,000"},0.35,{"v":0.635,"d":"0.64"},{"v":0.80645,"d":"0.81"},null,{"v":0.369565217391304,"d":"0.37"},{"v":0.273156899810964,"d":"0.27"}]
["qPS4-4","Chr4",{"v":162700000,"d":"162,700,000"},{"v":163250000,"d":"163,250,000"},0.55,{"v":0.707236842105263,"d":"0.71"},{"v":1.00036790166205,"d":"1.00"},null,{"v":0.560606060606061,"d":"0.56"},{"v":0.628558310376492,"d":"0.63"}]
["qPS4-5","Chr4",{"v":164500000,"d":"164,500,000"},{"v":165550000,"d":"165,550,000"},1.05,{"v":0.715942028985507,"d":"0.72"},{"v":1.02514597773577,"d":"1.03"},null,{"v":0.728070175438597,"d":"0.73"},{"v":1.06017236072638,"d":"1.06"}]
["qPS4-6","Chr4",{"v":165900000,"d":"165,900,000"},{"v":166600000,"d":"166,600,000"},{"v":0.7,"d":"0.70"},{"v":0.678362573099415,"d":"0.68"},{"v":0.920351561164119,"d":"0.92"},null,{"v":0.574404761904762,"d":"0.57"},{"v":0.659881660997732,"d":"0.66"}]
["qPS5-1","Chr5",{"v":29450000,"d":"29,450,000"},{"v":30000000,"d":"30,000,000"},0.55,{"v":0.6,"d":"0.60"},0.72,null,{"v":0.576190476190476,"d":"0.58"},{"v":0.663990929705215,"d":"0.66"}]
["qPS5-2","Chr5",{"v":88600000,"d":"88,600,000"},{"v":88800000,"d":"88,800,000"},{"v":0.2,"d":"0.20"},{"v":0.346153846153846,"d":"0.35"},{"v":0.239644970414201,"d":"0.24"},null,"--","--"]
["qPS5-3","Chr5",{"v":199000000,"d":"199,000,000"},{"v":199500000,"d":"199,500,000"},{"v":0.5,"d":"0.50"},{"v":0.783333333333333,"d":"0.78"},{"v":1.22722222222222,"d":"1.23"},null,{"v":0.723214285714286,"d":"0.72"},{"v":1.04607780612245,"d":"1.05"}]
["qPS5-4","Chr5",{"v":199700000,"d":"199,700,000"},{"v":200200000,"d":"200,200,000"},{"v":0.5,"d":"0.50"},{"v":0.795238095238095,"d":"0.80"},{"v":1.26480725623583,"d":"1.26"},null,{"v":0.607142857142857,"d":"0.61"},{"v":0.737244897959183,"d":"0.74"}]
["qPS5-5","Chr5",{"v":201000000,"d":"201,000,000"},{"v":202100000,"d":"202,100,000"},{"v":1.1,"d":"1.10"},{"v":0.909090909090909,"d":"0.91"},{"v":1.65289256198347,"d":"1.65"},null,{"v":0.757352941176471,"d":"0.76"},{"v":1.1471669550173,"d":"1.15"}]
["qPS5-6","Chr5",{"v":202200000,"d":"202,200,000"},{"v":202800000,"d":"202,800,000"},{"v":0.6,"d":"0.60"},{"v":0.668192219679634,"d":"0.67"},{"v":0.892961684880792,"d":"0.89"},null,{"v":0.62012987012987,"d":"0.62"},{"v":0.769122111654579,"d":"0.77"}]
["qPS5-7","Chr5",{"v":203300000,"d":"203,300,000"},{"v":205150000,"d":"205,150,000"},1.85,{"v":0.775,"d":"0.78"},{"v":1.20125,"d":"1.20"},null,{"v":0.734848484848485,"d":"0.73"},{"v":1.08000459136823,"d":"1.08"}]
["qPS5-8","Chr5",{"v":206100000,"d":"206,100,000"},{"v":207400000,"d":"207,400,000"},{"v":1.3,"d":"1.30"},{"v":0.736842105263158,"d":"0.74"},{"v":1.08587257617729,"d":"1.09"},null,{"v":0.69047619047619,"d":"0.69"},{"v":0.953514739229025,"d":"0.95"}]
["qPS5-9","Chr5",{"v":208700000,"d":"208,700,000"},{"v":209500000,"d":"209,500,000"},{"v":0.8,"d":"0.80"},{"v":0.716666666666667,"d":"0.72"},{"v":1.02722222222222,"d":"1.03"},null,{"v":0.546296296296296,"d":"0.55"},{"v":0.596879286694101,"d":"0.60"}]
["qPS5-10","Chr5",{"v":209550000,"d":"209,550,000"},{"v":209600000,"d":"209,600,000"},0.05,{"v":0.464367816091954,"d":"0.46"},{"v":0.431274937244022,"d":"0.43"},null,{"v":0.666666666666667,"d":"0.67"},{"v":0.888888888888889,"d":"0.89"}]
["qPS6-1","Chr6",{"v":29000000,"d":"29,000,000"},{"v":29800000,"d":"29,800,000"},{"v":0.8,"d":"0.80"},{"v":0.784615384615385,"d":"0.78"},{"v":1.2312426035503,"d":"1.23"},null,{"v":0.505882352941176,"d":"0.51"},{"v":0.511833910034602,"d":"0.51"}]
["qPS6-2","Chr6",{"v":161650000,"d":"161,650,000"},{"v":162400000,"d":"162,400,000"},0.75,{"v":0.777188328912467,"d":"0.78"},{"v":1.20804339719551,"d":"1.21"},null,{"v":0.702380952380952,"d":"0.70"},{"v":0.986678004535147,"d":"0.99"}]
["qPS6-3","Chr6",{"v":208500000,"d":"208,500,000"},{"v":209300000,"d":"209,300,000"},{"v":0.8,"d":"0.80"},{"v":0.640740740740741,"d":"0.64"},{"v":0.821097393689986,"d":"0.82"},null,{"v":0.566233766233766,"d":"0.57"},{"v":0.641241356046551,"d":"0.64"}]
["qPS7","Chr7",{"v":55550000,"d":"55,550,000"},{"v":55950000,"d":"55,950,000"},{"v":0.4,"d":"0.40"},{"v":0.549407114624506,"d":"0.55"},{"v":0.60369635520005,"d":"0.60"},null,{"v":0.464285714285714,"d":"0.46"},{"v":0.431122448979592,"d":"0.43"}]
["qPS8-1","Chr8",{"v":2750000,"d":"2,750,000"},{"v":3400000,"d":"3,400,000"},0.65,{"v":0.588888888888889,"d":"0.59"},{"v":0.69358024691358,"d":"0.69"},null,{"v":0.5,"d":"0.50"},{"v":0.5,"d":"0.50"}]
["qPS8-2","Chr8",{"v":56650000,"d":"56,650,000"},{"v":57150000,"d":"57,150,000"},{"v":0.5,"d":"0.50"},{"v":0.636363636363636,"d":"0.64"},{"v":0.809917355371901,"d":"0.81"},null,{"v":0.516666666666667,"d":"0.52"},{"v":0.533888888888889,"d":"0.53"}]
["qPS8-3","Chr8",{"v":117400000,"d":"117,400,000"},{"v":118350000,"d":"118,350,000"},0.95,{"v":0.532467532467533,"d":"0.53"},{"v":0.567043346264126,"d":"0.57"},null,{"v":0.319078947368421,"d":"0.32"},{"v":0.203622749307479,"d":"0.20"}]
["qPS9-1","Chr9",{"v":6400000,"d":"6,400,000"},{"v":6650000,"d":"6,650,000"},0.25,{"v":0.3,"d":"0.30"},0.18,null,"--","--"]
["qPS9-2","Chr9",{"v":256000000,"d":"256,000,000"},{"v":256550000,"d":"256,550,000"},0.55,{"v":0.521739130434783,"d":"0.52"},{"v":0.544423440453686,"d":"0.54"},null,{"v":0.280632411067194,"d":"0.28"},{"v":0.157509100282773,"d":"0.16"}]
["qPS10","Chr10",{"v":36200000,"d":"36,200,000"},{"v":36450000,"d":"36,450,000"},0.25,{"v":0.589473684210526,"d":"0.59"},{"v":0.694958448753463,"d":"0.69"},null,{"v":0.336363636363636,"d":"0.34"},{"v":0.226280991735537,"d":"0.23"}]
["qPS11-1","Chr11",{"v":105700000,"d":"105,700,000"},{"v":106350000,"d":"106,350,000"},0.65,{"v":0.541176470588235,"d":"0.54"},{"v":0.585743944636678,"d":"0.59"},null,{"v":0.636363636363636,"d":"0.64"},{"v":0.809917355371901,"d":"0.81"}]
["qPS11-2","Chr11",{"v":150450000,"d":"150,450,000"},{"v":150750000,"d":"150,750,000"},{"v":0.3,"d":"0.30"},{"v":0.438709677419355,"d":"0.44"},{"v":0.384932362122789,"d":"0.38"},null,"--","--"]
["qPS11-3","Chr11",{"v":210550000,"d":"210,550,000"},{"v":211400000,"d":"211,400,000"},0.85,{"v":0.6,"d":"0.60"},0.72,null,{"v":0.418181818181818,"d":"0.42"},{"v":0.349752066115703,"d":"0.35"}]
["qPS12-1","Chr12",{"v":12950000,"d":"12,950,000"},{"v":13050000,"d":"13,050,000"},{"v":0.1,"d":"0.10"},{"v":0.228070175438597,"d":"0.23"},{"v":0.104032009849184,"d":"0.10"},null,"--","--"]
["qPS12-2","Chr12",{"v":13100000,"d":"13,100,000"},{"v":13600000,"d":"13,600,000"},{"v":0.5,"d":"0.50"},{"v":0.416666666666667,"d":"0.42"},{"v":0.347222222222222,"d":"0.35"},null,{"v":0.312393887945671,"d":"0.31"},{"v":0.195179882451625,"d":"0.20"}]
["qPS13-1","Chr13",{"v":35700000,"d":"35,700,000"},{"v":36200000,"d":"36,200,000"},{"v":0.5,"d":"0.50"},{"v":0.722222222222222,"d":"0.72"},{"v":1.04320987654321,"d":"1.04"},null,{"v":0.582608695652174,"d":"0.58"},{"v":0.678865784499055,"d":"0.68"}]
["qPS13-2","Chr13",{"v":76300000,"d":"76,300,000"},{"v":76700000,"d":"76,700,000"},{"v":0.4,"d":"0.40"},{"v":0.60625,"d":"0.61"},{"v":0.735078125,"d":"0.74"},null,0.55,{"v":0.605,"d":"0.61"}]
["qPS14-1","Chr14",{"v":151150000,"d":"151,150,000"},{"v":152050000,"d":"152,050,000"},{"v":0.9,"d":"0.90"},{"v":0.544444444444444,"d":"0.54"},{"v":0.592839506172839,"d":"0.59"},null,{"v":0.476780185758514,"d":"0.48"},{"v":0.454638691063846,"d":"0.45"}]
["qPS14-2","Chr14",{"v":177400000,"d":"177,400,000"},{"v":178000000,"d":"178,000,000"},{"v":0.6,"d":"0.60"},{"v":0.593333333333333,"d":"0.59"},{"v":0.704088888888889,"d":"0.70"},null,{"v":0.666666666666667,"d":"0.67"},{"v":0.888888888888889,"d":"0.89"}]
["qPS15-1","Chr15",{"v":21450000,"d":"21,450,000"},{"v":22000000,"d":"22,000,000"},0.55,{"v":0.744252873563218,"d":"0.74"},{"v":1.10782467961422,"d":"1.11"},null,{"v":0.571428571428571,"d":"0.57"},{"v":0.653061224489796,"d":"0.65"}]
["qPS15-2","Chr15",{"v":84200000,"d":"84,200,000"},{"v":84700000,"d":"84,700,000"},{"v":0.5,"d":"0.50"},0.63,{"v":0.7938,"d":"0.79"},null,{"v":0.5,"d":"0.50"},{"v":0.5,"d":"0.50"}]
["qPS16-1","Chr16",{"v":87600000,"d":"87,600,000"},{"v":88300000,"d":"88,300,000"},{"v":0.7,"d":"0.70"},{"v":0.547619047619048,"d":"0.55"},{"v":0.599773242630386,"d":"0.60"},null,{"v":0.343103448275862,"d":"0.34"},{"v":0.235439952437574,"d":"0.24"}]
["qPS16-2","Chr16",{"v":122800000,"d":"122,800,000"},{"v":123500000,"d":"123,500,000"},{"v":0.7,"d":"0.70"},{"v":0.793103448275862,"d":"0.79"},{"v":1.25802615933413,"d":"1.26"},null,{"v":0.536363636363636,"d":"0.54"},{"v":0.575371900826446,"d":"0.58"}]
["qPS16-3","Chr16",{"v":166050000,"d":"166,050,000"},{"v":167200000,"d":"167,200,000"},1.15,{"v":0.7,"d":"0.70"},0.98,null,{"v":0.833333333333333,"d":"0.83"},{"v":1.38888888888889,"d":"1.39"}]
["qPS16-4","Chr16",{"v":184050000,"d":"184,050,000"},{"v":185650000,"d":"185,650,000"},{"v":1.6,"d":"1.60"},{"v":0.809090909090909,"d":"0.81"},{"v":1.30925619834711,"d":"1.31"},null,{"v":0.642857142857143,"d":"0.64"},{"v":0.826530612244898,"d":"0.83"}]
["qPS16-5","Chr16",{"v":188600000,"d":"188,600,000"},{"v":189100000,"d":"189,100,000"},{"v":0.5,"d":"0.50"},{"v":0.697368421052632,"d":"0.70"},{"v":0.972645429362881,"d":"0.97"},null,{"v":0.47554347826087,"d":"0.48"},{"v":0.452283199432892,"d":"0.45"}]
["qPS16-6","Chr16",{"v":189150000,"d":"189,150,000"},{"v":189650000,"d":"189,650,000"},{"v":0.5,"d":"0.50"},{"v":0.633333333333333,"d":"0.63"},{"v":0.802222222222222,"d":"0.80"},null,{"v":0.393162393162393,"d":"0.39"},{"v":0.309153334794361,"d":"0.31"}]
["qPS16-7","Chr16",{"v":190350000,"d":"190,350,000"},{"v":190950000,"d":"190,950,000"},{"v":0.6,"d":"0.60"},{"v":0.704761904761905,"d":"0.70"},{"v":0.993378684807256,"d":"0.99"},null,0.65,{"v":0.845,"d":"0.85"}]
["qPS16-8","Chr16",{"v":196000000,"d":"196,000,000"},{"v":196850000,"d":"196,850,000"},0.85,{"v":0.8,"d":"0.80"},1.28,null,{"v":0.590909090909091,"d":"0.59"},{"v":0.698347107438016,"d":"0.70"}]
["qPS16-9","Chr16",{"v":207600000,"d":"207,600,000"},{"v":208100000,"d":"208,100,000"},{"v":0.5,"d":"0.50"},{"v":0.618181818181818,"d":"0.62"},{"v":0.764297520661157,"d":"0.76"},null,{"v":0.527777777777778,"d":"0.53"},{"v":0.557098765432099,"d":"0.56"}]
["qPS16-10","Chr16",{"v":235050000,"d":"235,050,000"},{"v":235700000,"d":"235,700,000"},0.65,{"v":0.666666666666667,"d":"0.67"},{"v":0.888888888888889,"d":"0.89"},null,{"v":0.5,"d":"0.50"},{"v":0.5,"d":"0.50"}]
["qPS16-11","Chr16",{"v":236800000,"d":"236,800,000"},{"v":237350000,"d":"237,350,000"},0.55,{"v":0.727272727272727,"d":"0.73"},{"v":1.05785123966942,"d":"1.06"},null,{"v":0.598039215686274,"d":"0.60"},{"v":0.715301806997309,"d":"0.72"}]
["qPS17-1","Chr17",{"v":42700000,"d":"42,700,000"},{"v":43300000,"d":"43,300,000"},{"v":0.6,"d":"0.60"},{"v":0.769230769230769,"d":"0.77"},{"v":1.18343195266272,"d":"1.18"},null,{"v":0.408521303258145,"d":"0.41"},{"v":0.333779310431467,"d":"0.33"}]
["qPS17-2","Chr17",{"v":64750000,"d":"64,750,000"},{"v":65700000,"d":"65,700,000"},0.95,{"v":0.5625,"d":"0.56"},{"v":0.6328125,"d":"0.63"},null,{"v":0.403508771929825,"d":"0.40"},{"v":0.32563865804863,"d":"0.33"}]
["qPS17-3","Chr17",{"v":230550000,"d":"230,550,000"},{"v":230900000,"d":"230,900,000"},0.35,{"v":0.6375,"d":"0.64"},{"v":0.8128125,"d":"0.81"},null,{"v":0.461538461538462,"d":"0.46"},{"v":0.42603550295858,"d":"0.43"}]
["qPS18-1","Chr18",{"v":47800000,"d":"47,800,000"},{"v":48450000,"d":"48,450,000"},0.65,{"v":0.757142857142857,"d":"0.76"},{"v":1.1465306122449,"d":"1.15"},null,{"v":0.666666666666667,"d":"0.67"},{"v":0.888888888888889,"d":"0.89"}]
["qPS18-2","Chr18",{"v":48500000,"d":"48,500,000"},{"v":48650000,"d":"48,650,000"},0.15,{"v":0.705882352941176,"d":"0.71"},{"v":0.996539792387543,"d":"1.00"},null,{"v":0.6,"d":"0.60"},0.72]
["qPS18-3","Chr18",{"v":223400000,"d":"223,400,000"},{"v":224400000,"d":"224,400,000"},{"v":1,"d":"1.00"},{"v":0.833333333333333,"d":"0.83"},{"v":1.38888888888889,"d":"1.39"},null,{"v":0.777777777777778,"d":"0.78"},{"v":1.20987654320988,"d":"1.21"}]
["qPS18-4","Chr18",{"v":228550000,"d":"228,550,000"},{"v":229100000,"d":"229,100,000"},0.55,{"v":0.774725274725275,"d":"0.77"},{"v":1.2003985025963,"d":"1.20"},null,{"v":0.611111111111111,"d":"0.61"},{"v":0.746913580246914,"d":"0.75"}]
["qPS18-5","Chr18",{"v":234900000,"d":"234,900,000"},{"v":235400000,"d":"235,400,000"},{"v":0.5,"d":"0.50"},{"v":0.779761904761905,"d":"0.78"},{"v":1.21605725623583,"d":"1.22"},null,{"v":0.425101214574899,"d":"0.43"},{"v":0.361422085266108,"d":"0.36"}]
["qPS19-1","Chr19",{"v":10900000,"d":"10,900,000"},{"v":11500000,"d":"11,500,000"},{"v":0.6,"d":"0.60"},{"v":0.593939393939394,"d":"0.59"},{"v":0.705528007346189,"d":"0.71"},null,{"v":0.692727272727273,"d":"0.69"},{"v":0.959742148760331,"d":"0.96"}]
["qPS19-2","Chr19",{"v":12400000,"d":"12,400,000"},{"v":12900000,"d":"12,900,000"},{"v":0.5,"d":"0.50"},{"v":0.666666666666667,"d":"0.67"},{"v":0.888888888888889,"d":"0.89"},null,{"v":0.436363636363636,"d":"0.44"},{"v":0.380826446280992,"d":"0.38"}]
["qPS19-3","Chr19",{"v":13200000,"d":"13,200,000"},{"v":13700000,"d":"13,700,000"},{"v":0.5,"d":"0.50"},{"v":0.583333333333333,"d":"0.58"},{"v":0.680555555555556,"d":"0.68"},null,{"v":0.5,"d":"0.50"},{"v":0.5,"d":"0.50"}]
["qPS23","Chr23",{"v":33550000,"d":"33,550,000"},{"v":34050000,"d":"34,050,000"},{"v":0.5,"d":"0.50"},{"v":0.479166666666667,"d":"0.48"},{"v":0.459201388888889,"d":"0.46"},null,{"v":0.452380952380952,"d":"0.45"},{"v":0.409297052154195,"d":"0.41"}]
["qPS24-1","Chr24",{"v":31300000,"d":"31,300,000"},{"v":31850000,"d":"31,850,000"},0.55,{"v":0.809090909090909,"d":"0.81"},{"v":1.30925619834711,"d":"1.31"},null,{"v":0.636363636363636,"d":"0.64"},{"v":0.809917355371901,"d":"0.81"}]
["qPS24-2","Chr24",{"v":125350000,"d":"125,350,000"},{"v":125550000,"d":"125,550,000"},{"v":0.2,"d":"0.20"},{"v":0.48951048951049,"d":"0.49"},{"v":0.479241038681598,"d":"0.48"},null,{"v":0.375,"d":"0.38"},{"v":0.28125,"d":"0.28"}]
["qPS24-3","Chr24",{"v":143700000,"d":"143,700,000"},{"v":144200000,"d":"144,200,000"},{"v":0.5,"d":"0.50"},{"v":0.42296918767507,"d":"0.42"},{"v":0.357805867445017,"d":"0.36"},null,"--","--"]
["qPS24-4","Chr24",{"v":261750000,"d":"261,750,000"},{"v":261900000,"d":"261,900,000"},0.15,{"v":0.279411764705882,"d":"0.28"},{"v":0.156141868512111,"d":"0.16"},null,"--","--"]
["qPS26-1","Chr26",{"v":3100000,"d":"3,100,000"},{"v":3600000,"d":"3,600,000"},{"v":0.5,"d":"0.50"},{"v":0.669312169312169,"d":"0.67"},{"v":0.895957559978724,"d":"0.90"},null,{"v":0.415384615384615,"d":"0.42"},{"v":0.34508875739645,"d":"0.35"}]
["qPS26-2","Chr26",{"v":66400000,"d":"66,400,000"},{"v":66950000,"d":"66,950,000"},0.55,{"v":0.644444444444444,"d":"0.64"},{"v":0.830617283950617,"d":"0.83"},null,{"v":0.454545454545455,"d":"0.45"},{"v":0.413223140495868,"d":"0.41"}]

{"sheet":"Supplementary Data 12","index":11,"n_rows":45,"n_cols":10,"rows_kept":45}
["Supplementary Data 12. The identified auxin related genes via BSA-seq and WGCNA analyses. "]
["ID","Chr","Start (bp)","End (bp)","Method","R1vsR2","R1vsR3","R2vsR3","SwissProt","NR"]
["evm.model.scaffold_3347.41","Chr17",{"v":223074083,"d":"223,074,083"},{"v":223077369,"d":"223,077,369"},"BSA-seq",{"$nulls":3},"Auxin efflux carrier component 3 OS=Arabidopsis thaliana GN=PIN3 PE=1 SV=1","auxin:hydrogen symporter/transporter [Zinnia violacea]"]
["evm.model.scaffold_1205.292","Chr12",{"v":271408178,"d":"271,408,178"},{"v":271413018,"d":"271,413,018"},"BSA-seq",{"$nulls":3},"Auxin efflux carrier component 3 OS=Arabidopsis thaliana GN=PIN3 PE=1 SV=1","auxin:hydrogen symporter/transporter [Zinnia violacea]"]
["evm.model.scaffold_197.21","Chr18",{"v":226517620,"d":"226,517,620"},{"v":226520905,"d":"226,520,905"},"BSA-seq",{"$nulls":3},"Auxin efflux carrier component 3 OS=Arabidopsis thaliana GN=PIN3 PE=1 SV=1","auxin:hydrogen symporter/transporter [Zinnia violacea]"]
["evm.model.scaffold_5502.6","Chr16",{"v":205954764,"d":"205,954,764"},{"v":205958044,"d":"205,958,044"},"BSA-seq",{"$nulls":3},"Auxin efflux carrier component 3 OS=Arabidopsis thaliana GN=PIN3 PE=1 SV=1","auxin:hydrogen symporter/transporter [Zinnia violacea]"]
["evm.model.scaffold_9885.41","Chr17",{"v":175801024,"d":"175,801,024"},{"v":175803285,"d":"175,803,285"},"BSA-seq",{"$nulls":3},"Auxin-induced protein 15A OS=Glycine max PE=2 SV=1","PREDICTED: auxin-induced protein 15A [Fragaria vesca subsp. vesca]"]
["evm.model.scaffold_781.1","Chr18",{"v":295484727,"d":"295,484,727"},{"v":295490627,"d":"295,490,627"},"BSA-seq;WGCNA","✔","✔",null,"Auxin transporter-like protein 5 OS=Medicago truncatula GN=LAX5 PE=2 SV=1","PREDICTED: auxin transporter-like protein 2 [Erythranthe guttatus]"]
["evm.model.scaffold_48.279","Chr3",{"v":144340111,"d":"144,340,111"},{"v":144340627,"d":"144,340,627"},"BSA-seq",{"$nulls":3},"Auxin-induced protein X15 OS=Glycine max PE=2 SV=1","PREDICTED: auxin-induced protein 15A [Tarenaya hassleriana]"]
["evm.model.scaffold_9490.11","Chr8",{"v":243400859,"d":"243,400,859"},{"v":243405072,"d":"243,405,072"},"BSA-seq",{"$nulls":3},"Auxin transporter protein 1 OS=Arabidopsis thaliana GN=AUX1 PE=1 SV=1","unknown [Glycine max]"]
["evm.model.scaffold_1489.24","Chr11",{"v":90295694,"d":"90,295,694"},{"v":90296158,"d":"90,296,158"},"BSA-seq",{"$nulls":3},"Auxin-responsive protein SAUR36 OS=Arabidopsis thaliana GN=SAUR36 PE=2 SV=1","PREDICTED: auxin-induced protein 10A5-like [Solanum tuberosum]"]
["evm.model.scaffold_1284.241","Chr8",{"v":57215299,"d":"57,215,299"},{"v":57219419,"d":"57,219,419"},"BSA-seq",{"$nulls":3},"Auxin transport protein BIG OS=Arabidopsis thaliana GN=BIG PE=1 SV=2","PREDICTED: auxin transport protein BIG [Vitis vinifera]"]
["evm.model.scaffold_1284.242","Chr8",{"v":57219513,"d":"57,219,513"},{"v":57219965,"d":"57,219,965"},"BSA-seq",{"$nulls":3},"Auxin transport protein BIG OS=Arabidopsis thaliana GN=BIG PE=1 SV=2","unnamed protein product [Vitis vinifera]"]
["evm.model.scaffold_6206.43","Chr18",{"v":29678179,"d":"29,678,179"},{"v":29678978,"d":"29,678,978"},"BSA-seq",{"$nulls":3},"Auxin-responsive protein SAUR72 OS=Arabidopsis thaliana GN=SAUR72 PE=2 SV=1","PREDICTED: auxin-induced protein X15 [Malus domestica]"]
["evm.model.scaffold_7473.29","Chr15",{"v":57912944,"d":"57,912,944"},{"v":57913315,"d":"57,913,315"},"BSA-seq",{"$nulls":3},"Auxin-responsive protein SAUR72 OS=Arabidopsis thaliana GN=SAUR72 PE=2 SV=1","PREDICTED: auxin-induced protein X15 [Vitis vinifera]"]
["evm.model.scaffold_832.85","Chr13",{"v":59277448,"d":"59,277,448"},{"v":59277819,"d":"59,277,819"},"BSA-seq",{"$nulls":3},"Auxin-responsive protein SAUR72 OS=Arabidopsis thaliana GN=SAUR72 PE=2 SV=1","PREDICTED: auxin-induced protein X15 [Vitis vinifera]"]
["evm.model.scaffold_832.72","Chr13",{"v":59071018,"d":"59,071,018"},{"v":59071404,"d":"59,071,404"},"BSA-seq",{"$nulls":3},"Auxin-responsive protein SAUR72 OS=Arabidopsis thaliana GN=SAUR72 PE=2 SV=1","PREDICTED: auxin-induced protein X15 [Vitis vinifera]"]
["evm.model.scaffold_121.209","Chr4",{"v":281304720,"d":"281,304,720"},{"v":281307965,"d":"281,307,965"},"BSA-seq",{"$nulls":3},"Auxin-responsive protein IAA27 OS=Arabidopsis thaliana GN=IAA27 PE=1 SV=1","PREDICTED: auxin-responsive protein IAA21-like isoform X2 [Malus domestica]"]
["evm.model.scaffold_11745.67","Chr17",{"v":192732643,"d":"192,732,643"},{"v":192733367,"d":"192,733,367"},"BSA-seq",{"$nulls":3},"Auxin-responsive protein IAA27 OS=Arabidopsis thaliana GN=IAA27 PE=1 SV=1","Auxin-responsive protein IAA27 [Glycine soja]"]
["evm.model.scaffold_907.62","Chr19",{"v":78758527,"d":"78,758,527"},{"v":78760222,"d":"78,760,222"},"BSA-seq",{"$nulls":3},"Auxin response factor 18 OS=Oryza sativa subsp. japonica GN=ARF18 PE=2 SV=1","PREDICTED: auxin response factor 18 [Malus domestica]"]
["evm.model.scaffold_1118.337","Chr6",{"v":131470212,"d":"131,470,212"},{"v":131472239,"d":"131,472,239"},"BSA-seq",{"$nulls":3},"Putative auxin efflux carrier component 8 OS=Arabidopsis thaliana GN=PIN8 PE=3 SV=2","PREDICTED: putative auxin efflux carrier component 8 [Gossypium raimondii]"]
["evm.model.scaffold_10119.81","Chr19",{"v":32148149,"d":"32,148,149"},{"v":32150085,"d":"32,150,085"},"BSA-seq",null,"✔",null,"Probable auxin efflux carrier component 5 OS=Oryza sativa subsp. japonica GN=PIN5 PE=2 SV=1","PREDICTED: probable auxin efflux carrier component 1c isoform X1 [Nelumbo nucifera]"]
["evm.model.scaffold_1027.51","Chr16",{"v":53351341,"d":"53,351,341"},{"v":53356569,"d":"53,356,569"},"BSA-seq","✔",null,null,"Auxin response factor 2 OS=Arabidopsis thaliana GN=ARF2 PE=1 SV=2","PREDICTED: auxin response factor 2-like [Sesamum indicum]"]
["evm.model.scaffold_12225.25.1","Chr25",{"v":82889456,"d":"82,889,456"},{"v":82893629,"d":"82,893,629"},"BSA-seq",{"$nulls":3},"Auxin-responsive protein IAA9 OS=Arabidopsis thaliana GN=IAA9 PE=1 SV=1","auxin-regulated protein [Zinnia violacea]"]
["evm.model.scaffold_10008.49","Chr20",{"v":47075646,"d":"47,075,646"},{"v":47076062,"d":"47,076,062"},"WGCNA",{"$nulls":3},"Lipid phosphate phosphatase gamma, chloroplastic OS=Arabidopsis thaliana GN=LPPG PE=1 SV=1","PREDICTED: lipid phosphate phosphatase gamma, chloroplastic [Solanum lycopersicum]"]
["evm.model.scaffold_10250.31","Chr2",{"v":253616917,"d":"253,616,917"},{"v":253624609,"d":"253,624,609"},"WGCNA","✔",null,null,"Auxin response factor 5 OS=Oryza sativa subsp. japonica GN=ARF5 PE=2 SV=2","PREDICTED: auxin response factor 19-like isoform X1 [Nicotiana sylvestris]"]
["evm.model.scaffold_1047.204","Chr5",{"v":271198527,"d":"271,198,527"},{"v":271200310,"d":"271,200,310"},"WGCNA","✔","✔",null,"Auxin-responsive protein IAA1 OS=Oryza sativa subsp. japonica GN=IAA1 PE=2 SV=1","PREDICTED: auxin-responsive protein IAA1-like [Nelumbo nucifera]"]
["evm.model.scaffold_10472.71","Chr27",{"v":61426967,"d":"61,426,967"},{"v":61427601,"d":"61,427,601"},"WGCNA","✔","✔",null,"Auxin-induced protein X10A OS=Glycine max PE=2 SV=1","auxin-induced SAUR-like protein [Capsicum annuum]"]
["evm.model.scaffold_10712.64","Chr1",{"v":253855386,"d":"253,855,386"},{"v":253856502,"d":"253,856,502"},"WGCNA","✔","✔",null,"Auxin-induced protein 22D OS=Vigna radiata var. radiata GN=AUX22D PE=2 SV=1","PREDICTED: auxin-induced protein 22D-like [Nicotiana sylvestris]"]
["evm.model.scaffold_121.15","Chr6",{"v":265637287,"d":"265,637,287"},{"v":265638826,"d":"265,638,826"},"WGCNA","✔","✔",null,"Auxin-responsive protein IAA15 OS=Oryza sativa subsp. japonica GN=IAA15 PE=2 SV=1","PREDICTED: auxin-responsive protein IAA1-like [Nelumbo nucifera]"]
["evm.model.scaffold_121.16","Chr6",{"v":265700849,"d":"265,700,849"},{"v":265705315,"d":"265,705,315"},"WGCNA","✔","✔",null,"Auxin-induced protein 22A OS=Vigna radiata var. radiata GN=AUX22A PE=2 SV=1","unknown [Lotus japonicus]"]
["evm.model.scaffold_1433.17","Chr16",{"v":165293222,"d":"165,293,222"},{"v":165293530,"d":"165,293,530"},"WGCNA","✔","✔",null,"Auxin-induced protein 15A OS=Glycine max PE=2 SV=1","unnamed protein product [Coffea canephora]"]
["evm.model.scaffold_1505.122","Chr2",{"v":75828609,"d":"75,828,609"},{"v":75831491,"d":"75,831,491"},"WGCNA",{"$nulls":3},"Auxin-responsive protein IAA27 OS=Arabidopsis thaliana GN=IAA27 PE=1 SV=1","unnamed protein product [Vitis vinifera]"]
["evm.model.scaffold_1627.28","Chr17",{"v":336630233,"d":"336,630,233"},{"v":336636938,"d":"336,636,938"},"WGCNA","✔","✔",null,"Auxin transporter-like protein 5 OS=Medicago truncatula GN=LAX5 PE=2 SV=1","PREDICTED: auxin transporter-like protein 2 [Sesamum indicum]"]
["evm.model.scaffold_1806.205","Chr27",{"v":12091361,"d":"12,091,361"},{"v":12092504,"d":"12,092,504"},"WGCNA","✔",null,null,"Auxin-induced protein 22D OS=Vigna radiata var. radiata GN=AUX22D PE=2 SV=1","unnamed protein product [Coffea canephora]"]
["evm.model.scaffold_1889.27","Chr3",{"v":82238667,"d":"82,238,667"},{"v":82249700,"d":"82,249,700"},"WGCNA","✔","✔",null,"Auxin-responsive protein IAA27 OS=Arabidopsis thaliana GN=IAA27 PE=1 SV=1","unnamed protein product [Vitis vinifera]"]
["evm.model.scaffold_2900.31","Chr26",{"v":73739610,"d":"73,739,610"},{"v":73740247,"d":"73,740,247"},"WGCNA","✔",null,null,"Auxin-induced protein X10A OS=Glycine max PE=2 SV=1","auxin-induced SAUR-like protein [Capsicum annuum]"]
["evm.model.scaffold_475.31","Chr21",{"v":181440027,"d":"181,440,027"},{"v":181442475,"d":"181,442,475"},"WGCNA","✔","✔",null,"Auxin-responsive protein IAA14 OS=Arabidopsis thaliana GN=IAA14 PE=1 SV=2","PREDICTED: auxin-responsive protein IAA7-like [Nicotiana tomentosiformis]"]
["evm.model.scaffold_482.52","Chr1",{"v":91824635,"d":"91,824,635"},{"v":91827386,"d":"91,827,386"},"WGCNA","✔","✔",null,"Auxin-induced protein AUX22 OS=Glycine max GN=AUX22 PE=2 SV=1","unknown [Lotus japonicus]"]
["evm.model.scaffold_538.60","Chr22",{"v":206379318,"d":"206,379,318"},{"v":206380211,"d":"206,380,211"},"WGCNA","✔","✔",null,"Auxin-responsive protein SAUR66 OS=Arabidopsis thaliana GN=SAUR66 PE=2 SV=1","PREDICTED: uncharacterized protein LOC100252141 [Vitis vinifera]"]
["evm.model.scaffold_538.67","Chr22",{"v":206405471,"d":"206,405,471"},{"v":206406081,"d":"206,406,081"},"WGCNA","✔",null,"✔","Auxin-responsive protein SAUR66 OS=Arabidopsis thaliana GN=SAUR66 PE=2 SV=1","PREDICTED: auxin-induced protein 6B-like [Solanum tuberosum]"]
["evm.model.scaffold_833.111","Chr16",{"v":265864680,"d":"265,864,680"},{"v":265870544,"d":"265,870,544"},"WGCNA","✔","✔",null,"Auxin transporter-like protein 5 OS=Medicago truncatula GN=LAX5 PE=2 SV=1","PREDICTED: auxin transporter-like protein 2 [Erythranthe guttatus]"]
["evm.model.scaffold_8984.2","Chr25",{"v":60361124,"d":"60,361,124"},{"v":60361758,"d":"60,361,758"},"WGCNA","✔","✔",null,"Auxin-induced protein X10A OS=Glycine max PE=2 SV=1","auxin-induced SAUR-like protein [Capsicum annuum]"]
["evm.model.scaffold_967.73","Chr2",{"v":78953802,"d":"78,953,802"},{"v":78955974,"d":"78,955,974"},"WGCNA","✔","✔",null,"Auxin-induced protein AUX22 OS=Glycine max GN=AUX22 PE=2 SV=1","unknown [Lotus japonicus]"]
["For WGCNA analysis, only the auxin genes  in turquoise module was list. R1, R2, R3 indicate the cultivars with flat-, tubular- and spoon- petal types, respectively.  The check maeker indicate the gene was differentially expressed between the comparision groups."]

{"sheet":"Supplementary Data 13","index":12,"n_rows":16,"n_cols":7,"rows_kept":16}
["Supplementary Data 13. Enriched GO terms for genes within hot spots SNP distribution regions in C. morifolium genome.   "]
["GO accession","Description","Term","Pvalue","P.adjust","Rich Factor","Gene ID"]
["GO:0047172","shikimate O-hydroxycinnamoyltransferase activity","molecular_function",{"v":6.831e-11,"d":"6.83E-11"},{"v":2.3112e-7,"d":"2.31E-07"},{"v":0.206896551724138,"d":"0.21"},"evm.model.scaffold_4951.15,evm.model.scaffold_4951.46,evm.model.scaffold_4951.45,evm.model.scaffold_4951.33,evm.model.scaffold_4951.8,evm.model.scaffold_4951.6,evm.model.scaffold_10172.1,evm.model.scaffold_4951.2,evm.model.scaffold_4951.28,evm.model.scaffold_4951.7,evm.model.scaffold_6299.7,evm.model.scaffold_4951.5"]
["GO:0050734","hydroxycinnamoyltransferase activity","molecular_function",{"v":8.6041e-10,"d":"8.60E-10"},{"v":2.1833e-6,"d":"2.18E-06"},{"v":0.169014084507042,"d":"0.17"},"evm.model.scaffold_4951.46,evm.model.scaffold_4951.45,evm.model.scaffold_4951.15,evm.model.scaffold_4951.6,evm.model.scaffold_4951.8,evm.model.scaffold_4951.33,evm.model.scaffold_6299.7,evm.model.scaffold_4951.7,evm.model.scaffold_10172.1,evm.model.scaffold_4951.2,evm.model.scaffold_4951.28,evm.model.scaffold_4951.5"]
["GO:0033946","xyloglucan-specific endo-beta-1,4-glucanase activity","molecular_function",{"v":5.5445e-9,"d":"5.54E-09"},{"v":1.1255e-5,"d":"1.13E-05"},{"v":0.296296296296296,"d":"0.30"},"evm.model.scaffold_184.13,evm.model.scaffold_184.9,evm.model.scaffold_184.7.2,evm.model.scaffold_184.18,evm.model.scaffold_184.24,evm.model.scaffold_184.23,evm.model.scaffold_184.27,evm.model.scaffold_184.11"]
["GO:0010252","auxin homeostasis","biological_process",{"v":2.4429e-8,"d":"2.44E-08"},{"v":4.1325e-5,"d":"4.13E-05"},{"v":0.0883977900552486,"d":"0.09"},"evm.model.scaffold_4951.5,evm.model.scaffold_4951.7,evm.model.scaffold_4951.28,evm.model.scaffold_4951.2,evm.model.scaffold_10172.1,evm.model.scaffold_4951.8,evm.model.scaffold_4951.33,evm.model.scaffold_4951.46,evm.model.scaffold_4951.15,evm.model.scaffold_2094.165,evm.model.scaffold_6299.7,evm.model.scaffold_2094.131,evm.model.scaffold_4951.6,evm.model.scaffold_4951.45,evm.model.scaffold_2094.164,evm.model.scaffold_2094.160"]
["GO:0052736","beta-glucanase activity","molecular_function",{"v":2.828e-7,"d":"2.83E-07"},0.00041006,{"v":0.186046511627907,"d":"0.19"},"evm.model.scaffold_184.13,evm.model.scaffold_184.9,evm.model.scaffold_184.7.2,evm.model.scaffold_184.18,evm.model.scaffold_184.27,evm.model.scaffold_184.24,evm.model.scaffold_184.23,evm.model.scaffold_184.11"]
["GO:0009963","positive regulation of flavonoid biosynthetic process","biological_process",{"v":5.0397e-7,"d":"5.04E-07"},0.00063941,{"v":0.0975609756097561,"d":"0.10"},"evm.model.scaffold_4951.6,evm.model.scaffold_4951.8,evm.model.scaffold_4951.33,evm.model.scaffold_4951.45,evm.model.scaffold_4951.46,evm.model.scaffold_4951.15,evm.model.scaffold_4951.5,evm.model.scaffold_6299.7,evm.model.scaffold_4951.7,evm.model.scaffold_4951.28,evm.model.scaffold_4951.2,evm.model.scaffold_10172.1"]
["GO:0009962","regulation of flavonoid biosynthetic process","biological_process",{"v":9.969e-7,"d":"9.97E-07"},0.0011243,{"v":0.0773480662983425,"d":"0.08"},"evm.model.scaffold_9340.138,evm.model.scaffold_4951.8,evm.model.scaffold_4951.33,evm.model.scaffold_4951.6,evm.model.scaffold_4951.45,evm.model.scaffold_4951.46,evm.model.scaffold_4951.15,evm.model.scaffold_4951.5,evm.model.scaffold_6299.7,evm.model.scaffold_4951.7,evm.model.scaffold_4951.28,evm.model.scaffold_12108.7,evm.model.scaffold_4951.2,evm.model.scaffold_10172.1"]
["GO:0016747","transferase activity, transferring acyl groups other than amino-acyl groups","molecular_function",{"v":4.0236e-6,"d":"4.02E-06"},0.004084,{"v":0.0278598564795272,"d":"0.03"},"evm.model.scaffold_4951.2,evm.model.scaffold_627.70,evm.model.scaffold_211.58,evm.model.scaffold_590.53,evm.model.scaffold_342.539,evm.model.scaffold_4951.31,evm.model.scaffold_907.142,evm.model.scaffold_4060.83,evm.model.scaffold_6299.7,evm.model.scaffold_4951.4,evm.model.scaffold_6100.77,evm.model.scaffold_11966.35,evm.model.scaffold_811.264,evm.model.scaffold_113.385,evm.model.scaffold_113.371,evm.model.scaffold_322.232,evm.model.scaffold_9340.138,evm.model.scaffold_627.34,evm.model.scaffold_10172.1,evm.model.scaffold_4951.28,evm.model.scaffold_590.68,evm.model.scaffold_1431.95,evm.model.scaffold_4951.46,evm.model.scaffold_4951.29,evm.model.scaffold_6299.3,evm.model.scaffold_4289.11,evm.model.scaffold_1573.538,evm.model.scaffold_4060.97,evm.model.scaffold_4951.6,evm.model.scaffold_5642.43,evm.model.scaffold_907.143,evm.model.scaffold_4951.5,evm.model.scaffold_4951.8,evm.model.scaffold_4951.33,evm.model.scaffold_907.154,evm.model.scaffold_4951.16,evm.model.scaffold_342.555,evm.model.scaffold_4951.30,evm.model.scaffold_969.71,evm.model.scaffold_391.113,evm.model.scaffold_342.537,evm.model.scaffold_907.159,evm.model.scaffold_322.233,evm.model.scaffold_811.248,evm.model.scaffold_10628.156,evm.model.scaffold_1027.134,evm.model.scaffold_401.183,evm.model.scaffold_2891.100,evm.model.scaffold_322.244,evm.model.scaffold_6784.17,evm.model.scaffold_4951.7,evm.model.scaffold_113.376,evm.model.scaffold_4951.15,evm.model.scaffold_113.387,evm.model.scaffold_356.78,evm.model.scaffold_4951.3,evm.model.scaffold_113.377,evm.model.scaffold_322.190,evm.model.scaffold_113.380,evm.model.scaffold_342.554,evm.model.scaffold_1431.97,evm.model.scaffold_113.394.1,evm.model.scaffold_1711.135,evm.model.scaffold_401.182,evm.model.scaffold_4951.45,evm.model.scaffold_322.234"]
["GO:0016746","transferase activity, transferring acyl groups","molecular_function",{"v":5.7684e-6,"d":"5.77E-06"},0.0053226,{"v":0.0267203513909224,"d":"0.03"},"evm.model.scaffold_590.53,evm.model.scaffold_342.539,evm.model.scaffold_4951.31,evm.model.scaffold_4951.2,evm.model.scaffold_627.70,evm.model.scaffold_211.58,evm.model.scaffold_9340.151,evm.model.scaffold_811.264,evm.model.scaffold_113.385,evm.model.scaffold_113.371,evm.model.scaffold_322.232,evm.model.scaffold_9340.138,evm.model.scaffold_907.142,evm.model.scaffold_4060.83,evm.model.scaffold_6299.7,evm.model.scaffold_4951.4,evm.model.scaffold_6100.77,evm.model.scaffold_11966.35,evm.model.scaffold_4951.46,evm.model.scaffold_4951.29,evm.model.scaffold_627.34,evm.model.scaffold_10172.1,evm.model.scaffold_4951.28,evm.model.scaffold_590.68,evm.model.scaffold_1431.95,evm.model.scaffold_4060.97,evm.model.scaffold_4951.6,evm.model.scaffold_5642.43,evm.model.scaffold_6299.3,evm.model.scaffold_4289.11,evm.model.scaffold_1046.322,evm.model.scaffold_1573.538,evm.model.scaffold_907.154,evm.model.scaffold_4951.33,evm.model.scaffold_4951.8,evm.model.scaffold_4951.16,evm.model.scaffold_12108.5,evm.model.scaffold_907.143,evm.model.scaffold_4951.5,evm.model.scaffold_1504.124,evm.model.scaffold_907.159,evm.model.scaffold_322.233,evm.model.scaffold_811.248,evm.model.scaffold_10628.156,evm.model.scaffold_1027.134,evm.model.scaffold_342.555,evm.model.scaffold_4951.30,evm.model.scaffold_969.71,evm.model.scaffold_342.537,evm.model.scaffold_391.113,evm.model.scaffold_4951.15,evm.model.scaffold_113.387,evm.model.scaffold_356.78,evm.model.scaffold_4951.3,evm.model.scaffold_113.377,evm.model.scaffold_9340.152,evm.model.scaffold_322.190,evm.model.scaffold_342.554,evm.model.scaffold_113.380,evm.model.scaffold_401.183,evm.model.scaffold_2891.100,evm.model.scaffold_322.244,evm.model.scaffold_6784.17,evm.model.scaffold_4951.7,evm.model.scaffold_113.376,evm.model.scaffold_670.96,evm.model.scaffold_401.182,evm.model.scaffold_1017.337,evm.model.scaffold_322.234,evm.model.scaffold_4951.45,evm.model.scaffold_1711.135,evm.model.scaffold_113.394.1,evm.model.scaffold_1431.97"]
["GO:0071456","cellular response to hypoxia","biological_process",{"v":8.5781e-6,"d":"8.58E-06"},0.0069578,{"v":0.0336206896551724,"d":"0.03"},"evm.model.scaffold_670.112,evm.model.scaffold_184.47,evm.model.scaffold_1017.332,evm.model.scaffold_128.61,evm.model.scaffold_10627.3,evm.model.scaffold_670.111,evm.model.scaffold_550.76,evm.model.scaffold_670.107,evm.model.scaffold_3709.39,evm.model.scaffold_133.18.2,evm.model.scaffold_670.104,evm.model.scaffold_10628.130,evm.model.scaffold_3709.40,evm.model.scaffold_670.115,evm.model.scaffold_1201.62,evm.model.scaffold_10628.141,evm.model.scaffold_184.46,evm.model.scaffold_7549.109,evm.model.scaffold_7549.84_evm.model.scaffold_7549.99,evm.model.scaffold_10628.143,evm.model.scaffold_7549.119,evm.model.scaffold_670.105,evm.model.scaffold_1711.135,evm.model.scaffold_670.110,evm.model.scaffold_10628.139,evm.model.scaffold_670.116,evm.model.scaffold_9673.26,evm.model.scaffold_10628.128,evm.model.scaffold_3709.36,evm.model.scaffold_7549.107,evm.model.scaffold_10628.144,evm.model.scaffold_1017.320,evm.model.scaffold_3709.37,evm.model.scaffold_5424.115,evm.model.scaffold_963.73,evm.model.scaffold_3709.28,evm.model.scaffold_2784.34,evm.model.scaffold_670.101,evm.model.scaffold_1027.112"]
["GO:0042744","hydrogen peroxide catabolic process","biological_process",{"v":1.0283e-5,"d":"1.03E-05"},0.0069578,{"v":0.0802919708029197,"d":"0.08"},"evm.model.scaffold_670.110,evm.model.scaffold_670.112,evm.model.scaffold_670.116,evm.model.scaffold_670.115,evm.model.scaffold_670.111,evm.model.scaffold_550.76,evm.model.scaffold_1431.82,evm.model.scaffold_670.107,evm.model.scaffold_670.104,evm.model.scaffold_670.105,evm.model.scaffold_670.101"]
["GO:0001666","response to hypoxia","biological_process",{"v":1.2007e-5,"d":"1.20E-05"},0.0076167,{"v":0.0323854660347551,"d":"0.03"},"evm.model.scaffold_10628.143,evm.model.scaffold_7549.119,evm.model.scaffold_2933.3,evm.model.scaffold_670.105,evm.model.scaffold_1711.135,evm.model.scaffold_670.110,evm.model.scaffold_10628.139,evm.model.scaffold_670.116,evm.model.scaffold_9673.26,evm.model.scaffold_10628.128,evm.model.scaffold_7549.107,evm.model.scaffold_3709.36,evm.model.scaffold_10628.144,evm.model.scaffold_3709.37,evm.model.scaffold_1017.320,evm.model.scaffold_5424.115,evm.model.scaffold_963.73,evm.model.scaffold_3709.28,evm.model.scaffold_1027.112,evm.model.scaffold_2784.34,evm.model.scaffold_670.101,evm.model.scaffold_184.47,evm.model.scaffold_670.112,evm.model.scaffold_1017.332,evm.model.scaffold_128.61,evm.model.scaffold_670.111,evm.model.scaffold_10627.3,evm.model.scaffold_550.76,evm.model.scaffold_670.107,evm.model.scaffold_133.18.2,evm.model.scaffold_3709.39,evm.model.scaffold_670.104,evm.model.scaffold_10628.130,evm.model.scaffold_3709.40,evm.model.scaffold_393.286,evm.model.scaffold_670.115,evm.model.scaffold_1201.62,evm.model.scaffold_184.46,evm.model.scaffold_10628.141,evm.model.scaffold_7549.109,evm.model.scaffold_7549.84_evm.model.scaffold_7549.99"]
["GO:0042743","hydrogen peroxide metabolic process","biological_process",{"v":1.8123e-5,"d":"1.81E-05"},0.0096814,{"v":0.0568181818181818,"d":"0.06"},"evm.model.scaffold_342.508,evm.model.scaffold_670.111,evm.model.scaffold_670.115,evm.model.scaffold_670.112,evm.model.scaffold_670.110,evm.model.scaffold_670.116,evm.model.scaffold_670.104,evm.model.scaffold_342.511,evm.model.scaffold_670.105,evm.model.scaffold_670.101,evm.model.scaffold_342.486,evm.model.scaffold_1431.82,evm.model.scaffold_550.76,evm.model.scaffold_670.107,evm.model.scaffold_342.506"]
["Enrichment was determined by a two-sided hypergeometric test followed by false discovery rate (FDR) correction for multiple testing."]